{"text_format":"1","workbook":"xlsx","n_sheets":2,"sheets":["UNWDF_Medellín_2024_en","UNWDF2024_LookUp"],"not_rendered":{"charts":0,"images":1,"macros":1,"external_links":3,"defined_names":52,"comments":0,"pivot_tables":0},"unopened":[],"bounds":{"document_bytes":16777216,"sheet_cells":100000,"rows_first":2000,"rows_last":500,"rows_between":2000,"halvings":0,"cell_chars":16384,"cell_head_chars":4096},"cells_cut":0,"cells_raw":0,"read":"whole","date_system":"1900"}

{"sheet":"UNWDF_Medellín_2024_en","index":0,"n_rows":126,"n_cols":19,"rows_kept":126,"cut":false,"hidden":false,"merged":[[107,5,110,5],[102,5,105,5],[92,5,95,5],[97,5,100,5],[112,5,115,5],[116,6,116,15],[106,6,106,17],[123,9,123,11],[123,13,123,16],[125,9,125,11],[125,13,125,16],[111,6,111,17],[90,5,91,5],[117,5,118,5],[120,5,121,5],[45,6,45,15],[56,5,59,5],[119,6,119,15],[81,5,82,5],[71,5,74,5],[101,6,101,17],[84,9,84,11],[84,13,84,16],[86,9,86,11],[86,13,86,16],[80,6,80,15],[88,5,88,17],[70,6,70,17],[3,5,3,17],[49,9,49,11],[49,13,49,16],[51,9,51,11],[51,13,51,16],[14,5,15,5],[31,5,34,5],[21,5,24,5],[16,5,19,5],[26,5,29,5],[9,6,9,17],[20,6,20,17],[0,5,0,17],[1,5,1,17],[2,5,2,17],[96,6,96,17],[41,5,44,5],[46,5,47,5],[76,5,79,5],[54,5,55,5],[61,5,64,5],[66,5,69,5],[36,5,39,5],[5,5,6,5],[10,5,11,5],[7,5,8,5],[60,6,60,17],[65,6,65,17],[75,6,75,17],[12,5,12,17],[52,5,52,17],[25,6,25,17],[30,6,30,17],[35,6,35,17],[40,6,40,17]]}
[null,null,null,"Day",12,"UNITED NATIONS WORLD DATA FORUM 2024 (12 - 15 NOVEMBER)"]
[null,"NOW (Local time)",{"$f":"NOW()","v":"2024-11-13T11:21:05.890"},"Month",11,"Plaza Mayor Medellín Conventions and Exhibitions, Medellín, Colombia"]
[null,"GMT-5/UTC-5 (Medellín time)",{"$f":"Local2GMT(NOW())+(-5/24)","v":"2024-11-13T11:21:05.890"},"Year",2024,"Provisional programme, as of 13 November 2024"]
["Day0",null,null,null,{"$f":"DATE($E$3,$E$2,$E$1+MID(B8,4,1))","v":"2024-11-12"},{"$f":"IF(ISERROR(DATE($E$3,$E$2,$E$1+MID(B8,4,1))+TIME(MID(E8,1,2),MID(E8,4,2),0)+($C$2-$C$3)),DATE($E$3,$E$2,$E$1+MID(B8,4,1)),TEXT(DATE($E$3,$E$2,$E$1+MID(B8,4,1))+TIME(MID(E8,1,2),MID(E8,4,2),0)+($C$2-$C$3),\"DDDDDD, DD MMMM YYYY\")&\" [Date changes shown on row]\")","v":"Tuesday, 12 November 2024 [Date changes shown on row]"}]
[null,null,"LookUp",null,null,null,"LookUp","Parallel 01","Parallel 02","Parallel 03","Parallel 04","Parallel 05","Parallel 06","Parallel 07","Parallel 08","Parallel 09","Parallel 10","Parallel 11","Parallel 12"]
[null,null,null,null,null,"Time (Auto-adjusts to your local time, unless \"(Medellín time)\" shown)","Rm Name","Plenary Room","Room 1","Room 2","Room 3","Room 4","Room 5","Room 6","Room 7","Room 8","Room 9","Room 10","NA"]
["DayTime_LookUp","Day_LookUp","Time_LookUp","Col_LookUp","Time (GMT/UTC time-5)",null,"Capacity",3000,300,200,200,200,200,150,150,90,60,60,"NA"]
[{"$f":"B8&C8","v":"Day0Time_Slot1"},"Day0","Time_Slot1",16,"11:00 - 12:00 (Medellín Time)",{"$f":"IF(ISERROR(TEXT((DATE($E$3,$E$2,$E$1+MID(B8,4,1))+TIME(MID(E8,1,2),MID(E8,4,2),0))+($C$2-$C$3),\"H:MM AM/PM\")&\" - \"&TEXT(DATE($E$3,$E$2,$E$1+MID(B8,4,1))+TIME(MID(E8,9,2),MID(E8,12,2),0)+($C$2-$C$3),\"H:MM AM/PM\")),E8,TEXT(DATE($E$3,$E$2,$E$1+MID(B8,4,1))+TIME(MID(E8,1,2),MID(E8,4,2),0)+($C$2-$C$3),\"DDDD DD MMM\")&\" : \"&TEXT((DATE($E$3,$E$2,$E$1+MID(B8,4,1))+TIME(MID(E8,1,2),MID(E8,4,2),0))+($C$2-$C$3),\"H:MM AM/PM\")&\" - \"&TEXT(DATE($E$3,$E$2,$E$1+MID(B8,4,1))+TIME(MID(E8,9,2),MID(E8,12,2),0)+($C$2-$C$3),\"H:MM AM/PM\"))","v":"Tuesday 12 Nov : 11:00 AM - 12:00 PM"},"Event Title",{"$f":"IF(VLOOKUP($B8&\"_\"&$C8&\"_\"&H$14,UNWDF2024_LookUp!$B:$T,$D8,FALSE)=0,\"\",VLOOKUP($B8&\"_\"&$C8&\"_\"&H$14,UNWDF2024_LookUp!$B:$T,$D8,FALSE))","v":"Opening press conference (LOCATION: Media Corner)"}]
["Day0Time_Slot1","Day0","Time_Slot1",17,"",null,"Organiser",{"$f":"IF(VLOOKUP($B9&\"_\"&$C9&\"_\"&H$14,UNWDF2024_LookUp!$B:$T,$D9,FALSE)=0,\"\",VLOOKUP($B9&\"_\"&$C9&\"_\"&H$14,UNWDF2024_LookUp!$B:$T,$D9,FALSE))","v":"Departamento Administrativo Nacional de Estadística (DANE-Colombia); United Nations Statistics Division (UNSD-DESA)"}]
[null,"Day0",null,null,"12:00 - 15:30 (Medellín time)",{"$f":"IF(ISERROR(TEXT((DATE($E$3,$E$2,$E$1+MID(B10,4,1))+TIME(MID(E10,1,2),MID(E10,4,2),0))+($C$2-$C$3),\"H:MM AM/PM\")&\" - \"&TEXT(DATE($E$3,$E$2,$E$1+MID(B10,4,1))+TIME(MID(E10,9,2),MID(E10,12,2),0)+($C$2-$C$3),\"H:MM AM/PM\")),E10,TEXT((DATE($E$3,$E$2,$E$1+MID(B10,4,1))+TIME(MID(E10,1,2),MID(E10,4,2),0))+($C$2-$C$3),\"H:MM AM/PM\")&\" - \"&TEXT(DATE($E$3,$E$2,$E$1+MID(B10,4,1))+TIME(MID(E10,9,2),MID(E10,12,2),0)+($C$2-$C$3),\"H:MM AM/PM\"))","v":"12:00 PM - 3:30 PM"},"BREAK"]
[{"$f":"B11&C11","v":"Day0Time_Slot2"},"Day0","Time_Slot2",16,"15:30 - 17:00 (Medellín Time)",{"$f":"IF(ISERROR(TEXT((DATE($E$3,$E$2,$E$1+MID(B11,4,1))+TIME(MID(E11,1,2),MID(E11,4,2),0))+($C$2-$C$3),\"H:MM AM/PM\")&\" - \"&TEXT(DATE($E$3,$E$2,$E$1+MID(B11,4,1))+TIME(MID(E11,9,2),MID(E11,12,2),0)+($C$2-$C$3),\"H:MM AM/PM\")),E11,TEXT(DATE($E$3,$E$2,$E$1+MID(B11,4,1))+TIME(MID(E11,1,2),MID(E11,4,2),0)+($C$2-$C$3),\"DDDD DD MMM\")&\" : \"&TEXT((DATE($E$3,$E$2,$E$1+MID(B11,4,1))+TIME(MID(E11,1,2),MID(E11,4,2),0))+($C$2-$C$3),\"H:MM AM/PM\")&\" - \"&TEXT(DATE($E$3,$E$2,$E$1+MID(B11,4,1))+TIME(MID(E11,9,2),MID(E11,12,2),0)+($C$2-$C$3),\"H:MM AM/PM\"))","v":"Tuesday 12 Nov : 3:30 PM - 5:00 PM"},"Event Title",{"$f":"IF(VLOOKUP($B11&\"_\"&$C11&\"_\"&H$14,UNWDF2024_LookUp!$B:$T,$D11,FALSE)=0,\"\",VLOOKUP($B11&\"_\"&$C11&\"_\"&H$14,UNWDF2024_LookUp!$B:$T,$D11,FALSE))","v":"Opening ceremony"}]
["Day0Time_Slot2","Day0","Time_Slot2",17,"",null,"Organiser",{"$f":"IF(VLOOKUP($B12&\"_\"&$C12&\"_\"&H$14,UNWDF2024_LookUp!$B:$T,$D12,FALSE)=0,\"\",VLOOKUP($B12&\"_\"&$C12&\"_\"&H$14,UNWDF2024_LookUp!$B:$T,$D12,FALSE))","v":"Departamento Administrativo Nacional de Estadística (DANE-Colombia)"}]
["Day1",null,null,null,{"$f":"DATE($E$3,$E$2,$E$1+MID(B17,4,1))","v":"2024-11-13"},{"$f":"IF(ISERROR(DATE($E$3,$E$2,$E$1+MID(B17,4,1))+TIME(MID(E17,1,2),MID(E17,4,2),0)+($C$2-$C$3)),DATE($E$3,$E$2,$E$1+MID(B17,4,1)),TEXT(DATE($E$3,$E$2,$E$1+MID(B17,4,1))+TIME(MID(E17,1,2),MID(E17,4,2),0)+($C$2-$C$3),\"DDDDDD, DD MMMM YYYY\")&\" [Date changes shown on row]\")","v":"Wednesday, 13 November 2024 [Date changes shown on row]"}]
[null,null,"LookUp",null,null,null,"LookUp","Parallel 01","Parallel 02","Parallel 03","Parallel 04","Parallel 05","Parallel 06","Parallel 07","Parallel 08","Parallel 09","Parallel 10","Parallel 11","Parallel 12"]
[null,null,null,null,null,"Time (Auto-adjusts to your local time, unless \"(Medellín time)\" shown)","Rm Name","Plenary Room","Room 1","Room 2","Room 3","Room 4","Room 5","Room 6","Room 7","Room 8","Room 9","Room 10","NA"]
["DayTime_LookUp","Day_LookUp","Time_LookUp","Col_LookUp","Time (GMT/UTC time+8)",null,"Capacity",3000,300,200,200,200,200,150,150,90,60,60,"NA"]
[{"$f":"B17&C17","v":"Day1Time_Slot1"},"Day1","Time_Slot1",15,"09:00 - 10:30 (Medellín time)",{"$f":"IF(ISERROR(TEXT((DATE($E$3,$E$2,$E$1+MID(B17,4,1))+TIME(MID(E17,1,2),MID(E17,4,2),0))+($C$2-$C$3),\"H:MM AM/PM\")&\" - \"&TEXT(DATE($E$3,$E$2,$E$1+MID(B17,4,1))+TIME(MID(E17,9,2),MID(E17,12,2),0)+($C$2-$C$3),\"H:MM AM/PM\")),E17,TEXT(DATE($E$3,$E$2,$E$1+MID(B17,4,1))+TIME(MID(E17,1,2),MID(E17,4,2),0)+($C$2-$C$3),\"DDDD DD MMM\")&\" : \"&TEXT((DATE($E$3,$E$2,$E$1+MID(B17,4,1))+TIME(MID(E17,1,2),MID(E17,4,2),0))+($C$2-$C$3),\"H:MM AM/PM\")&\" - \"&TEXT(DATE($E$3,$E$2,$E$1+MID(B17,4,1))+TIME(MID(E17,9,2),MID(E17,12,2),0)+($C$2-$C$3),\"H:MM AM/PM\"))","v":"Wednesday 13 Nov : 9:00 AM - 10:30 AM"},"Event_ID",{"$f":"IF(VLOOKUP($B17&\"_\"&$C17&\"_\"&H$14,UNWDF2024_LookUp!$B:$T,$D17,FALSE)=0,\"\",VLOOKUP($B17&\"_\"&$C17&\"_\"&H$14,UNWDF2024_LookUp!$B:$T,$D17,FALSE))","v":"TA_O.03"}]
["Day1Time_Slot1","Day1","Time_Slot1",13,"",null,"Thematic Area",{"$f":"IF(VLOOKUP($B18&\"_\"&$C18&\"_\"&H$14,UNWDF2024_LookUp!$B:$T,$D18,FALSE)=0,\"\",VLOOKUP($B18&\"_\"&$C18&\"_\"&H$14,UNWDF2024_LookUp!$B:$T,$D18,FALSE))","v":"_O"}]
[{"$f":"B19&C19","v":"Day1Time_Slot1"},"Day1","Time_Slot1",16,"",null,"Event Title",{"$f":"IF(VLOOKUP($B19&\"_\"&$C19&\"_\"&H$14,UNWDF2024_LookUp!$B:$T,$D19,FALSE)=0,\"\",VLOOKUP($B19&\"_\"&$C19&\"_\"&H$14,UNWDF2024_LookUp!$B:$T,$D19,FALSE))","v":"Welcome and introduction"}]
["Day1Time_Slot1","Day1","Time_Slot1",17,"",null,"Organiser",{"$f":"IF(VLOOKUP($B20&\"_\"&$C20&\"_\"&H$14,UNWDF2024_LookUp!$B:$T,$D20,FALSE)=0,\"\",VLOOKUP($B20&\"_\"&$C20&\"_\"&H$14,UNWDF2024_LookUp!$B:$T,$D20,FALSE))","v":"Departamento Administrativo Nacional de Estadística (DANE-Colombia) / United Nations Statistics Division (UNSD-DESA)"}]
[null,"Day1",null,null,"10:30 - 10:40 (Medellín time)",{"$f":"IF(ISERROR(TEXT((DATE($E$3,$E$2,$E$1+MID(B21,4,1))+TIME(MID(E21,1,2),MID(E21,4,2),0))+($C$2-$C$3),\"H:MM AM/PM\")&\" - \"&TEXT(DATE($E$3,$E$2,$E$1+MID(B21,4,1))+TIME(MID(E21,9,2),MID(E21,12,2),0)+($C$2-$C$3),\"H:MM AM/PM\")),E21,TEXT((DATE($E$3,$E$2,$E$1+MID(B21,4,1))+TIME(MID(E21,1,2),MID(E21,4,2),0))+($C$2-$C$3),\"H:MM AM/PM\")&\" - \"&TEXT(DATE($E$3,$E$2,$E$1+MID(B21,4,1))+TIME(MID(E21,9,2),MID(E21,12,2),0)+($C$2-$C$3),\"H:MM AM/PM\"))","v":"10:30 AM - 10:40 AM"},"BREAK"]
["Day1Time_Slot2","Day1","Time_Slot2",15,"10:40 - 11:55 (Medellín time)",{"$f":"IF(ISERROR(TEXT((DATE($E$3,$E$2,$E$1+MID(B22,4,1))+TIME(MID(E22,1,2),MID(E22,4,2),0))+($C$2-$C$3),\"H:MM AM/PM\")&\" - \"&TEXT(DATE($E$3,$E$2,$E$1+MID(B22,4,1))+TIME(MID(E22,9,2),MID(E22,12,2),0)+($C$2-$C$3),\"H:MM AM/PM\")),E22,TEXT(DATE($E$3,$E$2,$E$1+MID(B22,4,1))+TIME(MID(E22,1,2),MID(E22,4,2),0)+($C$2-$C$3),\"DDDD DD MMM\")&\" : \"&TEXT((DATE($E$3,$E$2,$E$1+MID(B22,4,1))+TIME(MID(E22,1,2),MID(E22,4,2),0))+($C$2-$C$3),\"H:MM AM/PM\")&\" - \"&TEXT(DATE($E$3,$E$2,$E$1+MID(B22,4,1))+TIME(MID(E22,9,2),MID(E22,12,2),0)+($C$2-$C$3),\"H:MM AM/PM\"))","v":"Wednesday 13 Nov : 10:40 AM - 11:55 AM"},"Event_ID",{"$f":"IF(VLOOKUP($B22&\"_\"&$C22&\"_\"&H$14,UNWDF2024_LookUp!$B:$T,$D22,FALSE)=0,\"\",VLOOKUP($B22&\"_\"&$C22&\"_\"&H$14,UNWDF2024_LookUp!$B:$T,$D22,FALSE))","v":"TA1.1"}]
[null,"Day1","Time_Slot2",13,null,null,"Thematic Area",{"$f":"IF(VLOOKUP($B23&\"_\"&$C23&\"_\"&H$14,UNWDF2024_LookUp!$B:$T,$D23,FALSE)=0,\"\",VLOOKUP($B23&\"_\"&$C23&\"_\"&H$14,UNWDF2024_LookUp!$B:$T,$D23,FALSE))","v":1}]
[{"$f":"B24&C24","v":"Day1Time_Slot2"},"Day1","Time_Slot2",16,null,null,"Event Title",{"$f":"IF(VLOOKUP($B24&\"_\"&$C24&\"_\"&H$14,UNWDF2024_LookUp!$B:$T,$D24,FALSE)=0,\"\",VLOOKUP($B24&\"_\"&$C24&\"_\"&H$14,UNWDF2024_LookUp!$B:$T,$D24,FALSE))","v":"Innovation for better and more inclusive data"}]
["Day1Time_Slot2","Day1","Time_Slot2",17,"",null,"Organiser",{"$f":"IF(VLOOKUP($B25&\"_\"&$C25&\"_\"&H$14,UNWDF2024_LookUp!$B:$T,$D25,FALSE)=0,\"\",VLOOKUP($B25&\"_\"&$C25&\"_\"&H$14,UNWDF2024_LookUp!$B:$T,$D25,FALSE))","v":"UN World Data Forum Programme Committee (UNWDF PC)"}]
[null,"Day1",null,null,"11:55 - 12:15 (Medellín time)",{"$f":"IF(ISERROR(TEXT((DATE($E$3,$E$2,$E$1+MID(B26,4,1))+TIME(MID(E26,1,2),MID(E26,4,2),0))+($C$2-$C$3),\"H:MM AM/PM\")&\" - \"&TEXT(DATE($E$3,$E$2,$E$1+MID(B26,4,1))+TIME(MID(E26,9,2),MID(E26,12,2),0)+($C$2-$C$3),\"H:MM AM/PM\")),E26,TEXT((DATE($E$3,$E$2,$E$1+MID(B26,4,1))+TIME(MID(E26,1,2),MID(E26,4,2),0))+($C$2-$C$3),\"H:MM AM/PM\")&\" - \"&TEXT(DATE($E$3,$E$2,$E$1+MID(B26,4,1))+TIME(MID(E26,9,2),MID(E26,12,2),0)+($C$2-$C$3),\"H:MM AM/PM\"))","v":"11:55 AM - 12:15 PM"},"BREAK"]
[{"$f":"B27&C27","v":"Day1Time_Slot3"},"Day1","Time_Slot3",15,"12:15 - 13:15 (Medellín time)",{"$f":"IF(ISERROR(TEXT((DATE($E$3,$E$2,$E$1+MID(B27,4,1))+TIME(MID(E27,1,2),MID(E27,4,2),0))+($C$2-$C$3),\"H:MM AM/PM\")&\" - \"&TEXT(DATE($E$3,$E$2,$E$1+MID(B27,4,1))+TIME(MID(E27,9,2),MID(E27,12,2),0)+($C$2-$C$3),\"H:MM AM/PM\")),E27,TEXT(DATE($E$3,$E$2,$E$1+MID(B27,4,1))+TIME(MID(E27,1,2),MID(E27,4,2),0)+($C$2-$C$3),\"DDDD DD MMM\")&\" : \"&TEXT((DATE($E$3,$E$2,$E$1+MID(B27,4,1))+TIME(MID(E27,1,2),MID(E27,4,2),0))+($C$2-$C$3),\"H:MM AM/PM\")&\" - \"&TEXT(DATE($E$3,$E$2,$E$1+MID(B27,4,1))+TIME(MID(E27,9,2),MID(E27,12,2),0)+($C$2-$C$3),\"H:MM AM/PM\"))","v":"Wednesday 13 Nov : 12:15 PM - 1:15 PM"},"Event_ID",null,{"$f":"IF(VLOOKUP($B27&\"_\"&$C27&\"_\"&I$14,UNWDF2024_LookUp!$B:$T,$D27,FALSE)=0,\"\",VLOOKUP($B27&\"_\"&$C27&\"_\"&I$14,UNWDF2024_LookUp!$B:$T,$D27,FALSE))","v":"TA1.2"},{"$f":"IF(VLOOKUP($B27&\"_\"&$C27&\"_\"&J$14,UNWDF2024_LookUp!$B:$T,$D27,FALSE)=0,\"\",VLOOKUP($B27&\"_\"&$C27&\"_\"&J$14,UNWDF2024_LookUp!$B:$T,$D27,FALSE))","v":"TA1.4"},{"$f":"IF(VLOOKUP($B27&\"_\"&$C27&\"_\"&K$14,UNWDF2024_LookUp!$B:$T,$D27,FALSE)=0,\"\",VLOOKUP($B27&\"_\"&$C27&\"_\"&K$14,UNWDF2024_LookUp!$B:$T,$D27,FALSE))","v":"TA1.14"},{"$f":"IF(VLOOKUP($B27&\"_\"&$C27&\"_\"&L$14,UNWDF2024_LookUp!$B:$T,$D27,FALSE)=0,\"\",VLOOKUP($B27&\"_\"&$C27&\"_\"&L$14,UNWDF2024_LookUp!$B:$T,$D27,FALSE))","v":"NA"},{"$f":"IF(VLOOKUP($B27&\"_\"&$C27&\"_\"&M$14,UNWDF2024_LookUp!$B:$T,$D27,FALSE)=0,\"\",VLOOKUP($B27&\"_\"&$C27&\"_\"&M$14,UNWDF2024_LookUp!$B:$T,$D27,FALSE))","v":"TA4.8"},{"$f":"IF(VLOOKUP($B27&\"_\"&$C27&\"_\"&N$14,UNWDF2024_LookUp!$B:$T,$D27,FALSE)=0,\"\",VLOOKUP($B27&\"_\"&$C27&\"_\"&N$14,UNWDF2024_LookUp!$B:$T,$D27,FALSE))","v":"TED.201"},{"$f":"IF(VLOOKUP($B27&\"_\"&$C27&\"_\"&O$14,UNWDF2024_LookUp!$B:$T,$D27,FALSE)=0,\"\",VLOOKUP($B27&\"_\"&$C27&\"_\"&O$14,UNWDF2024_LookUp!$B:$T,$D27,FALSE))","v":"TED.211"},{"$f":"IF(VLOOKUP($B27&\"_\"&$C27&\"_\"&P$14,UNWDF2024_LookUp!$B:$T,$D27,FALSE)=0,\"\",VLOOKUP($B27&\"_\"&$C27&\"_\"&P$14,UNWDF2024_LookUp!$B:$T,$D27,FALSE))","v":"Local_1"},{"$f":"IF(VLOOKUP($B27&\"_\"&$C27&\"_\"&Q$14,UNWDF2024_LookUp!$B:$T,$D27,FALSE)=0,\"\",VLOOKUP($B27&\"_\"&$C27&\"_\"&Q$14,UNWDF2024_LookUp!$B:$T,$D27,FALSE))","v":"LEARN.301"},{"$f":"IF(VLOOKUP($B27&\"_\"&$C27&\"_\"&R$14,UNWDF2024_LookUp!$B:$T,$D27,FALSE)=0,\"\",VLOOKUP($B27&\"_\"&$C27&\"_\"&R$14,UNWDF2024_LookUp!$B:$T,$D27,FALSE))","v":"DEMO.501"}]
["Day1Time_Slot3","Day1","Time_Slot3",13,"",null,"Thematic Area",null,{"$f":"IF(VLOOKUP($B28&\"_\"&$C28&\"_\"&I$14,UNWDF2024_LookUp!$B:$T,$D28,FALSE)=0,\"\",VLOOKUP($B28&\"_\"&$C28&\"_\"&I$14,UNWDF2024_LookUp!$B:$T,$D28,FALSE))","v":1},{"$f":"IF(VLOOKUP($B28&\"_\"&$C28&\"_\"&J$14,UNWDF2024_LookUp!$B:$T,$D28,FALSE)=0,\"\",VLOOKUP($B28&\"_\"&$C28&\"_\"&J$14,UNWDF2024_LookUp!$B:$T,$D28,FALSE))","v":1},{"$f":"IF(VLOOKUP($B28&\"_\"&$C28&\"_\"&K$14,UNWDF2024_LookUp!$B:$T,$D28,FALSE)=0,\"\",VLOOKUP($B28&\"_\"&$C28&\"_\"&K$14,UNWDF2024_LookUp!$B:$T,$D28,FALSE))","v":1},{"$f":"IF(VLOOKUP($B28&\"_\"&$C28&\"_\"&L$14,UNWDF2024_LookUp!$B:$T,$D28,FALSE)=0,\"\",VLOOKUP($B28&\"_\"&$C28&\"_\"&L$14,UNWDF2024_LookUp!$B:$T,$D28,FALSE))","v":"NA"},{"$f":"IF(VLOOKUP($B28&\"_\"&$C28&\"_\"&M$14,UNWDF2024_LookUp!$B:$T,$D28,FALSE)=0,\"\",VLOOKUP($B28&\"_\"&$C28&\"_\"&M$14,UNWDF2024_LookUp!$B:$T,$D28,FALSE))","v":4},{"$f":"IF(VLOOKUP($B28&\"_\"&$C28&\"_\"&N$14,UNWDF2024_LookUp!$B:$T,$D28,FALSE)=0,\"\",VLOOKUP($B28&\"_\"&$C28&\"_\"&N$14,UNWDF2024_LookUp!$B:$T,$D28,FALSE))","v":"_T"},{"$f":"IF(VLOOKUP($B28&\"_\"&$C28&\"_\"&O$14,UNWDF2024_LookUp!$B:$T,$D28,FALSE)=0,\"\",VLOOKUP($B28&\"_\"&$C28&\"_\"&O$14,UNWDF2024_LookUp!$B:$T,$D28,FALSE))","v":"_T"},{"$f":"IF(VLOOKUP($B28&\"_\"&$C28&\"_\"&P$14,UNWDF2024_LookUp!$B:$T,$D28,FALSE)=0,\"\",VLOOKUP($B28&\"_\"&$C28&\"_\"&P$14,UNWDF2024_LookUp!$B:$T,$D28,FALSE))","v":"NA"},{"$f":"IF(VLOOKUP($B28&\"_\"&$C28&\"_\"&Q$14,UNWDF2024_LookUp!$B:$T,$D28,FALSE)=0,\"\",VLOOKUP($B28&\"_\"&$C28&\"_\"&Q$14,UNWDF2024_LookUp!$B:$T,$D28,FALSE))","v":"_L"},{"$f":"IF(VLOOKUP($B28&\"_\"&$C28&\"_\"&R$14,UNWDF2024_LookUp!$B:$T,$D28,FALSE)=0,\"\",VLOOKUP($B28&\"_\"&$C28&\"_\"&R$14,UNWDF2024_LookUp!$B:$T,$D28,FALSE))","v":"_D"}]
[{"$f":"B29&C29","v":"Day1Time_Slot3"},"Day1","Time_Slot3",16,"",null,"Event Title",null,{"$f":"IF(VLOOKUP($B29&\"_\"&$C29&\"_\"&I$14,UNWDF2024_LookUp!$B:$T,$D29,FALSE)=0,\"\",VLOOKUP($B29&\"_\"&$C29&\"_\"&I$14,UNWDF2024_LookUp!$B:$T,$D29,FALSE))","v":"Leveraging AI and open data to address pressing global and local development challenges"},{"$f":"IF(VLOOKUP($B29&\"_\"&$C29&\"_\"&J$14,UNWDF2024_LookUp!$B:$T,$D29,FALSE)=0,\"\",VLOOKUP($B29&\"_\"&$C29&\"_\"&J$14,UNWDF2024_LookUp!$B:$T,$D29,FALSE))","v":"Improving access to civil registration services for lesbian, gay, bisexual, transgender, queer, intersex and asexual (LGBTQIA+) communities globally by strengthening national and regional laws and data systems and ensuring legal identity."},{"$f":"IF(VLOOKUP($B29&\"_\"&$C29&\"_\"&K$14,UNWDF2024_LookUp!$B:$T,$D29,FALSE)=0,\"\",VLOOKUP($B29&\"_\"&$C29&\"_\"&K$14,UNWDF2024_LookUp!$B:$T,$D29,FALSE))","v":"Taking Data Into Our Own Hands: co-creating the roadmap to implement the Copenhagen Framework on Citizen Data"},{"$f":"IF(VLOOKUP($B29&\"_\"&$C29&\"_\"&L$14,UNWDF2024_LookUp!$B:$T,$D29,FALSE)=0,\"\",VLOOKUP($B29&\"_\"&$C29&\"_\"&L$14,UNWDF2024_LookUp!$B:$T,$D29,FALSE))","v":"TBC"},{"$f":"IF(VLOOKUP($B29&\"_\"&$C29&\"_\"&M$14,UNWDF2024_LookUp!$B:$T,$D29,FALSE)=0,\"\",VLOOKUP($B29&\"_\"&$C29&\"_\"&M$14,UNWDF2024_LookUp!$B:$T,$D29,FALSE))","v":"Leveraging Multistakeholder Data-Driven Efforts for Ending Hunger: The Food System Countdown Initiative"},{"$f":"IF(VLOOKUP($B29&\"_\"&$C29&\"_\"&N$14,UNWDF2024_LookUp!$B:$T,$D29,FALSE)=0,\"\",VLOOKUP($B29&\"_\"&$C29&\"_\"&N$14,UNWDF2024_LookUp!$B:$T,$D29,FALSE))","v":"From Traditional Surveys to Emerging Technologies: Their Role in Evidence-Based Environmental Policy Making"},{"$f":"IF(VLOOKUP($B29&\"_\"&$C29&\"_\"&O$14,UNWDF2024_LookUp!$B:$T,$D29,FALSE)=0,\"\",VLOOKUP($B29&\"_\"&$C29&\"_\"&O$14,UNWDF2024_LookUp!$B:$T,$D29,FALSE))","v":"Monitoring Frameworks for SDGs in India at national and sub-national level / Maximising the use and value of data for better decision making through the Integrated Data Service / Are we missing the missing? Strengthening the health sector’s use of mortality data for public health decision-making / A data-based public management model. Can a microdata exercise enhance public management?"},{"$f":"IF(VLOOKUP($B29&\"_\"&$C29&\"_\"&P$14,UNWDF2024_LookUp!$B:$T,$D29,FALSE)=0,\"\",VLOOKUP($B29&\"_\"&$C29&\"_\"&P$14,UNWDF2024_LookUp!$B:$T,$D29,FALSE))","v":"Data with Purpose: Insights from Colombia's UN Development System"},{"$f":"IF(VLOOKUP($B29&\"_\"&$C29&\"_\"&Q$14,UNWDF2024_LookUp!$B:$T,$D29,FALSE)=0,\"\",VLOOKUP($B29&\"_\"&$C29&\"_\"&Q$14,UNWDF2024_LookUp!$B:$T,$D29,FALSE))","v":"Practicing Digital Inclusion: An interactive learning session"},{"$f":"IF(VLOOKUP($B29&\"_\"&$C29&\"_\"&R$14,UNWDF2024_LookUp!$B:$T,$D29,FALSE)=0,\"\",VLOOKUP($B29&\"_\"&$C29&\"_\"&R$14,UNWDF2024_LookUp!$B:$T,$D29,FALSE))","v":"Technological stack for leveraging large volumes of data: use case for constructing labor market indicators in Chile from administrative records of workplace accidents and occupational diseases. / Uniting data for the common good of migration / The role of population data in creating urban heat index maps of your city"}]
["Day1Time_Slot3","Day1","Time_Slot3",17,"",null,"Organiser",null,{"$f":"IF(VLOOKUP($B30&\"_\"&$C30&\"_\"&I$14,UNWDF2024_LookUp!$B:$T,$D30,FALSE)=0,\"\",VLOOKUP($B30&\"_\"&$C30&\"_\"&I$14,UNWDF2024_LookUp!$B:$T,$D30,FALSE))","v":"Google; United Nations Statistics Division (UNSD-DESA); MAKAIA; Organisation for Economic Co-operation and Development (OECD); ONE Campaign; "},{"$f":"IF(VLOOKUP($B30&\"_\"&$C30&\"_\"&J$14,UNWDF2024_LookUp!$B:$T,$D30,FALSE)=0,\"\",VLOOKUP($B30&\"_\"&$C30&\"_\"&J$14,UNWDF2024_LookUp!$B:$T,$D30,FALSE))","v":"Global Health Advocacy Incubator; Gender Equity Unit, John Hopkins Bloomberg School of Public Health; Indian Council of Medical Research; Directorate of Census Operations and Citizen Registration (DCOCR-India); State Rainbow Foundation"},{"$f":"IF(VLOOKUP($B30&\"_\"&$C30&\"_\"&K$14,UNWDF2024_LookUp!$B:$T,$D30,FALSE)=0,\"\",VLOOKUP($B30&\"_\"&$C30&\"_\"&K$14,UNWDF2024_LookUp!$B:$T,$D30,FALSE))","v":"Danish Human Rights Institute; Human Rights Council, Greenland; Plan International; International Land Coalition (ILC); World Federation of the Deaf; Business and Human Rights Resource Centre; United Nations Statistics Division (UNSD-DESA); Collaborative on Citizen Data Steering Committee (supported by 10 organisations)"},{"$f":"IF(VLOOKUP($B30&\"_\"&$C30&\"_\"&L$14,UNWDF2024_LookUp!$B:$T,$D30,FALSE)=0,\"\",VLOOKUP($B30&\"_\"&$C30&\"_\"&L$14,UNWDF2024_LookUp!$B:$T,$D30,FALSE))","v":"TBC"},{"$f":"IF(VLOOKUP($B30&\"_\"&$C30&\"_\"&M$14,UNWDF2024_LookUp!$B:$T,$D30,FALSE)=0,\"\",VLOOKUP($B30&\"_\"&$C30&\"_\"&M$14,UNWDF2024_LookUp!$B:$T,$D30,FALSE))","v":"Food and Agriculture Organization of the United Nations (FAO); Columbia University; Cornell University; Global Alliance for Improved Nutrition (GAIN)"},{"$f":"IF(VLOOKUP($B30&\"_\"&$C30&\"_\"&N$14,UNWDF2024_LookUp!$B:$T,$D30,FALSE)=0,\"\",VLOOKUP($B30&\"_\"&$C30&\"_\"&N$14,UNWDF2024_LookUp!$B:$T,$D30,FALSE))","v":"United Nations Development Programme (UNDP), Accelerator Labs and SDG AI Lab; Ministry of Environment and Natural Resources, Guatemala; Pacific Community (SPC)"},{"$f":"IF(VLOOKUP($B30&\"_\"&$C30&\"_\"&O$14,UNWDF2024_LookUp!$B:$T,$D30,FALSE)=0,\"\",VLOOKUP($B30&\"_\"&$C30&\"_\"&O$14,UNWDF2024_LookUp!$B:$T,$D30,FALSE))","v":"Ministry of Statistics and Programme Implementation (MoSPI-India) / Office for National Statistics (ONS-UK) / Vital Strategies / Polidata"},{"$f":"IF(VLOOKUP($B30&\"_\"&$C30&\"_\"&P$14,UNWDF2024_LookUp!$B:$T,$D30,FALSE)=0,\"\",VLOOKUP($B30&\"_\"&$C30&\"_\"&P$14,UNWDF2024_LookUp!$B:$T,$D30,FALSE))","v":"United Nations Resident Coordinator (UNRCO), Colombia; United Nations Country Team (UNCT), Colombia"},{"$f":"IF(VLOOKUP($B30&\"_\"&$C30&\"_\"&Q$14,UNWDF2024_LookUp!$B:$T,$D30,FALSE)=0,\"\",VLOOKUP($B30&\"_\"&$C30&\"_\"&Q$14,UNWDF2024_LookUp!$B:$T,$D30,FALSE))","v":"Athena Infonomics LLC; United States Agency for International Development (USAID)"},{"$f":"IF(VLOOKUP($B30&\"_\"&$C30&\"_\"&R$14,UNWDF2024_LookUp!$B:$T,$D30,FALSE)=0,\"\",VLOOKUP($B30&\"_\"&$C30&\"_\"&R$14,UNWDF2024_LookUp!$B:$T,$D30,FALSE))","v":"Instituto Nacional de Estadísticas (INE-Chile); Instituto Nacional de Estadística y Geografía (INEGI-México); Agencia de Cooperación Internacional para el Desarrollo, Chile; Ministry of Foreign Affairs, Mexico / International Organisation for Migration (IOM) / Environmental Systems Research Institute (Esri); AfroLeadership; PLACE; WorldPop/University of Southampton"}]
[null,"Day1",null,null,"13:15 - 14:15 (Medellín time)",{"$f":"IF(ISERROR(TEXT((DATE($E$3,$E$2,$E$1+MID(B31,4,1))+TIME(MID(E31,1,2),MID(E31,4,2),0))+($C$2-$C$3),\"H:MM AM/PM\")&\" - \"&TEXT(DATE($E$3,$E$2,$E$1+MID(B31,4,1))+TIME(MID(E31,9,2),MID(E31,12,2),0)+($C$2-$C$3),\"H:MM AM/PM\")),E31,TEXT((DATE($E$3,$E$2,$E$1+MID(B31,4,1))+TIME(MID(E31,1,2),MID(E31,4,2),0))+($C$2-$C$3),\"H:MM AM/PM\")&\" - \"&TEXT(DATE($E$3,$E$2,$E$1+MID(B31,4,1))+TIME(MID(E31,9,2),MID(E31,12,2),0)+($C$2-$C$3),\"H:MM AM/PM\"))","v":"1:15 PM - 2:15 PM"},"BREAK"]
["Day1Time_Slot4","Day1","Time_Slot4",15,"14:15 - 15:15 (Medellín time)",{"$f":"IF(ISERROR(TEXT((DATE($E$3,$E$2,$E$1+MID(B32,4,1))+TIME(MID(E32,1,2),MID(E32,4,2),0))+($C$2-$C$3),\"H:MM AM/PM\")&\" - \"&TEXT(DATE($E$3,$E$2,$E$1+MID(B32,4,1))+TIME(MID(E32,9,2),MID(E32,12,2),0)+($C$2-$C$3),\"H:MM AM/PM\")),E32,TEXT(DATE($E$3,$E$2,$E$1+MID(B32,4,1))+TIME(MID(E32,1,2),MID(E32,4,2),0)+($C$2-$C$3),\"DDDD DD MMM\")&\" : \"&TEXT((DATE($E$3,$E$2,$E$1+MID(B32,4,1))+TIME(MID(E32,1,2),MID(E32,4,2),0))+($C$2-$C$3),\"H:MM AM/PM\")&\" - \"&TEXT(DATE($E$3,$E$2,$E$1+MID(B32,4,1))+TIME(MID(E32,9,2),MID(E32,12,2),0)+($C$2-$C$3),\"H:MM AM/PM\"))","v":"Wednesday 13 Nov : 2:15 PM - 3:15 PM"},"Event_ID",null,{"$f":"IF(VLOOKUP($B32&\"_\"&$C32&\"_\"&I$14,UNWDF2024_LookUp!$B:$T,$D32,FALSE)=0,\"\",VLOOKUP($B32&\"_\"&$C32&\"_\"&I$14,UNWDF2024_LookUp!$B:$T,$D32,FALSE))","v":"TA2.2"},{"$f":"IF(VLOOKUP($B32&\"_\"&$C32&\"_\"&J$14,UNWDF2024_LookUp!$B:$T,$D32,FALSE)=0,\"\",VLOOKUP($B32&\"_\"&$C32&\"_\"&J$14,UNWDF2024_LookUp!$B:$T,$D32,FALSE))","v":"TA3.6"},{"$f":"IF(VLOOKUP($B32&\"_\"&$C32&\"_\"&K$14,UNWDF2024_LookUp!$B:$T,$D32,FALSE)=0,\"\",VLOOKUP($B32&\"_\"&$C32&\"_\"&K$14,UNWDF2024_LookUp!$B:$T,$D32,FALSE))","v":"TA1.15"},{"$f":"IF(VLOOKUP($B32&\"_\"&$C32&\"_\"&L$14,UNWDF2024_LookUp!$B:$T,$D32,FALSE)=0,\"\",VLOOKUP($B32&\"_\"&$C32&\"_\"&L$14,UNWDF2024_LookUp!$B:$T,$D32,FALSE))","v":"TA2.11"},{"$f":"IF(VLOOKUP($B32&\"_\"&$C32&\"_\"&M$14,UNWDF2024_LookUp!$B:$T,$D32,FALSE)=0,\"\",VLOOKUP($B32&\"_\"&$C32&\"_\"&M$14,UNWDF2024_LookUp!$B:$T,$D32,FALSE))","v":"TA4.6"},{"$f":"IF(VLOOKUP($B32&\"_\"&$C32&\"_\"&N$14,UNWDF2024_LookUp!$B:$T,$D32,FALSE)=0,\"\",VLOOKUP($B32&\"_\"&$C32&\"_\"&N$14,UNWDF2024_LookUp!$B:$T,$D32,FALSE))","v":"TED.202"},{"$f":"IF(VLOOKUP($B32&\"_\"&$C32&\"_\"&O$14,UNWDF2024_LookUp!$B:$T,$D32,FALSE)=0,\"\",VLOOKUP($B32&\"_\"&$C32&\"_\"&O$14,UNWDF2024_LookUp!$B:$T,$D32,FALSE))","v":"TED.212"},{"$f":"IF(VLOOKUP($B32&\"_\"&$C32&\"_\"&P$14,UNWDF2024_LookUp!$B:$T,$D32,FALSE)=0,\"\",VLOOKUP($B32&\"_\"&$C32&\"_\"&P$14,UNWDF2024_LookUp!$B:$T,$D32,FALSE))","v":"Local_2"},{"$f":"IF(VLOOKUP($B32&\"_\"&$C32&\"_\"&Q$14,UNWDF2024_LookUp!$B:$T,$D32,FALSE)=0,\"\",VLOOKUP($B32&\"_\"&$C32&\"_\"&Q$14,UNWDF2024_LookUp!$B:$T,$D32,FALSE))","v":"LEARN.302"},{"$f":"IF(VLOOKUP($B32&\"_\"&$C32&\"_\"&R$14,UNWDF2024_LookUp!$B:$T,$D32,FALSE)=0,\"\",VLOOKUP($B32&\"_\"&$C32&\"_\"&R$14,UNWDF2024_LookUp!$B:$T,$D32,FALSE))","v":"DEMO.502"}]
["Day1Time_Slot4","Day1","Time_Slot4",13,"",null,"Thematic Area",null,{"$f":"IF(VLOOKUP($B33&\"_\"&$C33&\"_\"&I$14,UNWDF2024_LookUp!$B:$T,$D33,FALSE)=0,\"\",VLOOKUP($B33&\"_\"&$C33&\"_\"&I$14,UNWDF2024_LookUp!$B:$T,$D33,FALSE))","v":2},{"$f":"IF(VLOOKUP($B33&\"_\"&$C33&\"_\"&J$14,UNWDF2024_LookUp!$B:$T,$D33,FALSE)=0,\"\",VLOOKUP($B33&\"_\"&$C33&\"_\"&J$14,UNWDF2024_LookUp!$B:$T,$D33,FALSE))","v":3},{"$f":"IF(VLOOKUP($B33&\"_\"&$C33&\"_\"&K$14,UNWDF2024_LookUp!$B:$T,$D33,FALSE)=0,\"\",VLOOKUP($B33&\"_\"&$C33&\"_\"&K$14,UNWDF2024_LookUp!$B:$T,$D33,FALSE))","v":1},{"$f":"IF(VLOOKUP($B33&\"_\"&$C33&\"_\"&L$14,UNWDF2024_LookUp!$B:$T,$D33,FALSE)=0,\"\",VLOOKUP($B33&\"_\"&$C33&\"_\"&L$14,UNWDF2024_LookUp!$B:$T,$D33,FALSE))","v":2},{"$f":"IF(VLOOKUP($B33&\"_\"&$C33&\"_\"&M$14,UNWDF2024_LookUp!$B:$T,$D33,FALSE)=0,\"\",VLOOKUP($B33&\"_\"&$C33&\"_\"&M$14,UNWDF2024_LookUp!$B:$T,$D33,FALSE))","v":4},{"$f":"IF(VLOOKUP($B33&\"_\"&$C33&\"_\"&N$14,UNWDF2024_LookUp!$B:$T,$D33,FALSE)=0,\"\",VLOOKUP($B33&\"_\"&$C33&\"_\"&N$14,UNWDF2024_LookUp!$B:$T,$D33,FALSE))","v":"_T"},{"$f":"IF(VLOOKUP($B33&\"_\"&$C33&\"_\"&O$14,UNWDF2024_LookUp!$B:$T,$D33,FALSE)=0,\"\",VLOOKUP($B33&\"_\"&$C33&\"_\"&O$14,UNWDF2024_LookUp!$B:$T,$D33,FALSE))","v":"_T"},{"$f":"IF(VLOOKUP($B33&\"_\"&$C33&\"_\"&P$14,UNWDF2024_LookUp!$B:$T,$D33,FALSE)=0,\"\",VLOOKUP($B33&\"_\"&$C33&\"_\"&P$14,UNWDF2024_LookUp!$B:$T,$D33,FALSE))","v":"NA"},{"$f":"IF(VLOOKUP($B33&\"_\"&$C33&\"_\"&Q$14,UNWDF2024_LookUp!$B:$T,$D33,FALSE)=0,\"\",VLOOKUP($B33&\"_\"&$C33&\"_\"&Q$14,UNWDF2024_LookUp!$B:$T,$D33,FALSE))","v":"_L"},{"$f":"IF(VLOOKUP($B33&\"_\"&$C33&\"_\"&R$14,UNWDF2024_LookUp!$B:$T,$D33,FALSE)=0,\"\",VLOOKUP($B33&\"_\"&$C33&\"_\"&R$14,UNWDF2024_LookUp!$B:$T,$D33,FALSE))","v":"_D"}]
[{"$f":"B34&C34","v":"Day1Time_Slot4"},"Day1","Time_Slot4",16,"",null,"Event Title",null,{"$f":"IF(VLOOKUP($B34&\"_\"&$C34&\"_\"&I$14,UNWDF2024_LookUp!$B:$T,$D34,FALSE)=0,\"\",VLOOKUP($B34&\"_\"&$C34&\"_\"&I$14,UNWDF2024_LookUp!$B:$T,$D34,FALSE))","v":"Data for Action: Innovative Solutions for Effective Data Dissemination and Use"},{"$f":"IF(VLOOKUP($B34&\"_\"&$C34&\"_\"&J$14,UNWDF2024_LookUp!$B:$T,$D34,FALSE)=0,\"\",VLOOKUP($B34&\"_\"&$C34&\"_\"&J$14,UNWDF2024_LookUp!$B:$T,$D34,FALSE))","v":"The future role of the UN Statistical Commission"},{"$f":"IF(VLOOKUP($B34&\"_\"&$C34&\"_\"&K$14,UNWDF2024_LookUp!$B:$T,$D34,FALSE)=0,\"\",VLOOKUP($B34&\"_\"&$C34&\"_\"&K$14,UNWDF2024_LookUp!$B:$T,$D34,FALSE))","v":"Invisible no Longer: Data Solutions to LNOB Dilemmas"},{"$f":"IF(VLOOKUP($B34&\"_\"&$C34&\"_\"&L$14,UNWDF2024_LookUp!$B:$T,$D34,FALSE)=0,\"\",VLOOKUP($B34&\"_\"&$C34&\"_\"&L$14,UNWDF2024_LookUp!$B:$T,$D34,FALSE))","v":"Integrating data use in policy organizations: What does it really take?"},{"$f":"IF(VLOOKUP($B34&\"_\"&$C34&\"_\"&M$14,UNWDF2024_LookUp!$B:$T,$D34,FALSE)=0,\"\",VLOOKUP($B34&\"_\"&$C34&\"_\"&M$14,UNWDF2024_LookUp!$B:$T,$D34,FALSE))","v":"Unlocking Development Through Data: Strategic Pathways in Africa"},{"$f":"IF(VLOOKUP($B34&\"_\"&$C34&\"_\"&N$14,UNWDF2024_LookUp!$B:$T,$D34,FALSE)=0,\"\",VLOOKUP($B34&\"_\"&$C34&\"_\"&N$14,UNWDF2024_LookUp!$B:$T,$D34,FALSE))","v":"Data Science for empowered and equitable decision making"},{"$f":"IF(VLOOKUP($B34&\"_\"&$C34&\"_\"&O$14,UNWDF2024_LookUp!$B:$T,$D34,FALSE)=0,\"\",VLOOKUP($B34&\"_\"&$C34&\"_\"&O$14,UNWDF2024_LookUp!$B:$T,$D34,FALSE))","v":"Colombia and the path towards the Universal Income Registry (RUI): business rules, methodology and forms of use / MPI+  Mapping and Monitoring the favelas of Brazil to fight poverty : A non-traditional index for informal settlements: / Shaping transparent, sustainable, and inclusive financial sectors / FISLAC:  a data-driven ecosystem to help governments strengthen fiscal policy sustainability and decision-making"},{"$f":"IF(VLOOKUP($B34&\"_\"&$C34&\"_\"&P$14,UNWDF2024_LookUp!$B:$T,$D34,FALSE)=0,\"\",VLOOKUP($B34&\"_\"&$C34&\"_\"&P$14,UNWDF2024_LookUp!$B:$T,$D34,FALSE))","v":"Medellín: A data district for the well-being of the people"},{"$f":"IF(VLOOKUP($B34&\"_\"&$C34&\"_\"&Q$14,UNWDF2024_LookUp!$B:$T,$D34,FALSE)=0,\"\",VLOOKUP($B34&\"_\"&$C34&\"_\"&Q$14,UNWDF2024_LookUp!$B:$T,$D34,FALSE))","v":"Practical tools for statistical production with a gender perspective: contributions from Latin America and the Caribbean"},{"$f":"IF(VLOOKUP($B34&\"_\"&$C34&\"_\"&R$14,UNWDF2024_LookUp!$B:$T,$D34,FALSE)=0,\"\",VLOOKUP($B34&\"_\"&$C34&\"_\"&R$14,UNWDF2024_LookUp!$B:$T,$D34,FALSE))","v":"AI and Innovation for Data Dissemination / Presentation of a DataLab to boost the use of data science tools by tax admnistrations in Africa / Making sense of unstructured data: A case study on NLP methods for monitoring mainstreaming of groups in vulnerable situations in climate policy documents"}]
["Day1Time_Slot4","Day1","Time_Slot4",17,"",null,"Organiser",null,{"$f":"IF(VLOOKUP($B35&\"_\"&$C35&\"_\"&I$14,UNWDF2024_LookUp!$B:$T,$D35,FALSE)=0,\"\",VLOOKUP($B35&\"_\"&$C35&\"_\"&I$14,UNWDF2024_LookUp!$B:$T,$D35,FALSE))","v":"United Nations Population Fund (UNFPA); Government of Bangladesh; Ghana Statistical Service (GSS); World Bank (WB); United Nations Statistics Division (UNSD-DESA); World Health Organization (WHO); United Nations Economic Commission for Latin America and the Caribbean (UNECLAC / CEPAL)"},{"$f":"IF(VLOOKUP($B35&\"_\"&$C35&\"_\"&J$14,UNWDF2024_LookUp!$B:$T,$D35,FALSE)=0,\"\",VLOOKUP($B35&\"_\"&$C35&\"_\"&J$14,UNWDF2024_LookUp!$B:$T,$D35,FALSE))","v":"Swiss Federal Statistical Office (SFSO); United Nations Educational, Scientific and Cultural Organization (UNESCO); Oficina Nacional de Estadística (ONE-República Dominicana); Office of the United Nations Secretary-General (EOSG); United Nations Statistics Division (UNSD-DESA)"},{"$f":"IF(VLOOKUP($B35&\"_\"&$C35&\"_\"&K$14,UNWDF2024_LookUp!$B:$T,$D35,FALSE)=0,\"\",VLOOKUP($B35&\"_\"&$C35&\"_\"&K$14,UNWDF2024_LookUp!$B:$T,$D35,FALSE))","v":"Organización Nacional de Mujeres Indígenas Andinas y Amazónicas del Perú (ONAMIAP); Minority Rights Group International; United Nations Population Fund (UNFPA); Ministry of Foreign Affairs, Ireland"},{"$f":"IF(VLOOKUP($B35&\"_\"&$C35&\"_\"&L$14,UNWDF2024_LookUp!$B:$T,$D35,FALSE)=0,\"\",VLOOKUP($B35&\"_\"&$C35&\"_\"&L$14,UNWDF2024_LookUp!$B:$T,$D35,FALSE))","v":"Vital Strategies; Instituto Nacional de Salud, Colombia; Ministry of Health, Kenya; Department of Health, Philippines"},{"$f":"IF(VLOOKUP($B35&\"_\"&$C35&\"_\"&M$14,UNWDF2024_LookUp!$B:$T,$D35,FALSE)=0,\"\",VLOOKUP($B35&\"_\"&$C35&\"_\"&M$14,UNWDF2024_LookUp!$B:$T,$D35,FALSE))","v":"United Nations (UN); Office of the United Nations Secretary-General (EOSG); William and Flora Hewlett Foundation; Makerere University; United Nations Global Pulse (UNGP); United Nations Office for Project Services (UNOPS); United Nations Development Programme (UNDP)"},{"$f":"IF(VLOOKUP($B35&\"_\"&$C35&\"_\"&N$14,UNWDF2024_LookUp!$B:$T,$D35,FALSE)=0,\"\",VLOOKUP($B35&\"_\"&$C35&\"_\"&N$14,UNWDF2024_LookUp!$B:$T,$D35,FALSE))","v":"IDinsight; Danish Human Rights Institute; Departamento Administrativo Nacional de Estadística (DANE-Colombia)"},{"$f":"IF(VLOOKUP($B35&\"_\"&$C35&\"_\"&O$14,UNWDF2024_LookUp!$B:$T,$D35,FALSE)=0,\"\",VLOOKUP($B35&\"_\"&$C35&\"_\"&O$14,UNWDF2024_LookUp!$B:$T,$D35,FALSE))","v":"Departamento Nacional de Planeación (DNP-Colombia); World Bank (WB); Inter-American Development Bank (IDB); United Nations World Food Programme (UNWFP); United Nations Children's Fund (UNICEF) / Data-Pop Alliance; Gerando Falcões; Massachusetts Institute of Technology (MIT); TETO TECHO; Humanitarian OpenStreetMap (HOTOSM) / Cambridge SupTech Lab; Cambridge Centre for Alternative Finance; University of Cambridge / Banco de la República, Colombia; Inter-American Development Bank (IDB)"},{"$f":"IF(VLOOKUP($B35&\"_\"&$C35&\"_\"&P$14,UNWDF2024_LookUp!$B:$T,$D35,FALSE)=0,\"\",VLOOKUP($B35&\"_\"&$C35&\"_\"&P$14,UNWDF2024_LookUp!$B:$T,$D35,FALSE))","v":"Administrative Planning Department Medellín (DAP)"},{"$f":"IF(VLOOKUP($B35&\"_\"&$C35&\"_\"&Q$14,UNWDF2024_LookUp!$B:$T,$D35,FALSE)=0,\"\",VLOOKUP($B35&\"_\"&$C35&\"_\"&Q$14,UNWDF2024_LookUp!$B:$T,$D35,FALSE))","v":"United Nations Economic Commission for Latin America and the Caribbean (UNECLAC / CEPAL); United Nations Entity for Gender Equality and the Empowerment of Women (UN Women); Oficina Nacional de Estadística (ONE-República Dominicana); Departamento Administrativo Nacional de Estadística (DANE-Colombia)"},{"$f":"IF(VLOOKUP($B35&\"_\"&$C35&\"_\"&R$14,UNWDF2024_LookUp!$B:$T,$D35,FALSE)=0,\"\",VLOOKUP($B35&\"_\"&$C35&\"_\"&R$14,UNWDF2024_LookUp!$B:$T,$D35,FALSE))","v":"World Bank (WB) / Expertise France; Institut national de la statistique et des études économiques (INSEE-France); Cote d'Ivoire Customs Administration, Côte d’Ivoire / Deutsche Gesellschaft für Internationale Zusammenarbeit (GIZ); GFA Consulting Group GmbH"}]
[null,"Day1",null,null,"15:15 - 15:30 (Medellín time)",{"$f":"IF(ISERROR(TEXT((DATE($E$3,$E$2,$E$1+MID(B36,4,1))+TIME(MID(E36,1,2),MID(E36,4,2),0))+($C$2-$C$3),\"H:MM AM/PM\")&\" - \"&TEXT(DATE($E$3,$E$2,$E$1+MID(B36,4,1))+TIME(MID(E36,9,2),MID(E36,12,2),0)+($C$2-$C$3),\"H:MM AM/PM\")),E36,TEXT((DATE($E$3,$E$2,$E$1+MID(B36,4,1))+TIME(MID(E36,1,2),MID(E36,4,2),0))+($C$2-$C$3),\"H:MM AM/PM\")&\" - \"&TEXT(DATE($E$3,$E$2,$E$1+MID(B36,4,1))+TIME(MID(E36,9,2),MID(E36,12,2),0)+($C$2-$C$3),\"H:MM AM/PM\"))","v":"3:15 PM - 3:30 PM"},"BREAK"]
["Day1Time_Slot5","Day1","Time_Slot5",15,"15:30 - 16:30 (Medellín time)",{"$f":"IF(ISERROR(TEXT((DATE($E$3,$E$2,$E$1+MID(B37,4,1))+TIME(MID(E37,1,2),MID(E37,4,2),0))+($C$2-$C$3),\"H:MM AM/PM\")&\" - \"&TEXT(DATE($E$3,$E$2,$E$1+MID(B37,4,1))+TIME(MID(E37,9,2),MID(E37,12,2),0)+($C$2-$C$3),\"H:MM AM/PM\")),E37,TEXT(DATE($E$3,$E$2,$E$1+MID(B37,4,1))+TIME(MID(E37,1,2),MID(E37,4,2),0)+($C$2-$C$3),\"DDDD DD MMM\")&\" : \"&TEXT((DATE($E$3,$E$2,$E$1+MID(B37,4,1))+TIME(MID(E37,1,2),MID(E37,4,2),0))+($C$2-$C$3),\"H:MM AM/PM\")&\" - \"&TEXT(DATE($E$3,$E$2,$E$1+MID(B37,4,1))+TIME(MID(E37,9,2),MID(E37,12,2),0)+($C$2-$C$3),\"H:MM AM/PM\"))","v":"Wednesday 13 Nov : 3:30 PM - 4:30 PM"},"Event_ID",null,{"$f":"IF(VLOOKUP($B37&\"_\"&$C37&\"_\"&I$14,UNWDF2024_LookUp!$B:$T,$D37,FALSE)=0,\"\",VLOOKUP($B37&\"_\"&$C37&\"_\"&I$14,UNWDF2024_LookUp!$B:$T,$D37,FALSE))","v":"TA3.2"},{"$f":"IF(VLOOKUP($B37&\"_\"&$C37&\"_\"&J$14,UNWDF2024_LookUp!$B:$T,$D37,FALSE)=0,\"\",VLOOKUP($B37&\"_\"&$C37&\"_\"&J$14,UNWDF2024_LookUp!$B:$T,$D37,FALSE))","v":"TA1.6"},{"$f":"IF(VLOOKUP($B37&\"_\"&$C37&\"_\"&K$14,UNWDF2024_LookUp!$B:$T,$D37,FALSE)=0,\"\",VLOOKUP($B37&\"_\"&$C37&\"_\"&K$14,UNWDF2024_LookUp!$B:$T,$D37,FALSE))","v":"TA1.16"},{"$f":"IF(VLOOKUP($B37&\"_\"&$C37&\"_\"&L$14,UNWDF2024_LookUp!$B:$T,$D37,FALSE)=0,\"\",VLOOKUP($B37&\"_\"&$C37&\"_\"&L$14,UNWDF2024_LookUp!$B:$T,$D37,FALSE))","v":"TA2.12"},{"$f":"IF(VLOOKUP($B37&\"_\"&$C37&\"_\"&M$14,UNWDF2024_LookUp!$B:$T,$D37,FALSE)=0,\"\",VLOOKUP($B37&\"_\"&$C37&\"_\"&M$14,UNWDF2024_LookUp!$B:$T,$D37,FALSE))","v":"TA4.10"},{"$f":"IF(VLOOKUP($B37&\"_\"&$C37&\"_\"&N$14,UNWDF2024_LookUp!$B:$T,$D37,FALSE)=0,\"\",VLOOKUP($B37&\"_\"&$C37&\"_\"&N$14,UNWDF2024_LookUp!$B:$T,$D37,FALSE))","v":"TED.203"},{"$f":"IF(VLOOKUP($B37&\"_\"&$C37&\"_\"&O$14,UNWDF2024_LookUp!$B:$T,$D37,FALSE)=0,\"\",VLOOKUP($B37&\"_\"&$C37&\"_\"&O$14,UNWDF2024_LookUp!$B:$T,$D37,FALSE))","v":"TED.207"},{"$f":"IF(VLOOKUP($B37&\"_\"&$C37&\"_\"&P$14,UNWDF2024_LookUp!$B:$T,$D37,FALSE)=0,\"\",VLOOKUP($B37&\"_\"&$C37&\"_\"&P$14,UNWDF2024_LookUp!$B:$T,$D37,FALSE))","v":"Local_3"},{"$f":"IF(VLOOKUP($B37&\"_\"&$C37&\"_\"&Q$14,UNWDF2024_LookUp!$B:$T,$D37,FALSE)=0,\"\",VLOOKUP($B37&\"_\"&$C37&\"_\"&Q$14,UNWDF2024_LookUp!$B:$T,$D37,FALSE))","v":"LEARN.303"},{"$f":"IF(VLOOKUP($B37&\"_\"&$C37&\"_\"&R$14,UNWDF2024_LookUp!$B:$T,$D37,FALSE)=0,\"\",VLOOKUP($B37&\"_\"&$C37&\"_\"&R$14,UNWDF2024_LookUp!$B:$T,$D37,FALSE))","v":"DEMO.503"}]
["Day1Time_Slot5","Day1","Time_Slot5",13,"",null,"Thematic Area",null,{"$f":"IF(VLOOKUP($B38&\"_\"&$C38&\"_\"&I$14,UNWDF2024_LookUp!$B:$T,$D38,FALSE)=0,\"\",VLOOKUP($B38&\"_\"&$C38&\"_\"&I$14,UNWDF2024_LookUp!$B:$T,$D38,FALSE))","v":3},{"$f":"IF(VLOOKUP($B38&\"_\"&$C38&\"_\"&J$14,UNWDF2024_LookUp!$B:$T,$D38,FALSE)=0,\"\",VLOOKUP($B38&\"_\"&$C38&\"_\"&J$14,UNWDF2024_LookUp!$B:$T,$D38,FALSE))","v":1},{"$f":"IF(VLOOKUP($B38&\"_\"&$C38&\"_\"&K$14,UNWDF2024_LookUp!$B:$T,$D38,FALSE)=0,\"\",VLOOKUP($B38&\"_\"&$C38&\"_\"&K$14,UNWDF2024_LookUp!$B:$T,$D38,FALSE))","v":1},{"$f":"IF(VLOOKUP($B38&\"_\"&$C38&\"_\"&L$14,UNWDF2024_LookUp!$B:$T,$D38,FALSE)=0,\"\",VLOOKUP($B38&\"_\"&$C38&\"_\"&L$14,UNWDF2024_LookUp!$B:$T,$D38,FALSE))","v":2},{"$f":"IF(VLOOKUP($B38&\"_\"&$C38&\"_\"&M$14,UNWDF2024_LookUp!$B:$T,$D38,FALSE)=0,\"\",VLOOKUP($B38&\"_\"&$C38&\"_\"&M$14,UNWDF2024_LookUp!$B:$T,$D38,FALSE))","v":4},{"$f":"IF(VLOOKUP($B38&\"_\"&$C38&\"_\"&N$14,UNWDF2024_LookUp!$B:$T,$D38,FALSE)=0,\"\",VLOOKUP($B38&\"_\"&$C38&\"_\"&N$14,UNWDF2024_LookUp!$B:$T,$D38,FALSE))","v":"_T"},{"$f":"IF(VLOOKUP($B38&\"_\"&$C38&\"_\"&O$14,UNWDF2024_LookUp!$B:$T,$D38,FALSE)=0,\"\",VLOOKUP($B38&\"_\"&$C38&\"_\"&O$14,UNWDF2024_LookUp!$B:$T,$D38,FALSE))","v":"_T"},{"$f":"IF(VLOOKUP($B38&\"_\"&$C38&\"_\"&P$14,UNWDF2024_LookUp!$B:$T,$D38,FALSE)=0,\"\",VLOOKUP($B38&\"_\"&$C38&\"_\"&P$14,UNWDF2024_LookUp!$B:$T,$D38,FALSE))","v":"NA"},{"$f":"IF(VLOOKUP($B38&\"_\"&$C38&\"_\"&Q$14,UNWDF2024_LookUp!$B:$T,$D38,FALSE)=0,\"\",VLOOKUP($B38&\"_\"&$C38&\"_\"&Q$14,UNWDF2024_LookUp!$B:$T,$D38,FALSE))","v":"_L"},{"$f":"IF(VLOOKUP($B38&\"_\"&$C38&\"_\"&R$14,UNWDF2024_LookUp!$B:$T,$D38,FALSE)=0,\"\",VLOOKUP($B38&\"_\"&$C38&\"_\"&R$14,UNWDF2024_LookUp!$B:$T,$D38,FALSE))","v":"_D"}]
[{"$f":"B39&C39","v":"Day1Time_Slot5"},"Day1","Time_Slot5",16,"",null,"Event Title",null,{"$f":"IF(VLOOKUP($B39&\"_\"&$C39&\"_\"&I$14,UNWDF2024_LookUp!$B:$T,$D39,FALSE)=0,\"\",VLOOKUP($B39&\"_\"&$C39&\"_\"&I$14,UNWDF2024_LookUp!$B:$T,$D39,FALSE))","v":"New challenges for NSOs. The only way out is through!"},{"$f":"IF(VLOOKUP($B39&\"_\"&$C39&\"_\"&J$14,UNWDF2024_LookUp!$B:$T,$D39,FALSE)=0,\"\",VLOOKUP($B39&\"_\"&$C39&\"_\"&J$14,UNWDF2024_LookUp!$B:$T,$D39,FALSE))","v":"Citizen Data as a framework to nurturing the SDG Agenda: From Global frameworks to Local action"},{"$f":"IF(VLOOKUP($B39&\"_\"&$C39&\"_\"&K$14,UNWDF2024_LookUp!$B:$T,$D39,FALSE)=0,\"\",VLOOKUP($B39&\"_\"&$C39&\"_\"&K$14,UNWDF2024_LookUp!$B:$T,$D39,FALSE))","v":"Enhancing CRVS Systems: Intersectional Approaches and Resource Mobilization for Inclusive and Sustainable Development"},{"$f":"IF(VLOOKUP($B39&\"_\"&$C39&\"_\"&L$14,UNWDF2024_LookUp!$B:$T,$D39,FALSE)=0,\"\",VLOOKUP($B39&\"_\"&$C39&\"_\"&L$14,UNWDF2024_LookUp!$B:$T,$D39,FALSE))","v":"Geospatial analysis for public policy decisions: a path of action to accelerate gender equality"},{"$f":"IF(VLOOKUP($B39&\"_\"&$C39&\"_\"&M$14,UNWDF2024_LookUp!$B:$T,$D39,FALSE)=0,\"\",VLOOKUP($B39&\"_\"&$C39&\"_\"&M$14,UNWDF2024_LookUp!$B:$T,$D39,FALSE))","v":"Harnessing Data Exchange Platforms to accelerate SDGs & high-value data access"},{"$f":"IF(VLOOKUP($B39&\"_\"&$C39&\"_\"&N$14,UNWDF2024_LookUp!$B:$T,$D39,FALSE)=0,\"\",VLOOKUP($B39&\"_\"&$C39&\"_\"&N$14,UNWDF2024_LookUp!$B:$T,$D39,FALSE))","v":"Reaching All, Empowering Action: Decentralized Data Governance, Geographic Data and Hidden Populations."},{"$f":"IF(VLOOKUP($B39&\"_\"&$C39&\"_\"&O$14,UNWDF2024_LookUp!$B:$T,$D39,FALSE)=0,\"\",VLOOKUP($B39&\"_\"&$C39&\"_\"&O$14,UNWDF2024_LookUp!$B:$T,$D39,FALSE))","v":"No One Left Behind: Data Invisibility, Citizen-Generated Data, and Digital Rights for Gender-Diverse Communities / Safecity - crowdmap for sexual and gender based violence / The invisible link between maternal mortality and early marriage in the indigenous population / Inside the black box: the questions you forgot to ask about gender data use."},{"$f":"IF(VLOOKUP($B39&\"_\"&$C39&\"_\"&P$14,UNWDF2024_LookUp!$B:$T,$D39,FALSE)=0,\"\",VLOOKUP($B39&\"_\"&$C39&\"_\"&P$14,UNWDF2024_LookUp!$B:$T,$D39,FALSE))","v":"From data to policy action: How national and global actors can tackle poverty in all its forms using a Multidimensional Poverty Index (MPI)"},{"$f":"IF(VLOOKUP($B39&\"_\"&$C39&\"_\"&Q$14,UNWDF2024_LookUp!$B:$T,$D39,FALSE)=0,\"\",VLOOKUP($B39&\"_\"&$C39&\"_\"&Q$14,UNWDF2024_LookUp!$B:$T,$D39,FALSE))","v":"Peer to Peer exchange: Open Data frameworks for better SDG reporting"},{"$f":"IF(VLOOKUP($B39&\"_\"&$C39&\"_\"&R$14,UNWDF2024_LookUp!$B:$T,$D39,FALSE)=0,\"\",VLOOKUP($B39&\"_\"&$C39&\"_\"&R$14,UNWDF2024_LookUp!$B:$T,$D39,FALSE))","v":"Empowering Sustainable Choices: Visualizing Nutrition for a Healthier Future - Presented by the Healthy Diets Monitoring Initiative / Silver Threads: Weaving Data into Older People Narratives / Enhancing Epidemiological Surveillance of Vaccine-Preventable Diseases with VPD-SMART: A DHIS2-Based Information System"}]
["Day1Time_Slot5","Day1","Time_Slot5",17,"",null,"Organiser",null,{"$f":"IF(VLOOKUP($B40&\"_\"&$C40&\"_\"&I$14,UNWDF2024_LookUp!$B:$T,$D40,FALSE)=0,\"\",VLOOKUP($B40&\"_\"&$C40&\"_\"&I$14,UNWDF2024_LookUp!$B:$T,$D40,FALSE))","v":"Swiss Federal Statistical Office (FSO); Statistics Poland; International Association for Official Statistics (IAOS); Polish Statistical Association"},{"$f":"IF(VLOOKUP($B40&\"_\"&$C40&\"_\"&J$14,UNWDF2024_LookUp!$B:$T,$D40,FALSE)=0,\"\",VLOOKUP($B40&\"_\"&$C40&\"_\"&J$14,UNWDF2024_LookUp!$B:$T,$D40,FALSE))","v":"United Nations Development Programme (UNDP), Global Policy Centre for Governance; Departamento Administrativo Nacional de Estadística (DANE-Colombia); United Nations Office on Drugs and Crime (UNODC); Ghana Statistical Service (GSS); Kenya National Commission on Human Rights; Observatorio para la Equidad de la Mujer (OEM); Red de Ciudades Cómo Vamos; Kenya National Bureau of Statistics (KNBS); Unidad para la Atención y Reparación Integral a las Víctimas (UARIV), Colombia"},{"$f":"IF(VLOOKUP($B40&\"_\"&$C40&\"_\"&K$14,UNWDF2024_LookUp!$B:$T,$D40,FALSE)=0,\"\",VLOOKUP($B40&\"_\"&$C40&\"_\"&K$14,UNWDF2024_LookUp!$B:$T,$D40,FALSE))","v":"United Nations Population Fund (UNFPA); Open Data Watch (ODW); Development Initiatives (DI); United Nations Development Programme (UNDP); United Nations Statistics Division (UNSD-DESA); Global Health Advocacy Incubator; Department of National Registration, Maldives; HEPS-Uganda; Pan American Health Organization (PAHO)"},{"$f":"IF(VLOOKUP($B40&\"_\"&$C40&\"_\"&L$14,UNWDF2024_LookUp!$B:$T,$D40,FALSE)=0,\"\",VLOOKUP($B40&\"_\"&$C40&\"_\"&L$14,UNWDF2024_LookUp!$B:$T,$D40,FALSE))","v":"United Nations Economic Commission for Latin America and the Caribbean (UNECLAC / CEPAL); United Nations Entity for Gender Equality and the Empowerment of Women (UN Women); Departamento Administrativo Nacional de Estadística (DANE-Colombia); Oficina Nacional de Estadística (ONE-República Dominicana)"},{"$f":"IF(VLOOKUP($B40&\"_\"&$C40&\"_\"&M$14,UNWDF2024_LookUp!$B:$T,$D40,FALSE)=0,\"\",VLOOKUP($B40&\"_\"&$C40&\"_\"&M$14,UNWDF2024_LookUp!$B:$T,$D40,FALSE))","v":"CivicDataLab"},{"$f":"IF(VLOOKUP($B40&\"_\"&$C40&\"_\"&N$14,UNWDF2024_LookUp!$B:$T,$D40,FALSE)=0,\"\",VLOOKUP($B40&\"_\"&$C40&\"_\"&N$14,UNWDF2024_LookUp!$B:$T,$D40,FALSE))","v":"Equilibrium Social Development Consulting (SDC); Norwegian Refugee Council (NRC); Ministry of Health, Uganda"},{"$f":"IF(VLOOKUP($B40&\"_\"&$C40&\"_\"&O$14,UNWDF2024_LookUp!$B:$T,$D40,FALSE)=0,\"\",VLOOKUP($B40&\"_\"&$C40&\"_\"&O$14,UNWDF2024_LookUp!$B:$T,$D40,FALSE))","v":"School of Data Science, University of Virginia; Center for Democracy and Technology; Federal University of Rio de Janeiro / Red Dot Foundation / United Nations Population Fund (UNFPA); Université de Montréal / Partnership in Statistics for Development in the 21st Century (PARIS21)"},{"$f":"IF(VLOOKUP($B40&\"_\"&$C40&\"_\"&P$14,UNWDF2024_LookUp!$B:$T,$D40,FALSE)=0,\"\",VLOOKUP($B40&\"_\"&$C40&\"_\"&P$14,UNWDF2024_LookUp!$B:$T,$D40,FALSE))","v":"Departamento Administrativo Nacional de Estadística (DANE-Colombia)"},{"$f":"IF(VLOOKUP($B40&\"_\"&$C40&\"_\"&Q$14,UNWDF2024_LookUp!$B:$T,$D40,FALSE)=0,\"\",VLOOKUP($B40&\"_\"&$C40&\"_\"&Q$14,UNWDF2024_LookUp!$B:$T,$D40,FALSE))","v":"Open Data Charter (ODC); Open Data Watch (ODW)"},{"$f":"IF(VLOOKUP($B40&\"_\"&$C40&\"_\"&R$14,UNWDF2024_LookUp!$B:$T,$D40,FALSE)=0,\"\",VLOOKUP($B40&\"_\"&$C40&\"_\"&R$14,UNWDF2024_LookUp!$B:$T,$D40,FALSE))","v":"United Nations Children's Fund (UNICEF); World Health Organization (WHO); Food and Agriculture Organization of the United Nations (FAO) / Fundación Saldarriaga Concha; Datasketch / Pan American Health Organization (PAHO); Ministry of Health, Paraguay; HISP Colombia; University of Oslo"}]
[null,"Day1",null,null,"16:30 - 16:45 (Medellín time)",{"$f":"IF(ISERROR(TEXT((DATE($E$3,$E$2,$E$1+MID(B41,4,1))+TIME(MID(E41,1,2),MID(E41,4,2),0))+($C$2-$C$3),\"H:MM AM/PM\")&\" - \"&TEXT(DATE($E$3,$E$2,$E$1+MID(B41,4,1))+TIME(MID(E41,9,2),MID(E41,12,2),0)+($C$2-$C$3),\"H:MM AM/PM\")),E41,TEXT((DATE($E$3,$E$2,$E$1+MID(B41,4,1))+TIME(MID(E41,1,2),MID(E41,4,2),0))+($C$2-$C$3),\"H:MM AM/PM\")&\" - \"&TEXT(DATE($E$3,$E$2,$E$1+MID(B41,4,1))+TIME(MID(E41,9,2),MID(E41,12,2),0)+($C$2-$C$3),\"H:MM AM/PM\"))","v":"4:30 PM - 4:45 PM"},"BREAK"]
[{"$f":"B42&C42","v":"Day1Time_Slot6"},"Day1","Time_Slot6",15,"16:45 - 18:00 (Medellín time)",{"$f":"IF(ISERROR(TEXT((DATE($E$3,$E$2,$E$1+MID(B42,4,1))+TIME(MID(E42,1,2),MID(E42,4,2),0))+($C$2-$C$3),\"H:MM AM/PM\")&\" - \"&TEXT(DATE($E$3,$E$2,$E$1+MID(B42,4,1))+TIME(MID(E42,9,2),MID(E42,12,2),0)+($C$2-$C$3),\"H:MM AM/PM\")),E42,TEXT(DATE($E$3,$E$2,$E$1+MID(B42,4,1))+TIME(MID(E42,1,2),MID(E42,4,2),0)+($C$2-$C$3),\"DDDD DD MMM\")&\" : \"&TEXT((DATE($E$3,$E$2,$E$1+MID(B42,4,1))+TIME(MID(E42,1,2),MID(E42,4,2),0))+($C$2-$C$3),\"H:MM AM/PM\")&\" - \"&TEXT(DATE($E$3,$E$2,$E$1+MID(B42,4,1))+TIME(MID(E42,9,2),MID(E42,12,2),0)+($C$2-$C$3),\"H:MM AM/PM\"))","v":"Wednesday 13 Nov : 4:45 PM - 6:00 PM"},"Event_ID",{"$f":"IF(VLOOKUP($B42&\"_\"&$C42&\"_\"&H$14,UNWDF2024_LookUp!$B:$T,$D42,FALSE)=0,\"\",VLOOKUP($B42&\"_\"&$C42&\"_\"&H$14,UNWDF2024_LookUp!$B:$T,$D42,FALSE))","v":"TA2.1"}]
["Day1Time_Slot6","Day1","Time_Slot6",13,"",null,"Thematic Area",{"$f":"IF(VLOOKUP($B43&\"_\"&$C43&\"_\"&H$14,UNWDF2024_LookUp!$B:$T,$D43,FALSE)=0,\"\",VLOOKUP($B43&\"_\"&$C43&\"_\"&H$14,UNWDF2024_LookUp!$B:$T,$D43,FALSE))","v":2}]
[{"$f":"B44&C44","v":"Day1Time_Slot6"},"Day1","Time_Slot6",16,"",null,"Event Title",{"$f":"IF(VLOOKUP($B44&\"_\"&$C44&\"_\"&H$14,UNWDF2024_LookUp!$B:$T,$D44,FALSE)=0,\"\",VLOOKUP($B44&\"_\"&$C44&\"_\"&H$14,UNWDF2024_LookUp!$B:$T,$D44,FALSE))","v":"Maximizing the use and value of data for better decision making"}]
["Day1Time_Slot6","Day1","Time_Slot6",17,"",null,"Organiser",{"$f":"IF(VLOOKUP($B45&\"_\"&$C45&\"_\"&H$14,UNWDF2024_LookUp!$B:$T,$D45,FALSE)=0,\"\",VLOOKUP($B45&\"_\"&$C45&\"_\"&H$14,UNWDF2024_LookUp!$B:$T,$D45,FALSE))","v":"UN World Data Forum Programme Committee (UNWDF PC)"}]
[null,"Day1",null,null,"17:30 - 18:30 (Medellín time)",{"$f":"IF(ISERROR(TEXT((DATE($E$3,$E$2,$E$1+MID(B46,4,1))+TIME(MID(E46,1,2),MID(E46,4,2),0))+($C$2-$C$3),\"H:MM AM/PM\")&\" - \"&TEXT(DATE($E$3,$E$2,$E$1+MID(B46,4,1))+TIME(MID(E46,9,2),MID(E46,12,2),0)+($C$2-$C$3),\"H:MM AM/PM\")),E46,TEXT((DATE($E$3,$E$2,$E$1+MID(B46,4,1))+TIME(MID(E46,1,2),MID(E46,4,2),0))+($C$2-$C$3),\"H:MM AM/PM\")&\" - \"&TEXT(DATE($E$3,$E$2,$E$1+MID(B46,4,1))+TIME(MID(E46,9,2),MID(E46,12,2),0)+($C$2-$C$3),\"H:MM AM/PM\"))","v":"5:30 PM - 6:30 PM"},"Break"]
["Day1Time_Slot7","Day1","Time_Slot7",16,"18:30 - 19:15 (Medellín time)",{"$f":"IF(ISERROR(TEXT((DATE($E$3,$E$2,$E$1+MID(B47,4,1))+TIME(MID(E47,1,2),MID(E47,4,2),0))+($C$2-$C$3),\"H:MM AM/PM\")&\" - \"&TEXT(DATE($E$3,$E$2,$E$1+MID(B47,4,1))+TIME(MID(E47,9,2),MID(E47,12,2),0)+($C$2-$C$3),\"H:MM AM/PM\")),E47,TEXT(DATE($E$3,$E$2,$E$1+MID(B47,4,1))+TIME(MID(E47,1,2),MID(E47,4,2),0)+($C$2-$C$3),\"DDDD DD MMM\")&\" : \"&TEXT((DATE($E$3,$E$2,$E$1+MID(B47,4,1))+TIME(MID(E47,1,2),MID(E47,4,2),0))+($C$2-$C$3),\"H:MM AM/PM\")&\" - \"&TEXT(DATE($E$3,$E$2,$E$1+MID(B47,4,1))+TIME(MID(E47,9,2),MID(E47,12,2),0)+($C$2-$C$3),\"H:MM AM/PM\"))","v":"Wednesday 13 Nov : 6:30 PM - 7:15 PM"},"Event Title",{"$f":"IF(VLOOKUP($B47&\"_\"&$C47&\"_\"&H$14,UNWDF2024_LookUp!$B:$T,$D47,FALSE)=0,\"\",VLOOKUP($B47&\"_\"&$C47&\"_\"&H$14,UNWDF2024_LookUp!$B:$T,$D47,FALSE))","v":"NA"}]
[{"$f":"B48&C48","v":"Day1Time_Slot7"},"Day1","Time_Slot7",17,"",null,"Organiser",{"$f":"IF(VLOOKUP($B48&\"_\"&$C48&\"_\"&H$14,UNWDF2024_LookUp!$B:$T,$D48,FALSE)=0,\"\",VLOOKUP($B48&\"_\"&$C48&\"_\"&H$14,UNWDF2024_LookUp!$B:$T,$D48,FALSE))","v":"NA"}]
[null,null,null,null,""]
[null,null,null,null,"",null,null,null,null," TA 1. Innovation for better and more inclusive data: data integration and leveraging of various data sources and methodologies to ensure visibility and voice for everyone",null,null,null," TA 3. Building trust, protection and ethics in data: developing the principles of stewardship within the data ecosystem to balance the full value from data use with the protection of privacy and data rights"]
[null,null,null,null,""]
[null,null,null,null,"",null,null,null,null," TA 2. Maximizing the use and value of data for better decision making: adding value to data through better analysis and communication to ensure full use of data for bettering lives through the agency, respect, and inclusion of everyone",null,null,null," TA 4. Effective partnerships for better data and a more equitable data ecosystem: supporting global, regional, national and sub-national data ecosystems in the implementation of the Cape Town Global Action Plan including sustainable finance for data and statistics programmes at all levels of organization"]
["Day2",null,null,null,{"$f":"DATE($E$3,$E$2,$E$1+MID(B57,4,1))","v":"2024-11-14"},{"$f":"IF(ISERROR(DATE($E$3,$E$2,$E$1+MID(B57,4,1))+TIME(MID(E57,1,2),MID(E57,4,2),0)+($C$2-$C$3)),DATE($E$3,$E$2,$E$1+MID(B57,4,1)),TEXT(DATE($E$3,$E$2,$E$1+MID(B57,4,1))+TIME(MID(E57,1,2),MID(E57,4,2),0)+($C$2-$C$3),\"DDDDDD, DD MMMM YYYY\")&\" [Date changes shown on row]\")","v":"Thursday, 14 November 2024 [Date changes shown on row]"}]
[null,null,"LookUp",null,"",null,"LookUp","Parallel 01","Parallel 02","Parallel 03","Parallel 04","Parallel 05","Parallel 06","Parallel 07","Parallel 08","Parallel 09","Parallel 10","Parallel 11","Parallel 12"]
[null,null,null,null,"","Time (Auto-adjusts to your local time, unless \"(Medellín time)\" shown)","Rm Name","Plenary Room","Room 1","Room 2","Room 3","Room 4","Room 5","Room 6","Room 7","Room 8","Room 9","Room 10","NA"]
["DayTime_LookUp","Day_LookUp","Time_LookUp","Col_LookUp","Time (GMT/UTC time+8)",null,"Capacity",3000,300,200,200,200,200,150,150,90,60,60,"NA"]
[{"$f":"B57&C57","v":"Day2Time_Slot1"},"Day2","Time_Slot1",15,"09:00 - 10:15 (Medellín time)",{"$f":"IF(ISERROR(TEXT((DATE($E$3,$E$2,$E$1+MID(B57,4,1))+TIME(MID(E57,1,2),MID(E57,4,2),0))+($C$2-$C$3),\"H:MM AM/PM\")&\" - \"&TEXT(DATE($E$3,$E$2,$E$1+MID(B57,4,1))+TIME(MID(E57,9,2),MID(E57,12,2),0)+($C$2-$C$3),\"H:MM AM/PM\")),E57,TEXT(DATE($E$3,$E$2,$E$1+MID(B57,4,1))+TIME(MID(E57,1,2),MID(E57,4,2),0)+($C$2-$C$3),\"DDDD DD MMM\")&\" : \"&TEXT((DATE($E$3,$E$2,$E$1+MID(B57,4,1))+TIME(MID(E57,1,2),MID(E57,4,2),0))+($C$2-$C$3),\"H:MM AM/PM\")&\" - \"&TEXT(DATE($E$3,$E$2,$E$1+MID(B57,4,1))+TIME(MID(E57,9,2),MID(E57,12,2),0)+($C$2-$C$3),\"H:MM AM/PM\"))","v":"Thursday 14 Nov : 9:00 AM - 10:15 AM"},"Event_ID",{"$f":"IF(VLOOKUP($B57&\"_\"&$C57&\"_\"&H$14,UNWDF2024_LookUp!$B:$T,$D57,FALSE)=0,\"\",VLOOKUP($B57&\"_\"&$C57&\"_\"&H$14,UNWDF2024_LookUp!$B:$T,$D57,FALSE))","v":"TA3.1"}]
["Day2Time_Slot1","Day2","Time_Slot1",13,"",null,"Thematic Area",{"$f":"IF(VLOOKUP($B58&\"_\"&$C58&\"_\"&H$14,UNWDF2024_LookUp!$B:$T,$D58,FALSE)=0,\"\",VLOOKUP($B58&\"_\"&$C58&\"_\"&H$14,UNWDF2024_LookUp!$B:$T,$D58,FALSE))","v":3}]
[{"$f":"B59&C59","v":"Day2Time_Slot1"},"Day2","Time_Slot1",16,"",null,"Event Title",{"$f":"IF(VLOOKUP($B59&\"_\"&$C59&\"_\"&H$14,UNWDF2024_LookUp!$B:$T,$D59,FALSE)=0,\"\",VLOOKUP($B59&\"_\"&$C59&\"_\"&H$14,UNWDF2024_LookUp!$B:$T,$D59,FALSE))","v":"Building trust, protection and ethics in data"}]
["Day2Time_Slot1","Day2","Time_Slot1",17,"",null,"Organiser",{"$f":"IF(VLOOKUP($B60&\"_\"&$C60&\"_\"&H$14,UNWDF2024_LookUp!$B:$T,$D60,FALSE)=0,\"\",VLOOKUP($B60&\"_\"&$C60&\"_\"&H$14,UNWDF2024_LookUp!$B:$T,$D60,FALSE))","v":"UN World Data Forum Programme Committee (UNWDF PC)"}]
[null,"Day2",null,null,"10:15 - 10:45 (Medellín time)",{"$f":"IF(ISERROR(TEXT((DATE($E$3,$E$2,$E$1+MID(B61,4,1))+TIME(MID(E61,1,2),MID(E61,4,2),0))+($C$2-$C$3),\"H:MM AM/PM\")&\" - \"&TEXT(DATE($E$3,$E$2,$E$1+MID(B61,4,1))+TIME(MID(E61,9,2),MID(E61,12,2),0)+($C$2-$C$3),\"H:MM AM/PM\")),E61,TEXT((DATE($E$3,$E$2,$E$1+MID(B61,4,1))+TIME(MID(E61,1,2),MID(E61,4,2),0))+($C$2-$C$3),\"H:MM AM/PM\")&\" - \"&TEXT(DATE($E$3,$E$2,$E$1+MID(B61,4,1))+TIME(MID(E61,9,2),MID(E61,12,2),0)+($C$2-$C$3),\"H:MM AM/PM\"))","v":"10:15 AM - 10:45 AM"},"BREAK"]
[{"$f":"B62&C62","v":"Day2Time_Slot2"},"Day2","Time_Slot2",15,"10:45 - 11:45 (Medellín time)",{"$f":"IF(ISERROR(TEXT((DATE($E$3,$E$2,$E$1+MID(B62,4,1))+TIME(MID(E62,1,2),MID(E62,4,2),0))+($C$2-$C$3),\"H:MM AM/PM\")&\" - \"&TEXT(DATE($E$3,$E$2,$E$1+MID(B62,4,1))+TIME(MID(E62,9,2),MID(E62,12,2),0)+($C$2-$C$3),\"H:MM AM/PM\")),E62,TEXT(DATE($E$3,$E$2,$E$1+MID(B62,4,1))+TIME(MID(E62,1,2),MID(E62,4,2),0)+($C$2-$C$3),\"DDDD DD MMM\")&\" : \"&TEXT((DATE($E$3,$E$2,$E$1+MID(B62,4,1))+TIME(MID(E62,1,2),MID(E62,4,2),0))+($C$2-$C$3),\"H:MM AM/PM\")&\" - \"&TEXT(DATE($E$3,$E$2,$E$1+MID(B62,4,1))+TIME(MID(E62,9,2),MID(E62,12,2),0)+($C$2-$C$3),\"H:MM AM/PM\"))","v":"Thursday 14 Nov : 10:45 AM - 11:45 AM"},"Event_ID",null,{"$f":"IF(VLOOKUP($B62&\"_\"&$C62&\"_\"&I$14,UNWDF2024_LookUp!$B:$T,$D62,FALSE)=0,\"\",VLOOKUP($B62&\"_\"&$C62&\"_\"&I$14,UNWDF2024_LookUp!$B:$T,$D62,FALSE))","v":"TA4.9"},{"$f":"IF(VLOOKUP($B62&\"_\"&$C62&\"_\"&J$14,UNWDF2024_LookUp!$B:$T,$D62,FALSE)=0,\"\",VLOOKUP($B62&\"_\"&$C62&\"_\"&J$14,UNWDF2024_LookUp!$B:$T,$D62,FALSE))","v":"TA1.13"},{"$f":"IF(VLOOKUP($B62&\"_\"&$C62&\"_\"&K$14,UNWDF2024_LookUp!$B:$T,$D62,FALSE)=0,\"\",VLOOKUP($B62&\"_\"&$C62&\"_\"&K$14,UNWDF2024_LookUp!$B:$T,$D62,FALSE))","v":"TA1.17"},{"$f":"IF(VLOOKUP($B62&\"_\"&$C62&\"_\"&L$14,UNWDF2024_LookUp!$B:$T,$D62,FALSE)=0,\"\",VLOOKUP($B62&\"_\"&$C62&\"_\"&L$14,UNWDF2024_LookUp!$B:$T,$D62,FALSE))","v":"TA4.18"},{"$f":"IF(VLOOKUP($B62&\"_\"&$C62&\"_\"&M$14,UNWDF2024_LookUp!$B:$T,$D62,FALSE)=0,\"\",VLOOKUP($B62&\"_\"&$C62&\"_\"&M$14,UNWDF2024_LookUp!$B:$T,$D62,FALSE))","v":"TA4.11"},{"$f":"IF(VLOOKUP($B62&\"_\"&$C62&\"_\"&N$14,UNWDF2024_LookUp!$B:$T,$D62,FALSE)=0,\"\",VLOOKUP($B62&\"_\"&$C62&\"_\"&N$14,UNWDF2024_LookUp!$B:$T,$D62,FALSE))","v":"TED.204"},{"$f":"IF(VLOOKUP($B62&\"_\"&$C62&\"_\"&O$14,UNWDF2024_LookUp!$B:$T,$D62,FALSE)=0,\"\",VLOOKUP($B62&\"_\"&$C62&\"_\"&O$14,UNWDF2024_LookUp!$B:$T,$D62,FALSE))","v":"ANCE.402"},{"$f":"IF(VLOOKUP($B62&\"_\"&$C62&\"_\"&P$14,UNWDF2024_LookUp!$B:$T,$D62,FALSE)=0,\"\",VLOOKUP($B62&\"_\"&$C62&\"_\"&P$14,UNWDF2024_LookUp!$B:$T,$D62,FALSE))","v":"LEARN.310"},{"$f":"IF(VLOOKUP($B62&\"_\"&$C62&\"_\"&Q$14,UNWDF2024_LookUp!$B:$T,$D62,FALSE)=0,\"\",VLOOKUP($B62&\"_\"&$C62&\"_\"&Q$14,UNWDF2024_LookUp!$B:$T,$D62,FALSE))","v":"LEARN.304"},{"$f":"IF(VLOOKUP($B62&\"_\"&$C62&\"_\"&R$14,UNWDF2024_LookUp!$B:$T,$D62,FALSE)=0,\"\",VLOOKUP($B62&\"_\"&$C62&\"_\"&R$14,UNWDF2024_LookUp!$B:$T,$D62,FALSE))","v":"DEMO.504"}]
["Day2Time_Slot2","Day2","Time_Slot2",13,"",null,"Thematic Area",null,{"$f":"IF(VLOOKUP($B63&\"_\"&$C63&\"_\"&I$14,UNWDF2024_LookUp!$B:$T,$D63,FALSE)=0,\"\",VLOOKUP($B63&\"_\"&$C63&\"_\"&I$14,UNWDF2024_LookUp!$B:$T,$D63,FALSE))","v":4},{"$f":"IF(VLOOKUP($B63&\"_\"&$C63&\"_\"&J$14,UNWDF2024_LookUp!$B:$T,$D63,FALSE)=0,\"\",VLOOKUP($B63&\"_\"&$C63&\"_\"&J$14,UNWDF2024_LookUp!$B:$T,$D63,FALSE))","v":1},{"$f":"IF(VLOOKUP($B63&\"_\"&$C63&\"_\"&K$14,UNWDF2024_LookUp!$B:$T,$D63,FALSE)=0,\"\",VLOOKUP($B63&\"_\"&$C63&\"_\"&K$14,UNWDF2024_LookUp!$B:$T,$D63,FALSE))","v":1},{"$f":"IF(VLOOKUP($B63&\"_\"&$C63&\"_\"&L$14,UNWDF2024_LookUp!$B:$T,$D63,FALSE)=0,\"\",VLOOKUP($B63&\"_\"&$C63&\"_\"&L$14,UNWDF2024_LookUp!$B:$T,$D63,FALSE))","v":4},{"$f":"IF(VLOOKUP($B63&\"_\"&$C63&\"_\"&M$14,UNWDF2024_LookUp!$B:$T,$D63,FALSE)=0,\"\",VLOOKUP($B63&\"_\"&$C63&\"_\"&M$14,UNWDF2024_LookUp!$B:$T,$D63,FALSE))","v":4},{"$f":"IF(VLOOKUP($B63&\"_\"&$C63&\"_\"&N$14,UNWDF2024_LookUp!$B:$T,$D63,FALSE)=0,\"\",VLOOKUP($B63&\"_\"&$C63&\"_\"&N$14,UNWDF2024_LookUp!$B:$T,$D63,FALSE))","v":"_T"},{"$f":"IF(VLOOKUP($B63&\"_\"&$C63&\"_\"&O$14,UNWDF2024_LookUp!$B:$T,$D63,FALSE)=0,\"\",VLOOKUP($B63&\"_\"&$C63&\"_\"&O$14,UNWDF2024_LookUp!$B:$T,$D63,FALSE))","v":"_A"},{"$f":"IF(VLOOKUP($B63&\"_\"&$C63&\"_\"&P$14,UNWDF2024_LookUp!$B:$T,$D63,FALSE)=0,\"\",VLOOKUP($B63&\"_\"&$C63&\"_\"&P$14,UNWDF2024_LookUp!$B:$T,$D63,FALSE))","v":"_L"},{"$f":"IF(VLOOKUP($B63&\"_\"&$C63&\"_\"&Q$14,UNWDF2024_LookUp!$B:$T,$D63,FALSE)=0,\"\",VLOOKUP($B63&\"_\"&$C63&\"_\"&Q$14,UNWDF2024_LookUp!$B:$T,$D63,FALSE))","v":"_L"},{"$f":"IF(VLOOKUP($B63&\"_\"&$C63&\"_\"&R$14,UNWDF2024_LookUp!$B:$T,$D63,FALSE)=0,\"\",VLOOKUP($B63&\"_\"&$C63&\"_\"&R$14,UNWDF2024_LookUp!$B:$T,$D63,FALSE))","v":"_D"}]
[{"$f":"B64&C64","v":"Day2Time_Slot2"},"Day2","Time_Slot2",16,"",null,"Event Title",null,{"$f":"IF(VLOOKUP($B64&\"_\"&$C64&\"_\"&I$14,UNWDF2024_LookUp!$B:$T,$D64,FALSE)=0,\"\",VLOOKUP($B64&\"_\"&$C64&\"_\"&I$14,UNWDF2024_LookUp!$B:$T,$D64,FALSE))","v":"Caribbean Data Solutions Hub"},{"$f":"IF(VLOOKUP($B64&\"_\"&$C64&\"_\"&J$14,UNWDF2024_LookUp!$B:$T,$D64,FALSE)=0,\"\",VLOOKUP($B64&\"_\"&$C64&\"_\"&J$14,UNWDF2024_LookUp!$B:$T,$D64,FALSE))","v":"Children on the move: exploring the gaps, needs and solutions for better quality data"},{"$f":"IF(VLOOKUP($B64&\"_\"&$C64&\"_\"&K$14,UNWDF2024_LookUp!$B:$T,$D64,FALSE)=0,\"\",VLOOKUP($B64&\"_\"&$C64&\"_\"&K$14,UNWDF2024_LookUp!$B:$T,$D64,FALSE))","v":"Moving forward to the development of dissemination platforms based on an interoperable data banks ecosystem."},{"$f":"IF(VLOOKUP($B64&\"_\"&$C64&\"_\"&L$14,UNWDF2024_LookUp!$B:$T,$D64,FALSE)=0,\"\",VLOOKUP($B64&\"_\"&$C64&\"_\"&L$14,UNWDF2024_LookUp!$B:$T,$D64,FALSE))","v":"Identifying and Building Synergies in the Migration Data Ecosystem"},{"$f":"IF(VLOOKUP($B64&\"_\"&$C64&\"_\"&M$14,UNWDF2024_LookUp!$B:$T,$D64,FALSE)=0,\"\",VLOOKUP($B64&\"_\"&$C64&\"_\"&M$14,UNWDF2024_LookUp!$B:$T,$D64,FALSE))","v":"The importance of demand-side data on digital access and use for evidence-based policy-making in Africa"},{"$f":"IF(VLOOKUP($B64&\"_\"&$C64&\"_\"&N$14,UNWDF2024_LookUp!$B:$T,$D64,FALSE)=0,\"\",VLOOKUP($B64&\"_\"&$C64&\"_\"&N$14,UNWDF2024_LookUp!$B:$T,$D64,FALSE))","v":"How to efficiently utilize sampling techniques to improve data quality of economic census / Inclusive business statistics / Experiences of violence and harassment at work: A global first survey"},{"$f":"IF(VLOOKUP($B64&\"_\"&$C64&\"_\"&O$14,UNWDF2024_LookUp!$B:$T,$D64,FALSE)=0,\"\",VLOOKUP($B64&\"_\"&$C64&\"_\"&O$14,UNWDF2024_LookUp!$B:$T,$D64,FALSE))","v":"Evidence for decision-making and the design of public policies in Latin America"},{"$f":"IF(VLOOKUP($B64&\"_\"&$C64&\"_\"&P$14,UNWDF2024_LookUp!$B:$T,$D64,FALSE)=0,\"\",VLOOKUP($B64&\"_\"&$C64&\"_\"&P$14,UNWDF2024_LookUp!$B:$T,$D64,FALSE))","v":"Fostering Citizen and Inclusive Data into the National Statistical Systems through South to South Cooperation"},{"$f":"IF(VLOOKUP($B64&\"_\"&$C64&\"_\"&Q$14,UNWDF2024_LookUp!$B:$T,$D64,FALSE)=0,\"\",VLOOKUP($B64&\"_\"&$C64&\"_\"&Q$14,UNWDF2024_LookUp!$B:$T,$D64,FALSE))","v":"Data Ecosystems and Gridded Housing and Environmental Statistics for Evidence-Based Policy Making"},{"$f":"IF(VLOOKUP($B64&\"_\"&$C64&\"_\"&R$14,UNWDF2024_LookUp!$B:$T,$D64,FALSE)=0,\"\",VLOOKUP($B64&\"_\"&$C64&\"_\"&R$14,UNWDF2024_LookUp!$B:$T,$D64,FALSE))","v":"Innovation in data collection on ethnic-racial population: progress in inclusion and characterization in Colombia / Timely, comprehensive and focused provision of social services based on an interoperable system of administrative records. The Ecuadorean case to prevent stunting / Tools for the visualization of demographic indicators as a strategy for prospective planning at the local level in Mexico / From Numbers to Change: Using Data to End Gender-Based Violence"}]
["Day2Time_Slot2","Day2","Time_Slot2",17,"",null,"Organiser",null,{"$f":"IF(VLOOKUP($B65&\"_\"&$C65&\"_\"&I$14,UNWDF2024_LookUp!$B:$T,$D65,FALSE)=0,\"\",VLOOKUP($B65&\"_\"&$C65&\"_\"&I$14,UNWDF2024_LookUp!$B:$T,$D65,FALSE))","v":"NoBrainerData; Oficina Nacional de Estadística (ONE-República Dominicana)-Statistical Conference of the Americas; Statistics Department of Montserrat; Data-Pop Alliance; Central Statistical Office (CSO-Grenada)"},{"$f":"IF(VLOOKUP($B65&\"_\"&$C65&\"_\"&J$14,UNWDF2024_LookUp!$B:$T,$D65,FALSE)=0,\"\",VLOOKUP($B65&\"_\"&$C65&\"_\"&J$14,UNWDF2024_LookUp!$B:$T,$D65,FALSE))","v":"IMPACT Initiatives; Inclusive Data Charter; International Data Alliance for Children on the Move; Save the Children; REACH Initiative; Internal Displacement Monitoring Centre (IDMC); United Nations Major Group for Children and Youth (UN MGCY); Direction de la statistique et des études démographiques (DISED-Djibouti)"},{"$f":"IF(VLOOKUP($B65&\"_\"&$C65&\"_\"&K$14,UNWDF2024_LookUp!$B:$T,$D65,FALSE)=0,\"\",VLOOKUP($B65&\"_\"&$C65&\"_\"&K$14,UNWDF2024_LookUp!$B:$T,$D65,FALSE))","v":"United Nations Economic Commission for Latin America and the Caribbean (UNECLAC / CEPAL); European Statistical Office (Eurostat); Instituto Nacional de Estadística (INE-Paraguay); Instituto Brasileiro de Geografia e Estatística (IBGE)"},{"$f":"IF(VLOOKUP($B65&\"_\"&$C65&\"_\"&L$14,UNWDF2024_LookUp!$B:$T,$D65,FALSE)=0,\"\",VLOOKUP($B65&\"_\"&$C65&\"_\"&L$14,UNWDF2024_LookUp!$B:$T,$D65,FALSE))","v":"Aapti Institute; Robert Bosch Stiftung GmbH"},{"$f":"IF(VLOOKUP($B65&\"_\"&$C65&\"_\"&M$14,UNWDF2024_LookUp!$B:$T,$D65,FALSE)=0,\"\",VLOOKUP($B65&\"_\"&$C65&\"_\"&M$14,UNWDF2024_LookUp!$B:$T,$D65,FALSE))","v":"Research ICT Africa; United Nations Economic Commission for Africa (UNECA); International Telecommunication Union (ITU); Regional Center for Studies for the Development of the Information Society (Cetic.br)"},{"$f":"IF(VLOOKUP($B65&\"_\"&$C65&\"_\"&N$14,UNWDF2024_LookUp!$B:$T,$D65,FALSE)=0,\"\",VLOOKUP($B65&\"_\"&$C65&\"_\"&N$14,UNWDF2024_LookUp!$B:$T,$D65,FALSE))","v":"Research Institute of Statistical Sciences, National Bureau of Statistics (NBS-China) / Oficina Nacional de Estadística (ONE-República Dominicana) / Gallup, Inc.; Lloyd's Register Foundation; International Labour Organization (ILO)"},{"$f":"IF(VLOOKUP($B65&\"_\"&$C65&\"_\"&O$14,UNWDF2024_LookUp!$B:$T,$D65,FALSE)=0,\"\",VLOOKUP($B65&\"_\"&$C65&\"_\"&O$14,UNWDF2024_LookUp!$B:$T,$D65,FALSE))","v":"Ministério dos Direitos Humanos e Cidadania; United Nations (UN); Fundación Corona"},{"$f":"IF(VLOOKUP($B65&\"_\"&$C65&\"_\"&P$14,UNWDF2024_LookUp!$B:$T,$D65,FALSE)=0,\"\",VLOOKUP($B65&\"_\"&$C65&\"_\"&P$14,UNWDF2024_LookUp!$B:$T,$D65,FALSE))","v":"Global Partnership for Sustainable Development Data (GPSDD); Presidential Agency for International Cooperation (APC-Colombia); Bangladesh Bureau of Statistics (BBS); UK Foreign, Commonwealth and Development Office (FCDO); MSD United Way Vietnam; International Civil Society Centre"},{"$f":"IF(VLOOKUP($B65&\"_\"&$C65&\"_\"&Q$14,UNWDF2024_LookUp!$B:$T,$D65,FALSE)=0,\"\",VLOOKUP($B65&\"_\"&$C65&\"_\"&Q$14,UNWDF2024_LookUp!$B:$T,$D65,FALSE))","v":"Instituto Nacional de Estadística y Geografía (INEGI-México); Universidad EAFIT; European Space Agency (ESA); University of Twente"},{"$f":"IF(VLOOKUP($B65&\"_\"&$C65&\"_\"&R$14,UNWDF2024_LookUp!$B:$T,$D65,FALSE)=0,\"\",VLOOKUP($B65&\"_\"&$C65&\"_\"&R$14,UNWDF2024_LookUp!$B:$T,$D65,FALSE))","v":"Departamento Administrativo Nacional de Estadística (DANE-Colombia) / Instituto Nacional de Estadística y Censos (INEC-Ecuador); Crece sin Desnutrición Infantil, Ecuador; Coorporación Andina de Fomento; Vital Strategies / United Nations Development Programme (UNDP) / United Nations Population Fund (UNFPA)"}]
["Day2Time_Slot2B","Day2","Time_Slot2B",14,"11:45 - 13:30 (Medellín time)",{"$f":"IF(ISERROR(TEXT((DATE($E$3,$E$2,$E$1+MID(B66,4,1))+TIME(MID(E66,1,2),MID(E66,4,2),0))+($C$2-$C$3),\"H:MM AM/PM\")&\" - \"&TEXT(DATE($E$3,$E$2,$E$1+MID(B66,4,1))+TIME(MID(E66,9,2),MID(E66,12,2),0)+($C$2-$C$3),\"H:MM AM/PM\")),E66,TEXT((DATE($E$3,$E$2,$E$1+MID(B66,4,1))+TIME(MID(E66,1,2),MID(E66,4,2),0))+($C$2-$C$3),\"H:MM AM/PM\")&\" - \"&TEXT(DATE($E$3,$E$2,$E$1+MID(B66,4,1))+TIME(MID(E66,9,2),MID(E66,12,2),0)+($C$2-$C$3),\"H:MM AM/PM\"))","v":"11:45 AM - 1:30 PM"},"BREAK"]
["Day2Time_Slot3","Day2","Time_Slot3",15,"13:30 - 14:30 (Medellín time)",{"$f":"IF(ISERROR(TEXT((DATE($E$3,$E$2,$E$1+MID(B67,4,1))+TIME(MID(E67,1,2),MID(E67,4,2),0))+($C$2-$C$3),\"H:MM AM/PM\")&\" - \"&TEXT(DATE($E$3,$E$2,$E$1+MID(B67,4,1))+TIME(MID(E67,9,2),MID(E67,12,2),0)+($C$2-$C$3),\"H:MM AM/PM\")),E67,TEXT(DATE($E$3,$E$2,$E$1+MID(B67,4,1))+TIME(MID(E67,1,2),MID(E67,4,2),0)+($C$2-$C$3),\"DDDD DD MMM\")&\" : \"&TEXT((DATE($E$3,$E$2,$E$1+MID(B67,4,1))+TIME(MID(E67,1,2),MID(E67,4,2),0))+($C$2-$C$3),\"H:MM AM/PM\")&\" - \"&TEXT(DATE($E$3,$E$2,$E$1+MID(B67,4,1))+TIME(MID(E67,9,2),MID(E67,12,2),0)+($C$2-$C$3),\"H:MM AM/PM\"))","v":"Thursday 14 Nov : 1:30 PM - 2:30 PM"},"Event_ID",null,{"$f":"IF(VLOOKUP($B67&\"_\"&$C67&\"_\"&I$14,UNWDF2024_LookUp!$B:$T,$D67,FALSE)=0,\"\",VLOOKUP($B67&\"_\"&$C67&\"_\"&I$14,UNWDF2024_LookUp!$B:$T,$D67,FALSE))","v":"TA1.3"},{"$f":"IF(VLOOKUP($B67&\"_\"&$C67&\"_\"&J$14,UNWDF2024_LookUp!$B:$T,$D67,FALSE)=0,\"\",VLOOKUP($B67&\"_\"&$C67&\"_\"&J$14,UNWDF2024_LookUp!$B:$T,$D67,FALSE))","v":"TA1.8"},{"$f":"IF(VLOOKUP($B67&\"_\"&$C67&\"_\"&K$14,UNWDF2024_LookUp!$B:$T,$D67,FALSE)=0,\"\",VLOOKUP($B67&\"_\"&$C67&\"_\"&K$14,UNWDF2024_LookUp!$B:$T,$D67,FALSE))","v":"TA4.17"},{"$f":"IF(VLOOKUP($B67&\"_\"&$C67&\"_\"&L$14,UNWDF2024_LookUp!$B:$T,$D67,FALSE)=0,\"\",VLOOKUP($B67&\"_\"&$C67&\"_\"&L$14,UNWDF2024_LookUp!$B:$T,$D67,FALSE))","v":"TA2.9"},{"$f":"IF(VLOOKUP($B67&\"_\"&$C67&\"_\"&M$14,UNWDF2024_LookUp!$B:$T,$D67,FALSE)=0,\"\",VLOOKUP($B67&\"_\"&$C67&\"_\"&M$14,UNWDF2024_LookUp!$B:$T,$D67,FALSE))","v":"TA4.12"},{"$f":"IF(VLOOKUP($B67&\"_\"&$C67&\"_\"&N$14,UNWDF2024_LookUp!$B:$T,$D67,FALSE)=0,\"\",VLOOKUP($B67&\"_\"&$C67&\"_\"&N$14,UNWDF2024_LookUp!$B:$T,$D67,FALSE))","v":"TED.205"},{"$f":"IF(VLOOKUP($B67&\"_\"&$C67&\"_\"&O$14,UNWDF2024_LookUp!$B:$T,$D67,FALSE)=0,\"\",VLOOKUP($B67&\"_\"&$C67&\"_\"&O$14,UNWDF2024_LookUp!$B:$T,$D67,FALSE))","v":"TA4.19"},{"$f":"IF(VLOOKUP($B67&\"_\"&$C67&\"_\"&P$14,UNWDF2024_LookUp!$B:$T,$D67,FALSE)=0,\"\",VLOOKUP($B67&\"_\"&$C67&\"_\"&P$14,UNWDF2024_LookUp!$B:$T,$D67,FALSE))","v":"Local_4"},{"$f":"IF(VLOOKUP($B67&\"_\"&$C67&\"_\"&Q$14,UNWDF2024_LookUp!$B:$T,$D67,FALSE)=0,\"\",VLOOKUP($B67&\"_\"&$C67&\"_\"&Q$14,UNWDF2024_LookUp!$B:$T,$D67,FALSE))","v":"LEARN.305"},{"$f":"IF(VLOOKUP($B67&\"_\"&$C67&\"_\"&R$14,UNWDF2024_LookUp!$B:$T,$D67,FALSE)=0,\"\",VLOOKUP($B67&\"_\"&$C67&\"_\"&R$14,UNWDF2024_LookUp!$B:$T,$D67,FALSE))","v":"NA"}]
["Day2Time_Slot3","Day2","Time_Slot3",13,"",null,"Thematic Area",null,{"$f":"IF(VLOOKUP($B68&\"_\"&$C68&\"_\"&I$14,UNWDF2024_LookUp!$B:$T,$D68,FALSE)=0,\"\",VLOOKUP($B68&\"_\"&$C68&\"_\"&I$14,UNWDF2024_LookUp!$B:$T,$D68,FALSE))","v":1},{"$f":"IF(VLOOKUP($B68&\"_\"&$C68&\"_\"&J$14,UNWDF2024_LookUp!$B:$T,$D68,FALSE)=0,\"\",VLOOKUP($B68&\"_\"&$C68&\"_\"&J$14,UNWDF2024_LookUp!$B:$T,$D68,FALSE))","v":1},{"$f":"IF(VLOOKUP($B68&\"_\"&$C68&\"_\"&K$14,UNWDF2024_LookUp!$B:$T,$D68,FALSE)=0,\"\",VLOOKUP($B68&\"_\"&$C68&\"_\"&K$14,UNWDF2024_LookUp!$B:$T,$D68,FALSE))","v":4},{"$f":"IF(VLOOKUP($B68&\"_\"&$C68&\"_\"&L$14,UNWDF2024_LookUp!$B:$T,$D68,FALSE)=0,\"\",VLOOKUP($B68&\"_\"&$C68&\"_\"&L$14,UNWDF2024_LookUp!$B:$T,$D68,FALSE))","v":2},{"$f":"IF(VLOOKUP($B68&\"_\"&$C68&\"_\"&M$14,UNWDF2024_LookUp!$B:$T,$D68,FALSE)=0,\"\",VLOOKUP($B68&\"_\"&$C68&\"_\"&M$14,UNWDF2024_LookUp!$B:$T,$D68,FALSE))","v":4},{"$f":"IF(VLOOKUP($B68&\"_\"&$C68&\"_\"&N$14,UNWDF2024_LookUp!$B:$T,$D68,FALSE)=0,\"\",VLOOKUP($B68&\"_\"&$C68&\"_\"&N$14,UNWDF2024_LookUp!$B:$T,$D68,FALSE))","v":"_T"},{"$f":"IF(VLOOKUP($B68&\"_\"&$C68&\"_\"&O$14,UNWDF2024_LookUp!$B:$T,$D68,FALSE)=0,\"\",VLOOKUP($B68&\"_\"&$C68&\"_\"&O$14,UNWDF2024_LookUp!$B:$T,$D68,FALSE))","v":4},{"$f":"IF(VLOOKUP($B68&\"_\"&$C68&\"_\"&P$14,UNWDF2024_LookUp!$B:$T,$D68,FALSE)=0,\"\",VLOOKUP($B68&\"_\"&$C68&\"_\"&P$14,UNWDF2024_LookUp!$B:$T,$D68,FALSE))","v":"NA"},{"$f":"IF(VLOOKUP($B68&\"_\"&$C68&\"_\"&Q$14,UNWDF2024_LookUp!$B:$T,$D68,FALSE)=0,\"\",VLOOKUP($B68&\"_\"&$C68&\"_\"&Q$14,UNWDF2024_LookUp!$B:$T,$D68,FALSE))","v":"_L"},{"$f":"IF(VLOOKUP($B68&\"_\"&$C68&\"_\"&R$14,UNWDF2024_LookUp!$B:$T,$D68,FALSE)=0,\"\",VLOOKUP($B68&\"_\"&$C68&\"_\"&R$14,UNWDF2024_LookUp!$B:$T,$D68,FALSE))","v":"NA"}]
[{"$f":"B69&C69","v":"Day2Time_Slot3"},"Day2","Time_Slot3",16,"",null,"Event Title",null,{"$f":"IF(VLOOKUP($B69&\"_\"&$C69&\"_\"&I$14,UNWDF2024_LookUp!$B:$T,$D69,FALSE)=0,\"\",VLOOKUP($B69&\"_\"&$C69&\"_\"&I$14,UNWDF2024_LookUp!$B:$T,$D69,FALSE))","v":"Empowering Vulnerable Entrepreneurs: Data-Driven Business Strategy for Inclusive Digital Transformation"},{"$f":"IF(VLOOKUP($B69&\"_\"&$C69&\"_\"&J$14,UNWDF2024_LookUp!$B:$T,$D69,FALSE)=0,\"\",VLOOKUP($B69&\"_\"&$C69&\"_\"&J$14,UNWDF2024_LookUp!$B:$T,$D69,FALSE))","v":"Data Innovations on Housing and Environmental Statistics: Combining Alternative and Official Data to Map Informal Settlements"},{"$f":"IF(VLOOKUP($B69&\"_\"&$C69&\"_\"&K$14,UNWDF2024_LookUp!$B:$T,$D69,FALSE)=0,\"\",VLOOKUP($B69&\"_\"&$C69&\"_\"&K$14,UNWDF2024_LookUp!$B:$T,$D69,FALSE))","v":"Citizen science: Opportunities and Challenges for Enhanced Local to Global SDG Monitoring and Action"},{"$f":"IF(VLOOKUP($B69&\"_\"&$C69&\"_\"&L$14,UNWDF2024_LookUp!$B:$T,$D69,FALSE)=0,\"\",VLOOKUP($B69&\"_\"&$C69&\"_\"&L$14,UNWDF2024_LookUp!$B:$T,$D69,FALSE))","v":"Alternative mapping data for resilience and development in the face of climate change"},{"$f":"IF(VLOOKUP($B69&\"_\"&$C69&\"_\"&M$14,UNWDF2024_LookUp!$B:$T,$D69,FALSE)=0,\"\",VLOOKUP($B69&\"_\"&$C69&\"_\"&M$14,UNWDF2024_LookUp!$B:$T,$D69,FALSE))","v":"Advancing human rights through provision of address and ending homelessness: Geo-located statistics improvement and inclusive homelessness enumeration"},{"$f":"IF(VLOOKUP($B69&\"_\"&$C69&\"_\"&N$14,UNWDF2024_LookUp!$B:$T,$D69,FALSE)=0,\"\",VLOOKUP($B69&\"_\"&$C69&\"_\"&N$14,UNWDF2024_LookUp!$B:$T,$D69,FALSE))","v":"Data dissemination across contexts"},{"$f":"IF(VLOOKUP($B69&\"_\"&$C69&\"_\"&O$14,UNWDF2024_LookUp!$B:$T,$D69,FALSE)=0,\"\",VLOOKUP($B69&\"_\"&$C69&\"_\"&O$14,UNWDF2024_LookUp!$B:$T,$D69,FALSE))","v":"Measure for Measure: Leveraging gender data capacity measures in practice"},{"$f":"IF(VLOOKUP($B69&\"_\"&$C69&\"_\"&P$14,UNWDF2024_LookUp!$B:$T,$D69,FALSE)=0,\"\",VLOOKUP($B69&\"_\"&$C69&\"_\"&P$14,UNWDF2024_LookUp!$B:$T,$D69,FALSE))","v":"Medellín: data ecosystem in the CTI district"},{"$f":"IF(VLOOKUP($B69&\"_\"&$C69&\"_\"&Q$14,UNWDF2024_LookUp!$B:$T,$D69,FALSE)=0,\"\",VLOOKUP($B69&\"_\"&$C69&\"_\"&Q$14,UNWDF2024_LookUp!$B:$T,$D69,FALSE))","v":"Workshop: Delivering immunisation services to zero-dose children through geospatial microplanning support documents: why, what, and how?"},{"$f":"IF(VLOOKUP($B69&\"_\"&$C69&\"_\"&R$14,UNWDF2024_LookUp!$B:$T,$D69,FALSE)=0,\"\",VLOOKUP($B69&\"_\"&$C69&\"_\"&R$14,UNWDF2024_LookUp!$B:$T,$D69,FALSE))","v":"TBC"}]
["Day2Time_Slot3","Day2","Time_Slot3",17,"",null,"Organiser",null,{"$f":"IF(VLOOKUP($B70&\"_\"&$C70&\"_\"&I$14,UNWDF2024_LookUp!$B:$T,$D70,FALSE)=0,\"\",VLOOKUP($B70&\"_\"&$C70&\"_\"&I$14,UNWDF2024_LookUp!$B:$T,$D70,FALSE))","v":"United Nations Development Programme (UNDP); Federación de Aseguradores Colombianos (Fasecolda); Banca de las Oportunidades; National Advisory Board for Impact Investment (NAB)"},{"$f":"IF(VLOOKUP($B70&\"_\"&$C70&\"_\"&J$14,UNWDF2024_LookUp!$B:$T,$D70,FALSE)=0,\"\",VLOOKUP($B70&\"_\"&$C70&\"_\"&J$14,UNWDF2024_LookUp!$B:$T,$D70,FALSE))","v":"Instituto Nacional de Estadística y Geografía (INEGI-México); Universidad EAFIT; European Space Agency (ESA); University of Twente"},{"$f":"IF(VLOOKUP($B70&\"_\"&$C70&\"_\"&K$14,UNWDF2024_LookUp!$B:$T,$D70,FALSE)=0,\"\",VLOOKUP($B70&\"_\"&$C70&\"_\"&K$14,UNWDF2024_LookUp!$B:$T,$D70,FALSE))","v":"Institut Cienciès Marines; Humanitarian OpenStreetMap (HOTOSM); International Institute for Applied Systems Analysis (IIASA), Iberoamerican Participatory Science Network (RICAP); United Nations Human Settlements Programme (UN-Habitat); Citizen Science Global Partnership (CSGP)"},{"$f":"IF(VLOOKUP($B70&\"_\"&$C70&\"_\"&L$14,UNWDF2024_LookUp!$B:$T,$D70,FALSE)=0,\"\",VLOOKUP($B70&\"_\"&$C70&\"_\"&L$14,UNWDF2024_LookUp!$B:$T,$D70,FALSE))","v":"Humanitarian OpenStreetMap (HOTOSM); Departamento Administrativo Nacional de Estadística (DANE-Colombia); Oficina Nacional de Estadistica (ONE Dominican Republic); Centro de Estudios con Poblaciones, Movilizaciones y Territorio; Crisis Ready; Global Partnership for Sustainable Development Data (GPSDD); United Nations Office for the Coordination of Humanitarian Affairs (OCHA)"},{"$f":"IF(VLOOKUP($B70&\"_\"&$C70&\"_\"&M$14,UNWDF2024_LookUp!$B:$T,$D70,FALSE)=0,\"\",VLOOKUP($B70&\"_\"&$C70&\"_\"&M$14,UNWDF2024_LookUp!$B:$T,$D70,FALSE))","v":"Ruff Institute of Global Homelessness (IGH), DePaul University; Instituto Nacional de Estadística (INE-Uruguay); Google"},{"$f":"IF(VLOOKUP($B70&\"_\"&$C70&\"_\"&N$14,UNWDF2024_LookUp!$B:$T,$D70,FALSE)=0,\"\",VLOOKUP($B70&\"_\"&$C70&\"_\"&N$14,UNWDF2024_LookUp!$B:$T,$D70,FALSE))","v":"World Bank-United Nations High Commissioner for Refugees Joint Data Center on Forced Displacement (WB-UNHCR JDC); IMPACT Initiatives; Instituto Estatal de Transparencia, Acceso a la Información y Protección de Datos Personales (INFONL)"},{"$f":"IF(VLOOKUP($B70&\"_\"&$C70&\"_\"&O$14,UNWDF2024_LookUp!$B:$T,$D70,FALSE)=0,\"\",VLOOKUP($B70&\"_\"&$C70&\"_\"&O$14,UNWDF2024_LookUp!$B:$T,$D70,FALSE))","v":"United Nations Entity for Gender Equality and the Empowerment of Women (UN Women); Partnership in Statistics for Development in the 21st Century (PARIS21); World Bank (WB); Open Data Watch (ODW)"},{"$f":"IF(VLOOKUP($B70&\"_\"&$C70&\"_\"&P$14,UNWDF2024_LookUp!$B:$T,$D70,FALSE)=0,\"\",VLOOKUP($B70&\"_\"&$C70&\"_\"&P$14,UNWDF2024_LookUp!$B:$T,$D70,FALSE))","v":"TBC"},{"$f":"IF(VLOOKUP($B70&\"_\"&$C70&\"_\"&Q$14,UNWDF2024_LookUp!$B:$T,$D70,FALSE)=0,\"\",VLOOKUP($B70&\"_\"&$C70&\"_\"&Q$14,UNWDF2024_LookUp!$B:$T,$D70,FALSE))","v":"Flowminder Foundation"},{"$f":"IF(VLOOKUP($B70&\"_\"&$C70&\"_\"&R$14,UNWDF2024_LookUp!$B:$T,$D70,FALSE)=0,\"\",VLOOKUP($B70&\"_\"&$C70&\"_\"&R$14,UNWDF2024_LookUp!$B:$T,$D70,FALSE))","v":"TBC"}]
[{"$f":"B71&C71","v":"Day2Time_Slot2B"},"Day2","Time_Slot2B",14,"14:30 - 14:45 (Medellín time)",{"$f":"IF(ISERROR(TEXT((DATE($E$3,$E$2,$E$1+MID(B71,4,1))+TIME(MID(E71,1,2),MID(E71,4,2),0))+($C$2-$C$3),\"H:MM AM/PM\")&\" - \"&TEXT(DATE($E$3,$E$2,$E$1+MID(B71,4,1))+TIME(MID(E71,9,2),MID(E71,12,2),0)+($C$2-$C$3),\"H:MM AM/PM\")),E71,TEXT((DATE($E$3,$E$2,$E$1+MID(B71,4,1))+TIME(MID(E71,1,2),MID(E71,4,2),0))+($C$2-$C$3),\"H:MM AM/PM\")&\" - \"&TEXT(DATE($E$3,$E$2,$E$1+MID(B71,4,1))+TIME(MID(E71,9,2),MID(E71,12,2),0)+($C$2-$C$3),\"H:MM AM/PM\"))","v":"2:30 PM - 2:45 PM"},"BREAK"]
["Day2Time_Slot4","Day2","Time_Slot4",15,"14:45 - 15:45 (Medellín time)",{"$f":"IF(ISERROR(TEXT((DATE($E$3,$E$2,$E$1+MID(B72,4,1))+TIME(MID(E72,1,2),MID(E72,4,2),0))+($C$2-$C$3),\"H:MM AM/PM\")&\" - \"&TEXT(DATE($E$3,$E$2,$E$1+MID(B72,4,1))+TIME(MID(E72,9,2),MID(E72,12,2),0)+($C$2-$C$3),\"H:MM AM/PM\")),E72,TEXT(DATE($E$3,$E$2,$E$1+MID(B72,4,1))+TIME(MID(E72,1,2),MID(E72,4,2),0)+($C$2-$C$3),\"DDDD DD MMM\")&\" : \"&TEXT((DATE($E$3,$E$2,$E$1+MID(B72,4,1))+TIME(MID(E72,1,2),MID(E72,4,2),0))+($C$2-$C$3),\"H:MM AM/PM\")&\" - \"&TEXT(DATE($E$3,$E$2,$E$1+MID(B72,4,1))+TIME(MID(E72,9,2),MID(E72,12,2),0)+($C$2-$C$3),\"H:MM AM/PM\"))","v":"Thursday 14 Nov : 2:45 PM - 3:45 PM"},"Event_ID",null,{"$f":"IF(VLOOKUP($B72&\"_\"&$C72&\"_\"&I$14,UNWDF2024_LookUp!$B:$T,$D72,FALSE)=0,\"\",VLOOKUP($B72&\"_\"&$C72&\"_\"&I$14,UNWDF2024_LookUp!$B:$T,$D72,FALSE))","v":"TA2.3"},{"$f":"IF(VLOOKUP($B72&\"_\"&$C72&\"_\"&J$14,UNWDF2024_LookUp!$B:$T,$D72,FALSE)=0,\"\",VLOOKUP($B72&\"_\"&$C72&\"_\"&J$14,UNWDF2024_LookUp!$B:$T,$D72,FALSE))","v":"TA1.9"},{"$f":"IF(VLOOKUP($B72&\"_\"&$C72&\"_\"&K$14,UNWDF2024_LookUp!$B:$T,$D72,FALSE)=0,\"\",VLOOKUP($B72&\"_\"&$C72&\"_\"&K$14,UNWDF2024_LookUp!$B:$T,$D72,FALSE))","v":"TA1.7"},{"$f":"IF(VLOOKUP($B72&\"_\"&$C72&\"_\"&L$14,UNWDF2024_LookUp!$B:$T,$D72,FALSE)=0,\"\",VLOOKUP($B72&\"_\"&$C72&\"_\"&L$14,UNWDF2024_LookUp!$B:$T,$D72,FALSE))","v":"TA2.15"},{"$f":"IF(VLOOKUP($B72&\"_\"&$C72&\"_\"&M$14,UNWDF2024_LookUp!$B:$T,$D72,FALSE)=0,\"\",VLOOKUP($B72&\"_\"&$C72&\"_\"&M$14,UNWDF2024_LookUp!$B:$T,$D72,FALSE))","v":"TA4.13"},{"$f":"IF(VLOOKUP($B72&\"_\"&$C72&\"_\"&N$14,UNWDF2024_LookUp!$B:$T,$D72,FALSE)=0,\"\",VLOOKUP($B72&\"_\"&$C72&\"_\"&N$14,UNWDF2024_LookUp!$B:$T,$D72,FALSE))","v":"TED.206"},{"$f":"IF(VLOOKUP($B72&\"_\"&$C72&\"_\"&O$14,UNWDF2024_LookUp!$B:$T,$D72,FALSE)=0,\"\",VLOOKUP($B72&\"_\"&$C72&\"_\"&O$14,UNWDF2024_LookUp!$B:$T,$D72,FALSE))","v":"ANCE.405"},{"$f":"IF(VLOOKUP($B72&\"_\"&$C72&\"_\"&P$14,UNWDF2024_LookUp!$B:$T,$D72,FALSE)=0,\"\",VLOOKUP($B72&\"_\"&$C72&\"_\"&P$14,UNWDF2024_LookUp!$B:$T,$D72,FALSE))","v":"Local_5"},{"$f":"IF(VLOOKUP($B72&\"_\"&$C72&\"_\"&Q$14,UNWDF2024_LookUp!$B:$T,$D72,FALSE)=0,\"\",VLOOKUP($B72&\"_\"&$C72&\"_\"&Q$14,UNWDF2024_LookUp!$B:$T,$D72,FALSE))","v":"LEARN.306"},{"$f":"IF(VLOOKUP($B72&\"_\"&$C72&\"_\"&R$14,UNWDF2024_LookUp!$B:$T,$D72,FALSE)=0,\"\",VLOOKUP($B72&\"_\"&$C72&\"_\"&R$14,UNWDF2024_LookUp!$B:$T,$D72,FALSE))","v":"LEARN.311"}]
["Day2Time_Slot4","Day2","Time_Slot4",13,"",null,"Thematic Area",null,{"$f":"IF(VLOOKUP($B73&\"_\"&$C73&\"_\"&I$14,UNWDF2024_LookUp!$B:$T,$D73,FALSE)=0,\"\",VLOOKUP($B73&\"_\"&$C73&\"_\"&I$14,UNWDF2024_LookUp!$B:$T,$D73,FALSE))","v":2},{"$f":"IF(VLOOKUP($B73&\"_\"&$C73&\"_\"&J$14,UNWDF2024_LookUp!$B:$T,$D73,FALSE)=0,\"\",VLOOKUP($B73&\"_\"&$C73&\"_\"&J$14,UNWDF2024_LookUp!$B:$T,$D73,FALSE))","v":1},{"$f":"IF(VLOOKUP($B73&\"_\"&$C73&\"_\"&K$14,UNWDF2024_LookUp!$B:$T,$D73,FALSE)=0,\"\",VLOOKUP($B73&\"_\"&$C73&\"_\"&K$14,UNWDF2024_LookUp!$B:$T,$D73,FALSE))","v":1},{"$f":"IF(VLOOKUP($B73&\"_\"&$C73&\"_\"&L$14,UNWDF2024_LookUp!$B:$T,$D73,FALSE)=0,\"\",VLOOKUP($B73&\"_\"&$C73&\"_\"&L$14,UNWDF2024_LookUp!$B:$T,$D73,FALSE))","v":2},{"$f":"IF(VLOOKUP($B73&\"_\"&$C73&\"_\"&M$14,UNWDF2024_LookUp!$B:$T,$D73,FALSE)=0,\"\",VLOOKUP($B73&\"_\"&$C73&\"_\"&M$14,UNWDF2024_LookUp!$B:$T,$D73,FALSE))","v":4},{"$f":"IF(VLOOKUP($B73&\"_\"&$C73&\"_\"&N$14,UNWDF2024_LookUp!$B:$T,$D73,FALSE)=0,\"\",VLOOKUP($B73&\"_\"&$C73&\"_\"&N$14,UNWDF2024_LookUp!$B:$T,$D73,FALSE))","v":"_T"},{"$f":"IF(VLOOKUP($B73&\"_\"&$C73&\"_\"&O$14,UNWDF2024_LookUp!$B:$T,$D73,FALSE)=0,\"\",VLOOKUP($B73&\"_\"&$C73&\"_\"&O$14,UNWDF2024_LookUp!$B:$T,$D73,FALSE))","v":"_A"},{"$f":"IF(VLOOKUP($B73&\"_\"&$C73&\"_\"&P$14,UNWDF2024_LookUp!$B:$T,$D73,FALSE)=0,\"\",VLOOKUP($B73&\"_\"&$C73&\"_\"&P$14,UNWDF2024_LookUp!$B:$T,$D73,FALSE))","v":"NA"},{"$f":"IF(VLOOKUP($B73&\"_\"&$C73&\"_\"&Q$14,UNWDF2024_LookUp!$B:$T,$D73,FALSE)=0,\"\",VLOOKUP($B73&\"_\"&$C73&\"_\"&Q$14,UNWDF2024_LookUp!$B:$T,$D73,FALSE))","v":"_L"},{"$f":"IF(VLOOKUP($B73&\"_\"&$C73&\"_\"&R$14,UNWDF2024_LookUp!$B:$T,$D73,FALSE)=0,\"\",VLOOKUP($B73&\"_\"&$C73&\"_\"&R$14,UNWDF2024_LookUp!$B:$T,$D73,FALSE))","v":"_L"}]
[{"$f":"B74&C74","v":"Day2Time_Slot4"},"Day2","Time_Slot4",16,"",null,"Event Title",null,{"$f":"IF(VLOOKUP($B74&\"_\"&$C74&\"_\"&I$14,UNWDF2024_LookUp!$B:$T,$D74,FALSE)=0,\"\",VLOOKUP($B74&\"_\"&$C74&\"_\"&I$14,UNWDF2024_LookUp!$B:$T,$D74,FALSE))","v":"Global perspectives on enabling access to platform data for public-interest research"},{"$f":"IF(VLOOKUP($B74&\"_\"&$C74&\"_\"&J$14,UNWDF2024_LookUp!$B:$T,$D74,FALSE)=0,\"\",VLOOKUP($B74&\"_\"&$C74&\"_\"&J$14,UNWDF2024_LookUp!$B:$T,$D74,FALSE))","v":"What's next for statistics on ageing and older people? Lessons from SDGs and beyond."},{"$f":"IF(VLOOKUP($B74&\"_\"&$C74&\"_\"&K$14,UNWDF2024_LookUp!$B:$T,$D74,FALSE)=0,\"\",VLOOKUP($B74&\"_\"&$C74&\"_\"&K$14,UNWDF2024_LookUp!$B:$T,$D74,FALSE))","v":"Technological Innovations in Census and Surveys: CAWI and Smart Geospatial Tools (preEA)"},{"$f":"IF(VLOOKUP($B74&\"_\"&$C74&\"_\"&L$14,UNWDF2024_LookUp!$B:$T,$D74,FALSE)=0,\"\",VLOOKUP($B74&\"_\"&$C74&\"_\"&L$14,UNWDF2024_LookUp!$B:$T,$D74,FALSE))","v":"Getting to the finish line: Strengthening country capacity to translate gender data into use and impact by 2030"},{"$f":"IF(VLOOKUP($B74&\"_\"&$C74&\"_\"&M$14,UNWDF2024_LookUp!$B:$T,$D74,FALSE)=0,\"\",VLOOKUP($B74&\"_\"&$C74&\"_\"&M$14,UNWDF2024_LookUp!$B:$T,$D74,FALSE))","v":"Mixed Movement Monitoring in the Americas – A joint UN regional monitoring system lead by UNHCR, UNICEF and WFP"},{"$f":"IF(VLOOKUP($B74&\"_\"&$C74&\"_\"&N$14,UNWDF2024_LookUp!$B:$T,$D74,FALSE)=0,\"\",VLOOKUP($B74&\"_\"&$C74&\"_\"&N$14,UNWDF2024_LookUp!$B:$T,$D74,FALSE))","v":"Optimizing Job Creation Metrics in Infrastructure Projects to Strengthen Social Safety Nets for Vulnerable Households in Africa / Rebuilding Somalia’s Data and Statistical System: The Power of Data and Partnerships for the SDG / The State of Africa’s Data Governance for Statistical Interoperability, in the age of Artificial Intelligence"},{"$f":"IF(VLOOKUP($B74&\"_\"&$C74&\"_\"&O$14,UNWDF2024_LookUp!$B:$T,$D74,FALSE)=0,\"\",VLOOKUP($B74&\"_\"&$C74&\"_\"&O$14,UNWDF2024_LookUp!$B:$T,$D74,FALSE))","v":"One Data One Humanity - The power of collaboratives and collective data action"},{"$f":"IF(VLOOKUP($B74&\"_\"&$C74&\"_\"&P$14,UNWDF2024_LookUp!$B:$T,$D74,FALSE)=0,\"\",VLOOKUP($B74&\"_\"&$C74&\"_\"&P$14,UNWDF2024_LookUp!$B:$T,$D74,FALSE))","v":"Opportunities and challenges on data governance in Colombia and the global south "},{"$f":"IF(VLOOKUP($B74&\"_\"&$C74&\"_\"&Q$14,UNWDF2024_LookUp!$B:$T,$D74,FALSE)=0,\"\",VLOOKUP($B74&\"_\"&$C74&\"_\"&Q$14,UNWDF2024_LookUp!$B:$T,$D74,FALSE))","v":"Response Integration of data sources to measure displacement in the face of extreme events and disasters"},{"$f":"IF(VLOOKUP($B74&\"_\"&$C74&\"_\"&R$14,UNWDF2024_LookUp!$B:$T,$D74,FALSE)=0,\"\",VLOOKUP($B74&\"_\"&$C74&\"_\"&R$14,UNWDF2024_LookUp!$B:$T,$D74,FALSE))","v":"Parliamentarian for an hour: what's behind evidence-based policy making?"}]
["Day2Time_Slot4","Day2","Time_Slot4",17,"",null,"Organiser",null,{"$f":"IF(VLOOKUP($B75&\"_\"&$C75&\"_\"&I$14,UNWDF2024_LookUp!$B:$T,$D75,FALSE)=0,\"\",VLOOKUP($B75&\"_\"&$C75&\"_\"&I$14,UNWDF2024_LookUp!$B:$T,$D75,FALSE))","v":"Open Data Institute (ODI); IT for Change; PIT Policy Lab; Pollicy; Open Cities Lab"},{"$f":"IF(VLOOKUP($B75&\"_\"&$C75&\"_\"&J$14,UNWDF2024_LookUp!$B:$T,$D75,FALSE)=0,\"\",VLOOKUP($B75&\"_\"&$C75&\"_\"&J$14,UNWDF2024_LookUp!$B:$T,$D75,FALSE))","v":"HelpAge International; Office for National Statistics (ONS-UK); Titchfield City Group; China National Committee on Ageing (CNCA) "},{"$f":"IF(VLOOKUP($B75&\"_\"&$C75&\"_\"&K$14,UNWDF2024_LookUp!$B:$T,$D75,FALSE)=0,\"\",VLOOKUP($B75&\"_\"&$C75&\"_\"&K$14,UNWDF2024_LookUp!$B:$T,$D75,FALSE))","v":"Instituto Nacional de Estadística (INE-Uruguay); United Nations Statistics Division (UNSD-DESA); Departamento Administrativo Nacional de Estadística (DANE-Colombia); United Nations Population Fund (UNFPA); WorldPop/University of Southampton; United Nations High Commissioner for Refugees (UNHCR); Institut national de la statistique (INS-Cameroun)"},{"$f":"IF(VLOOKUP($B75&\"_\"&$C75&\"_\"&L$14,UNWDF2024_LookUp!$B:$T,$D75,FALSE)=0,\"\",VLOOKUP($B75&\"_\"&$C75&\"_\"&L$14,UNWDF2024_LookUp!$B:$T,$D75,FALSE))","v":"Open Data Watch (ODW); World Bank (WB); Data2X;United Nations Entity for Gender Equality and the Empowerment of Women (UN Women); Bureau of Statistics of Lesotho; Equal Measures 2030"},{"$f":"IF(VLOOKUP($B75&\"_\"&$C75&\"_\"&M$14,UNWDF2024_LookUp!$B:$T,$D75,FALSE)=0,\"\",VLOOKUP($B75&\"_\"&$C75&\"_\"&M$14,UNWDF2024_LookUp!$B:$T,$D75,FALSE))","v":"United Nations High Commissioner for Refugees (UNHCR); United Nations Children's Fund (UNICEF); United Nations World Food Programme (UNWFP)"},{"$f":"IF(VLOOKUP($B75&\"_\"&$C75&\"_\"&N$14,UNWDF2024_LookUp!$B:$T,$D75,FALSE)=0,\"\",VLOOKUP($B75&\"_\"&$C75&\"_\"&N$14,UNWDF2024_LookUp!$B:$T,$D75,FALSE))","v":"African Union Development Agency, New Partnership for Africa's Development (AUDA-NEPAD) / Directorate of National Statistics (DNS-Somalia) / Data Economy Policy Hub (DepHUB); European University Institute"},{"$f":"IF(VLOOKUP($B75&\"_\"&$C75&\"_\"&O$14,UNWDF2024_LookUp!$B:$T,$D75,FALSE)=0,\"\",VLOOKUP($B75&\"_\"&$C75&\"_\"&O$14,UNWDF2024_LookUp!$B:$T,$D75,FALSE))","v":"World Bank (WB); International Telecommunication Union (ITU); Ministry of Economy and Digital Transformation, Spain; Telefonica; United Nations Environment Programme (UNEP); African Water and Sanitation Association (AFWASA); Athena Infonomics LLC; Independent; Aapti Institute; Robert Bosch Stiftung GmbH"},{"$f":"IF(VLOOKUP($B75&\"_\"&$C75&\"_\"&P$14,UNWDF2024_LookUp!$B:$T,$D75,FALSE)=0,\"\",VLOOKUP($B75&\"_\"&$C75&\"_\"&P$14,UNWDF2024_LookUp!$B:$T,$D75,FALSE))","v":"Departamento Nacional de Planeación (DNP-Colombia); CND; Departamento Administrativo Nacional de Estadística (DANE-Colombia); Ministry of Information Technologies and Communications (MINTIC-Colombia), Administrative Department of the Presidency of the Republic (DAPRE-Colombia)"},{"$f":"IF(VLOOKUP($B75&\"_\"&$C75&\"_\"&Q$14,UNWDF2024_LookUp!$B:$T,$D75,FALSE)=0,\"\",VLOOKUP($B75&\"_\"&$C75&\"_\"&Q$14,UNWDF2024_LookUp!$B:$T,$D75,FALSE))","v":"Oficina Nacional de Estadística (ONE-República Dominicana)"},{"$f":"IF(VLOOKUP($B75&\"_\"&$C75&\"_\"&R$14,UNWDF2024_LookUp!$B:$T,$D75,FALSE)=0,\"\",VLOOKUP($B75&\"_\"&$C75&\"_\"&R$14,UNWDF2024_LookUp!$B:$T,$D75,FALSE))","v":"Partnership in Statistics for Development in the 21st Century (PARIS21)"}]
[{"$f":"B76&C76","v":"Day2Time_Slot2C"},"Day2","Time_Slot2C",14,"15:45 - 16:15 (Medellín time)",{"$f":"IF(ISERROR(TEXT((DATE($E$3,$E$2,$E$1+MID(B76,4,1))+TIME(MID(E76,1,2),MID(E76,4,2),0))+($C$2-$C$3),\"H:MM AM/PM\")&\" - \"&TEXT(DATE($E$3,$E$2,$E$1+MID(B76,4,1))+TIME(MID(E76,9,2),MID(E76,12,2),0)+($C$2-$C$3),\"H:MM AM/PM\")),E76,TEXT((DATE($E$3,$E$2,$E$1+MID(B76,4,1))+TIME(MID(E76,1,2),MID(E76,4,2),0))+($C$2-$C$3),\"H:MM AM/PM\")&\" - \"&TEXT(DATE($E$3,$E$2,$E$1+MID(B76,4,1))+TIME(MID(E76,9,2),MID(E76,12,2),0)+($C$2-$C$3),\"H:MM AM/PM\"))","v":"3:45 PM - 4:15 PM"},"BREAK"]
["Day2Time_Slot5","Day2","Time_Slot5",15,"16:15 - 17:15 (Medellín time)",{"$f":"IF(ISERROR(TEXT((DATE($E$3,$E$2,$E$1+MID(B77,4,1))+TIME(MID(E77,1,2),MID(E77,4,2),0))+($C$2-$C$3),\"H:MM AM/PM\")&\" - \"&TEXT(DATE($E$3,$E$2,$E$1+MID(B77,4,1))+TIME(MID(E77,9,2),MID(E77,12,2),0)+($C$2-$C$3),\"H:MM AM/PM\")),E77,TEXT(DATE($E$3,$E$2,$E$1+MID(B77,4,1))+TIME(MID(E77,1,2),MID(E77,4,2),0)+($C$2-$C$3),\"DDDD DD MMM\")&\" : \"&TEXT((DATE($E$3,$E$2,$E$1+MID(B77,4,1))+TIME(MID(E77,1,2),MID(E77,4,2),0))+($C$2-$C$3),\"H:MM AM/PM\")&\" - \"&TEXT(DATE($E$3,$E$2,$E$1+MID(B77,4,1))+TIME(MID(E77,9,2),MID(E77,12,2),0)+($C$2-$C$3),\"H:MM AM/PM\"))","v":"Thursday 14 Nov : 4:15 PM - 5:15 PM"},"Event_ID",null,{"$f":"IF(VLOOKUP($B77&\"_\"&$C77&\"_\"&I$14,UNWDF2024_LookUp!$B:$T,$D77,FALSE)=0,\"\",VLOOKUP($B77&\"_\"&$C77&\"_\"&I$14,UNWDF2024_LookUp!$B:$T,$D77,FALSE))","v":"TA3.3"},{"$f":"IF(VLOOKUP($B77&\"_\"&$C77&\"_\"&J$14,UNWDF2024_LookUp!$B:$T,$D77,FALSE)=0,\"\",VLOOKUP($B77&\"_\"&$C77&\"_\"&J$14,UNWDF2024_LookUp!$B:$T,$D77,FALSE))","v":"TA1.10"},{"$f":"IF(VLOOKUP($B77&\"_\"&$C77&\"_\"&K$14,UNWDF2024_LookUp!$B:$T,$D77,FALSE)=0,\"\",VLOOKUP($B77&\"_\"&$C77&\"_\"&K$14,UNWDF2024_LookUp!$B:$T,$D77,FALSE))","v":"TA2.6"},{"$f":"IF(VLOOKUP($B77&\"_\"&$C77&\"_\"&L$14,UNWDF2024_LookUp!$B:$T,$D77,FALSE)=0,\"\",VLOOKUP($B77&\"_\"&$C77&\"_\"&L$14,UNWDF2024_LookUp!$B:$T,$D77,FALSE))","v":"TA2.16"},{"$f":"IF(VLOOKUP($B77&\"_\"&$C77&\"_\"&M$14,UNWDF2024_LookUp!$B:$T,$D77,FALSE)=0,\"\",VLOOKUP($B77&\"_\"&$C77&\"_\"&M$14,UNWDF2024_LookUp!$B:$T,$D77,FALSE))","v":"TA4.14"},{"$f":"IF(VLOOKUP($B77&\"_\"&$C77&\"_\"&N$14,UNWDF2024_LookUp!$B:$T,$D77,FALSE)=0,\"\",VLOOKUP($B77&\"_\"&$C77&\"_\"&N$14,UNWDF2024_LookUp!$B:$T,$D77,FALSE))","v":"TED.213"},{"$f":"IF(VLOOKUP($B77&\"_\"&$C77&\"_\"&O$14,UNWDF2024_LookUp!$B:$T,$D77,FALSE)=0,\"\",VLOOKUP($B77&\"_\"&$C77&\"_\"&O$14,UNWDF2024_LookUp!$B:$T,$D77,FALSE))","v":"ANCE.404"},{"$f":"IF(VLOOKUP($B77&\"_\"&$C77&\"_\"&P$14,UNWDF2024_LookUp!$B:$T,$D77,FALSE)=0,\"\",VLOOKUP($B77&\"_\"&$C77&\"_\"&P$14,UNWDF2024_LookUp!$B:$T,$D77,FALSE))","v":"Local_6"},{"$f":"IF(VLOOKUP($B77&\"_\"&$C77&\"_\"&Q$14,UNWDF2024_LookUp!$B:$T,$D77,FALSE)=0,\"\",VLOOKUP($B77&\"_\"&$C77&\"_\"&Q$14,UNWDF2024_LookUp!$B:$T,$D77,FALSE))","v":"LEARN.307"},{"$f":"IF(VLOOKUP($B77&\"_\"&$C77&\"_\"&R$14,UNWDF2024_LookUp!$B:$T,$D77,FALSE)=0,\"\",VLOOKUP($B77&\"_\"&$C77&\"_\"&R$14,UNWDF2024_LookUp!$B:$T,$D77,FALSE))","v":"LEARN.312"}]
["Day2Time_Slot5","Day2","Time_Slot5",13,"",null,"Thematic Area",null,{"$f":"IF(VLOOKUP($B78&\"_\"&$C78&\"_\"&I$14,UNWDF2024_LookUp!$B:$T,$D78,FALSE)=0,\"\",VLOOKUP($B78&\"_\"&$C78&\"_\"&I$14,UNWDF2024_LookUp!$B:$T,$D78,FALSE))","v":3},{"$f":"IF(VLOOKUP($B78&\"_\"&$C78&\"_\"&J$14,UNWDF2024_LookUp!$B:$T,$D78,FALSE)=0,\"\",VLOOKUP($B78&\"_\"&$C78&\"_\"&J$14,UNWDF2024_LookUp!$B:$T,$D78,FALSE))","v":1},{"$f":"IF(VLOOKUP($B78&\"_\"&$C78&\"_\"&K$14,UNWDF2024_LookUp!$B:$T,$D78,FALSE)=0,\"\",VLOOKUP($B78&\"_\"&$C78&\"_\"&K$14,UNWDF2024_LookUp!$B:$T,$D78,FALSE))","v":2},{"$f":"IF(VLOOKUP($B78&\"_\"&$C78&\"_\"&L$14,UNWDF2024_LookUp!$B:$T,$D78,FALSE)=0,\"\",VLOOKUP($B78&\"_\"&$C78&\"_\"&L$14,UNWDF2024_LookUp!$B:$T,$D78,FALSE))","v":2},{"$f":"IF(VLOOKUP($B78&\"_\"&$C78&\"_\"&M$14,UNWDF2024_LookUp!$B:$T,$D78,FALSE)=0,\"\",VLOOKUP($B78&\"_\"&$C78&\"_\"&M$14,UNWDF2024_LookUp!$B:$T,$D78,FALSE))","v":4},{"$f":"IF(VLOOKUP($B78&\"_\"&$C78&\"_\"&N$14,UNWDF2024_LookUp!$B:$T,$D78,FALSE)=0,\"\",VLOOKUP($B78&\"_\"&$C78&\"_\"&N$14,UNWDF2024_LookUp!$B:$T,$D78,FALSE))","v":"_T"},{"$f":"IF(VLOOKUP($B78&\"_\"&$C78&\"_\"&O$14,UNWDF2024_LookUp!$B:$T,$D78,FALSE)=0,\"\",VLOOKUP($B78&\"_\"&$C78&\"_\"&O$14,UNWDF2024_LookUp!$B:$T,$D78,FALSE))","v":"_A"},{"$f":"IF(VLOOKUP($B78&\"_\"&$C78&\"_\"&P$14,UNWDF2024_LookUp!$B:$T,$D78,FALSE)=0,\"\",VLOOKUP($B78&\"_\"&$C78&\"_\"&P$14,UNWDF2024_LookUp!$B:$T,$D78,FALSE))","v":"NA"},{"$f":"IF(VLOOKUP($B78&\"_\"&$C78&\"_\"&Q$14,UNWDF2024_LookUp!$B:$T,$D78,FALSE)=0,\"\",VLOOKUP($B78&\"_\"&$C78&\"_\"&Q$14,UNWDF2024_LookUp!$B:$T,$D78,FALSE))","v":"_L"},{"$f":"IF(VLOOKUP($B78&\"_\"&$C78&\"_\"&R$14,UNWDF2024_LookUp!$B:$T,$D78,FALSE)=0,\"\",VLOOKUP($B78&\"_\"&$C78&\"_\"&R$14,UNWDF2024_LookUp!$B:$T,$D78,FALSE))","v":"_L"}]
[{"$f":"B79&C79","v":"Day2Time_Slot5"},"Day2","Time_Slot5",16,"",null,"Event Title",null,{"$f":"IF(VLOOKUP($B79&\"_\"&$C79&\"_\"&I$14,UNWDF2024_LookUp!$B:$T,$D79,FALSE)=0,\"\",VLOOKUP($B79&\"_\"&$C79&\"_\"&I$14,UNWDF2024_LookUp!$B:$T,$D79,FALSE))","v":"Co-creating data action in the digital age: learnings from global community activists on how to create fairer, more inclusive and accountable data practices"},{"$f":"IF(VLOOKUP($B79&\"_\"&$C79&\"_\"&J$14,UNWDF2024_LookUp!$B:$T,$D79,FALSE)=0,\"\",VLOOKUP($B79&\"_\"&$C79&\"_\"&J$14,UNWDF2024_LookUp!$B:$T,$D79,FALSE))","v":"Equity and inclusion in humanitarian and fragile settings: the role of inclusive population data, gender and intersectional approaches"},{"$f":"IF(VLOOKUP($B79&\"_\"&$C79&\"_\"&K$14,UNWDF2024_LookUp!$B:$T,$D79,FALSE)=0,\"\",VLOOKUP($B79&\"_\"&$C79&\"_\"&K$14,UNWDF2024_LookUp!$B:$T,$D79,FALSE))","v":"Data Modernisation in Small Island Developing States: Insights and Innovations from the Pacific"},{"$f":"IF(VLOOKUP($B79&\"_\"&$C79&\"_\"&L$14,UNWDF2024_LookUp!$B:$T,$D79,FALSE)=0,\"\",VLOOKUP($B79&\"_\"&$C79&\"_\"&L$14,UNWDF2024_LookUp!$B:$T,$D79,FALSE))","v":"Lessons from Ecuador and Peru: Leveraging new forms of spatial data for achieving global and national goals for biodiversity and sustainable development"},{"$f":"IF(VLOOKUP($B79&\"_\"&$C79&\"_\"&M$14,UNWDF2024_LookUp!$B:$T,$D79,FALSE)=0,\"\",VLOOKUP($B79&\"_\"&$C79&\"_\"&M$14,UNWDF2024_LookUp!$B:$T,$D79,FALSE))","v":"Fostering inclusive statistics on migration, displacement, and statelessness: drawing lessons from national and regional experiences"},{"$f":"IF(VLOOKUP($B79&\"_\"&$C79&\"_\"&N$14,UNWDF2024_LookUp!$B:$T,$D79,FALSE)=0,\"\",VLOOKUP($B79&\"_\"&$C79&\"_\"&N$14,UNWDF2024_LookUp!$B:$T,$D79,FALSE))","v":"Child Deprivation Mapping Through Satellite Imagery and Other Geospatial Data / Earth Observation (EO) data and Open-Source Intelligence (OSINT) to track and monitor trafficking and organized crime / State of the OpenStreetMap in Niger / Partnering for success: UK’s mapping and statistical agencies working together for the public good"},{"$f":"IF(VLOOKUP($B79&\"_\"&$C79&\"_\"&O$14,UNWDF2024_LookUp!$B:$T,$D79,FALSE)=0,\"\",VLOOKUP($B79&\"_\"&$C79&\"_\"&O$14,UNWDF2024_LookUp!$B:$T,$D79,FALSE))","v":"Data-Driven Empowerment: Launching Gender and Diversity Equality Initiatives"},{"$f":"IF(VLOOKUP($B79&\"_\"&$C79&\"_\"&P$14,UNWDF2024_LookUp!$B:$T,$D79,FALSE)=0,\"\",VLOOKUP($B79&\"_\"&$C79&\"_\"&P$14,UNWDF2024_LookUp!$B:$T,$D79,FALSE))","v":"Government data and research data : encounters and misunderstandings"},{"$f":"IF(VLOOKUP($B79&\"_\"&$C79&\"_\"&Q$14,UNWDF2024_LookUp!$B:$T,$D79,FALSE)=0,\"\",VLOOKUP($B79&\"_\"&$C79&\"_\"&Q$14,UNWDF2024_LookUp!$B:$T,$D79,FALSE))","v":"Framing data equity: the importance of embedding data equity to enhance trust"},{"$f":"IF(VLOOKUP($B79&\"_\"&$C79&\"_\"&R$14,UNWDF2024_LookUp!$B:$T,$D79,FALSE)=0,\"\",VLOOKUP($B79&\"_\"&$C79&\"_\"&R$14,UNWDF2024_LookUp!$B:$T,$D79,FALSE))","v":"Data Solidarity and PLUTO: Introducing a Tool for Bringing Public Value to Data Governance"}]
["Day2Time_Slot5","Day2","Time_Slot5",17,"",null,"Organiser",null,{"$f":"IF(VLOOKUP($B80&\"_\"&$C80&\"_\"&I$14,UNWDF2024_LookUp!$B:$T,$D80,FALSE)=0,\"\",VLOOKUP($B80&\"_\"&$C80&\"_\"&I$14,UNWDF2024_LookUp!$B:$T,$D80,FALSE))","v":"Universidad de los Andes; Restless Development; Global Partnership for Sustainable Development Data (GPSDD)"},{"$f":"IF(VLOOKUP($B80&\"_\"&$C80&\"_\"&J$14,UNWDF2024_LookUp!$B:$T,$D80,FALSE)=0,\"\",VLOOKUP($B80&\"_\"&$C80&\"_\"&J$14,UNWDF2024_LookUp!$B:$T,$D80,FALSE))","v":"United Nations Entity for Gender Equality and the Empowerment of Women (UN Women); United Nations Office for the Coordination of Humanitarian Affairs (OCHA); African Development Bank (AfDB); CLEAR Global; Government of Uganda, Uganda; Central Statistical Agency (CSA-Ethiopia); United Nations Population Fund (UNFPA); International Organisation for Migration (IOM); United Nations High Commissioner for Refugees (UNHCR)"},{"$f":"IF(VLOOKUP($B80&\"_\"&$C80&\"_\"&K$14,UNWDF2024_LookUp!$B:$T,$D80,FALSE)=0,\"\",VLOOKUP($B80&\"_\"&$C80&\"_\"&K$14,UNWDF2024_LookUp!$B:$T,$D80,FALSE))","v":"Pacific Community (SPC); Vanuatu Bureau of Statistics; Samoa Bureau of Statistics; Bureau of Statistics and Plans (BSP-Guam); Institut de la statistique de la Polynésie Française"},{"$f":"IF(VLOOKUP($B80&\"_\"&$C80&\"_\"&L$14,UNWDF2024_LookUp!$B:$T,$D80,FALSE)=0,\"\",VLOOKUP($B80&\"_\"&$C80&\"_\"&L$14,UNWDF2024_LookUp!$B:$T,$D80,FALSE))","v":"United Nations Development Programme (UNDP); UN Environment Programme World Conservation Monitoring Centre (UNEP-WCMC)"},{"$f":"IF(VLOOKUP($B80&\"_\"&$C80&\"_\"&M$14,UNWDF2024_LookUp!$B:$T,$D80,FALSE)=0,\"\",VLOOKUP($B80&\"_\"&$C80&\"_\"&M$14,UNWDF2024_LookUp!$B:$T,$D80,FALSE))","v":"Members of the Expert Group on Refugee, IDP & Stateless Statistics (EGRISS) and the Collaborative on Administrative Data including: African Union Commission (AUC); Instituto Nacional de Estadistica (INE-Honduras); Joint IDP Profiling Service (JIPS); United Nations Statistics Division (UNSD-DESA); United Nations Economic Commission for Latin America and the Caribbean (UNECLAC / CEPAL); United Nations Refugee Agency (UNHCR)"},{"$f":"IF(VLOOKUP($B80&\"_\"&$C80&\"_\"&N$14,UNWDF2024_LookUp!$B:$T,$D80,FALSE)=0,\"\",VLOOKUP($B80&\"_\"&$C80&\"_\"&N$14,UNWDF2024_LookUp!$B:$T,$D80,FALSE))","v":"Statistics Indonesia (BPS); United Nations Children's Fund (UNICEF) / United Nations Office on Drugs and Crime (UNODC) / CAGIDEV-COM / Office for National Statistics (ONS-UK); Ordnance Survey, United Kingdom of Great Britain and Northern Ireland"},{"$f":"IF(VLOOKUP($B80&\"_\"&$C80&\"_\"&O$14,UNWDF2024_LookUp!$B:$T,$D80,FALSE)=0,\"\",VLOOKUP($B80&\"_\"&$C80&\"_\"&O$14,UNWDF2024_LookUp!$B:$T,$D80,FALSE))","v":"Departamento Administrativo Nacional de Estadística (DANE-Colombia); International Institute for Sustainable Development (IISD); International Civil Society Centre; Management And Sustainable Development Institute (Msd); The NGO Forum on Cambodia; General Statistics Office (GSO-Viet Nam); Inter-American Development Bank (IDB); United Nations Economic Commission for Latin America and the Caribbean (UNECLAC / CEPAL); Instituto Nacional de Estadísticas (INE-Chile); Women's Funding Network; Candid"},{"$f":"IF(VLOOKUP($B80&\"_\"&$C80&\"_\"&P$14,UNWDF2024_LookUp!$B:$T,$D80,FALSE)=0,\"\",VLOOKUP($B80&\"_\"&$C80&\"_\"&P$14,UNWDF2024_LookUp!$B:$T,$D80,FALSE))","v":"Minsitry of Science, Technology and Innovation, Colombia"},{"$f":"IF(VLOOKUP($B80&\"_\"&$C80&\"_\"&Q$14,UNWDF2024_LookUp!$B:$T,$D80,FALSE)=0,\"\",VLOOKUP($B80&\"_\"&$C80&\"_\"&Q$14,UNWDF2024_LookUp!$B:$T,$D80,FALSE))","v":"World Economic Forum (WEF); DataKind; Usahidi Inc; Mastercard"},{"$f":"IF(VLOOKUP($B80&\"_\"&$C80&\"_\"&R$14,UNWDF2024_LookUp!$B:$T,$D80,FALSE)=0,\"\",VLOOKUP($B80&\"_\"&$C80&\"_\"&R$14,UNWDF2024_LookUp!$B:$T,$D80,FALSE))","v":"University of Vienna; Digital Transformations for Health (DTH) Lab"}]
[{"$f":"B81&C81","v":"Day2Time_Slot2C"},"Day2","Time_Slot2C",14,"17:15 - 18:00 (Medellín time)",{"$f":"IF(ISERROR(TEXT((DATE($E$3,$E$2,$E$1+MID(B81,4,1))+TIME(MID(E81,1,2),MID(E81,4,2),0))+($C$2-$C$3),\"H:MM AM/PM\")&\" - \"&TEXT(DATE($E$3,$E$2,$E$1+MID(B81,4,1))+TIME(MID(E81,9,2),MID(E81,12,2),0)+($C$2-$C$3),\"H:MM AM/PM\")),E81,TEXT((DATE($E$3,$E$2,$E$1+MID(B81,4,1))+TIME(MID(E81,1,2),MID(E81,4,2),0))+($C$2-$C$3),\"H:MM AM/PM\")&\" - \"&TEXT(DATE($E$3,$E$2,$E$1+MID(B81,4,1))+TIME(MID(E81,9,2),MID(E81,12,2),0)+($C$2-$C$3),\"H:MM AM/PM\"))","v":"5:15 PM - 6:00 PM"},"Break"]
["Day2Time_Slot6","Day2","Time_Slot6",16,"18:00 - 20:00 (Medellín time)",{"$f":"IF(ISERROR(TEXT((DATE($E$3,$E$2,$E$1+MID(B82,4,1))+TIME(MID(E82,1,2),MID(E82,4,2),0))+($C$2-$C$3),\"H:MM AM/PM\")&\" - \"&TEXT(DATE($E$3,$E$2,$E$1+MID(B82,4,1))+TIME(MID(E82,9,2),MID(E82,12,2),0)+($C$2-$C$3),\"H:MM AM/PM\")),E82,TEXT(DATE($E$3,$E$2,$E$1+MID(B82,4,1))+TIME(MID(E82,1,2),MID(E82,4,2),0)+($C$2-$C$3),\"DDDD DD MMM\")&\" : \"&TEXT((DATE($E$3,$E$2,$E$1+MID(B82,4,1))+TIME(MID(E82,1,2),MID(E82,4,2),0))+($C$2-$C$3),\"H:MM AM/PM\")&\" - \"&TEXT(DATE($E$3,$E$2,$E$1+MID(B82,4,1))+TIME(MID(E82,9,2),MID(E82,12,2),0)+($C$2-$C$3),\"H:MM AM/PM\"))","v":"Thursday 14 Nov : 6:00 PM - 8:00 PM"},"Event Title",{"$f":"IF(VLOOKUP($B82&\"_\"&$C82&\"_\"&H$14,UNWDF2024_LookUp!$B:$T,$D82,FALSE)=0,\"\",VLOOKUP($B82&\"_\"&$C82&\"_\"&H$14,UNWDF2024_LookUp!$B:$T,$D82,FALSE))","v":"Reception: A recognition of partners on Data for Sustainable Development "}]
[{"$f":"B83&C83","v":"Day2Time_Slot6"},"Day2","Time_Slot6",17,"",null,"Organiser",{"$f":"IF(VLOOKUP($B83&\"_\"&$C83&\"_\"&H$14,UNWDF2024_LookUp!$B:$T,$D83,FALSE)=0,\"\",VLOOKUP($B83&\"_\"&$C83&\"_\"&H$14,UNWDF2024_LookUp!$B:$T,$D83,FALSE))","v":"Departamento Administrativo Nacional de Estadística (DANE-Colombia)"}]
[null,null,null,null,""]
[null,null,null,null,"",null,null,null,null," TA 1. Innovation for better and more inclusive data: data integration and leveraging of various data sources and methodologies to ensure visibility and voice for everyone",null,null,null," TA 3. Building trust, protection and ethics in data: developing the principles of stewardship within the data ecosystem to balance the full value from data use with the protection of privacy and data rights"]
[null,null,null,null,""]
[null,null,null,null,"",null,null,null,null," TA 2. Maximizing the use and value of data for better decision making: adding value to data through better analysis and communication to ensure full use of data for bettering lives through the agency, respect, and inclusion of everyone",null,null,null," TA 4. Effective partnerships for better data and a more equitable data ecosystem: supporting global, regional, national and sub-national data ecosystems in the implementation of the Cape Town Global Action Plan including sustainable finance for data and statistics programmes at all levels of organization"]
[null,null,null,null,""]
["Day3",null,null,null,{"$f":"DATE($E$3,$E$2,$E$1+MID(B93,4,1))","v":"2024-11-15"},{"$f":"IF(ISERROR(DATE($E$3,$E$2,$E$1+MID(B93,4,1))+TIME(MID(E93,1,2),MID(E93,4,2),0)+($C$2-$C$3)),DATE($E$3,$E$2,$E$1+MID(B93,4,1)),TEXT(DATE($E$3,$E$2,$E$1+MID(B93,4,1))+TIME(MID(E93,1,2),MID(E93,4,2),0)+($C$2-$C$3),\"DDDDDD, DD MMMM YYYY\")&\" [Date changes shown on row]\")","v":"Friday, 15 November 2024 [Date changes shown on row]"}]
[null,null,"LookUp",null,"",null,"LookUp","Parallel 01","Parallel 02","Parallel 03","Parallel 04","Parallel 05","Parallel 06","Parallel 07","Parallel 08","Parallel 09","Parallel 10","Parallel 11","Parallel 12"]
[null,null,null,null,"","Time (Auto-adjusts to your local time, unless \"(Medellín time)\" shown)","Rm Name","Plenary Room","Room 1","Room 2","Room 3","Room 4","Room 5","Room 6","Room 7","Room 8","Room 9","Room 10","NA"]
["DayTime_LookUp","Day_LookUp","Time_LookUp","Col_LookUp","Time (GMT/UTC time+8)",null,"Capacity",3000,300,200,200,200,200,150,150,90,60,60,"NA"]
[{"$f":"B93&C93","v":"Day3Time_Slot1"},"Day3","Time_Slot1",15,"09:00 - 10:15 (Medellín time)",{"$f":"IF(ISERROR(TEXT((DATE($E$3,$E$2,$E$1+MID(B93,4,1))+TIME(MID(E93,1,2),MID(E93,4,2),0))+($C$2-$C$3),\"H:MM AM/PM\")&\" - \"&TEXT(DATE($E$3,$E$2,$E$1+MID(B93,4,1))+TIME(MID(E93,9,2),MID(E93,12,2),0)+($C$2-$C$3),\"H:MM AM/PM\")),E93,TEXT(DATE($E$3,$E$2,$E$1+MID(B93,4,1))+TIME(MID(E93,1,2),MID(E93,4,2),0)+($C$2-$C$3),\"DDDD DD MMM\")&\" : \"&TEXT((DATE($E$3,$E$2,$E$1+MID(B93,4,1))+TIME(MID(E93,1,2),MID(E93,4,2),0))+($C$2-$C$3),\"H:MM AM/PM\")&\" - \"&TEXT(DATE($E$3,$E$2,$E$1+MID(B93,4,1))+TIME(MID(E93,9,2),MID(E93,12,2),0)+($C$2-$C$3),\"H:MM AM/PM\"))","v":"Friday 15 Nov : 9:00 AM - 10:15 AM"},"Event_ID",{"$f":"IF(VLOOKUP($B93&\"_\"&$C93&\"_\"&H$14,UNWDF2024_LookUp!$B:$T,$D93,FALSE)=0,\"\",VLOOKUP($B93&\"_\"&$C93&\"_\"&H$14,UNWDF2024_LookUp!$B:$T,$D93,FALSE))","v":"TA4.1"}]
[{"$f":"B94&C94","v":"Day3Time_Slot1"},"Day3","Time_Slot1",13,"",null,"Thematic Area",{"$f":"IF(VLOOKUP($B94&\"_\"&$C94&\"_\"&H$14,UNWDF2024_LookUp!$B:$T,$D94,FALSE)=0,\"\",VLOOKUP($B94&\"_\"&$C94&\"_\"&H$14,UNWDF2024_LookUp!$B:$T,$D94,FALSE))","v":4}]
[{"$f":"B95&C95","v":"Day3Time_Slot1"},"Day3","Time_Slot1",16,"",null,"Event Title",{"$f":"IF(VLOOKUP($B95&\"_\"&$C95&\"_\"&H$14,UNWDF2024_LookUp!$B:$T,$D95,FALSE)=0,\"\",VLOOKUP($B95&\"_\"&$C95&\"_\"&H$14,UNWDF2024_LookUp!$B:$T,$D95,FALSE))","v":"Effective partnerships for better data and a more equitable data ecosystem"}]
["Day3Time_Slot1","Day3","Time_Slot1",17,"",null,"Organiser",{"$f":"IF(VLOOKUP($B96&\"_\"&$C96&\"_\"&H$14,UNWDF2024_LookUp!$B:$T,$D96,FALSE)=0,\"\",VLOOKUP($B96&\"_\"&$C96&\"_\"&H$14,UNWDF2024_LookUp!$B:$T,$D96,FALSE))","v":"UN World Data Forum Programme Committee (UNWDF PC)"}]
[null,"Day3",null,null,"10:15 - 10:45 (Medellín time)",{"$f":"IF(ISERROR(TEXT((DATE($E$3,$E$2,$E$1+MID(B97,4,1))+TIME(MID(E97,1,2),MID(E97,4,2),0))+($C$2-$C$3),\"H:MM AM/PM\")&\" - \"&TEXT(DATE($E$3,$E$2,$E$1+MID(B97,4,1))+TIME(MID(E97,9,2),MID(E97,12,2),0)+($C$2-$C$3),\"H:MM AM/PM\")),E97,TEXT((DATE($E$3,$E$2,$E$1+MID(B97,4,1))+TIME(MID(E97,1,2),MID(E97,4,2),0))+($C$2-$C$3),\"H:MM AM/PM\")&\" - \"&TEXT(DATE($E$3,$E$2,$E$1+MID(B97,4,1))+TIME(MID(E97,9,2),MID(E97,12,2),0)+($C$2-$C$3),\"H:MM AM/PM\"))","v":"10:15 AM - 10:45 AM"},"BREAK"]
[{"$f":"B98&C98","v":"Day3Time_Slot2"},"Day3","Time_Slot2",15,"10:45 - 11:45 (Medellín time)",{"$f":"IF(ISERROR(TEXT((DATE($E$3,$E$2,$E$1+MID(B98,4,1))+TIME(MID(E98,1,2),MID(E98,4,2),0))+($C$2-$C$3),\"H:MM AM/PM\")&\" - \"&TEXT(DATE($E$3,$E$2,$E$1+MID(B98,4,1))+TIME(MID(E98,9,2),MID(E98,12,2),0)+($C$2-$C$3),\"H:MM AM/PM\")),E98,TEXT(DATE($E$3,$E$2,$E$1+MID(B98,4,1))+TIME(MID(E98,1,2),MID(E98,4,2),0)+($C$2-$C$3),\"DDDD DD MMM\")&\" : \"&TEXT((DATE($E$3,$E$2,$E$1+MID(B98,4,1))+TIME(MID(E98,1,2),MID(E98,4,2),0))+($C$2-$C$3),\"H:MM AM/PM\")&\" - \"&TEXT(DATE($E$3,$E$2,$E$1+MID(B98,4,1))+TIME(MID(E98,9,2),MID(E98,12,2),0)+($C$2-$C$3),\"H:MM AM/PM\"))","v":"Friday 15 Nov : 10:45 AM - 11:45 AM"},"Event_ID",null,{"$f":"IF(VLOOKUP($B98&\"_\"&$C98&\"_\"&I$14,UNWDF2024_LookUp!$B:$T,$D98,FALSE)=0,\"\",VLOOKUP($B98&\"_\"&$C98&\"_\"&I$14,UNWDF2024_LookUp!$B:$T,$D98,FALSE))","v":"TA4.3"},{"$f":"IF(VLOOKUP($B98&\"_\"&$C98&\"_\"&J$14,UNWDF2024_LookUp!$B:$T,$D98,FALSE)=0,\"\",VLOOKUP($B98&\"_\"&$C98&\"_\"&J$14,UNWDF2024_LookUp!$B:$T,$D98,FALSE))","v":"TA1.11"},{"$f":"IF(VLOOKUP($B98&\"_\"&$C98&\"_\"&K$14,UNWDF2024_LookUp!$B:$T,$D98,FALSE)=0,\"\",VLOOKUP($B98&\"_\"&$C98&\"_\"&K$14,UNWDF2024_LookUp!$B:$T,$D98,FALSE))","v":"TA2.7"},{"$f":"IF(VLOOKUP($B98&\"_\"&$C98&\"_\"&L$14,UNWDF2024_LookUp!$B:$T,$D98,FALSE)=0,\"\",VLOOKUP($B98&\"_\"&$C98&\"_\"&L$14,UNWDF2024_LookUp!$B:$T,$D98,FALSE))","v":"TA4.5"},{"$f":"IF(VLOOKUP($B98&\"_\"&$C98&\"_\"&M$14,UNWDF2024_LookUp!$B:$T,$D98,FALSE)=0,\"\",VLOOKUP($B98&\"_\"&$C98&\"_\"&M$14,UNWDF2024_LookUp!$B:$T,$D98,FALSE))","v":"TA4.15"},{"$f":"IF(VLOOKUP($B98&\"_\"&$C98&\"_\"&N$14,UNWDF2024_LookUp!$B:$T,$D98,FALSE)=0,\"\",VLOOKUP($B98&\"_\"&$C98&\"_\"&N$14,UNWDF2024_LookUp!$B:$T,$D98,FALSE))","v":"TED.208"},{"$f":"IF(VLOOKUP($B98&\"_\"&$C98&\"_\"&O$14,UNWDF2024_LookUp!$B:$T,$D98,FALSE)=0,\"\",VLOOKUP($B98&\"_\"&$C98&\"_\"&O$14,UNWDF2024_LookUp!$B:$T,$D98,FALSE))","v":"ANCE.401"},{"$f":"IF(VLOOKUP($B98&\"_\"&$C98&\"_\"&P$14,UNWDF2024_LookUp!$B:$T,$D98,FALSE)=0,\"\",VLOOKUP($B98&\"_\"&$C98&\"_\"&P$14,UNWDF2024_LookUp!$B:$T,$D98,FALSE))","v":"Local_7"},{"$f":"IF(VLOOKUP($B98&\"_\"&$C98&\"_\"&Q$14,UNWDF2024_LookUp!$B:$T,$D98,FALSE)=0,\"\",VLOOKUP($B98&\"_\"&$C98&\"_\"&Q$14,UNWDF2024_LookUp!$B:$T,$D98,FALSE))","v":"LEARN.308"},{"$f":"IF(VLOOKUP($B98&\"_\"&$C98&\"_\"&R$14,UNWDF2024_LookUp!$B:$T,$D98,FALSE)=0,\"\",VLOOKUP($B98&\"_\"&$C98&\"_\"&R$14,UNWDF2024_LookUp!$B:$T,$D98,FALSE))","v":"TA1.18"}]
["Day3Time_Slot2","Day3","Time_Slot2",13,"",null,"Thematic Area",null,{"$f":"IF(VLOOKUP($B99&\"_\"&$C99&\"_\"&I$14,UNWDF2024_LookUp!$B:$T,$D99,FALSE)=0,\"\",VLOOKUP($B99&\"_\"&$C99&\"_\"&I$14,UNWDF2024_LookUp!$B:$T,$D99,FALSE))","v":4},{"$f":"IF(VLOOKUP($B99&\"_\"&$C99&\"_\"&J$14,UNWDF2024_LookUp!$B:$T,$D99,FALSE)=0,\"\",VLOOKUP($B99&\"_\"&$C99&\"_\"&J$14,UNWDF2024_LookUp!$B:$T,$D99,FALSE))","v":1},{"$f":"IF(VLOOKUP($B99&\"_\"&$C99&\"_\"&K$14,UNWDF2024_LookUp!$B:$T,$D99,FALSE)=0,\"\",VLOOKUP($B99&\"_\"&$C99&\"_\"&K$14,UNWDF2024_LookUp!$B:$T,$D99,FALSE))","v":2},{"$f":"IF(VLOOKUP($B99&\"_\"&$C99&\"_\"&L$14,UNWDF2024_LookUp!$B:$T,$D99,FALSE)=0,\"\",VLOOKUP($B99&\"_\"&$C99&\"_\"&L$14,UNWDF2024_LookUp!$B:$T,$D99,FALSE))","v":4},{"$f":"IF(VLOOKUP($B99&\"_\"&$C99&\"_\"&M$14,UNWDF2024_LookUp!$B:$T,$D99,FALSE)=0,\"\",VLOOKUP($B99&\"_\"&$C99&\"_\"&M$14,UNWDF2024_LookUp!$B:$T,$D99,FALSE))","v":4},{"$f":"IF(VLOOKUP($B99&\"_\"&$C99&\"_\"&N$14,UNWDF2024_LookUp!$B:$T,$D99,FALSE)=0,\"\",VLOOKUP($B99&\"_\"&$C99&\"_\"&N$14,UNWDF2024_LookUp!$B:$T,$D99,FALSE))","v":"_T"},{"$f":"IF(VLOOKUP($B99&\"_\"&$C99&\"_\"&O$14,UNWDF2024_LookUp!$B:$T,$D99,FALSE)=0,\"\",VLOOKUP($B99&\"_\"&$C99&\"_\"&O$14,UNWDF2024_LookUp!$B:$T,$D99,FALSE))","v":"_A"},{"$f":"IF(VLOOKUP($B99&\"_\"&$C99&\"_\"&P$14,UNWDF2024_LookUp!$B:$T,$D99,FALSE)=0,\"\",VLOOKUP($B99&\"_\"&$C99&\"_\"&P$14,UNWDF2024_LookUp!$B:$T,$D99,FALSE))","v":"NA"},{"$f":"IF(VLOOKUP($B99&\"_\"&$C99&\"_\"&Q$14,UNWDF2024_LookUp!$B:$T,$D99,FALSE)=0,\"\",VLOOKUP($B99&\"_\"&$C99&\"_\"&Q$14,UNWDF2024_LookUp!$B:$T,$D99,FALSE))","v":"_L"},{"$f":"IF(VLOOKUP($B99&\"_\"&$C99&\"_\"&R$14,UNWDF2024_LookUp!$B:$T,$D99,FALSE)=0,\"\",VLOOKUP($B99&\"_\"&$C99&\"_\"&R$14,UNWDF2024_LookUp!$B:$T,$D99,FALSE))","v":1}]
[{"$f":"B100&C100","v":"Day3Time_Slot2"},"Day3","Time_Slot2",16,"",null,"Event Title",null,{"$f":"IF(VLOOKUP($B100&\"_\"&$C100&\"_\"&I$14,UNWDF2024_LookUp!$B:$T,$D100,FALSE)=0,\"\",VLOOKUP($B100&\"_\"&$C100&\"_\"&I$14,UNWDF2024_LookUp!$B:$T,$D100,FALSE))","v":"Data Guilds, Data Tribes: Fostering Change and Innovation through Organic Community-driven Approaches"},{"$f":"IF(VLOOKUP($B100&\"_\"&$C100&\"_\"&J$14,UNWDF2024_LookUp!$B:$T,$D100,FALSE)=0,\"\",VLOOKUP($B100&\"_\"&$C100&\"_\"&J$14,UNWDF2024_LookUp!$B:$T,$D100,FALSE))","v":"Strengthening administrative data-based children’s statistics in Latin America and the Caribbean"},{"$f":"IF(VLOOKUP($B100&\"_\"&$C100&\"_\"&K$14,UNWDF2024_LookUp!$B:$T,$D100,FALSE)=0,\"\",VLOOKUP($B100&\"_\"&$C100&\"_\"&K$14,UNWDF2024_LookUp!$B:$T,$D100,FALSE))","v":"Ultra-High-Frequency Poverty Monitoring: Timely Quarterly and Monthly Assessments for Poverty Dynamics and Household Welfare"},{"$f":"IF(VLOOKUP($B100&\"_\"&$C100&\"_\"&L$14,UNWDF2024_LookUp!$B:$T,$D100,FALSE)=0,\"\",VLOOKUP($B100&\"_\"&$C100&\"_\"&L$14,UNWDF2024_LookUp!$B:$T,$D100,FALSE))","v":"Learning Across Borders: How countries share knowledge to harness administrative data for official statistics"},{"$f":"IF(VLOOKUP($B100&\"_\"&$C100&\"_\"&M$14,UNWDF2024_LookUp!$B:$T,$D100,FALSE)=0,\"\",VLOOKUP($B100&\"_\"&$C100&\"_\"&M$14,UNWDF2024_LookUp!$B:$T,$D100,FALSE))","v":"Maximizing the value of data: public-private partnerships in local contexts"},{"$f":"IF(VLOOKUP($B100&\"_\"&$C100&\"_\"&N$14,UNWDF2024_LookUp!$B:$T,$D100,FALSE)=0,\"\",VLOOKUP($B100&\"_\"&$C100&\"_\"&N$14,UNWDF2024_LookUp!$B:$T,$D100,FALSE))","v":"Inclusion of All Citizens in Assessment and Improvement of Local Governments’ Performance in Governance and Public Service Delivery / Exploring Agenda 2030 through the 5Ps lens: New Parameters for a Value-Based Interpretation of the SDGs / Empowering Progress: Harnessing Collective Intelligence for Inclusive Data Innovation towards Sustainable Development Goals / How consumer trust through better data governance in cross-border data flows can improve access to private sector data for the public good"},{"$f":"IF(VLOOKUP($B100&\"_\"&$C100&\"_\"&O$14,UNWDF2024_LookUp!$B:$T,$D100,FALSE)=0,\"\",VLOOKUP($B100&\"_\"&$C100&\"_\"&O$14,UNWDF2024_LookUp!$B:$T,$D100,FALSE))","v":"Collaborative open data platform to promote university quantitative research – Open Data Punku Yachay (gate of knowledge) / Mixing messy data to tell a story: A livability index for urban planning for Colombian cities"},{"$f":"IF(VLOOKUP($B100&\"_\"&$C100&\"_\"&P$14,UNWDF2024_LookUp!$B:$T,$D100,FALSE)=0,\"\",VLOOKUP($B100&\"_\"&$C100&\"_\"&P$14,UNWDF2024_LookUp!$B:$T,$D100,FALSE))","v":"Informed citizens for transformative cities: cities that predict, anticipate and project based on citizen experience."},{"$f":"IF(VLOOKUP($B100&\"_\"&$C100&\"_\"&Q$14,UNWDF2024_LookUp!$B:$T,$D100,FALSE)=0,\"\",VLOOKUP($B100&\"_\"&$C100&\"_\"&Q$14,UNWDF2024_LookUp!$B:$T,$D100,FALSE))","v":"From Numbers to Narratives: Unlocking the power of SDG Data through Data storytelling and Visualization"},{"$f":"IF(VLOOKUP($B100&\"_\"&$C100&\"_\"&R$14,UNWDF2024_LookUp!$B:$T,$D100,FALSE)=0,\"\",VLOOKUP($B100&\"_\"&$C100&\"_\"&R$14,UNWDF2024_LookUp!$B:$T,$D100,FALSE))","v":"Step forwards the measurement of violence against children for better policy decision"}]
["Day3Time_Slot2","Day3","Time_Slot2",17,"",null,"Organiser",null,{"$f":"IF(VLOOKUP($B101&\"_\"&$C101&\"_\"&I$14,UNWDF2024_LookUp!$B:$T,$D101,FALSE)=0,\"\",VLOOKUP($B101&\"_\"&$C101&\"_\"&I$14,UNWDF2024_LookUp!$B:$T,$D101,FALSE))","v":"United Nations Children's Fund (UNICEF); World Bank (WB); Organisation for Economic Co-operation and Development (OECD); University of Oslo; National Statistical Office (NSO-Thailand)"},{"$f":"IF(VLOOKUP($B101&\"_\"&$C101&\"_\"&J$14,UNWDF2024_LookUp!$B:$T,$D101,FALSE)=0,\"\",VLOOKUP($B101&\"_\"&$C101&\"_\"&J$14,UNWDF2024_LookUp!$B:$T,$D101,FALSE))","v":"United Nations Children's Fund (UNICEF); United Nations Economic Commission for Latin America and the Caribbean (UNECLAC / CEPAL); Instituto Nacional de Estadísticas (INE-Chile); Instituto Nacional de Estadística (INE-Uruguay)"},{"$f":"IF(VLOOKUP($B101&\"_\"&$C101&\"_\"&K$14,UNWDF2024_LookUp!$B:$T,$D101,FALSE)=0,\"\",VLOOKUP($B101&\"_\"&$C101&\"_\"&K$14,UNWDF2024_LookUp!$B:$T,$D101,FALSE))","v":"World Bank (WB); Government of Paraguay, Paraguay; Zimbabwe National Statistics Agency (ZIMSTAT); Catholic Relief Services (CRS); Cornell University"},{"$f":"IF(VLOOKUP($B101&\"_\"&$C101&\"_\"&L$14,UNWDF2024_LookUp!$B:$T,$D101,FALSE)=0,\"\",VLOOKUP($B101&\"_\"&$C101&\"_\"&L$14,UNWDF2024_LookUp!$B:$T,$D101,FALSE))","v":"United Nations Statistics Division (UNSD-DESA); United Nations Entity for Gender Equality and the Empowerment of Women (UN Women); Global Partnership for Sustainable Development Data (GPSDD)"},{"$f":"IF(VLOOKUP($B101&\"_\"&$C101&\"_\"&M$14,UNWDF2024_LookUp!$B:$T,$D101,FALSE)=0,\"\",VLOOKUP($B101&\"_\"&$C101&\"_\"&M$14,UNWDF2024_LookUp!$B:$T,$D101,FALSE))","v":"Departamento Administrativo Nacional de Estadística (DANE-Colombia); Statistics Poland; Environmental Systems Research Institute (Esri); Centro de Pensamiento Estratégico Internacional (Cepei)"},{"$f":"IF(VLOOKUP($B101&\"_\"&$C101&\"_\"&N$14,UNWDF2024_LookUp!$B:$T,$D101,FALSE)=0,\"\",VLOOKUP($B101&\"_\"&$C101&\"_\"&N$14,UNWDF2024_LookUp!$B:$T,$D101,FALSE))","v":"United Nations Development Programme (UNDP) / Universidade Federal do Rio Grande do Sul / United Nations Development Programme (UNDP) / Consumers International; Visa"},{"$f":"IF(VLOOKUP($B101&\"_\"&$C101&\"_\"&O$14,UNWDF2024_LookUp!$B:$T,$D101,FALSE)=0,\"\",VLOOKUP($B101&\"_\"&$C101&\"_\"&O$14,UNWDF2024_LookUp!$B:$T,$D101,FALSE))","v":"Universidad Nacional Mayor de San Marcos; Universidad de los Andes; Universidad Nacional de Colombia"},{"$f":"IF(VLOOKUP($B101&\"_\"&$C101&\"_\"&P$14,UNWDF2024_LookUp!$B:$T,$D101,FALSE)=0,\"\",VLOOKUP($B101&\"_\"&$C101&\"_\"&P$14,UNWDF2024_LookUp!$B:$T,$D101,FALSE))","v":"Ruta N"},{"$f":"IF(VLOOKUP($B101&\"_\"&$C101&\"_\"&Q$14,UNWDF2024_LookUp!$B:$T,$D101,FALSE)=0,\"\",VLOOKUP($B101&\"_\"&$C101&\"_\"&Q$14,UNWDF2024_LookUp!$B:$T,$D101,FALSE))","v":"United Nations Statistics Division (UNSD-DESA); Partnership in Statistics for Development in the 21st Century (PARIS21); United Nations Entity for Gender Equality and the Empowerment of Women (UN Women)"},{"$f":"IF(VLOOKUP($B101&\"_\"&$C101&\"_\"&R$14,UNWDF2024_LookUp!$B:$T,$D101,FALSE)=0,\"\",VLOOKUP($B101&\"_\"&$C101&\"_\"&R$14,UNWDF2024_LookUp!$B:$T,$D101,FALSE))","v":"Italian National Institute of Statistics (Istat); United Nations Children's Fund (UNICEF); Instituto Nacional de Estadística y Geografía (INEGI-México); Middlesex University"}]
[null,"Day3",null,null,"11:45 - 13:15 (Medellín time)",{"$f":"IF(ISERROR(TEXT((DATE($E$3,$E$2,$E$1+MID(B102,4,1))+TIME(MID(E102,1,2),MID(E102,4,2),0))+($C$2-$C$3),\"H:MM AM/PM\")&\" - \"&TEXT(DATE($E$3,$E$2,$E$1+MID(B102,4,1))+TIME(MID(E102,9,2),MID(E102,12,2),0)+($C$2-$C$3),\"H:MM AM/PM\")),E102,TEXT((DATE($E$3,$E$2,$E$1+MID(B102,4,1))+TIME(MID(E102,1,2),MID(E102,4,2),0))+($C$2-$C$3),\"H:MM AM/PM\")&\" - \"&TEXT(DATE($E$3,$E$2,$E$1+MID(B102,4,1))+TIME(MID(E102,9,2),MID(E102,12,2),0)+($C$2-$C$3),\"H:MM AM/PM\"))","v":"11:45 AM - 1:15 PM"},"BREAK"]
[{"$f":"B103&C103","v":"Day3Time_Slot3"},"Day3","Time_Slot3",15,"13:15 - 14:15 (Medellín time)",{"$f":"IF(ISERROR(TEXT((DATE($E$3,$E$2,$E$1+MID(B103,4,1))+TIME(MID(E103,1,2),MID(E103,4,2),0))+($C$2-$C$3),\"H:MM AM/PM\")&\" - \"&TEXT(DATE($E$3,$E$2,$E$1+MID(B103,4,1))+TIME(MID(E103,9,2),MID(E103,12,2),0)+($C$2-$C$3),\"H:MM AM/PM\")),E103,TEXT(DATE($E$3,$E$2,$E$1+MID(B103,4,1))+TIME(MID(E103,1,2),MID(E103,4,2),0)+($C$2-$C$3),\"DDDD DD MMM\")&\" : \"&TEXT((DATE($E$3,$E$2,$E$1+MID(B103,4,1))+TIME(MID(E103,1,2),MID(E103,4,2),0))+($C$2-$C$3),\"H:MM AM/PM\")&\" - \"&TEXT(DATE($E$3,$E$2,$E$1+MID(B103,4,1))+TIME(MID(E103,9,2),MID(E103,12,2),0)+($C$2-$C$3),\"H:MM AM/PM\"))","v":"Friday 15 Nov : 1:15 PM - 2:15 PM"},"Event_ID",null,{"$f":"IF(VLOOKUP($B103&\"_\"&$C103&\"_\"&I$14,UNWDF2024_LookUp!$B:$T,$D103,FALSE)=0,\"\",VLOOKUP($B103&\"_\"&$C103&\"_\"&I$14,UNWDF2024_LookUp!$B:$T,$D103,FALSE))","v":"TA3.4"},{"$f":"IF(VLOOKUP($B103&\"_\"&$C103&\"_\"&J$14,UNWDF2024_LookUp!$B:$T,$D103,FALSE)=0,\"\",VLOOKUP($B103&\"_\"&$C103&\"_\"&J$14,UNWDF2024_LookUp!$B:$T,$D103,FALSE))","v":"TA1.12"},{"$f":"IF(VLOOKUP($B103&\"_\"&$C103&\"_\"&K$14,UNWDF2024_LookUp!$B:$T,$D103,FALSE)=0,\"\",VLOOKUP($B103&\"_\"&$C103&\"_\"&K$14,UNWDF2024_LookUp!$B:$T,$D103,FALSE))","v":"TA2.8"},{"$f":"IF(VLOOKUP($B103&\"_\"&$C103&\"_\"&L$14,UNWDF2024_LookUp!$B:$T,$D103,FALSE)=0,\"\",VLOOKUP($B103&\"_\"&$C103&\"_\"&L$14,UNWDF2024_LookUp!$B:$T,$D103,FALSE))","v":"TA4.7"},{"$f":"IF(VLOOKUP($B103&\"_\"&$C103&\"_\"&M$14,UNWDF2024_LookUp!$B:$T,$D103,FALSE)=0,\"\",VLOOKUP($B103&\"_\"&$C103&\"_\"&M$14,UNWDF2024_LookUp!$B:$T,$D103,FALSE))","v":"TA4.16"},{"$f":"IF(VLOOKUP($B103&\"_\"&$C103&\"_\"&N$14,UNWDF2024_LookUp!$B:$T,$D103,FALSE)=0,\"\",VLOOKUP($B103&\"_\"&$C103&\"_\"&N$14,UNWDF2024_LookUp!$B:$T,$D103,FALSE))","v":"TED.209"},{"$f":"IF(VLOOKUP($B103&\"_\"&$C103&\"_\"&O$14,UNWDF2024_LookUp!$B:$T,$D103,FALSE)=0,\"\",VLOOKUP($B103&\"_\"&$C103&\"_\"&O$14,UNWDF2024_LookUp!$B:$T,$D103,FALSE))","v":"Local_8"},{"$f":"IF(VLOOKUP($B103&\"_\"&$C103&\"_\"&P$14,UNWDF2024_LookUp!$B:$T,$D103,FALSE)=0,\"\",VLOOKUP($B103&\"_\"&$C103&\"_\"&P$14,UNWDF2024_LookUp!$B:$T,$D103,FALSE))","v":"NA"},{"$f":"IF(VLOOKUP($B103&\"_\"&$C103&\"_\"&Q$14,UNWDF2024_LookUp!$B:$T,$D103,FALSE)=0,\"\",VLOOKUP($B103&\"_\"&$C103&\"_\"&Q$14,UNWDF2024_LookUp!$B:$T,$D103,FALSE))","v":"Local_9"},{"$f":"IF(VLOOKUP($B103&\"_\"&$C103&\"_\"&R$14,UNWDF2024_LookUp!$B:$T,$D103,FALSE)=0,\"\",VLOOKUP($B103&\"_\"&$C103&\"_\"&R$14,UNWDF2024_LookUp!$B:$T,$D103,FALSE))","v":"TA2.17"}]
["Day3Time_Slot3","Day3","Time_Slot3",13,null,null,"Thematic Area",null,{"$f":"IF(VLOOKUP($B104&\"_\"&$C104&\"_\"&I$14,UNWDF2024_LookUp!$B:$T,$D104,FALSE)=0,\"\",VLOOKUP($B104&\"_\"&$C104&\"_\"&I$14,UNWDF2024_LookUp!$B:$T,$D104,FALSE))","v":3},{"$f":"IF(VLOOKUP($B104&\"_\"&$C104&\"_\"&J$14,UNWDF2024_LookUp!$B:$T,$D104,FALSE)=0,\"\",VLOOKUP($B104&\"_\"&$C104&\"_\"&J$14,UNWDF2024_LookUp!$B:$T,$D104,FALSE))","v":1},{"$f":"IF(VLOOKUP($B104&\"_\"&$C104&\"_\"&K$14,UNWDF2024_LookUp!$B:$T,$D104,FALSE)=0,\"\",VLOOKUP($B104&\"_\"&$C104&\"_\"&K$14,UNWDF2024_LookUp!$B:$T,$D104,FALSE))","v":2},{"$f":"IF(VLOOKUP($B104&\"_\"&$C104&\"_\"&L$14,UNWDF2024_LookUp!$B:$T,$D104,FALSE)=0,\"\",VLOOKUP($B104&\"_\"&$C104&\"_\"&L$14,UNWDF2024_LookUp!$B:$T,$D104,FALSE))","v":4},{"$f":"IF(VLOOKUP($B104&\"_\"&$C104&\"_\"&M$14,UNWDF2024_LookUp!$B:$T,$D104,FALSE)=0,\"\",VLOOKUP($B104&\"_\"&$C104&\"_\"&M$14,UNWDF2024_LookUp!$B:$T,$D104,FALSE))","v":4},{"$f":"IF(VLOOKUP($B104&\"_\"&$C104&\"_\"&N$14,UNWDF2024_LookUp!$B:$T,$D104,FALSE)=0,\"\",VLOOKUP($B104&\"_\"&$C104&\"_\"&N$14,UNWDF2024_LookUp!$B:$T,$D104,FALSE))","v":"_T"},{"$f":"IF(VLOOKUP($B104&\"_\"&$C104&\"_\"&O$14,UNWDF2024_LookUp!$B:$T,$D104,FALSE)=0,\"\",VLOOKUP($B104&\"_\"&$C104&\"_\"&O$14,UNWDF2024_LookUp!$B:$T,$D104,FALSE))","v":"NA"},{"$f":"IF(VLOOKUP($B104&\"_\"&$C104&\"_\"&P$14,UNWDF2024_LookUp!$B:$T,$D104,FALSE)=0,\"\",VLOOKUP($B104&\"_\"&$C104&\"_\"&P$14,UNWDF2024_LookUp!$B:$T,$D104,FALSE))","v":"NA"},{"$f":"IF(VLOOKUP($B104&\"_\"&$C104&\"_\"&Q$14,UNWDF2024_LookUp!$B:$T,$D104,FALSE)=0,\"\",VLOOKUP($B104&\"_\"&$C104&\"_\"&Q$14,UNWDF2024_LookUp!$B:$T,$D104,FALSE))","v":"NA"},{"$f":"IF(VLOOKUP($B104&\"_\"&$C104&\"_\"&R$14,UNWDF2024_LookUp!$B:$T,$D104,FALSE)=0,\"\",VLOOKUP($B104&\"_\"&$C104&\"_\"&R$14,UNWDF2024_LookUp!$B:$T,$D104,FALSE))","v":2}]
[{"$f":"B105&C105","v":"Day3Time_Slot3"},"Day3","Time_Slot3",16,null,null,"Event Title",null,{"$f":"IF(VLOOKUP($B105&\"_\"&$C105&\"_\"&I$14,UNWDF2024_LookUp!$B:$T,$D105,FALSE)=0,\"\",VLOOKUP($B105&\"_\"&$C105&\"_\"&I$14,UNWDF2024_LookUp!$B:$T,$D105,FALSE))","v":"Global South Perspectives on Building Trust, Protection and Ethics in data collected With and About Young People"},{"$f":"IF(VLOOKUP($B105&\"_\"&$C105&\"_\"&J$14,UNWDF2024_LookUp!$B:$T,$D105,FALSE)=0,\"\",VLOOKUP($B105&\"_\"&$C105&\"_\"&J$14,UNWDF2024_LookUp!$B:$T,$D105,FALSE))","v":"Data and Persons with Disabilities: Innovative and Recent Efforts from Different Stakeholders"},{"$f":"IF(VLOOKUP($B105&\"_\"&$C105&\"_\"&K$14,UNWDF2024_LookUp!$B:$T,$D105,FALSE)=0,\"\",VLOOKUP($B105&\"_\"&$C105&\"_\"&K$14,UNWDF2024_LookUp!$B:$T,$D105,FALSE))","v":"New Advances and Approach to Measuring Gender-based Violence"},{"$f":"IF(VLOOKUP($B105&\"_\"&$C105&\"_\"&L$14,UNWDF2024_LookUp!$B:$T,$D105,FALSE)=0,\"\",VLOOKUP($B105&\"_\"&$C105&\"_\"&L$14,UNWDF2024_LookUp!$B:$T,$D105,FALSE))","v":"Unlocking Impact: Data, Analytics and AI for Better Crisis Action"},{"$f":"IF(VLOOKUP($B105&\"_\"&$C105&\"_\"&M$14,UNWDF2024_LookUp!$B:$T,$D105,FALSE)=0,\"\",VLOOKUP($B105&\"_\"&$C105&\"_\"&M$14,UNWDF2024_LookUp!$B:$T,$D105,FALSE))","v":"Data on LGBTIQ+ persons: a human rights and multi-stakeholder approach for the production of official statistics"},{"$f":"IF(VLOOKUP($B105&\"_\"&$C105&\"_\"&N$14,UNWDF2024_LookUp!$B:$T,$D105,FALSE)=0,\"\",VLOOKUP($B105&\"_\"&$C105&\"_\"&N$14,UNWDF2024_LookUp!$B:$T,$D105,FALSE))","v":"The use of qualitative information for decision making / Finger on the pulse - latest methodologies for using data to strengthen education systems / Amplifying the impact of the social sector through data analytics and AI"},{"$f":"IF(VLOOKUP($B105&\"_\"&$C105&\"_\"&O$14,UNWDF2024_LookUp!$B:$T,$D105,FALSE)=0,\"\",VLOOKUP($B105&\"_\"&$C105&\"_\"&O$14,UNWDF2024_LookUp!$B:$T,$D105,FALSE))","v":"The importance of data for the transformation of Medellín into a district for science, technology and innovation"},{"$f":"IF(VLOOKUP($B105&\"_\"&$C105&\"_\"&P$14,UNWDF2024_LookUp!$B:$T,$D105,FALSE)=0,\"\",VLOOKUP($B105&\"_\"&$C105&\"_\"&P$14,UNWDF2024_LookUp!$B:$T,$D105,FALSE))","v":"TBC"},{"$f":"IF(VLOOKUP($B105&\"_\"&$C105&\"_\"&Q$14,UNWDF2024_LookUp!$B:$T,$D105,FALSE)=0,\"\",VLOOKUP($B105&\"_\"&$C105&\"_\"&Q$14,UNWDF2024_LookUp!$B:$T,$D105,FALSE))","v":"Reserve [Local event]"},{"$f":"IF(VLOOKUP($B105&\"_\"&$C105&\"_\"&R$14,UNWDF2024_LookUp!$B:$T,$D105,FALSE)=0,\"\",VLOOKUP($B105&\"_\"&$C105&\"_\"&R$14,UNWDF2024_LookUp!$B:$T,$D105,FALSE))","v":"Co-creating Climate Data Ecosystem for Long-term Resilience"}]
[{"$f":"B106&C106","v":"Day3Time_Slot3"},"Day3","Time_Slot3",17,"`",null,"Organiser",null,{"$f":"IF(VLOOKUP($B106&\"_\"&$C106&\"_\"&I$14,UNWDF2024_LookUp!$B:$T,$D106,FALSE)=0,\"\",VLOOKUP($B106&\"_\"&$C106&\"_\"&I$14,UNWDF2024_LookUp!$B:$T,$D106,FALSE))","v":"Internet Society (ISOC) - Youth Standing Group; Youth Coalition of Internet Governance (IGF); Consortium d'Appui aux Actions pour la Promotion et le Développement de l'Afrique; United Nations Children's Fund (UNICEF)"},{"$f":"IF(VLOOKUP($B106&\"_\"&$C106&\"_\"&J$14,UNWDF2024_LookUp!$B:$T,$D106,FALSE)=0,\"\",VLOOKUP($B106&\"_\"&$C106&\"_\"&J$14,UNWDF2024_LookUp!$B:$T,$D106,FALSE))","v":"CBM Global Disability Inclusion; International Disability Alliance; World Federation of the Deaf; Fordham University; Universidad de los Andes; Stakeholder Group of Persons with Disabilities; Fundación Saldarriaga Concha; Inclusión SAS"},{"$f":"IF(VLOOKUP($B106&\"_\"&$C106&\"_\"&K$14,UNWDF2024_LookUp!$B:$T,$D106,FALSE)=0,\"\",VLOOKUP($B106&\"_\"&$C106&\"_\"&K$14,UNWDF2024_LookUp!$B:$T,$D106,FALSE))","v":"Instituto Nacional de Estadística y Geografía (INEGI-México); Italian National Institute of Statistics (Istat); United Nations Office on Drugs and Crime (UNODC); United Nations Statistics Division (UNSD-DESA); United Nations Entity for Gender Equality and the Empowerment of Women (UN Women); Oficina Nacional de Estadística (ONE-República Dominicana); Point of View; Marialab Hackerspace; TechHER; Luchadoras Support Line"},{"$f":"IF(VLOOKUP($B106&\"_\"&$C106&\"_\"&L$14,UNWDF2024_LookUp!$B:$T,$D106,FALSE)=0,\"\",VLOOKUP($B106&\"_\"&$C106&\"_\"&L$14,UNWDF2024_LookUp!$B:$T,$D106,FALSE))","v":"Office of the United Nations Secretary-General (EOSG); United Nations Global Pulse (UNGP); U.S. Department of State, United States of America; Armed Conflict Location and Event Data Project (ACLED); Data-Pop Alliance; YouthMappers"},{"$f":"IF(VLOOKUP($B106&\"_\"&$C106&\"_\"&M$14,UNWDF2024_LookUp!$B:$T,$D106,FALSE)=0,\"\",VLOOKUP($B106&\"_\"&$C106&\"_\"&M$14,UNWDF2024_LookUp!$B:$T,$D106,FALSE))","v":"Red Sin Violencia LGBTI; Global Partnership for Sustainable Development Data (GPSDD); Colombia Diversa; Equilibrium Social Development Consulting (SDC)"},{"$f":"IF(VLOOKUP($B106&\"_\"&$C106&\"_\"&N$14,UNWDF2024_LookUp!$B:$T,$D106,FALSE)=0,\"\",VLOOKUP($B106&\"_\"&$C106&\"_\"&N$14,UNWDF2024_LookUp!$B:$T,$D106,FALSE))","v":"3isolution / United Nations Educational, Scientific and Cultural Organization (UNESCO) / Ernst & Young; Compartamos con Colombia; Aldeas Infantiles"},{"$f":"IF(VLOOKUP($B106&\"_\"&$C106&\"_\"&O$14,UNWDF2024_LookUp!$B:$T,$D106,FALSE)=0,\"\",VLOOKUP($B106&\"_\"&$C106&\"_\"&O$14,UNWDF2024_LookUp!$B:$T,$D106,FALSE))","v":"Economic Development Secretariat Medellín"},{"$f":"IF(VLOOKUP($B106&\"_\"&$C106&\"_\"&P$14,UNWDF2024_LookUp!$B:$T,$D106,FALSE)=0,\"\",VLOOKUP($B106&\"_\"&$C106&\"_\"&P$14,UNWDF2024_LookUp!$B:$T,$D106,FALSE))","v":"TBC"},{"$f":"IF(VLOOKUP($B106&\"_\"&$C106&\"_\"&Q$14,UNWDF2024_LookUp!$B:$T,$D106,FALSE)=0,\"\",VLOOKUP($B106&\"_\"&$C106&\"_\"&Q$14,UNWDF2024_LookUp!$B:$T,$D106,FALSE))","v":"TBC"},{"$f":"IF(VLOOKUP($B106&\"_\"&$C106&\"_\"&R$14,UNWDF2024_LookUp!$B:$T,$D106,FALSE)=0,\"\",VLOOKUP($B106&\"_\"&$C106&\"_\"&R$14,UNWDF2024_LookUp!$B:$T,$D106,FALSE))","v":"CivicDataLab; Lloyd's Register Foundation; Wellcome Trust"}]
[null,"Day3",null,null,"14:15 - 14:30 (Medellín time)",{"$f":"IF(ISERROR(TEXT((DATE($E$3,$E$2,$E$1+MID(B107,4,1))+TIME(MID(E107,1,2),MID(E107,4,2),0))+($C$2-$C$3),\"H:MM AM/PM\")&\" - \"&TEXT(DATE($E$3,$E$2,$E$1+MID(B107,4,1))+TIME(MID(E107,9,2),MID(E107,12,2),0)+($C$2-$C$3),\"H:MM AM/PM\")),E107,TEXT((DATE($E$3,$E$2,$E$1+MID(B107,4,1))+TIME(MID(E107,1,2),MID(E107,4,2),0))+($C$2-$C$3),\"H:MM AM/PM\")&\" - \"&TEXT(DATE($E$3,$E$2,$E$1+MID(B107,4,1))+TIME(MID(E107,9,2),MID(E107,12,2),0)+($C$2-$C$3),\"H:MM AM/PM\"))","v":"2:15 PM - 2:30 PM"},"BREAK"]
[{"$f":"B108&C108","v":"Day3Time_Slot4"},"Day3","Time_Slot4",15,"14:30 - 15:30 (Medellín time)",{"$f":"IF(ISERROR(TEXT((DATE($E$3,$E$2,$E$1+MID(B108,4,1))+TIME(MID(E108,1,2),MID(E108,4,2),0))+($C$2-$C$3),\"H:MM AM/PM\")&\" - \"&TEXT(DATE($E$3,$E$2,$E$1+MID(B108,4,1))+TIME(MID(E108,9,2),MID(E108,12,2),0)+($C$2-$C$3),\"H:MM AM/PM\")),E108,TEXT(DATE($E$3,$E$2,$E$1+MID(B108,4,1))+TIME(MID(E108,1,2),MID(E108,4,2),0)+($C$2-$C$3),\"DDDD DD MMM\")&\" : \"&TEXT((DATE($E$3,$E$2,$E$1+MID(B108,4,1))+TIME(MID(E108,1,2),MID(E108,4,2),0))+($C$2-$C$3),\"H:MM AM/PM\")&\" - \"&TEXT(DATE($E$3,$E$2,$E$1+MID(B108,4,1))+TIME(MID(E108,9,2),MID(E108,12,2),0)+($C$2-$C$3),\"H:MM AM/PM\"))","v":"Friday 15 Nov : 2:30 PM - 3:30 PM"},"Event_ID",null,{"$f":"IF(VLOOKUP($B108&\"_\"&$C108&\"_\"&I$14,UNWDF2024_LookUp!$B:$T,$D108,FALSE)=0,\"\",VLOOKUP($B108&\"_\"&$C108&\"_\"&I$14,UNWDF2024_LookUp!$B:$T,$D108,FALSE))","v":"TA4.4"},{"$f":"IF(VLOOKUP($B108&\"_\"&$C108&\"_\"&J$14,UNWDF2024_LookUp!$B:$T,$D108,FALSE)=0,\"\",VLOOKUP($B108&\"_\"&$C108&\"_\"&J$14,UNWDF2024_LookUp!$B:$T,$D108,FALSE))","v":"TA1.19"},{"$f":"IF(VLOOKUP($B108&\"_\"&$C108&\"_\"&K$14,UNWDF2024_LookUp!$B:$T,$D108,FALSE)=0,\"\",VLOOKUP($B108&\"_\"&$C108&\"_\"&K$14,UNWDF2024_LookUp!$B:$T,$D108,FALSE))","v":"TA2.14"},{"$f":"IF(VLOOKUP($B108&\"_\"&$C108&\"_\"&L$14,UNWDF2024_LookUp!$B:$T,$D108,FALSE)=0,\"\",VLOOKUP($B108&\"_\"&$C108&\"_\"&L$14,UNWDF2024_LookUp!$B:$T,$D108,FALSE))","v":"TA4.2"},{"$f":"IF(VLOOKUP($B108&\"_\"&$C108&\"_\"&M$14,UNWDF2024_LookUp!$B:$T,$D108,FALSE)=0,\"\",VLOOKUP($B108&\"_\"&$C108&\"_\"&M$14,UNWDF2024_LookUp!$B:$T,$D108,FALSE))","v":"TA2.4"},{"$f":"IF(VLOOKUP($B108&\"_\"&$C108&\"_\"&N$14,UNWDF2024_LookUp!$B:$T,$D108,FALSE)=0,\"\",VLOOKUP($B108&\"_\"&$C108&\"_\"&N$14,UNWDF2024_LookUp!$B:$T,$D108,FALSE))","v":"TED.210"},{"$f":"IF(VLOOKUP($B108&\"_\"&$C108&\"_\"&O$14,UNWDF2024_LookUp!$B:$T,$D108,FALSE)=0,\"\",VLOOKUP($B108&\"_\"&$C108&\"_\"&O$14,UNWDF2024_LookUp!$B:$T,$D108,FALSE))","v":"ANCE.403"},{"$f":"IF(VLOOKUP($B108&\"_\"&$C108&\"_\"&P$14,UNWDF2024_LookUp!$B:$T,$D108,FALSE)=0,\"\",VLOOKUP($B108&\"_\"&$C108&\"_\"&P$14,UNWDF2024_LookUp!$B:$T,$D108,FALSE))","v":"Local_10"},{"$f":"IF(VLOOKUP($B108&\"_\"&$C108&\"_\"&Q$14,UNWDF2024_LookUp!$B:$T,$D108,FALSE)=0,\"\",VLOOKUP($B108&\"_\"&$C108&\"_\"&Q$14,UNWDF2024_LookUp!$B:$T,$D108,FALSE))","v":"LEARN.309"},{"$f":"IF(VLOOKUP($B108&\"_\"&$C108&\"_\"&R$14,UNWDF2024_LookUp!$B:$T,$D108,FALSE)=0,\"\",VLOOKUP($B108&\"_\"&$C108&\"_\"&R$14,UNWDF2024_LookUp!$B:$T,$D108,FALSE))","v":"NA"}]
["Day3Time_Slot4","Day3","Time_Slot4",13,"",null,"Thematic Area",null,{"$f":"IF(VLOOKUP($B109&\"_\"&$C109&\"_\"&I$14,UNWDF2024_LookUp!$B:$T,$D109,FALSE)=0,\"\",VLOOKUP($B109&\"_\"&$C109&\"_\"&I$14,UNWDF2024_LookUp!$B:$T,$D109,FALSE))","v":4},{"$f":"IF(VLOOKUP($B109&\"_\"&$C109&\"_\"&J$14,UNWDF2024_LookUp!$B:$T,$D109,FALSE)=0,\"\",VLOOKUP($B109&\"_\"&$C109&\"_\"&J$14,UNWDF2024_LookUp!$B:$T,$D109,FALSE))","v":1},{"$f":"IF(VLOOKUP($B109&\"_\"&$C109&\"_\"&K$14,UNWDF2024_LookUp!$B:$T,$D109,FALSE)=0,\"\",VLOOKUP($B109&\"_\"&$C109&\"_\"&K$14,UNWDF2024_LookUp!$B:$T,$D109,FALSE))","v":2},{"$f":"IF(VLOOKUP($B109&\"_\"&$C109&\"_\"&L$14,UNWDF2024_LookUp!$B:$T,$D109,FALSE)=0,\"\",VLOOKUP($B109&\"_\"&$C109&\"_\"&L$14,UNWDF2024_LookUp!$B:$T,$D109,FALSE))","v":4},{"$f":"IF(VLOOKUP($B109&\"_\"&$C109&\"_\"&M$14,UNWDF2024_LookUp!$B:$T,$D109,FALSE)=0,\"\",VLOOKUP($B109&\"_\"&$C109&\"_\"&M$14,UNWDF2024_LookUp!$B:$T,$D109,FALSE))","v":2},{"$f":"IF(VLOOKUP($B109&\"_\"&$C109&\"_\"&N$14,UNWDF2024_LookUp!$B:$T,$D109,FALSE)=0,\"\",VLOOKUP($B109&\"_\"&$C109&\"_\"&N$14,UNWDF2024_LookUp!$B:$T,$D109,FALSE))","v":"_T"},{"$f":"IF(VLOOKUP($B109&\"_\"&$C109&\"_\"&O$14,UNWDF2024_LookUp!$B:$T,$D109,FALSE)=0,\"\",VLOOKUP($B109&\"_\"&$C109&\"_\"&O$14,UNWDF2024_LookUp!$B:$T,$D109,FALSE))","v":"_A"},{"$f":"IF(VLOOKUP($B109&\"_\"&$C109&\"_\"&P$14,UNWDF2024_LookUp!$B:$T,$D109,FALSE)=0,\"\",VLOOKUP($B109&\"_\"&$C109&\"_\"&P$14,UNWDF2024_LookUp!$B:$T,$D109,FALSE))","v":"NA"},{"$f":"IF(VLOOKUP($B109&\"_\"&$C109&\"_\"&Q$14,UNWDF2024_LookUp!$B:$T,$D109,FALSE)=0,\"\",VLOOKUP($B109&\"_\"&$C109&\"_\"&Q$14,UNWDF2024_LookUp!$B:$T,$D109,FALSE))","v":"_L"},{"$f":"IF(VLOOKUP($B109&\"_\"&$C109&\"_\"&R$14,UNWDF2024_LookUp!$B:$T,$D109,FALSE)=0,\"\",VLOOKUP($B109&\"_\"&$C109&\"_\"&R$14,UNWDF2024_LookUp!$B:$T,$D109,FALSE))","v":"NA"}]
[{"$f":"B110&C110","v":"Day3Time_Slot4"},"Day3","Time_Slot4",16,"",null,"Event Title",null,{"$f":"IF(VLOOKUP($B110&\"_\"&$C110&\"_\"&I$14,UNWDF2024_LookUp!$B:$T,$D110,FALSE)=0,\"\",VLOOKUP($B110&\"_\"&$C110&\"_\"&I$14,UNWDF2024_LookUp!$B:$T,$D110,FALSE))","v":"Towards enhanced pandemic and epidemic intelligence: The value of collaboration between National Statistical Offices and National Public Health Agencies"},{"$f":"IF(VLOOKUP($B110&\"_\"&$C110&\"_\"&J$14,UNWDF2024_LookUp!$B:$T,$D110,FALSE)=0,\"\",VLOOKUP($B110&\"_\"&$C110&\"_\"&J$14,UNWDF2024_LookUp!$B:$T,$D110,FALSE))","v":"Data for Now: A holistic approach to ensuring value and impact of data"},{"$f":"IF(VLOOKUP($B110&\"_\"&$C110&\"_\"&K$14,UNWDF2024_LookUp!$B:$T,$D110,FALSE)=0,\"\",VLOOKUP($B110&\"_\"&$C110&\"_\"&K$14,UNWDF2024_LookUp!$B:$T,$D110,FALSE))","v":"Survey meets Spatial: Gaining insights for SDG Locals"},{"$f":"IF(VLOOKUP($B110&\"_\"&$C110&\"_\"&L$14,UNWDF2024_LookUp!$B:$T,$D110,FALSE)=0,\"\",VLOOKUP($B110&\"_\"&$C110&\"_\"&L$14,UNWDF2024_LookUp!$B:$T,$D110,FALSE))","v":"UNWDF 2024: Catalyzing Commitments for Sustainable Development Data"},{"$f":"IF(VLOOKUP($B110&\"_\"&$C110&\"_\"&M$14,UNWDF2024_LookUp!$B:$T,$D110,FALSE)=0,\"\",VLOOKUP($B110&\"_\"&$C110&\"_\"&M$14,UNWDF2024_LookUp!$B:$T,$D110,FALSE))","v":"Earth Observation (EO) and Remote Sensing (RS) Technologies Serve Global Food Security"},{"$f":"IF(VLOOKUP($B110&\"_\"&$C110&\"_\"&N$14,UNWDF2024_LookUp!$B:$T,$D110,FALSE)=0,\"\",VLOOKUP($B110&\"_\"&$C110&\"_\"&N$14,UNWDF2024_LookUp!$B:$T,$D110,FALSE))","v":"Going beyond traditional data to shed light on vulnerable and marginalized populations"},{"$f":"IF(VLOOKUP($B110&\"_\"&$C110&\"_\"&O$14,UNWDF2024_LookUp!$B:$T,$D110,FALSE)=0,\"\",VLOOKUP($B110&\"_\"&$C110&\"_\"&O$14,UNWDF2024_LookUp!$B:$T,$D110,FALSE))","v":"Launch of the UNICEF Guidelines for the Production of Data on Violence against Children"},{"$f":"IF(VLOOKUP($B110&\"_\"&$C110&\"_\"&P$14,UNWDF2024_LookUp!$B:$T,$D110,FALSE)=0,\"\",VLOOKUP($B110&\"_\"&$C110&\"_\"&P$14,UNWDF2024_LookUp!$B:$T,$D110,FALSE))","v":"Exploring the environment through public and geographical data"},{"$f":"IF(VLOOKUP($B110&\"_\"&$C110&\"_\"&Q$14,UNWDF2024_LookUp!$B:$T,$D110,FALSE)=0,\"\",VLOOKUP($B110&\"_\"&$C110&\"_\"&Q$14,UNWDF2024_LookUp!$B:$T,$D110,FALSE))","v":"Leveraging Global South Youth’s Vision for an Equitable and Sustainable Data Future"},{"$f":"IF(VLOOKUP($B110&\"_\"&$C110&\"_\"&R$14,UNWDF2024_LookUp!$B:$T,$D110,FALSE)=0,\"\",VLOOKUP($B110&\"_\"&$C110&\"_\"&R$14,UNWDF2024_LookUp!$B:$T,$D110,FALSE))","v":"TBC"}]
["Day3Time_Slot4","Day3","Time_Slot4",17,"",null,"Organiser",null,{"$f":"IF(VLOOKUP($B111&\"_\"&$C111&\"_\"&I$14,UNWDF2024_LookUp!$B:$T,$D111,FALSE)=0,\"\",VLOOKUP($B111&\"_\"&$C111&\"_\"&I$14,UNWDF2024_LookUp!$B:$T,$D111,FALSE))","v":"World Health Organization (WHO)"},{"$f":"IF(VLOOKUP($B111&\"_\"&$C111&\"_\"&J$14,UNWDF2024_LookUp!$B:$T,$D111,FALSE)=0,\"\",VLOOKUP($B111&\"_\"&$C111&\"_\"&J$14,UNWDF2024_LookUp!$B:$T,$D111,FALSE))","v":"United Nations Statistics Division (UNSD-DESA); Global Partnership for Sustainable Development Data (GPSDD); World Bank (WB); United Nations Development Programme (UNDP); Open Data Watch (ODW); Sustainable Development Solutions Network (SDSN)"},{"$f":"IF(VLOOKUP($B111&\"_\"&$C111&\"_\"&K$14,UNWDF2024_LookUp!$B:$T,$D111,FALSE)=0,\"\",VLOOKUP($B111&\"_\"&$C111&\"_\"&K$14,UNWDF2024_LookUp!$B:$T,$D111,FALSE))","v":"World Bank (WB); Stanford University; United Nations Statistics Division (UNSD-DESA); General Statistics Office (GSO-Viet Nam); Instituto Nacional de Estadística y Geografía (INEGI-México); IGN, Belgium; CIG-BNETD, Côte d’Ivoire; Kadaster, Netherlands (Kingdom of the); PVBLIC Foundation"},{"$f":"IF(VLOOKUP($B111&\"_\"&$C111&\"_\"&L$14,UNWDF2024_LookUp!$B:$T,$D111,FALSE)=0,\"\",VLOOKUP($B111&\"_\"&$C111&\"_\"&L$14,UNWDF2024_LookUp!$B:$T,$D111,FALSE))","v":"Open Data Watch (ODW); Partnership in Statistics for Development in the 21st Century (PARIS21)"},{"$f":"IF(VLOOKUP($B111&\"_\"&$C111&\"_\"&M$14,UNWDF2024_LookUp!$B:$T,$D111,FALSE)=0,\"\",VLOOKUP($B111&\"_\"&$C111&\"_\"&M$14,UNWDF2024_LookUp!$B:$T,$D111,FALSE))","v":"United Nations Statistics Division (UNSD-DESA); Zhejiang University; Rural Department, National Bureau of Statistics (NBS-China); United Nation Global Hub on Big Data and Data Science for Official Statistics; Food and Agriculture Organization of the United Nations (FAO)"},{"$f":"IF(VLOOKUP($B111&\"_\"&$C111&\"_\"&N$14,UNWDF2024_LookUp!$B:$T,$D111,FALSE)=0,\"\",VLOOKUP($B111&\"_\"&$C111&\"_\"&N$14,UNWDF2024_LookUp!$B:$T,$D111,FALSE))","v":"IMPACT Initiatives; Armed Conflict Location and Event Data Project (ACLED); Data-Pop Alliance"},{"$f":"IF(VLOOKUP($B111&\"_\"&$C111&\"_\"&O$14,UNWDF2024_LookUp!$B:$T,$D111,FALSE)=0,\"\",VLOOKUP($B111&\"_\"&$C111&\"_\"&O$14,UNWDF2024_LookUp!$B:$T,$D111,FALSE))","v":"United Nations Children's Fund (UNICEF)"},{"$f":"IF(VLOOKUP($B111&\"_\"&$C111&\"_\"&P$14,UNWDF2024_LookUp!$B:$T,$D111,FALSE)=0,\"\",VLOOKUP($B111&\"_\"&$C111&\"_\"&P$14,UNWDF2024_LookUp!$B:$T,$D111,FALSE))","v":"Empresas Públicas de Medellín (EPM)"},{"$f":"IF(VLOOKUP($B111&\"_\"&$C111&\"_\"&Q$14,UNWDF2024_LookUp!$B:$T,$D111,FALSE)=0,\"\",VLOOKUP($B111&\"_\"&$C111&\"_\"&Q$14,UNWDF2024_LookUp!$B:$T,$D111,FALSE))","v":"The Datasphere Initiative; Global Shapers Medellín Hub; African Institute for Mathematical Sciences (AIMS-Next Einstein Forum); Chaski Global; Global Partnership for Sustainable Development Data (GPSDD)"},{"$f":"IF(VLOOKUP($B111&\"_\"&$C111&\"_\"&R$14,UNWDF2024_LookUp!$B:$T,$D111,FALSE)=0,\"\",VLOOKUP($B111&\"_\"&$C111&\"_\"&R$14,UNWDF2024_LookUp!$B:$T,$D111,FALSE))","v":"TBC"}]
[null,"Day3",null,null,"15:30 - 15:45 (Medellín time)",{"$f":"IF(ISERROR(TEXT((DATE($E$3,$E$2,$E$1+MID(B112,4,1))+TIME(MID(E112,1,2),MID(E112,4,2),0))+($C$2-$C$3),\"H:MM AM/PM\")&\" - \"&TEXT(DATE($E$3,$E$2,$E$1+MID(B112,4,1))+TIME(MID(E112,9,2),MID(E112,12,2),0)+($C$2-$C$3),\"H:MM AM/PM\")),E112,TEXT((DATE($E$3,$E$2,$E$1+MID(B112,4,1))+TIME(MID(E112,1,2),MID(E112,4,2),0))+($C$2-$C$3),\"H:MM AM/PM\")&\" - \"&TEXT(DATE($E$3,$E$2,$E$1+MID(B112,4,1))+TIME(MID(E112,9,2),MID(E112,12,2),0)+($C$2-$C$3),\"H:MM AM/PM\"))","v":"3:30 PM - 3:45 PM"},"BREAK"]
[{"$f":"B113&C113","v":"Day3Time_Slot5"},"Day3","Time_Slot5",15,"15:45 - 16:45 (Medellín time)",{"$f":"IF(ISERROR(TEXT((DATE($E$3,$E$2,$E$1+MID(B113,4,1))+TIME(MID(E113,1,2),MID(E113,4,2),0))+($C$2-$C$3),\"H:MM AM/PM\")&\" - \"&TEXT(DATE($E$3,$E$2,$E$1+MID(B113,4,1))+TIME(MID(E113,9,2),MID(E113,12,2),0)+($C$2-$C$3),\"H:MM AM/PM\")),E113,TEXT(DATE($E$3,$E$2,$E$1+MID(B113,4,1))+TIME(MID(E113,1,2),MID(E113,4,2),0)+($C$2-$C$3),\"DDDD DD MMM\")&\" : \"&TEXT((DATE($E$3,$E$2,$E$1+MID(B113,4,1))+TIME(MID(E113,1,2),MID(E113,4,2),0))+($C$2-$C$3),\"H:MM AM/PM\")&\" - \"&TEXT(DATE($E$3,$E$2,$E$1+MID(B113,4,1))+TIME(MID(E113,9,2),MID(E113,12,2),0)+($C$2-$C$3),\"H:MM AM/PM\"))","v":"Friday 15 Nov : 3:45 PM - 4:45 PM"},"Event_ID",{"$f":"IF(VLOOKUP($B113&\"_\"&$C113&\"_\"&H$14,UNWDF2024_LookUp!$B:$T,$D113,FALSE)=0,\"\",VLOOKUP($B113&\"_\"&$C113&\"_\"&H$14,UNWDF2024_LookUp!$B:$T,$D113,FALSE))","v":"TA_C.01"}]
["Day3Time_Slot5","Day3","Time_Slot5",13,"",null,"Thematic Area",{"$f":"IF(VLOOKUP($B114&\"_\"&$C114&\"_\"&H$14,UNWDF2024_LookUp!$B:$T,$D114,FALSE)=0,\"\",VLOOKUP($B114&\"_\"&$C114&\"_\"&H$14,UNWDF2024_LookUp!$B:$T,$D114,FALSE))","v":"_C"}]
[{"$f":"B115&C115","v":"Day3Time_Slot5"},"Day3","Time_Slot5",16,"",null,"Event Title",{"$f":"IF(VLOOKUP($B115&\"_\"&$C115&\"_\"&H$14,UNWDF2024_LookUp!$B:$T,$D115,FALSE)=0,\"\",VLOOKUP($B115&\"_\"&$C115&\"_\"&H$14,UNWDF2024_LookUp!$B:$T,$D115,FALSE))","v":"Closing ceremony"}]
["Day3Time_Slot5","Day3","Time_Slot5",17,"",null,"Organiser",{"$f":"IF(VLOOKUP($B116&\"_\"&$C116&\"_\"&H$14,UNWDF2024_LookUp!$B:$T,$D116,FALSE)=0,\"\",VLOOKUP($B116&\"_\"&$C116&\"_\"&H$14,UNWDF2024_LookUp!$B:$T,$D116,FALSE))","v":"Departamento Administrativo Nacional de Estadística (DANE-Colombia); United Nations Statistics Division (UNSD-DESA)"}]
[null,"Day3",null,null,"16:45 - 17:00 (Medellín time)",{"$f":"IF(ISERROR(TEXT((DATE($E$3,$E$2,$E$1+MID(B117,4,1))+TIME(MID(E117,1,2),MID(E117,4,2),0))+($C$2-$C$3),\"H:MM AM/PM\")&\" - \"&TEXT(DATE($E$3,$E$2,$E$1+MID(B117,4,1))+TIME(MID(E117,9,2),MID(E117,12,2),0)+($C$2-$C$3),\"H:MM AM/PM\")),E117,TEXT((DATE($E$3,$E$2,$E$1+MID(B117,4,1))+TIME(MID(E117,1,2),MID(E117,4,2),0))+($C$2-$C$3),\"H:MM AM/PM\")&\" - \"&TEXT(DATE($E$3,$E$2,$E$1+MID(B117,4,1))+TIME(MID(E117,9,2),MID(E117,12,2),0)+($C$2-$C$3),\"H:MM AM/PM\"))","v":"4:45 PM - 5:00 PM"},"Break"]
[{"$f":"B118&C118","v":"Day3Time_Slot6"},"Day3","Time_Slot6",16,"17:00 - 18:00 (Medellín time)",{"$f":"IF(ISERROR(TEXT((DATE($E$3,$E$2,$E$1+MID(B118,4,1))+TIME(MID(E118,1,2),MID(E118,4,2),0))+($C$2-$C$3),\"H:MM AM/PM\")&\" - \"&TEXT(DATE($E$3,$E$2,$E$1+MID(B118,4,1))+TIME(MID(E118,9,2),MID(E118,12,2),0)+($C$2-$C$3),\"H:MM AM/PM\")),E118,TEXT(DATE($E$3,$E$2,$E$1+MID(B118,4,1))+TIME(MID(E118,1,2),MID(E118,4,2),0)+($C$2-$C$3),\"DDDD DD MMM\")&\" : \"&TEXT((DATE($E$3,$E$2,$E$1+MID(B118,4,1))+TIME(MID(E118,1,2),MID(E118,4,2),0))+($C$2-$C$3),\"H:MM AM/PM\")&\" - \"&TEXT(DATE($E$3,$E$2,$E$1+MID(B118,4,1))+TIME(MID(E118,9,2),MID(E118,12,2),0)+($C$2-$C$3),\"H:MM AM/PM\"))","v":"Friday 15 Nov : 5:00 PM - 6:00 PM"},"Event Title",{"$f":"IF(VLOOKUP($B118&\"_\"&$C118&\"_\"&H$14,UNWDF2024_LookUp!$B:$T,$D118,FALSE)=0,\"\",VLOOKUP($B118&\"_\"&$C118&\"_\"&H$14,UNWDF2024_LookUp!$B:$T,$D118,FALSE))","v":"NA"}]
[{"$f":"B119&C119","v":"Day3Time_Slot6"},"Day3","Time_Slot6",17,"",null,"Organiser",{"$f":"IF(VLOOKUP($B119&\"_\"&$C119&\"_\"&H$14,UNWDF2024_LookUp!$B:$T,$D119,FALSE)=0,\"\",VLOOKUP($B119&\"_\"&$C119&\"_\"&H$14,UNWDF2024_LookUp!$B:$T,$D119,FALSE))","v":"NA"}]
[null,"Day3",null,null,"17:00 - 18:45 (Medellín time)",{"$f":"IF(ISERROR(TEXT((DATE($E$3,$E$2,$E$1+MID(B120,4,1))+TIME(MID(E120,1,2),MID(E120,4,2),0))+($C$2-$C$3),\"H:MM AM/PM\")&\" - \"&TEXT(DATE($E$3,$E$2,$E$1+MID(B120,4,1))+TIME(MID(E120,9,2),MID(E120,12,2),0)+($C$2-$C$3),\"H:MM AM/PM\")),E120,TEXT((DATE($E$3,$E$2,$E$1+MID(B120,4,1))+TIME(MID(E120,1,2),MID(E120,4,2),0))+($C$2-$C$3),\"H:MM AM/PM\")&\" - \"&TEXT(DATE($E$3,$E$2,$E$1+MID(B120,4,1))+TIME(MID(E120,9,2),MID(E120,12,2),0)+($C$2-$C$3),\"H:MM AM/PM\"))","v":"5:00 PM - 6:45 PM"},"Break"]
["Day3Time_Slot7","Day3","Time_Slot7",16,"18:45 - 19:15 (Medellín time)",{"$f":"IF(ISERROR(TEXT((DATE($E$3,$E$2,$E$1+MID(B121,4,1))+TIME(MID(E121,1,2),MID(E121,4,2),0))+($C$2-$C$3),\"H:MM AM/PM\")&\" - \"&TEXT(DATE($E$3,$E$2,$E$1+MID(B121,4,1))+TIME(MID(E121,9,2),MID(E121,12,2),0)+($C$2-$C$3),\"H:MM AM/PM\")),E121,TEXT(DATE($E$3,$E$2,$E$1+MID(B121,4,1))+TIME(MID(E121,1,2),MID(E121,4,2),0)+($C$2-$C$3),\"DDDD DD MMM\")&\" : \"&TEXT((DATE($E$3,$E$2,$E$1+MID(B121,4,1))+TIME(MID(E121,1,2),MID(E121,4,2),0))+($C$2-$C$3),\"H:MM AM/PM\")&\" - \"&TEXT(DATE($E$3,$E$2,$E$1+MID(B121,4,1))+TIME(MID(E121,9,2),MID(E121,12,2),0)+($C$2-$C$3),\"H:MM AM/PM\"))","v":"Friday 15 Nov : 6:45 PM - 7:15 PM"},"Event Title",{"$f":"IF(VLOOKUP($B121&\"_\"&$C121&\"_\"&H$14,UNWDF2024_LookUp!$B:$T,$D121,FALSE)=0,\"\",VLOOKUP($B121&\"_\"&$C121&\"_\"&H$14,UNWDF2024_LookUp!$B:$T,$D121,FALSE))","v":"NA"}]
[{"$f":"B122&C122","v":"Day3Time_Slot7"},"Day3","Time_Slot7",17,"",null,"Organiser",{"$f":"IF(VLOOKUP($B122&\"_\"&$C122&\"_\"&H$14,UNWDF2024_LookUp!$B:$T,$D122,FALSE)=0,\"\",VLOOKUP($B122&\"_\"&$C122&\"_\"&H$14,UNWDF2024_LookUp!$B:$T,$D122,FALSE))","v":"NA"}]
[]
[null,null,null,null,null,null,null,null,null," TA 1. Innovation for better and more inclusive data: data integration and leveraging of various data sources and methodologies to ensure visibility and voice for everyone",null,null,null," TA 3. Building trust, protection and ethics in data: developing the principles of stewardship within the data ecosystem to balance the full value from data use with the protection of privacy and data rights"]
[]
[null,null,null,null,null,null,null,null,null," TA 2. Maximizing the use and value of data for better decision making: adding value to data through better analysis and communication to ensure full use of data for bettering lives through the agency, respect, and inclusion of everyone",null,null,null," TA 4. Effective partnerships for better data and a more equitable data ecosystem: supporting global, regional, national and sub-national data ecosystems in the implementation of the Cape Town Global Action Plan including sustainable finance for data and statistics programmes at all levels of organization"]

{"sheet":"UNWDF2024_LookUp","index":1,"n_rows":258,"n_cols":39,"rows_kept":258,"cut":false,"hidden":true,"merged":[]}
["ID","LookUp","Day/Time","Day","Time_Slot","Location","Date","Time","Duration","Room_Name","Room_Capacity","UNWDF2024_Plenary","UNWDF2024_ProposalID","UNWDF2024_TA","UNWDF2024_Session","UNWDF2024_ProgrammeID","UNWDF2024_SessionTitle_en","UNWDF2024_SessionOrg_en","UNWDF2024_SessionTitle_es","UNWDF2024_SessionOrg_es","LookUp","Comment"]
[1,{"$f":"C2&\"_\"&F2","v":"Day0_Time_Slot1_Parallel 01"},{"$f":"$D$1&D2&\"_\"&$E$1&E2","v":"Day0_Time_Slot1"},0,1,"Parallel 01",{"$f":"VLOOKUP($D$1&D2,UNWDF_Medellín_2024_en!A:F,5,FALSE)","v":"2024-11-12"},{"$f":"MID(VLOOKUP($D$1&D2&$E$1&E2,UNWDF_Medellín_2024_en!A:F,5,FALSE),1,SEARCH(\"(\",VLOOKUP($D$1&D2&$E$1&E2,UNWDF_Medellín_2024_en!A:F,5,FALSE))-2)","v":"11:00 - 12:00"},{"$f":"TEXT(MID(H2,SEARCH(\"-\",H2)+2,LEN(H2)-SEARCH(\"-\",H2)-1)-MID(H2,1,SEARCH(\"-\",H2)-1),\"h:mm\")","v":"1:00"},{"$f":"HLOOKUP($F2,UNWDF_Medellín_2024_en!$H$14:$S$16,2,FALSE)","v":"Plenary Room"},{"$f":"HLOOKUP($F2,UNWDF_Medellín_2024_en!$H$14:$S$16,3,FALSE)","v":3000},"Y","NA","_P",{"$f":"IF(OR(L2=\"NA\",L2=\"E\"),\"NA\",IF(L2=\"Y\",COUNTIF($M$1:N1,N2)+1,COUNTIF($M$1:N1,N2)+1))","v":1},"TA_P.01","Opening press conference (LOCATION: Media Corner)","Departamento Administrativo Nacional de Estadística (DANE-Colombia); United Nations Statistics Division (UNSD-DESA)","Conferencia de prensa de apertura (UBICACIÓN: ÁREA DE MEDIOS)","Departamento Administrativo Nacional de Estadística (DANE-Colombia); División de Estadísticas de las Naciones Unidas (UNSD-DESA)",{"$f":"B2","v":"Day0_Time_Slot1_Parallel 01"},"NEW TIME",{"$f":"I2","v":"1:00"}]
[14,"Day0_Time_Slot1_Parallel 02","Day0_Time_Slot1",0,1,"Parallel 02",{"$f":"VLOOKUP($D$1&D3,UNWDF_Medellín_2024_en!A:F,5,FALSE)","v":"2024-11-12"},{"$f":"MID(VLOOKUP($D$1&D3&$E$1&E3,UNWDF_Medellín_2024_en!A:F,5,FALSE),1,SEARCH(\"(\",VLOOKUP($D$1&D3&$E$1&E3,UNWDF_Medellín_2024_en!A:F,5,FALSE))-2)","v":"11:00 - 12:00"},"1:00",{"$f":"HLOOKUP($F3,UNWDF_Medellín_2024_en!$H$14:$S$16,2,FALSE)","v":"Room 1"},{"$f":"HLOOKUP($F3,UNWDF_Medellín_2024_en!$H$14:$S$16,3,FALSE)","v":300},"NA","NA","NA",{"$f":"IF(OR(L3=\"NA\",L3=\"E\"),\"NA\",IF(L3=\"Y\",COUNTIF($M$1:N2,N3)+1,COUNTIF($M$1:N2,N3)+1))","v":"NA"},{"$f":"IF(N3=\"NA\",\"NA\",\"TA\"&N3&\".\"&TEXT(O3,\"0#\"))","v":"NA"},"NA","NA","NA","NA","Day0_Time_Slot1_Parallel 02",null,{"$f":"I3","v":"1:00"}]
[15,"Day0_Time_Slot1_Parallel 03","Day0_Time_Slot1",0,1,"Parallel 03",{"$f":"VLOOKUP($D$1&D4,UNWDF_Medellín_2024_en!A:F,5,FALSE)","v":"2024-11-12"},{"$f":"MID(VLOOKUP($D$1&D4&$E$1&E4,UNWDF_Medellín_2024_en!A:F,5,FALSE),1,SEARCH(\"(\",VLOOKUP($D$1&D4&$E$1&E4,UNWDF_Medellín_2024_en!A:F,5,FALSE))-2)","v":"11:00 - 12:00"},"1:00",{"$f":"HLOOKUP($F4,UNWDF_Medellín_2024_en!$H$14:$S$16,2,FALSE)","v":"Room 2"},{"$f":"HLOOKUP($F4,UNWDF_Medellín_2024_en!$H$14:$S$16,3,FALSE)","v":200},"NA","NA","NA",{"$f":"IF(OR(L4=\"NA\",L4=\"E\"),\"NA\",IF(L4=\"Y\",COUNTIF($M$1:N3,N4)+1,COUNTIF($M$1:N3,N4)+1))","v":"NA"},"NA","NA","NA","NA","NA","Day0_Time_Slot1_Parallel 03",null,"1:00"]
[16,"Day0_Time_Slot1_Parallel 04","Day0_Time_Slot1",0,1,"Parallel 04",{"$f":"VLOOKUP($D$1&D5,UNWDF_Medellín_2024_en!A:F,5,FALSE)","v":"2024-11-12"},{"$f":"MID(VLOOKUP($D$1&D5&$E$1&E5,UNWDF_Medellín_2024_en!A:F,5,FALSE),1,SEARCH(\"(\",VLOOKUP($D$1&D5&$E$1&E5,UNWDF_Medellín_2024_en!A:F,5,FALSE))-2)","v":"11:00 - 12:00"},"1:00",{"$f":"HLOOKUP($F5,UNWDF_Medellín_2024_en!$H$14:$S$16,2,FALSE)","v":"Room 3"},{"$f":"HLOOKUP($F5,UNWDF_Medellín_2024_en!$H$14:$S$16,3,FALSE)","v":200},"NA","NA","NA",{"$f":"IF(OR(L5=\"NA\",L5=\"E\"),\"NA\",IF(L5=\"Y\",COUNTIF($M$1:N4,N5)+1,COUNTIF($M$1:N4,N5)+1))","v":"NA"},"NA","NA","NA","NA","NA","Day0_Time_Slot1_Parallel 04",null,"1:00"]
[17,"Day0_Time_Slot1_Parallel 05","Day0_Time_Slot1",0,1,"Parallel 05",{"$f":"VLOOKUP($D$1&D6,UNWDF_Medellín_2024_en!A:F,5,FALSE)","v":"2024-11-12"},{"$f":"MID(VLOOKUP($D$1&D6&$E$1&E6,UNWDF_Medellín_2024_en!A:F,5,FALSE),1,SEARCH(\"(\",VLOOKUP($D$1&D6&$E$1&E6,UNWDF_Medellín_2024_en!A:F,5,FALSE))-2)","v":"11:00 - 12:00"},"1:00",{"$f":"HLOOKUP($F6,UNWDF_Medellín_2024_en!$H$14:$S$16,2,FALSE)","v":"Room 4"},{"$f":"HLOOKUP($F6,UNWDF_Medellín_2024_en!$H$14:$S$16,3,FALSE)","v":200},"NA","NA","NA",{"$f":"IF(OR(L6=\"NA\",L6=\"E\"),\"NA\",IF(L6=\"Y\",COUNTIF($M$1:N5,N6)+1,COUNTIF($M$1:N5,N6)+1))","v":"NA"},"NA","NA","NA","NA","NA","Day0_Time_Slot1_Parallel 05",null,"1:00"]
[18,"Day0_Time_Slot1_Parallel 06","Day0_Time_Slot1",0,1,"Parallel 06",{"$f":"VLOOKUP($D$1&D7,UNWDF_Medellín_2024_en!A:F,5,FALSE)","v":"2024-11-12"},{"$f":"MID(VLOOKUP($D$1&D7&$E$1&E7,UNWDF_Medellín_2024_en!A:F,5,FALSE),1,SEARCH(\"(\",VLOOKUP($D$1&D7&$E$1&E7,UNWDF_Medellín_2024_en!A:F,5,FALSE))-2)","v":"11:00 - 12:00"},"1:00",{"$f":"HLOOKUP($F7,UNWDF_Medellín_2024_en!$H$14:$S$16,2,FALSE)","v":"Room 5"},{"$f":"HLOOKUP($F7,UNWDF_Medellín_2024_en!$H$14:$S$16,3,FALSE)","v":200},"NA","NA","NA",{"$f":"IF(OR(L7=\"NA\",L7=\"E\"),\"NA\",IF(L7=\"Y\",COUNTIF($M$1:N6,N7)+1,COUNTIF($M$1:N6,N7)+1))","v":"NA"},"NA","NA","NA","NA","NA","Day0_Time_Slot1_Parallel 06",null,"1:00"]
[19,"Day0_Time_Slot1_Parallel 07","Day0_Time_Slot1",0,1,"Parallel 07",{"$f":"VLOOKUP($D$1&D8,UNWDF_Medellín_2024_en!A:F,5,FALSE)","v":"2024-11-12"},{"$f":"MID(VLOOKUP($D$1&D8&$E$1&E8,UNWDF_Medellín_2024_en!A:F,5,FALSE),1,SEARCH(\"(\",VLOOKUP($D$1&D8&$E$1&E8,UNWDF_Medellín_2024_en!A:F,5,FALSE))-2)","v":"11:00 - 12:00"},"1:00",{"$f":"HLOOKUP($F8,UNWDF_Medellín_2024_en!$H$14:$S$16,2,FALSE)","v":"Room 6"},{"$f":"HLOOKUP($F8,UNWDF_Medellín_2024_en!$H$14:$S$16,3,FALSE)","v":150},"NA","NA","NA",{"$f":"IF(OR(L8=\"NA\",L8=\"E\"),\"NA\",IF(L8=\"Y\",COUNTIF($M$1:N7,N8)+1,COUNTIF($M$1:N7,N8)+1))","v":"NA"},"NA","NA","NA","NA","NA","Day0_Time_Slot1_Parallel 07",null,"1:00"]
[20,"Day0_Time_Slot1_Parallel 08","Day0_Time_Slot1",0,1,"Parallel 08",{"$f":"VLOOKUP($D$1&D9,UNWDF_Medellín_2024_en!A:F,5,FALSE)","v":"2024-11-12"},{"$f":"MID(VLOOKUP($D$1&D9&$E$1&E9,UNWDF_Medellín_2024_en!A:F,5,FALSE),1,SEARCH(\"(\",VLOOKUP($D$1&D9&$E$1&E9,UNWDF_Medellín_2024_en!A:F,5,FALSE))-2)","v":"11:00 - 12:00"},"1:00",{"$f":"HLOOKUP($F9,UNWDF_Medellín_2024_en!$H$14:$S$16,2,FALSE)","v":"Room 7"},{"$f":"HLOOKUP($F9,UNWDF_Medellín_2024_en!$H$14:$S$16,3,FALSE)","v":150},"NA","NA","NA",{"$f":"IF(OR(L9=\"NA\",L9=\"E\"),\"NA\",IF(L9=\"Y\",COUNTIF($M$1:N8,N9)+1,COUNTIF($M$1:N8,N9)+1))","v":"NA"},"NA","NA","NA","NA","NA","Day0_Time_Slot1_Parallel 08",null,"1:00"]
[21,"Day0_Time_Slot1_Parallel 09","Day0_Time_Slot1",0,1,"Parallel 09",{"$f":"VLOOKUP($D$1&D10,UNWDF_Medellín_2024_en!A:F,5,FALSE)","v":"2024-11-12"},{"$f":"MID(VLOOKUP($D$1&D10&$E$1&E10,UNWDF_Medellín_2024_en!A:F,5,FALSE),1,SEARCH(\"(\",VLOOKUP($D$1&D10&$E$1&E10,UNWDF_Medellín_2024_en!A:F,5,FALSE))-2)","v":"11:00 - 12:00"},"1:00",{"$f":"HLOOKUP($F10,UNWDF_Medellín_2024_en!$H$14:$S$16,2,FALSE)","v":"Room 8"},{"$f":"HLOOKUP($F10,UNWDF_Medellín_2024_en!$H$14:$S$16,3,FALSE)","v":90},"NA","NA","NA",{"$f":"IF(OR(L10=\"NA\",L10=\"E\"),\"NA\",IF(L10=\"Y\",COUNTIF($M$1:N9,N10)+1,COUNTIF($M$1:N9,N10)+1))","v":"NA"},"NA","NA","NA","NA","NA","Day0_Time_Slot1_Parallel 09",null,"1:00"]
[22,"Day0_Time_Slot1_Parallel 10","Day0_Time_Slot1",0,1,"Parallel 10",{"$f":"VLOOKUP($D$1&D11,UNWDF_Medellín_2024_en!A:F,5,FALSE)","v":"2024-11-12"},{"$f":"MID(VLOOKUP($D$1&D11&$E$1&E11,UNWDF_Medellín_2024_en!A:F,5,FALSE),1,SEARCH(\"(\",VLOOKUP($D$1&D11&$E$1&E11,UNWDF_Medellín_2024_en!A:F,5,FALSE))-2)","v":"11:00 - 12:00"},"1:00",{"$f":"HLOOKUP($F11,UNWDF_Medellín_2024_en!$H$14:$S$16,2,FALSE)","v":"Room 9"},{"$f":"HLOOKUP($F11,UNWDF_Medellín_2024_en!$H$14:$S$16,3,FALSE)","v":60},"NA","NA","NA",{"$f":"IF(OR(L11=\"NA\",L11=\"E\"),\"NA\",IF(L11=\"Y\",COUNTIF($M$1:N10,N11)+1,COUNTIF($M$1:N10,N11)+1))","v":"NA"},"NA","NA","NA","NA","NA","Day0_Time_Slot1_Parallel 10",null,"1:00"]
[23,"Day0_Time_Slot1_Parallel 11","Day0_Time_Slot1",0,1,"Parallel 11",{"$f":"VLOOKUP($D$1&D12,UNWDF_Medellín_2024_en!A:F,5,FALSE)","v":"2024-11-12"},{"$f":"MID(VLOOKUP($D$1&D12&$E$1&E12,UNWDF_Medellín_2024_en!A:F,5,FALSE),1,SEARCH(\"(\",VLOOKUP($D$1&D12&$E$1&E12,UNWDF_Medellín_2024_en!A:F,5,FALSE))-2)","v":"11:00 - 12:00"},"1:00",{"$f":"HLOOKUP($F12,UNWDF_Medellín_2024_en!$H$14:$S$16,2,FALSE)","v":"Room 10"},{"$f":"HLOOKUP($F12,UNWDF_Medellín_2024_en!$H$14:$S$16,3,FALSE)","v":60},"NA","NA","NA",{"$f":"IF(OR(L12=\"NA\",L12=\"E\"),\"NA\",IF(L12=\"Y\",COUNTIF($M$1:N11,N12)+1,COUNTIF($M$1:N11,N12)+1))","v":"NA"},"NA","NA","NA","NA","NA","Day0_Time_Slot1_Parallel 11",null,"1:00"]
[24,"Day0_Time_Slot1_Parallel 12","Day0_Time_Slot1",0,1,"Parallel 12",{"$f":"VLOOKUP($D$1&D13,UNWDF_Medellín_2024_en!A:F,5,FALSE)","v":"2024-11-12"},{"$f":"MID(VLOOKUP($D$1&D13&$E$1&E13,UNWDF_Medellín_2024_en!A:F,5,FALSE),1,SEARCH(\"(\",VLOOKUP($D$1&D13&$E$1&E13,UNWDF_Medellín_2024_en!A:F,5,FALSE))-2)","v":"11:00 - 12:00"},"1:00",{"$f":"HLOOKUP($F13,UNWDF_Medellín_2024_en!$H$14:$S$16,2,FALSE)","v":"NA"},{"$f":"HLOOKUP($F13,UNWDF_Medellín_2024_en!$H$14:$S$16,3,FALSE)","v":"NA"},"NA","NA","NA",{"$f":"IF(OR(L13=\"NA\",L13=\"E\"),\"NA\",IF(L13=\"Y\",COUNTIF($M$1:N12,N13)+1,COUNTIF($M$1:N12,N13)+1))","v":"NA"},"NA","NA","NA","NA","NA","Day0_Time_Slot1_Parallel 12",null,"1:00"]
[2,"Day0_Time_Slot2_Parallel 01","Day0_Time_Slot2",0,2,"Parallel 01",{"$f":"VLOOKUP($D$1&D14,UNWDF_Medellín_2024_en!A:F,5,FALSE)","v":"2024-11-12"},{"$f":"MID(VLOOKUP($D$1&D14&$E$1&E14,UNWDF_Medellín_2024_en!A:F,5,FALSE),1,SEARCH(\"(\",VLOOKUP($D$1&D14&$E$1&E14,UNWDF_Medellín_2024_en!A:F,5,FALSE))-2)","v":"15:30 - 17:00"},"1:30",{"$f":"HLOOKUP($F14,UNWDF_Medellín_2024_en!$H$14:$S$16,2,FALSE)","v":"Plenary Room"},{"$f":"HLOOKUP($F14,UNWDF_Medellín_2024_en!$H$14:$S$16,3,FALSE)","v":3000},"Y","NA","_O",{"$f":"IF(OR(L14=\"NA\",L14=\"E\"),\"NA\",IF(L14=\"Y\",COUNTIF($M$1:N13,N14)+1,COUNTIF($M$1:N13,N14)+1))","v":1},"TA_O.01","Opening ceremony","Departamento Administrativo Nacional de Estadística (DANE-Colombia)","Ceremonia de apertura","Departamento Administrativo Nacional de Estadística (DANE-Colombia)","Day0_Time_Slot2_Parallel 01",null,"1:30"]
[3,"Day1_Time_Slot1_Parallel 01","Day1_Time_Slot1",1,1,"Parallel 01",{"$f":"VLOOKUP($D$1&D15,UNWDF_Medellín_2024_en!A:F,5,FALSE)","v":"2024-11-13"},{"$f":"MID(VLOOKUP($D$1&D15&$E$1&E15,UNWDF_Medellín_2024_en!A:F,5,FALSE),1,SEARCH(\"(\",VLOOKUP($D$1&D15&$E$1&E15,UNWDF_Medellín_2024_en!A:F,5,FALSE))-2)","v":"09:00 - 10:30"},"1:30",{"$f":"HLOOKUP($F15,UNWDF_Medellín_2024_en!$H$14:$S$16,2,FALSE)","v":"Plenary Room"},{"$f":"HLOOKUP($F15,UNWDF_Medellín_2024_en!$H$14:$S$16,3,FALSE)","v":3000},"Y","NA","_O",3,"TA_O.03","Welcome and introduction","Departamento Administrativo Nacional de Estadística (DANE-Colombia) / United Nations Statistics Division (UNSD-DESA)","Bienvenida e introducción","Departamento Administrativo Nacional de Estadística (DANE-Colombia) / División de Estadísticas de las Naciones Unidas (UNSD-DESA)","Day1_Time_Slot1_Parallel 01",null,"1:30"]
[25,"Day1_Time_Slot1_Parallel 02","Day1_Time_Slot1",1,1,"Parallel 02",{"$f":"VLOOKUP($D$1&D16,UNWDF_Medellín_2024_en!A:F,5,FALSE)","v":"2024-11-13"},{"$f":"MID(VLOOKUP($D$1&D16&$E$1&E16,UNWDF_Medellín_2024_en!A:F,5,FALSE),1,SEARCH(\"(\",VLOOKUP($D$1&D16&$E$1&E16,UNWDF_Medellín_2024_en!A:F,5,FALSE))-2)","v":"09:00 - 10:30"},"1:30",{"$f":"HLOOKUP($F16,UNWDF_Medellín_2024_en!$H$14:$S$16,2,FALSE)","v":"Room 1"},{"$f":"HLOOKUP($F16,UNWDF_Medellín_2024_en!$H$14:$S$16,3,FALSE)","v":300},"NA","NA","NA",{"$f":"IF(OR(L16=\"NA\",L16=\"E\"),\"NA\",IF(L16=\"Y\",COUNTIF($M$1:N15,N16)+1,COUNTIF($M$1:N15,N16)+1))","v":"NA"},{"$f":"IF(N16=\"NA\",\"NA\",\"TA\"&N16&\".\"&TEXT(O16,\"0#\"))","v":"NA"},"NA","NA","NA","NA","Day1_Time_Slot1_Parallel 02",null,"1:30"]
[26,"Day1_Time_Slot1_Parallel 03","Day1_Time_Slot1",1,1,"Parallel 03",{"$f":"VLOOKUP($D$1&D17,UNWDF_Medellín_2024_en!A:F,5,FALSE)","v":"2024-11-13"},{"$f":"MID(VLOOKUP($D$1&D17&$E$1&E17,UNWDF_Medellín_2024_en!A:F,5,FALSE),1,SEARCH(\"(\",VLOOKUP($D$1&D17&$E$1&E17,UNWDF_Medellín_2024_en!A:F,5,FALSE))-2)","v":"09:00 - 10:30"},"1:30",{"$f":"HLOOKUP($F17,UNWDF_Medellín_2024_en!$H$14:$S$16,2,FALSE)","v":"Room 2"},{"$f":"HLOOKUP($F17,UNWDF_Medellín_2024_en!$H$14:$S$16,3,FALSE)","v":200},"NA","NA","NA",{"$f":"IF(OR(L17=\"NA\",L17=\"E\"),\"NA\",IF(L17=\"Y\",COUNTIF($M$1:N16,N17)+1,COUNTIF($M$1:N16,N17)+1))","v":"NA"},"NA","NA","NA","NA","NA","Day1_Time_Slot1_Parallel 03",null,"1:30"]
[27,"Day1_Time_Slot1_Parallel 04","Day1_Time_Slot1",1,1,"Parallel 04",{"$f":"VLOOKUP($D$1&D18,UNWDF_Medellín_2024_en!A:F,5,FALSE)","v":"2024-11-13"},{"$f":"MID(VLOOKUP($D$1&D18&$E$1&E18,UNWDF_Medellín_2024_en!A:F,5,FALSE),1,SEARCH(\"(\",VLOOKUP($D$1&D18&$E$1&E18,UNWDF_Medellín_2024_en!A:F,5,FALSE))-2)","v":"09:00 - 10:30"},"1:30",{"$f":"HLOOKUP($F18,UNWDF_Medellín_2024_en!$H$14:$S$16,2,FALSE)","v":"Room 3"},{"$f":"HLOOKUP($F18,UNWDF_Medellín_2024_en!$H$14:$S$16,3,FALSE)","v":200},"NA","NA","NA",{"$f":"IF(OR(L18=\"NA\",L18=\"E\"),\"NA\",IF(L18=\"Y\",COUNTIF($M$1:N17,N18)+1,COUNTIF($M$1:N17,N18)+1))","v":"NA"},"NA","NA","NA","NA","NA","Day1_Time_Slot1_Parallel 04",null,"1:30"]
[28,"Day1_Time_Slot1_Parallel 05","Day1_Time_Slot1",1,1,"Parallel 05",{"$f":"VLOOKUP($D$1&D19,UNWDF_Medellín_2024_en!A:F,5,FALSE)","v":"2024-11-13"},{"$f":"MID(VLOOKUP($D$1&D19&$E$1&E19,UNWDF_Medellín_2024_en!A:F,5,FALSE),1,SEARCH(\"(\",VLOOKUP($D$1&D19&$E$1&E19,UNWDF_Medellín_2024_en!A:F,5,FALSE))-2)","v":"09:00 - 10:30"},"1:30",{"$f":"HLOOKUP($F19,UNWDF_Medellín_2024_en!$H$14:$S$16,2,FALSE)","v":"Room 4"},{"$f":"HLOOKUP($F19,UNWDF_Medellín_2024_en!$H$14:$S$16,3,FALSE)","v":200},"NA","NA","NA",{"$f":"IF(OR(L19=\"NA\",L19=\"E\"),\"NA\",IF(L19=\"Y\",COUNTIF($M$1:N18,N19)+1,COUNTIF($M$1:N18,N19)+1))","v":"NA"},"NA","NA","NA","NA","NA","Day1_Time_Slot1_Parallel 05","","1:30"]
[29,"Day1_Time_Slot1_Parallel 06","Day1_Time_Slot1",1,1,"Parallel 06",{"$f":"VLOOKUP($D$1&D20,UNWDF_Medellín_2024_en!A:F,5,FALSE)","v":"2024-11-13"},{"$f":"MID(VLOOKUP($D$1&D20&$E$1&E20,UNWDF_Medellín_2024_en!A:F,5,FALSE),1,SEARCH(\"(\",VLOOKUP($D$1&D20&$E$1&E20,UNWDF_Medellín_2024_en!A:F,5,FALSE))-2)","v":"09:00 - 10:30"},"1:30",{"$f":"HLOOKUP($F20,UNWDF_Medellín_2024_en!$H$14:$S$16,2,FALSE)","v":"Room 5"},{"$f":"HLOOKUP($F20,UNWDF_Medellín_2024_en!$H$14:$S$16,3,FALSE)","v":200},"NA","NA","NA",{"$f":"IF(OR(L20=\"NA\",L20=\"E\"),\"NA\",IF(L20=\"Y\",COUNTIF($M$1:N19,N20)+1,COUNTIF($M$1:N19,N20)+1))","v":"NA"},"NA","NA","NA","NA","NA","Day1_Time_Slot1_Parallel 06","","1:30"]
[30,"Day1_Time_Slot1_Parallel 07","Day1_Time_Slot1",1,1,"Parallel 07",{"$f":"VLOOKUP($D$1&D21,UNWDF_Medellín_2024_en!A:F,5,FALSE)","v":"2024-11-13"},{"$f":"MID(VLOOKUP($D$1&D21&$E$1&E21,UNWDF_Medellín_2024_en!A:F,5,FALSE),1,SEARCH(\"(\",VLOOKUP($D$1&D21&$E$1&E21,UNWDF_Medellín_2024_en!A:F,5,FALSE))-2)","v":"09:00 - 10:30"},"1:30",{"$f":"HLOOKUP($F21,UNWDF_Medellín_2024_en!$H$14:$S$16,2,FALSE)","v":"Room 6"},{"$f":"HLOOKUP($F21,UNWDF_Medellín_2024_en!$H$14:$S$16,3,FALSE)","v":150},"NA","NA","NA",{"$f":"IF(OR(L21=\"NA\",L21=\"E\"),\"NA\",IF(L21=\"Y\",COUNTIF($M$1:N20,N21)+1,COUNTIF($M$1:N20,N21)+1))","v":"NA"},"NA","NA","NA","NA","NA","Day1_Time_Slot1_Parallel 07","","1:30"]
[31,"Day1_Time_Slot1_Parallel 08","Day1_Time_Slot1",1,1,"Parallel 08",{"$f":"VLOOKUP($D$1&D22,UNWDF_Medellín_2024_en!A:F,5,FALSE)","v":"2024-11-13"},{"$f":"MID(VLOOKUP($D$1&D22&$E$1&E22,UNWDF_Medellín_2024_en!A:F,5,FALSE),1,SEARCH(\"(\",VLOOKUP($D$1&D22&$E$1&E22,UNWDF_Medellín_2024_en!A:F,5,FALSE))-2)","v":"09:00 - 10:30"},"1:30",{"$f":"HLOOKUP($F22,UNWDF_Medellín_2024_en!$H$14:$S$16,2,FALSE)","v":"Room 7"},{"$f":"HLOOKUP($F22,UNWDF_Medellín_2024_en!$H$14:$S$16,3,FALSE)","v":150},"NA","NA","NA",{"$f":"IF(OR(L22=\"NA\",L22=\"E\"),\"NA\",IF(L22=\"Y\",COUNTIF($M$1:N21,N22)+1,COUNTIF($M$1:N21,N22)+1))","v":"NA"},"NA","NA","NA","NA","NA","Day1_Time_Slot1_Parallel 08","","1:30"]
[32,"Day1_Time_Slot1_Parallel 09","Day1_Time_Slot1",1,1,"Parallel 09",{"$f":"VLOOKUP($D$1&D23,UNWDF_Medellín_2024_en!A:F,5,FALSE)","v":"2024-11-13"},{"$f":"MID(VLOOKUP($D$1&D23&$E$1&E23,UNWDF_Medellín_2024_en!A:F,5,FALSE),1,SEARCH(\"(\",VLOOKUP($D$1&D23&$E$1&E23,UNWDF_Medellín_2024_en!A:F,5,FALSE))-2)","v":"09:00 - 10:30"},"1:30",{"$f":"HLOOKUP($F23,UNWDF_Medellín_2024_en!$H$14:$S$16,2,FALSE)","v":"Room 8"},{"$f":"HLOOKUP($F23,UNWDF_Medellín_2024_en!$H$14:$S$16,3,FALSE)","v":90},"NA","NA","NA",{"$f":"IF(OR(L23=\"NA\",L23=\"E\"),\"NA\",IF(L23=\"Y\",COUNTIF($M$1:N22,N23)+1,COUNTIF($M$1:N22,N23)+1))","v":"NA"},"NA","NA","NA","NA","NA","Day1_Time_Slot1_Parallel 09","","1:30"]
[33,"Day1_Time_Slot1_Parallel 10","Day1_Time_Slot1",1,1,"Parallel 10",{"$f":"VLOOKUP($D$1&D24,UNWDF_Medellín_2024_en!A:F,5,FALSE)","v":"2024-11-13"},{"$f":"MID(VLOOKUP($D$1&D24&$E$1&E24,UNWDF_Medellín_2024_en!A:F,5,FALSE),1,SEARCH(\"(\",VLOOKUP($D$1&D24&$E$1&E24,UNWDF_Medellín_2024_en!A:F,5,FALSE))-2)","v":"09:00 - 10:30"},"1:30",{"$f":"HLOOKUP($F24,UNWDF_Medellín_2024_en!$H$14:$S$16,2,FALSE)","v":"Room 9"},{"$f":"HLOOKUP($F24,UNWDF_Medellín_2024_en!$H$14:$S$16,3,FALSE)","v":60},"NA","NA","NA",{"$f":"IF(OR(L24=\"NA\",L24=\"E\"),\"NA\",IF(L24=\"Y\",COUNTIF($M$1:N23,N24)+1,COUNTIF($M$1:N23,N24)+1))","v":"NA"},"NA","NA","NA","NA","NA","Day1_Time_Slot1_Parallel 10","","1:30"]
[34,"Day1_Time_Slot1_Parallel 11","Day1_Time_Slot1",1,1,"Parallel 11",{"$f":"VLOOKUP($D$1&D25,UNWDF_Medellín_2024_en!A:F,5,FALSE)","v":"2024-11-13"},{"$f":"MID(VLOOKUP($D$1&D25&$E$1&E25,UNWDF_Medellín_2024_en!A:F,5,FALSE),1,SEARCH(\"(\",VLOOKUP($D$1&D25&$E$1&E25,UNWDF_Medellín_2024_en!A:F,5,FALSE))-2)","v":"09:00 - 10:30"},"1:30",{"$f":"HLOOKUP($F25,UNWDF_Medellín_2024_en!$H$14:$S$16,2,FALSE)","v":"Room 10"},{"$f":"HLOOKUP($F25,UNWDF_Medellín_2024_en!$H$14:$S$16,3,FALSE)","v":60},"NA","NA","NA",{"$f":"IF(OR(L25=\"NA\",L25=\"E\"),\"NA\",IF(L25=\"Y\",COUNTIF($M$1:N24,N25)+1,COUNTIF($M$1:N24,N25)+1))","v":"NA"},"NA","NA","NA","NA","NA","Day1_Time_Slot1_Parallel 11","","1:30"]
[35,"Day1_Time_Slot1_Parallel 12","Day1_Time_Slot1",1,1,"Parallel 12",{"$f":"VLOOKUP($D$1&D26,UNWDF_Medellín_2024_en!A:F,5,FALSE)","v":"2024-11-13"},{"$f":"MID(VLOOKUP($D$1&D26&$E$1&E26,UNWDF_Medellín_2024_en!A:F,5,FALSE),1,SEARCH(\"(\",VLOOKUP($D$1&D26&$E$1&E26,UNWDF_Medellín_2024_en!A:F,5,FALSE))-2)","v":"09:00 - 10:30"},"1:30",{"$f":"HLOOKUP($F26,UNWDF_Medellín_2024_en!$H$14:$S$16,2,FALSE)","v":"NA"},{"$f":"HLOOKUP($F26,UNWDF_Medellín_2024_en!$H$14:$S$16,3,FALSE)","v":"NA"},"NA","NA","NA",{"$f":"IF(OR(L26=\"NA\",L26=\"E\"),\"NA\",IF(L26=\"Y\",COUNTIF($M$1:N25,N26)+1,COUNTIF($M$1:N25,N26)+1))","v":"NA"},"NA","NA","NA","NA","NA","Day1_Time_Slot1_Parallel 12","","1:30"]
[4,"Day1_Time_Slot2_Parallel 01","Day1_Time_Slot2",1,2,"Parallel 01",{"$f":"VLOOKUP($D$1&D27,UNWDF_Medellín_2024_en!A:F,5,FALSE)","v":"2024-11-13"},{"$f":"MID(VLOOKUP($D$1&D27&$E$1&E27,UNWDF_Medellín_2024_en!A:F,5,FALSE),1,SEARCH(\"(\",VLOOKUP($D$1&D27&$E$1&E27,UNWDF_Medellín_2024_en!A:F,5,FALSE))-2)","v":"10:40 - 11:55"},"1:15",{"$f":"HLOOKUP($F27,UNWDF_Medellín_2024_en!$H$14:$S$16,2,FALSE)","v":"Plenary Room"},{"$f":"HLOOKUP($F27,UNWDF_Medellín_2024_en!$H$14:$S$16,3,FALSE)","v":3000},"Y","NA",1,1,"TA1.1","Innovation for better and more inclusive data","UN World Data Forum Programme Committee (UNWDF PC)","Innovación para unos datos mejores y más inclusivos","Comité del Programa del Foro Mundial de Datos de la ONU (UNWDF PC)","Day1_Time_Slot2_Parallel 01","","1:15"]
[36,"Day1_Time_Slot2_Parallel 02","Day1_Time_Slot2",1,2,"Parallel 02",{"$f":"VLOOKUP($D$1&D28,UNWDF_Medellín_2024_en!A:F,5,FALSE)","v":"2024-11-13"},{"$f":"MID(VLOOKUP($D$1&D28&$E$1&E28,UNWDF_Medellín_2024_en!A:F,5,FALSE),1,SEARCH(\"(\",VLOOKUP($D$1&D28&$E$1&E28,UNWDF_Medellín_2024_en!A:F,5,FALSE))-2)","v":"10:40 - 11:55"},"1:15",{"$f":"HLOOKUP($F28,UNWDF_Medellín_2024_en!$H$14:$S$16,2,FALSE)","v":"Room 1"},{"$f":"HLOOKUP($F28,UNWDF_Medellín_2024_en!$H$14:$S$16,3,FALSE)","v":300},"NA","NA","NA",{"$f":"IF(OR(L28=\"NA\",L28=\"E\"),\"NA\",IF(L28=\"Y\",COUNTIF($M$1:N27,N28)+1,COUNTIF($M$1:N27,N28)+1))","v":"NA"},{"$f":"IF(N28=\"NA\",\"NA\",\"TA\"&N28&\".\"&TEXT(O28,\"0#\"))","v":"NA"},"NA","NA","NA","NA","Day1_Time_Slot2_Parallel 02","","1:15"]
[37,"Day1_Time_Slot2_Parallel 03","Day1_Time_Slot2",1,2,"Parallel 03",{"$f":"VLOOKUP($D$1&D29,UNWDF_Medellín_2024_en!A:F,5,FALSE)","v":"2024-11-13"},{"$f":"MID(VLOOKUP($D$1&D29&$E$1&E29,UNWDF_Medellín_2024_en!A:F,5,FALSE),1,SEARCH(\"(\",VLOOKUP($D$1&D29&$E$1&E29,UNWDF_Medellín_2024_en!A:F,5,FALSE))-2)","v":"10:40 - 11:55"},"1:15",{"$f":"HLOOKUP($F29,UNWDF_Medellín_2024_en!$H$14:$S$16,2,FALSE)","v":"Room 2"},{"$f":"HLOOKUP($F29,UNWDF_Medellín_2024_en!$H$14:$S$16,3,FALSE)","v":200},"NA","NA","NA",{"$f":"IF(OR(L29=\"NA\",L29=\"E\"),\"NA\",IF(L29=\"Y\",COUNTIF($M$1:N28,N29)+1,COUNTIF($M$1:N28,N29)+1))","v":"NA"},"NA","NA","NA","NA","NA","Day1_Time_Slot2_Parallel 03","","1:15"]
[38,"Day1_Time_Slot2_Parallel 04","Day1_Time_Slot2",1,2,"Parallel 04",{"$f":"VLOOKUP($D$1&D30,UNWDF_Medellín_2024_en!A:F,5,FALSE)","v":"2024-11-13"},{"$f":"MID(VLOOKUP($D$1&D30&$E$1&E30,UNWDF_Medellín_2024_en!A:F,5,FALSE),1,SEARCH(\"(\",VLOOKUP($D$1&D30&$E$1&E30,UNWDF_Medellín_2024_en!A:F,5,FALSE))-2)","v":"10:40 - 11:55"},"1:15",{"$f":"HLOOKUP($F30,UNWDF_Medellín_2024_en!$H$14:$S$16,2,FALSE)","v":"Room 3"},{"$f":"HLOOKUP($F30,UNWDF_Medellín_2024_en!$H$14:$S$16,3,FALSE)","v":200},"NA","NA","NA",{"$f":"IF(OR(L30=\"NA\",L30=\"E\"),\"NA\",IF(L30=\"Y\",COUNTIF($M$1:N29,N30)+1,COUNTIF($M$1:N29,N30)+1))","v":"NA"},"NA","NA","NA","NA","NA","Day1_Time_Slot2_Parallel 04","","1:15"]
[39,"Day1_Time_Slot2_Parallel 05","Day1_Time_Slot2",1,2,"Parallel 05",{"$f":"VLOOKUP($D$1&D31,UNWDF_Medellín_2024_en!A:F,5,FALSE)","v":"2024-11-13"},{"$f":"MID(VLOOKUP($D$1&D31&$E$1&E31,UNWDF_Medellín_2024_en!A:F,5,FALSE),1,SEARCH(\"(\",VLOOKUP($D$1&D31&$E$1&E31,UNWDF_Medellín_2024_en!A:F,5,FALSE))-2)","v":"10:40 - 11:55"},"1:15",{"$f":"HLOOKUP($F31,UNWDF_Medellín_2024_en!$H$14:$S$16,2,FALSE)","v":"Room 4"},{"$f":"HLOOKUP($F31,UNWDF_Medellín_2024_en!$H$14:$S$16,3,FALSE)","v":200},"NA","NA","NA",{"$f":"IF(OR(L31=\"NA\",L31=\"E\"),\"NA\",IF(L31=\"Y\",COUNTIF($M$1:N30,N31)+1,COUNTIF($M$1:N30,N31)+1))","v":"NA"},"NA","NA","NA","NA","NA","Day1_Time_Slot2_Parallel 05","","1:15"]
[40,"Day1_Time_Slot2_Parallel 06","Day1_Time_Slot2",1,2,"Parallel 06",{"$f":"VLOOKUP($D$1&D32,UNWDF_Medellín_2024_en!A:F,5,FALSE)","v":"2024-11-13"},{"$f":"MID(VLOOKUP($D$1&D32&$E$1&E32,UNWDF_Medellín_2024_en!A:F,5,FALSE),1,SEARCH(\"(\",VLOOKUP($D$1&D32&$E$1&E32,UNWDF_Medellín_2024_en!A:F,5,FALSE))-2)","v":"10:40 - 11:55"},"1:15",{"$f":"HLOOKUP($F32,UNWDF_Medellín_2024_en!$H$14:$S$16,2,FALSE)","v":"Room 5"},{"$f":"HLOOKUP($F32,UNWDF_Medellín_2024_en!$H$14:$S$16,3,FALSE)","v":200},"NA","NA","NA",{"$f":"IF(OR(L32=\"NA\",L32=\"E\"),\"NA\",IF(L32=\"Y\",COUNTIF($M$1:N31,N32)+1,COUNTIF($M$1:N31,N32)+1))","v":"NA"},"NA","NA","NA","NA","NA","Day1_Time_Slot2_Parallel 06","","1:15"]
[41,"Day1_Time_Slot2_Parallel 07","Day1_Time_Slot2",1,2,"Parallel 07",{"$f":"VLOOKUP($D$1&D33,UNWDF_Medellín_2024_en!A:F,5,FALSE)","v":"2024-11-13"},{"$f":"MID(VLOOKUP($D$1&D33&$E$1&E33,UNWDF_Medellín_2024_en!A:F,5,FALSE),1,SEARCH(\"(\",VLOOKUP($D$1&D33&$E$1&E33,UNWDF_Medellín_2024_en!A:F,5,FALSE))-2)","v":"10:40 - 11:55"},"1:15",{"$f":"HLOOKUP($F33,UNWDF_Medellín_2024_en!$H$14:$S$16,2,FALSE)","v":"Room 6"},{"$f":"HLOOKUP($F33,UNWDF_Medellín_2024_en!$H$14:$S$16,3,FALSE)","v":150},"NA","NA","NA",{"$f":"IF(OR(L33=\"NA\",L33=\"E\"),\"NA\",IF(L33=\"Y\",COUNTIF($M$1:N32,N33)+1,COUNTIF($M$1:N32,N33)+1))","v":"NA"},"NA","NA","NA","NA","NA","Day1_Time_Slot2_Parallel 07","","1:15"]
[42,"Day1_Time_Slot2_Parallel 08","Day1_Time_Slot2",1,2,"Parallel 08",{"$f":"VLOOKUP($D$1&D34,UNWDF_Medellín_2024_en!A:F,5,FALSE)","v":"2024-11-13"},{"$f":"MID(VLOOKUP($D$1&D34&$E$1&E34,UNWDF_Medellín_2024_en!A:F,5,FALSE),1,SEARCH(\"(\",VLOOKUP($D$1&D34&$E$1&E34,UNWDF_Medellín_2024_en!A:F,5,FALSE))-2)","v":"10:40 - 11:55"},"1:15",{"$f":"HLOOKUP($F34,UNWDF_Medellín_2024_en!$H$14:$S$16,2,FALSE)","v":"Room 7"},{"$f":"HLOOKUP($F34,UNWDF_Medellín_2024_en!$H$14:$S$16,3,FALSE)","v":150},"NA","NA","NA",{"$f":"IF(OR(L34=\"NA\",L34=\"E\"),\"NA\",IF(L34=\"Y\",COUNTIF($M$1:N33,N34)+1,COUNTIF($M$1:N33,N34)+1))","v":"NA"},"NA","NA","NA","NA","NA","Day1_Time_Slot2_Parallel 08","","1:15"]
[43,"Day1_Time_Slot2_Parallel 09","Day1_Time_Slot2",1,2,"Parallel 09",{"$f":"VLOOKUP($D$1&D35,UNWDF_Medellín_2024_en!A:F,5,FALSE)","v":"2024-11-13"},{"$f":"MID(VLOOKUP($D$1&D35&$E$1&E35,UNWDF_Medellín_2024_en!A:F,5,FALSE),1,SEARCH(\"(\",VLOOKUP($D$1&D35&$E$1&E35,UNWDF_Medellín_2024_en!A:F,5,FALSE))-2)","v":"10:40 - 11:55"},"1:15",{"$f":"HLOOKUP($F35,UNWDF_Medellín_2024_en!$H$14:$S$16,2,FALSE)","v":"Room 8"},{"$f":"HLOOKUP($F35,UNWDF_Medellín_2024_en!$H$14:$S$16,3,FALSE)","v":90},"NA","NA","NA",{"$f":"IF(OR(L35=\"NA\",L35=\"E\"),\"NA\",IF(L35=\"Y\",COUNTIF($M$1:N34,N35)+1,COUNTIF($M$1:N34,N35)+1))","v":"NA"},"NA","NA","NA","NA","NA","Day1_Time_Slot2_Parallel 09","","1:15"]
[44,"Day1_Time_Slot2_Parallel 10","Day1_Time_Slot2",1,2,"Parallel 10",{"$f":"VLOOKUP($D$1&D36,UNWDF_Medellín_2024_en!A:F,5,FALSE)","v":"2024-11-13"},{"$f":"MID(VLOOKUP($D$1&D36&$E$1&E36,UNWDF_Medellín_2024_en!A:F,5,FALSE),1,SEARCH(\"(\",VLOOKUP($D$1&D36&$E$1&E36,UNWDF_Medellín_2024_en!A:F,5,FALSE))-2)","v":"10:40 - 11:55"},"1:15",{"$f":"HLOOKUP($F36,UNWDF_Medellín_2024_en!$H$14:$S$16,2,FALSE)","v":"Room 9"},{"$f":"HLOOKUP($F36,UNWDF_Medellín_2024_en!$H$14:$S$16,3,FALSE)","v":60},"NA","NA","NA",{"$f":"IF(OR(L36=\"NA\",L36=\"E\"),\"NA\",IF(L36=\"Y\",COUNTIF($M$1:N35,N36)+1,COUNTIF($M$1:N35,N36)+1))","v":"NA"},"NA","NA","NA","NA","NA","Day1_Time_Slot2_Parallel 10","","1:15"]
[45,"Day1_Time_Slot2_Parallel 11","Day1_Time_Slot2",1,2,"Parallel 11",{"$f":"VLOOKUP($D$1&D37,UNWDF_Medellín_2024_en!A:F,5,FALSE)","v":"2024-11-13"},{"$f":"MID(VLOOKUP($D$1&D37&$E$1&E37,UNWDF_Medellín_2024_en!A:F,5,FALSE),1,SEARCH(\"(\",VLOOKUP($D$1&D37&$E$1&E37,UNWDF_Medellín_2024_en!A:F,5,FALSE))-2)","v":"10:40 - 11:55"},"1:15",{"$f":"HLOOKUP($F37,UNWDF_Medellín_2024_en!$H$14:$S$16,2,FALSE)","v":"Room 10"},{"$f":"HLOOKUP($F37,UNWDF_Medellín_2024_en!$H$14:$S$16,3,FALSE)","v":60},"NA","NA","NA",{"$f":"IF(OR(L37=\"NA\",L37=\"E\"),\"NA\",IF(L37=\"Y\",COUNTIF($M$1:N36,N37)+1,COUNTIF($M$1:N36,N37)+1))","v":"NA"},"NA","NA","NA","NA","NA","Day1_Time_Slot2_Parallel 11","","1:15"]
[46,"Day1_Time_Slot2_Parallel 12","Day1_Time_Slot2",1,2,"Parallel 12",{"$f":"VLOOKUP($D$1&D38,UNWDF_Medellín_2024_en!A:F,5,FALSE)","v":"2024-11-13"},{"$f":"MID(VLOOKUP($D$1&D38&$E$1&E38,UNWDF_Medellín_2024_en!A:F,5,FALSE),1,SEARCH(\"(\",VLOOKUP($D$1&D38&$E$1&E38,UNWDF_Medellín_2024_en!A:F,5,FALSE))-2)","v":"10:40 - 11:55"},"1:15",{"$f":"HLOOKUP($F38,UNWDF_Medellín_2024_en!$H$14:$S$16,2,FALSE)","v":"NA"},{"$f":"HLOOKUP($F38,UNWDF_Medellín_2024_en!$H$14:$S$16,3,FALSE)","v":"NA"},"NA","NA","NA",{"$f":"IF(OR(L38=\"NA\",L38=\"E\"),\"NA\",IF(L38=\"Y\",COUNTIF($M$1:N37,N38)+1,COUNTIF($M$1:N37,N38)+1))","v":"NA"},"NA","NA","NA","NA","NA","Day1_Time_Slot2_Parallel 12","","1:15"]
[47,"Day1_Time_Slot3_Parallel 01","Day1_Time_Slot3",1,3,"Parallel 01",{"$f":"VLOOKUP($D$1&D39,UNWDF_Medellín_2024_en!A:F,5,FALSE)","v":"2024-11-13"},{"$f":"MID(VLOOKUP($D$1&D39&$E$1&E39,UNWDF_Medellín_2024_en!A:F,5,FALSE),1,SEARCH(\"(\",VLOOKUP($D$1&D39&$E$1&E39,UNWDF_Medellín_2024_en!A:F,5,FALSE))-2)","v":"12:15 - 13:15"},"1:00",{"$f":"HLOOKUP($F39,UNWDF_Medellín_2024_en!$H$14:$S$16,2,FALSE)","v":"Plenary Room"},{"$f":"HLOOKUP($F39,UNWDF_Medellín_2024_en!$H$14:$S$16,3,FALSE)","v":3000},"NA","NA","NA",{"$f":"IF(OR(L39=\"NA\",L39=\"E\"),\"NA\",IF(L39=\"Y\",COUNTIF($M$1:N38,N39)+1,COUNTIF($M$1:N38,N39)+1))","v":"NA"},"NA","NA","NA","NA","NA","Day1_Time_Slot3_Parallel 01",null,"1:00"]
[122,"Day1_Time_Slot3_Parallel 02","Day1_Time_Slot3",1,3,"Parallel 02",{"$f":"VLOOKUP($D$1&D40,UNWDF_Medellín_2024_en!A:F,5,FALSE)","v":"2024-11-13"},{"$f":"MID(VLOOKUP($D$1&D40&$E$1&E40,UNWDF_Medellín_2024_en!A:F,5,FALSE),1,SEARCH(\"(\",VLOOKUP($D$1&D40&$E$1&E40,UNWDF_Medellín_2024_en!A:F,5,FALSE))-2)","v":"12:15 - 13:15"},"1:00",{"$f":"HLOOKUP($F40,UNWDF_Medellín_2024_en!$H$14:$S$16,2,FALSE)","v":"Room 1"},{"$f":"HLOOKUP($F40,UNWDF_Medellín_2024_en!$H$14:$S$16,3,FALSE)","v":300},"N","TBC",1,{"$f":"IF(OR(L40=\"NA\",L40=\"E\"),\"NA\",IF(L40=\"Y\",COUNTIF($M$1:N39,N40)+1,COUNTIF($M$1:N39,N40)+1))","v":2},"TA1.2","Leveraging AI and open data to address pressing global and local development challenges","Google; United Nations Statistics Division (UNSD-DESA); MAKAIA; Organisation for Economic Co-operation and Development (OECD); ONE Campaign; ","Aprovechar la inteligencia artificial y los datos abiertos para abordar los apremiantes retos del desarrollo mundial y local","Google; División de Estadísticas de las Naciones Unidas (UNSD-DESA); MAKAIA; Organización para la Cooperación y el Desarrollo Económico (OCDE); ONE Campaign","Day1_Time_Slot3_Parallel 02",null,"1:00"]
[123,"Day1_Time_Slot3_Parallel 03","Day1_Time_Slot3",1,3,"Parallel 03",{"$f":"VLOOKUP($D$1&D41,UNWDF_Medellín_2024_en!A:F,5,FALSE)","v":"2024-11-13"},{"$f":"MID(VLOOKUP($D$1&D41&$E$1&E41,UNWDF_Medellín_2024_en!A:F,5,FALSE),1,SEARCH(\"(\",VLOOKUP($D$1&D41&$E$1&E41,UNWDF_Medellín_2024_en!A:F,5,FALSE))-2)","v":"12:15 - 13:15"},"1:00",{"$f":"HLOOKUP($F41,UNWDF_Medellín_2024_en!$H$14:$S$16,2,FALSE)","v":"Room 2"},{"$f":"HLOOKUP($F41,UNWDF_Medellín_2024_en!$H$14:$S$16,3,FALSE)","v":200},"N","NA",1,{"$f":"IF(OR(L41=\"NA\",L41=\"E\"),\"NA\",IF(L41=\"Y\",COUNTIF($M$1:N40,N41)+1,COUNTIF($M$1:N40,N41)+1))","v":3},"TA1.4","Improving access to civil registration services for lesbian, gay, bisexual, transgender, queer, intersex and asexual (LGBTQIA+) communities globally by strengthening national and regional laws and data systems and ensuring legal identity.","Global Health Advocacy Incubator; Gender Equity Unit, John Hopkins Bloomberg School of Public Health; Indian Council of Medical Research; Directorate of Census Operations and Citizen Registration (DCOCR-India); State Rainbow Foundation","Mejorar el acceso a los servicios de registro civil de las comunidades de lesbianas, gays, bisexuales, transexuales, queer, intersexuales y asexuales (LGBTQIA+) en todo el mundo, reforzando las leyes y los sistemas de datos nacionales y regionales y garantizando la identidad jurídica.","Incubadora de Defensa de la Salud Global; Fundación Rainbow Estatal","Day1_Time_Slot3_Parallel 03","Update (es): Gender Equity Unit, John Hopkins Bloomberg School of Public Health; Indian Council of Medical Research; Directorate of Census Operations and Citizen Registration (DCOCR-India)","1:00"]
[124,"Day1_Time_Slot3_Parallel 04","Day1_Time_Slot3",1,3,"Parallel 04",{"$f":"VLOOKUP($D$1&D42,UNWDF_Medellín_2024_en!A:F,5,FALSE)","v":"2024-11-13"},{"$f":"MID(VLOOKUP($D$1&D42&$E$1&E42,UNWDF_Medellín_2024_en!A:F,5,FALSE),1,SEARCH(\"(\",VLOOKUP($D$1&D42&$E$1&E42,UNWDF_Medellín_2024_en!A:F,5,FALSE))-2)","v":"12:15 - 13:15"},"1:00",{"$f":"HLOOKUP($F42,UNWDF_Medellín_2024_en!$H$14:$S$16,2,FALSE)","v":"Room 3"},{"$f":"HLOOKUP($F42,UNWDF_Medellín_2024_en!$H$14:$S$16,3,FALSE)","v":200},"N","NA",1,{"$f":"IF(OR(L42=\"NA\",L42=\"E\"),\"NA\",IF(L42=\"Y\",COUNTIF($M$1:N41,N42)+1,COUNTIF($M$1:N41,N42)+1))","v":4},"TA1.14","Taking Data Into Our Own Hands: co-creating the roadmap to implement the Copenhagen Framework on Citizen Data","Danish Human Rights Institute; Human Rights Council, Greenland; Plan International; International Land Coalition (ILC); World Federation of the Deaf; Business and Human Rights Resource Centre; United Nations Statistics Division (UNSD-DESA); Collaborative on Citizen Data Steering Committee (supported by 10 organisations)","Tomar los datos en nuestras manos: cocrear la hoja de ruta para aplicar el Marco de Copenhague sobre Datos Ciudadanos","Instituto Danés de Derechos Humanos; Consejo de Derechos Humanos, Groenlandia; Plan Internacional; Coalición Internacional por la Tierra (ILC); Federación Mundial de Sordos; Centro de Recursos para Empresas y Derechos Humanos; División de Estadísticas de las Naciones Unidas (UNSD-DESA); Comité Directivo de Datos Ciudadanos Colaborativos (apoyado por 10 organizaciones)","Day1_Time_Slot3_Parallel 04",null,"1:00"]
[125,"Day1_Time_Slot3_Parallel 05","Day1_Time_Slot3",1,3,"Parallel 05",{"$f":"VLOOKUP($D$1&D43,UNWDF_Medellín_2024_en!A:F,5,FALSE)","v":"2024-11-13"},{"$f":"MID(VLOOKUP($D$1&D43&$E$1&E43,UNWDF_Medellín_2024_en!A:F,5,FALSE),1,SEARCH(\"(\",VLOOKUP($D$1&D43&$E$1&E43,UNWDF_Medellín_2024_en!A:F,5,FALSE))-2)","v":"12:15 - 13:15"},"1:00",{"$f":"HLOOKUP($F43,UNWDF_Medellín_2024_en!$H$14:$S$16,2,FALSE)","v":"Room 4"},{"$f":"HLOOKUP($F43,UNWDF_Medellín_2024_en!$H$14:$S$16,3,FALSE)","v":200},"E","NA","NA",{"$f":"IF(OR(L43=\"NA\",L43=\"E\"),\"NA\",IF(L43=\"Y\",COUNTIF($M$1:N42,N43)+1,COUNTIF($M$1:N42,N43)+1))","v":"NA"},{"$f":"IF(N43=\"NA\",\"NA\",\"TA\"&N43&\".\"&TEXT(O43,\"0#\"))","v":"NA"},"TBC","TBC","Por Confirmar","Por Confirmar","Day1_Time_Slot3_Parallel 05",null,"1:00"]
[126,"Day1_Time_Slot3_Parallel 06","Day1_Time_Slot3",1,3,"Parallel 06",{"$f":"VLOOKUP($D$1&D44,UNWDF_Medellín_2024_en!A:F,5,FALSE)","v":"2024-11-13"},{"$f":"MID(VLOOKUP($D$1&D44&$E$1&E44,UNWDF_Medellín_2024_en!A:F,5,FALSE),1,SEARCH(\"(\",VLOOKUP($D$1&D44&$E$1&E44,UNWDF_Medellín_2024_en!A:F,5,FALSE))-2)","v":"12:15 - 13:15"},"1:00",{"$f":"HLOOKUP($F44,UNWDF_Medellín_2024_en!$H$14:$S$16,2,FALSE)","v":"Room 5"},{"$f":"HLOOKUP($F44,UNWDF_Medellín_2024_en!$H$14:$S$16,3,FALSE)","v":200},"N","NA",4,{"$f":"IF(OR(L44=\"NA\",L44=\"E\"),\"NA\",IF(L44=\"Y\",COUNTIF($M$1:N43,N44)+1,COUNTIF($M$1:N43,N44)+1))","v":1},"TA4.8","Leveraging Multistakeholder Data-Driven Efforts for Ending Hunger: The Food System Countdown Initiative","Food and Agriculture Organization of the United Nations (FAO); Columbia University; Cornell University; Global Alliance for Improved Nutrition (GAIN)","Aprovechamiento de los esfuerzos basados en datos de múltiples partes interesadas para acabar con el hambre: Iniciativa de Cuenta Regresiva del Sistema Alimentario","Organización de las Naciones Unidas para la Alimentación y la Agricultura (FAO); Universidad de Columbia; Universidad de Cornell; Alianza Global para una Mejor Nutrición (GAIN)","Day1_Time_Slot3_Parallel 06",null,"1:00"]
[127,"Day1_Time_Slot3_Parallel 07","Day1_Time_Slot3",1,3,"Parallel 07",{"$f":"VLOOKUP($D$1&D45,UNWDF_Medellín_2024_en!A:F,5,FALSE)","v":"2024-11-13"},{"$f":"MID(VLOOKUP($D$1&D45&$E$1&E45,UNWDF_Medellín_2024_en!A:F,5,FALSE),1,SEARCH(\"(\",VLOOKUP($D$1&D45&$E$1&E45,UNWDF_Medellín_2024_en!A:F,5,FALSE))-2)","v":"12:15 - 13:15"},"1:00",{"$f":"HLOOKUP($F45,UNWDF_Medellín_2024_en!$H$14:$S$16,2,FALSE)","v":"Room 6"},{"$f":"HLOOKUP($F45,UNWDF_Medellín_2024_en!$H$14:$S$16,3,FALSE)","v":150},"N","NA","_T",{"$f":"IF(OR(L45=\"NA\",L45=\"E\"),\"NA\",IF(L45=\"Y\",COUNTIF($M$1:N44,N45)+1,COUNTIF($M$1:N44,N45)+1))","v":1},"TED.201","From Traditional Surveys to Emerging Technologies: Their Role in Evidence-Based Environmental Policy Making","United Nations Development Programme (UNDP), Accelerator Labs and SDG AI Lab; Ministry of Environment and Natural Resources, Guatemala; Pacific Community (SPC)","De las Encuestas Tradicionales a las Tecnologías Emergentes: Su Papel en la Elaboración de Políticas Medioambientales Basadas en Evidencia","Programa de las Naciones Unidas para el Desarrollo (PNUD); Ministerio de Ambiente y Recursos Naturales, Guatemala; Comunidad del Pacífico (SPC)","Day1_Time_Slot3_Parallel 07",null,"1:00"]
[128,"Day1_Time_Slot3_Parallel 08","Day1_Time_Slot3",1,3,"Parallel 08",{"$f":"VLOOKUP($D$1&D46,UNWDF_Medellín_2024_en!A:F,5,FALSE)","v":"2024-11-13"},{"$f":"MID(VLOOKUP($D$1&D46&$E$1&E46,UNWDF_Medellín_2024_en!A:F,5,FALSE),1,SEARCH(\"(\",VLOOKUP($D$1&D46&$E$1&E46,UNWDF_Medellín_2024_en!A:F,5,FALSE))-2)","v":"12:15 - 13:15"},"1:00",{"$f":"HLOOKUP($F46,UNWDF_Medellín_2024_en!$H$14:$S$16,2,FALSE)","v":"Room 7"},{"$f":"HLOOKUP($F46,UNWDF_Medellín_2024_en!$H$14:$S$16,3,FALSE)","v":150},"N","NA","_T",{"$f":"IF(OR(L46=\"NA\",L46=\"E\"),\"NA\",IF(L46=\"Y\",COUNTIF($M$1:N45,N46)+1,COUNTIF($M$1:N45,N46)+1))","v":2},"TED.211","Monitoring Frameworks for SDGs in India at national and sub-national level / Maximising the use and value of data for better decision making through the Integrated Data Service / Are we missing the missing? Strengthening the health sector’s use of mortality data for public health decision-making / A data-based public management model. Can a microdata exercise enhance public management?","Ministry of Statistics and Programme Implementation (MoSPI-India) / Office for National Statistics (ONS-UK) / Vital Strategies / Polidata","Marcos de Seguimiento de los ODS en la India a nivel nacional y subnacional / Maximizar el uso y el valor de los datos para una mejor toma de decisiones a través del Servicio Integrado de Datos / ¿Nos estamos perdiendo lo que falta? Strengthening the health sector's use of mortality data for public health decision-making / Un modelo de gestión pública basado en datos. ¿Puede un ejercicio de microdatos mejorar la gestión pública?","Ministerio de Estadística y Programa de Implementación (MoSPI-India) / Oficina Nacional de Estadísticas (ONS-Reino Unido) / Vital Strategies / Polidata","Day1_Time_Slot3_Parallel 08",null,"1:00"]
[129,"Day1_Time_Slot3_Parallel 09","Day1_Time_Slot3",1,3,"Parallel 09",{"$f":"VLOOKUP($D$1&D47,UNWDF_Medellín_2024_en!A:F,5,FALSE)","v":"2024-11-13"},{"$f":"MID(VLOOKUP($D$1&D47&$E$1&E47,UNWDF_Medellín_2024_en!A:F,5,FALSE),1,SEARCH(\"(\",VLOOKUP($D$1&D47&$E$1&E47,UNWDF_Medellín_2024_en!A:F,5,FALSE))-2)","v":"12:15 - 13:15"},"1:00",{"$f":"HLOOKUP($F47,UNWDF_Medellín_2024_en!$H$14:$S$16,2,FALSE)","v":"Room 8"},{"$f":"HLOOKUP($F47,UNWDF_Medellín_2024_en!$H$14:$S$16,3,FALSE)","v":90},"N","NA","NA",{"$f":"IF(OR(L47=\"NA\",L47=\"E\"),\"NA\",IF(L47=\"Y\",COUNTIF($M$1:N46,N47)+1,COUNTIF($M$1:N46,N47)+1))","v":80},"Local_1","Data with Purpose: Insights from Colombia's UN Development System","United Nations Resident Coordinator (UNRCO), Colombia; United Nations Country Team (UNCT), Colombia","Datos Con Sentido: la visión del Sistema de Desarrollo de Naciones Unidas en Colombia","Por Confirmar","Day1_Time_Slot3_Parallel 09",null,"1:00"]
[130,"Day1_Time_Slot3_Parallel 10","Day1_Time_Slot3",1,3,"Parallel 10",{"$f":"VLOOKUP($D$1&D48,UNWDF_Medellín_2024_en!A:F,5,FALSE)","v":"2024-11-13"},{"$f":"MID(VLOOKUP($D$1&D48&$E$1&E48,UNWDF_Medellín_2024_en!A:F,5,FALSE),1,SEARCH(\"(\",VLOOKUP($D$1&D48&$E$1&E48,UNWDF_Medellín_2024_en!A:F,5,FALSE))-2)","v":"12:15 - 13:15"},"1:00",{"$f":"HLOOKUP($F48,UNWDF_Medellín_2024_en!$H$14:$S$16,2,FALSE)","v":"Room 9"},{"$f":"HLOOKUP($F48,UNWDF_Medellín_2024_en!$H$14:$S$16,3,FALSE)","v":60},"N","NA","_L",{"$f":"IF(OR(L48=\"NA\",L48=\"E\"),\"NA\",IF(L48=\"Y\",COUNTIF($M$1:N47,N48)+1,COUNTIF($M$1:N47,N48)+1))","v":1},"LEARN.301","Practicing Digital Inclusion: An interactive learning session","Athena Infonomics LLC; United States Agency for International Development (USAID)","Practicando la Inclusión Digital: Una sesión de aprendizaje interactivo","Athena Infonomics LLC; Agencia de los Estados Unidos para el Desarrollo Internacional (USAID)","Day1_Time_Slot3_Parallel 10","","1:00"]
[131,"Day1_Time_Slot3_Parallel 11","Day1_Time_Slot3",1,3,"Parallel 11",{"$f":"VLOOKUP($D$1&D49,UNWDF_Medellín_2024_en!A:F,5,FALSE)","v":"2024-11-13"},{"$f":"MID(VLOOKUP($D$1&D49&$E$1&E49,UNWDF_Medellín_2024_en!A:F,5,FALSE),1,SEARCH(\"(\",VLOOKUP($D$1&D49&$E$1&E49,UNWDF_Medellín_2024_en!A:F,5,FALSE))-2)","v":"12:15 - 13:15"},"1:00",{"$f":"HLOOKUP($F49,UNWDF_Medellín_2024_en!$H$14:$S$16,2,FALSE)","v":"Room 10"},{"$f":"HLOOKUP($F49,UNWDF_Medellín_2024_en!$H$14:$S$16,3,FALSE)","v":60},"N","NA","_D",{"$f":"IF(OR(L49=\"NA\",L49=\"E\"),\"NA\",IF(L49=\"Y\",COUNTIF($M$1:N48,N49)+1,COUNTIF($M$1:N48,N49)+1))","v":1},"DEMO.501","Technological stack for leveraging large volumes of data: use case for constructing labor market indicators in Chile from administrative records of workplace accidents and occupational diseases. / Uniting data for the common good of migration / The role of population data in creating urban heat index maps of your city","Instituto Nacional de Estadísticas (INE-Chile); Instituto Nacional de Estadística y Geografía (INEGI-México); Agencia de Cooperación Internacional para el Desarrollo, Chile; Ministry of Foreign Affairs, Mexico / International Organisation for Migration (IOM) / Environmental Systems Research Institute (Esri); AfroLeadership; PLACE; WorldPop/University of Southampton","Pila tecnológica para aprovechar grandes volúmenes de datos: caso de uso para construir indicadores del mercado laboral en Chile a partir de registros administrativos de accidentes laborales y enfermedades profesionales. / Unir datos para el bien común de la migración / El papel de los datos de población en la creación de mapas de índice de calor urbano de tu ciudad.","Instituto Nacional de Estadísticas (INE-Chile); Instituto Nacional de Estadística y Geografía (INEGI-México); Agencia de Cooperación Internacional para el Desarrollo, Chile; Ministerio de Relaciones Exteriores, México / Organización Internacional para las Migraciones (OIM) / Instituto de Investigación de Sistemas Ambientales (Esri); AfroLeadership; PLACE; WorldPop/Universidad de Southampton","Day1_Time_Slot3_Parallel 11","","1:00"]
[217,"Day1_Time_Slot3_Parallel 12","Day1_Time_Slot3",1,3,"Parallel 12",{"$f":"VLOOKUP($D$1&D50,UNWDF_Medellín_2024_en!A:F,5,FALSE)","v":"2024-11-13"},{"$f":"MID(VLOOKUP($D$1&D50&$E$1&E50,UNWDF_Medellín_2024_en!A:F,5,FALSE),1,SEARCH(\"(\",VLOOKUP($D$1&D50&$E$1&E50,UNWDF_Medellín_2024_en!A:F,5,FALSE))-2)","v":"12:15 - 13:15"},"1:00",{"$f":"HLOOKUP($F50,UNWDF_Medellín_2024_en!$H$14:$S$16,2,FALSE)","v":"NA"},{"$f":"HLOOKUP($F50,UNWDF_Medellín_2024_en!$H$14:$S$16,3,FALSE)","v":"NA"},"NA","NA","NA",{"$f":"IF(OR(L50=\"NA\",L50=\"E\"),\"NA\",IF(L50=\"Y\",COUNTIF($M$1:N49,N50)+1,COUNTIF($M$1:N49,N50)+1))","v":"NA"},{"$f":"IF(N50=\"NA\",\"NA\",\"TA\"&N50&\".\"&TEXT(O50,\"0#\"))","v":"NA"},"NA","NA","NA","NA","Day1_Time_Slot3_Parallel 12","","1:00"]
[48,"Day1_Time_Slot4_Parallel 01","Day1_Time_Slot4",1,4,"Parallel 01",{"$f":"VLOOKUP($D$1&D51,UNWDF_Medellín_2024_en!A:F,5,FALSE)","v":"2024-11-13"},{"$f":"MID(VLOOKUP($D$1&D51&$E$1&E51,UNWDF_Medellín_2024_en!A:F,5,FALSE),1,SEARCH(\"(\",VLOOKUP($D$1&D51&$E$1&E51,UNWDF_Medellín_2024_en!A:F,5,FALSE))-2)","v":"14:15 - 15:15"},"1:00",{"$f":"HLOOKUP($F51,UNWDF_Medellín_2024_en!$H$14:$S$16,2,FALSE)","v":"Plenary Room"},{"$f":"HLOOKUP($F51,UNWDF_Medellín_2024_en!$H$14:$S$16,3,FALSE)","v":3000},"NA","NA","NA",{"$f":"IF(OR(L51=\"NA\",L51=\"E\"),\"NA\",IF(L51=\"Y\",COUNTIF($M$1:N50,N51)+1,COUNTIF($M$1:N50,N51)+1))","v":"NA"},"NA","NA","NA","NA","NA","Day1_Time_Slot4_Parallel 01",null,"1:00"]
[132,"Day1_Time_Slot4_Parallel 02","Day1_Time_Slot4",1,4,"Parallel 02",{"$f":"VLOOKUP($D$1&D52,UNWDF_Medellín_2024_en!A:F,5,FALSE)","v":"2024-11-13"},{"$f":"MID(VLOOKUP($D$1&D52&$E$1&E52,UNWDF_Medellín_2024_en!A:F,5,FALSE),1,SEARCH(\"(\",VLOOKUP($D$1&D52&$E$1&E52,UNWDF_Medellín_2024_en!A:F,5,FALSE))-2)","v":"14:15 - 15:15"},"1:00",{"$f":"HLOOKUP($F52,UNWDF_Medellín_2024_en!$H$14:$S$16,2,FALSE)","v":"Room 1"},{"$f":"HLOOKUP($F52,UNWDF_Medellín_2024_en!$H$14:$S$16,3,FALSE)","v":300},"N","NA",2,{"$f":"IF(OR(L52=\"NA\",L52=\"E\"),\"NA\",IF(L52=\"Y\",COUNTIF($M$1:N51,N52)+1,COUNTIF($M$1:N51,N52)+1))","v":1},"TA2.2","Data for Action: Innovative Solutions for Effective Data Dissemination and Use","United Nations Population Fund (UNFPA); Government of Bangladesh; Ghana Statistical Service (GSS); World Bank (WB); United Nations Statistics Division (UNSD-DESA); World Health Organization (WHO); United Nations Economic Commission for Latin America and the Caribbean (UNECLAC / CEPAL)","Datos para la acción: Soluciones Innovadoras para la Difusión y el Uso Eficaces de los Datos","Fondo de Población de las Naciones Unidas (UNFPA); Gobierno de Bangladesh,; Servicio de Estadística de Ghana (GSS); Banco Mundial (BM); División de Estadísticas de las Naciones Unidas (UNSD-DESA); Organización Mundial de la Salud (OMS); Comisión Económica para América Latina y el Caribe (CEPAL)","Day1_Time_Slot4_Parallel 02",null,"1:00"]
[133,"Day1_Time_Slot4_Parallel 03","Day1_Time_Slot4",1,4,"Parallel 03",{"$f":"VLOOKUP($D$1&D53,UNWDF_Medellín_2024_en!A:F,5,FALSE)","v":"2024-11-13"},{"$f":"MID(VLOOKUP($D$1&D53&$E$1&E53,UNWDF_Medellín_2024_en!A:F,5,FALSE),1,SEARCH(\"(\",VLOOKUP($D$1&D53&$E$1&E53,UNWDF_Medellín_2024_en!A:F,5,FALSE))-2)","v":"14:15 - 15:15"},"1:00",{"$f":"HLOOKUP($F53,UNWDF_Medellín_2024_en!$H$14:$S$16,2,FALSE)","v":"Room 2"},{"$f":"HLOOKUP($F53,UNWDF_Medellín_2024_en!$H$14:$S$16,3,FALSE)","v":200},"N","NA",3,{"$f":"IF(OR(L53=\"NA\",L53=\"E\"),\"NA\",IF(L53=\"Y\",COUNTIF($M$1:N52,N53)+1,COUNTIF($M$1:N52,N53)+1))","v":1},"TA3.6","The future role of the UN Statistical Commission","Swiss Federal Statistical Office (SFSO); United Nations Educational, Scientific and Cultural Organization (UNESCO); Oficina Nacional de Estadística (ONE-República Dominicana); Office of the United Nations Secretary-General (EOSG); United Nations Statistics Division (UNSD-DESA)","El papel futuro de la Comisión Estadística de la ONU","Oficina Federal de Estadística de Suiza (SFSO); Organización de las Naciones Unidas para la Educación, la Ciencia y la Cultura (UNESCO); Oficina Nacional de Estadística (ONE-República Dominicana); Oficina del Secretario General de las Naciones Unidas (EOSG); División de Estadísticas de las Naciones Unidas (UNSD-DESA)","Day1_Time_Slot4_Parallel 03",null,"1:00"]
[134,"Day1_Time_Slot4_Parallel 04","Day1_Time_Slot4",1,4,"Parallel 04",{"$f":"VLOOKUP($D$1&D54,UNWDF_Medellín_2024_en!A:F,5,FALSE)","v":"2024-11-13"},{"$f":"MID(VLOOKUP($D$1&D54&$E$1&E54,UNWDF_Medellín_2024_en!A:F,5,FALSE),1,SEARCH(\"(\",VLOOKUP($D$1&D54&$E$1&E54,UNWDF_Medellín_2024_en!A:F,5,FALSE))-2)","v":"14:15 - 15:15"},"1:00",{"$f":"HLOOKUP($F54,UNWDF_Medellín_2024_en!$H$14:$S$16,2,FALSE)","v":"Room 3"},{"$f":"HLOOKUP($F54,UNWDF_Medellín_2024_en!$H$14:$S$16,3,FALSE)","v":200},"N","NA",1,{"$f":"IF(OR(L54=\"NA\",L54=\"E\"),\"NA\",IF(L54=\"Y\",COUNTIF($M$1:N53,N54)+1,COUNTIF($M$1:N53,N54)+1))","v":5},"TA1.15","Invisible no Longer: Data Solutions to LNOB Dilemmas","Organización Nacional de Mujeres Indígenas Andinas y Amazónicas del Perú (ONAMIAP); Minority Rights Group International; United Nations Population Fund (UNFPA); Ministry of Foreign Affairs, Ireland","Ya no somos invisibles: Soluciones de Datos a los Dilemas de No Dejar a Nadie Atrás","Organización Nacional de Mujeres Indígenas Andinas y Amazónicas del Perú (ONAMIAP); Minority Rights Group International; Fondo de Población de las Naciones Unidas (UNFPA); Ministerio de Relaciones Exteriores, Irlanda","Day1_Time_Slot4_Parallel 04",null,"1:00"]
[135,"Day1_Time_Slot4_Parallel 05","Day1_Time_Slot4",1,4,"Parallel 05",{"$f":"VLOOKUP($D$1&D55,UNWDF_Medellín_2024_en!A:F,5,FALSE)","v":"2024-11-13"},{"$f":"MID(VLOOKUP($D$1&D55&$E$1&E55,UNWDF_Medellín_2024_en!A:F,5,FALSE),1,SEARCH(\"(\",VLOOKUP($D$1&D55&$E$1&E55,UNWDF_Medellín_2024_en!A:F,5,FALSE))-2)","v":"14:15 - 15:15"},"1:00",{"$f":"HLOOKUP($F55,UNWDF_Medellín_2024_en!$H$14:$S$16,2,FALSE)","v":"Room 4"},{"$f":"HLOOKUP($F55,UNWDF_Medellín_2024_en!$H$14:$S$16,3,FALSE)","v":200},"N","NA",2,{"$f":"IF(OR(L55=\"NA\",L55=\"E\"),\"NA\",IF(L55=\"Y\",COUNTIF($M$1:N54,N55)+1,COUNTIF($M$1:N54,N55)+1))","v":2},"TA2.11","Integrating data use in policy organizations: What does it really take?","Vital Strategies; Instituto Nacional de Salud, Colombia; Ministry of Health, Kenya; Department of Health, Philippines","Integrar el uso de datos en las organizaciones políticas: ¿Qué se necesita realmente?","Vital Strategies; Instituto Nacional De Salud, Colombia; Ministerio de Salud, Kenia; Departamento de Salud, Filipinas","Day1_Time_Slot4_Parallel 05",null,"1:00"]
[136,"Day1_Time_Slot4_Parallel 06","Day1_Time_Slot4",1,4,"Parallel 06",{"$f":"VLOOKUP($D$1&D56,UNWDF_Medellín_2024_en!A:F,5,FALSE)","v":"2024-11-13"},{"$f":"MID(VLOOKUP($D$1&D56&$E$1&E56,UNWDF_Medellín_2024_en!A:F,5,FALSE),1,SEARCH(\"(\",VLOOKUP($D$1&D56&$E$1&E56,UNWDF_Medellín_2024_en!A:F,5,FALSE))-2)","v":"14:15 - 15:15"},"1:00",{"$f":"HLOOKUP($F56,UNWDF_Medellín_2024_en!$H$14:$S$16,2,FALSE)","v":"Room 5"},{"$f":"HLOOKUP($F56,UNWDF_Medellín_2024_en!$H$14:$S$16,3,FALSE)","v":200},"N","NA",4,{"$f":"IF(OR(L56=\"NA\",L56=\"E\"),\"NA\",IF(L56=\"Y\",COUNTIF($M$1:N55,N56)+1,COUNTIF($M$1:N55,N56)+1))","v":2},"TA4.6","Unlocking Development Through Data: Strategic Pathways in Africa","United Nations (UN); Office of the United Nations Secretary-General (EOSG); William and Flora Hewlett Foundation; Makerere University; United Nations Global Pulse (UNGP); United Nations Office for Project Services (UNOPS); United Nations Development Programme (UNDP)","Desbloquear el desarrollo a través de los datos: Caminos estratégicos en África","Naciones Unidas (ONU); Oficina del Secretario General de las Naciones Unidas (EOSG); Fundación William y Flora Hewlett; Universidad Makerere; Pulsación Global de las Naciones Unidas (UNGP); Oficina de Proyectos de las Naciones Unidas (UNOPS); Programa de las Naciones Unidas para el Desarrollo (PNUD)","Day1_Time_Slot4_Parallel 06",null,"1:00"]
[137,"Day1_Time_Slot4_Parallel 07","Day1_Time_Slot4",1,4,"Parallel 07",{"$f":"VLOOKUP($D$1&D57,UNWDF_Medellín_2024_en!A:F,5,FALSE)","v":"2024-11-13"},{"$f":"MID(VLOOKUP($D$1&D57&$E$1&E57,UNWDF_Medellín_2024_en!A:F,5,FALSE),1,SEARCH(\"(\",VLOOKUP($D$1&D57&$E$1&E57,UNWDF_Medellín_2024_en!A:F,5,FALSE))-2)","v":"14:15 - 15:15"},"1:00",{"$f":"HLOOKUP($F57,UNWDF_Medellín_2024_en!$H$14:$S$16,2,FALSE)","v":"Room 6"},{"$f":"HLOOKUP($F57,UNWDF_Medellín_2024_en!$H$14:$S$16,3,FALSE)","v":150},"N","NA","_T",{"$f":"IF(OR(L57=\"NA\",L57=\"E\"),\"NA\",IF(L57=\"Y\",COUNTIF($M$1:N56,N57)+1,COUNTIF($M$1:N56,N57)+1))","v":3},"TED.202","Data Science for empowered and equitable decision making","IDinsight; Danish Human Rights Institute; Departamento Administrativo Nacional de Estadística (DANE-Colombia)","Ciencia de datos para una toma de decisiones empoderada y equitativa","IDinsight; Instituto Danés de Derechos Humanos; Departamento Administrativo Nacional de Estadística (DANE-Colombia)","Day1_Time_Slot4_Parallel 07",null,"1:00"]
[138,"Day1_Time_Slot4_Parallel 08","Day1_Time_Slot4",1,4,"Parallel 08",{"$f":"VLOOKUP($D$1&D58,UNWDF_Medellín_2024_en!A:F,5,FALSE)","v":"2024-11-13"},{"$f":"MID(VLOOKUP($D$1&D58&$E$1&E58,UNWDF_Medellín_2024_en!A:F,5,FALSE),1,SEARCH(\"(\",VLOOKUP($D$1&D58&$E$1&E58,UNWDF_Medellín_2024_en!A:F,5,FALSE))-2)","v":"14:15 - 15:15"},"1:00",{"$f":"HLOOKUP($F58,UNWDF_Medellín_2024_en!$H$14:$S$16,2,FALSE)","v":"Room 7"},{"$f":"HLOOKUP($F58,UNWDF_Medellín_2024_en!$H$14:$S$16,3,FALSE)","v":150},"N","NA","_T",{"$f":"IF(OR(L58=\"NA\",L58=\"E\"),\"NA\",IF(L58=\"Y\",COUNTIF($M$1:N57,N58)+1,COUNTIF($M$1:N57,N58)+1))","v":4},"TED.212","Colombia and the path towards the Universal Income Registry (RUI): business rules, methodology and forms of use / MPI+  Mapping and Monitoring the favelas of Brazil to fight poverty : A non-traditional index for informal settlements: / Shaping transparent, sustainable, and inclusive financial sectors / FISLAC:  a data-driven ecosystem to help governments strengthen fiscal policy sustainability and decision-making","Departamento Nacional de Planeación (DNP-Colombia); World Bank (WB); Inter-American Development Bank (IDB); United Nations World Food Programme (UNWFP); United Nations Children's Fund (UNICEF) / Data-Pop Alliance; Gerando Falcões; Massachusetts Institute of Technology (MIT); TETO TECHO; Humanitarian OpenStreetMap (HOTOSM) / Cambridge SupTech Lab; Cambridge Centre for Alternative Finance; University of Cambridge / Banco de la República, Colombia; Inter-American Development Bank (IDB)","Colombia y el camino hacia el Registro Universal de Ingresos (RUI): reglas de juego, metodología y formas de uso / MPI+ Cartografía y seguimiento de las favelas de Brasil para luchar contra la pobreza : Un índice no tradicional para los asentamientos informales: / Conformación de sectores financieros transparentes, sostenibles e inclusivos / FISLAC: un ecosistema basado en datos para ayudar a los gobiernos a reforzar la sostenibilidad de la política fiscal y la toma de decisiones","Departamento Nacional de Planeación (DNP), Colombia; Banco Mundial (BM); Banco Interamericano de Desarrollo (BID); Programa Mundial de Alimentos de las Naciones Unidas (UNWFP); Fondo de las Naciones Unidas para la Infancia (UNICEF) / Alianza Data-Pop; Gerando Falcões; Instituto Tecnológico de Massachusetts (MIT); TETO TECHO; Humanitarian OpenStreetMap (HOTOSM) / Cambridge SupTech Lab; Centro de Finanzas Alternativas de Cambridge; Universidad de Cambridge / Banco de la República, Colombia; Banco Interamericano de Desarrollo (BID)","Day1_Time_Slot4_Parallel 08",null,"1:00"]
[139,"Day1_Time_Slot4_Parallel 09","Day1_Time_Slot4",1,4,"Parallel 09",{"$f":"VLOOKUP($D$1&D59,UNWDF_Medellín_2024_en!A:F,5,FALSE)","v":"2024-11-13"},{"$f":"MID(VLOOKUP($D$1&D59&$E$1&E59,UNWDF_Medellín_2024_en!A:F,5,FALSE),1,SEARCH(\"(\",VLOOKUP($D$1&D59&$E$1&E59,UNWDF_Medellín_2024_en!A:F,5,FALSE))-2)","v":"14:15 - 15:15"},"1:00",{"$f":"HLOOKUP($F59,UNWDF_Medellín_2024_en!$H$14:$S$16,2,FALSE)","v":"Room 8"},{"$f":"HLOOKUP($F59,UNWDF_Medellín_2024_en!$H$14:$S$16,3,FALSE)","v":90},"N","NA","NA",{"$f":"IF(OR(L59=\"NA\",L59=\"E\"),\"NA\",IF(L59=\"Y\",COUNTIF($M$1:N58,N59)+1,COUNTIF($M$1:N58,N59)+1))","v":95},"Local_2","Medellín: A data district for the well-being of the people","Administrative Planning Department Medellín (DAP)","Medellín un distrito de datos para el bienestar de la gente","Departamento Administrativo de Planeación, Medellín (DAP)","Day1_Time_Slot4_Parallel 09",null,"1:00"]
[140,"Day1_Time_Slot4_Parallel 10","Day1_Time_Slot4",1,4,"Parallel 10",{"$f":"VLOOKUP($D$1&D60,UNWDF_Medellín_2024_en!A:F,5,FALSE)","v":"2024-11-13"},{"$f":"MID(VLOOKUP($D$1&D60&$E$1&E60,UNWDF_Medellín_2024_en!A:F,5,FALSE),1,SEARCH(\"(\",VLOOKUP($D$1&D60&$E$1&E60,UNWDF_Medellín_2024_en!A:F,5,FALSE))-2)","v":"14:15 - 15:15"},"1:00",{"$f":"HLOOKUP($F60,UNWDF_Medellín_2024_en!$H$14:$S$16,2,FALSE)","v":"Room 9"},{"$f":"HLOOKUP($F60,UNWDF_Medellín_2024_en!$H$14:$S$16,3,FALSE)","v":60},"N","NA","_L",{"$f":"IF(OR(L60=\"NA\",L60=\"E\"),\"NA\",IF(L60=\"Y\",COUNTIF($M$1:N59,N60)+1,COUNTIF($M$1:N59,N60)+1))","v":2},"LEARN.302","Practical tools for statistical production with a gender perspective: contributions from Latin America and the Caribbean","United Nations Economic Commission for Latin America and the Caribbean (UNECLAC / CEPAL); United Nations Entity for Gender Equality and the Empowerment of Women (UN Women); Oficina Nacional de Estadística (ONE-República Dominicana); Departamento Administrativo Nacional de Estadística (DANE-Colombia)","Herramientas prácticas para la producción estadística con perspectiva de género: contribuciones de América Latina y el Caribe","Comisión Económica para América Latina y el Caribe de las Naciones Unidas (CEPAL); Entidad de las Naciones Unidas para la Igualdad de Género y el Empoderamiento de la Mujer (ONU Mujeres); Oficina Nacional de Estadística (ONE-República Dominicana); Departamento Administrativo Nacional de Estadística (DANE-Colombia)","Day1_Time_Slot4_Parallel 10","","1:00"]
[141,"Day1_Time_Slot4_Parallel 11","Day1_Time_Slot4",1,4,"Parallel 11",{"$f":"VLOOKUP($D$1&D61,UNWDF_Medellín_2024_en!A:F,5,FALSE)","v":"2024-11-13"},{"$f":"MID(VLOOKUP($D$1&D61&$E$1&E61,UNWDF_Medellín_2024_en!A:F,5,FALSE),1,SEARCH(\"(\",VLOOKUP($D$1&D61&$E$1&E61,UNWDF_Medellín_2024_en!A:F,5,FALSE))-2)","v":"14:15 - 15:15"},"1:00",{"$f":"HLOOKUP($F61,UNWDF_Medellín_2024_en!$H$14:$S$16,2,FALSE)","v":"Room 10"},{"$f":"HLOOKUP($F61,UNWDF_Medellín_2024_en!$H$14:$S$16,3,FALSE)","v":60},"N","NA","_D",{"$f":"IF(OR(L61=\"NA\",L61=\"E\"),\"NA\",IF(L61=\"Y\",COUNTIF($M$1:N60,N61)+1,COUNTIF($M$1:N60,N61)+1))","v":2},"DEMO.502","AI and Innovation for Data Dissemination / Presentation of a DataLab to boost the use of data science tools by tax admnistrations in Africa / Making sense of unstructured data: A case study on NLP methods for monitoring mainstreaming of groups in vulnerable situations in climate policy documents","World Bank (WB) / Expertise France; Institut national de la statistique et des études économiques (INSEE-France); Cote d'Ivoire Customs Administration, Côte d’Ivoire / Deutsche Gesellschaft für Internationale Zusammenarbeit (GIZ); GFA Consulting Group GmbH","IA e innovación para la difusión de datos / Presentación de un DataLab para impulsar el uso de herramientas de ciencia de datos por parte de las administraciones tributarias en África / Dar sentido a los datos no estructurados: Un estudio de caso sobre métodos de PNL para el seguimiento de la integración de los grupos en situación de vulnerabilidad en los documentos de política climática","Banco Mundial (BM) / Expertise France; Instituto Nacional de Estadística y de Estudios Económicos (INSEE-Francia); Administración de Aduanas de Costa de Marfil, Côte d'Ivoire / Deutsche Gesellschaft für Internationale Zusammenarbeit (GIZ); GFA Consulting Group GmbH","Day1_Time_Slot4_Parallel 11","","1:00"]
[218,"Day1_Time_Slot4_Parallel 12","Day1_Time_Slot4",1,4,"Parallel 12",{"$f":"VLOOKUP($D$1&D62,UNWDF_Medellín_2024_en!A:F,5,FALSE)","v":"2024-11-13"},{"$f":"MID(VLOOKUP($D$1&D62&$E$1&E62,UNWDF_Medellín_2024_en!A:F,5,FALSE),1,SEARCH(\"(\",VLOOKUP($D$1&D62&$E$1&E62,UNWDF_Medellín_2024_en!A:F,5,FALSE))-2)","v":"14:15 - 15:15"},"1:00",{"$f":"HLOOKUP($F62,UNWDF_Medellín_2024_en!$H$14:$S$16,2,FALSE)","v":"NA"},{"$f":"HLOOKUP($F62,UNWDF_Medellín_2024_en!$H$14:$S$16,3,FALSE)","v":"NA"},"NA","NA","NA",{"$f":"IF(OR(L62=\"NA\",L62=\"E\"),\"NA\",IF(L62=\"Y\",COUNTIF($M$1:N61,N62)+1,COUNTIF($M$1:N61,N62)+1))","v":"NA"},{"$f":"IF(N62=\"NA\",\"NA\",\"TA\"&N62&\".\"&TEXT(O62,\"0#\"))","v":"NA"},"NA","NA","NA","NA","Day1_Time_Slot4_Parallel 12","","1:00"]
[49,"Day1_Time_Slot5_Parallel 01","Day1_Time_Slot5",1,5,"Parallel 01",{"$f":"VLOOKUP($D$1&D63,UNWDF_Medellín_2024_en!A:F,5,FALSE)","v":"2024-11-13"},{"$f":"MID(VLOOKUP($D$1&D63&$E$1&E63,UNWDF_Medellín_2024_en!A:F,5,FALSE),1,SEARCH(\"(\",VLOOKUP($D$1&D63&$E$1&E63,UNWDF_Medellín_2024_en!A:F,5,FALSE))-2)","v":"15:30 - 16:30"},"1:00",{"$f":"HLOOKUP($F63,UNWDF_Medellín_2024_en!$H$14:$S$16,2,FALSE)","v":"Plenary Room"},{"$f":"HLOOKUP($F63,UNWDF_Medellín_2024_en!$H$14:$S$16,3,FALSE)","v":3000},"NA","NA","NA",{"$f":"IF(OR(L63=\"NA\",L63=\"E\"),\"NA\",IF(L63=\"Y\",COUNTIF($M$1:N62,N63)+1,COUNTIF($M$1:N62,N63)+1))","v":"NA"},"NA","NA","NA","NA","NA","Day1_Time_Slot5_Parallel 01",null,"1:00"]
[142,"Day1_Time_Slot5_Parallel 02","Day1_Time_Slot5",1,5,"Parallel 02",{"$f":"VLOOKUP($D$1&D64,UNWDF_Medellín_2024_en!A:F,5,FALSE)","v":"2024-11-13"},{"$f":"MID(VLOOKUP($D$1&D64&$E$1&E64,UNWDF_Medellín_2024_en!A:F,5,FALSE),1,SEARCH(\"(\",VLOOKUP($D$1&D64&$E$1&E64,UNWDF_Medellín_2024_en!A:F,5,FALSE))-2)","v":"15:30 - 16:30"},"1:00",{"$f":"HLOOKUP($F64,UNWDF_Medellín_2024_en!$H$14:$S$16,2,FALSE)","v":"Room 1"},{"$f":"HLOOKUP($F64,UNWDF_Medellín_2024_en!$H$14:$S$16,3,FALSE)","v":300},"N","NA",3,{"$f":"IF(OR(L64=\"NA\",L64=\"E\"),\"NA\",IF(L64=\"Y\",COUNTIF($M$1:N63,N64)+1,COUNTIF($M$1:N63,N64)+1))","v":2},"TA3.2","New challenges for NSOs. The only way out is through!","Swiss Federal Statistical Office (FSO); Statistics Poland; International Association for Official Statistics (IAOS); Polish Statistical Association","Nuevos retos para los INE. ¡La única salida es a través de ellos!","Oficina Federal de Estadística de Suiza (FSO); Estadísticas Polonia; Asociación Internacional para Estadísticas Oficiales (IAOS); Asociación Estadística Polaca","Day1_Time_Slot5_Parallel 02",null,"1:00"]
[143,"Day1_Time_Slot5_Parallel 03","Day1_Time_Slot5",1,5,"Parallel 03",{"$f":"VLOOKUP($D$1&D65,UNWDF_Medellín_2024_en!A:F,5,FALSE)","v":"2024-11-13"},{"$f":"MID(VLOOKUP($D$1&D65&$E$1&E65,UNWDF_Medellín_2024_en!A:F,5,FALSE),1,SEARCH(\"(\",VLOOKUP($D$1&D65&$E$1&E65,UNWDF_Medellín_2024_en!A:F,5,FALSE))-2)","v":"15:30 - 16:30"},"1:00",{"$f":"HLOOKUP($F65,UNWDF_Medellín_2024_en!$H$14:$S$16,2,FALSE)","v":"Room 2"},{"$f":"HLOOKUP($F65,UNWDF_Medellín_2024_en!$H$14:$S$16,3,FALSE)","v":200},"N","NA",1,{"$f":"IF(OR(L65=\"NA\",L65=\"E\"),\"NA\",IF(L65=\"Y\",COUNTIF($M$1:N64,N65)+1,COUNTIF($M$1:N64,N65)+1))","v":6},"TA1.6","Citizen Data as a framework to nurturing the SDG Agenda: From Global frameworks to Local action","United Nations Development Programme (UNDP), Global Policy Centre for Governance; Departamento Administrativo Nacional de Estadística (DANE-Colombia); United Nations Office on Drugs and Crime (UNODC); Ghana Statistical Service (GSS); Kenya National Commission on Human Rights; Observatorio para la Equidad de la Mujer (OEM); Red de Ciudades Cómo Vamos; Kenya National Bureau of Statistics (KNBS); Unidad para la Atención y Reparación Integral a las Víctimas (UARIV), Colombia","Los Datos Ciudadanos como marco para nutrir la Agenda de los ODS: De los marcos globales a la acción local","Programa de las Naciones Unidas para el Desarrollo (PNUD), Centro de Políticas Globales para la Gobernanza; Departamento Administrativo Nacional de Estadística (DANE-Colombia); Oficina de las Naciones Unidas contra la Droga y el Delito (UNODC); Servicio de Estadística de Ghana (GSS); Comisión Nacional de Derechos Humanos de Kenia; Observatorio para la Equidad de la Mujer (OEM); Red de Ciudades Cómo Vamos; Oficina Nacional de Estadísticas de Kenia (KNBS); Unidad para la Atención y Reparación Integral a las Víctimas (UARIV), Colombia","Day1_Time_Slot5_Parallel 03",null,"1:00"]
[144,{"$f":"C66&\"_\"&F66","v":"Day1_Time_Slot5_Parallel 04"},{"$f":"$D$1&D66&\"_\"&$E$1&E66","v":"Day1_Time_Slot5"},1,5,"Parallel 04",{"$f":"VLOOKUP($D$1&D66,UNWDF_Medellín_2024_en!A:F,5,FALSE)","v":"2024-11-13"},{"$f":"MID(VLOOKUP($D$1&D66&$E$1&E66,UNWDF_Medellín_2024_en!A:F,5,FALSE),1,SEARCH(\"(\",VLOOKUP($D$1&D66&$E$1&E66,UNWDF_Medellín_2024_en!A:F,5,FALSE))-2)","v":"15:30 - 16:30"},{"$f":"TEXT(MID(H66,SEARCH(\"-\",H66)+2,LEN(H66)-SEARCH(\"-\",H66)-1)-MID(H66,1,SEARCH(\"-\",H66)-1),\"h:mm\")","v":"1:00"},{"$f":"HLOOKUP($F66,UNWDF_Medellín_2024_en!$H$14:$S$16,2,FALSE)","v":"Room 3"},{"$f":"HLOOKUP($F66,UNWDF_Medellín_2024_en!$H$14:$S$16,3,FALSE)","v":200},"N","NA",1,{"$f":"IF(OR(L66=\"NA\",L66=\"E\"),\"NA\",IF(L66=\"Y\",COUNTIF($M$1:N65,N66)+1,COUNTIF($M$1:N65,N66)+1))","v":7},"TA1.16","Enhancing CRVS Systems: Intersectional Approaches and Resource Mobilization for Inclusive and Sustainable Development","United Nations Population Fund (UNFPA); Open Data Watch (ODW); Development Initiatives (DI); United Nations Development Programme (UNDP); United Nations Statistics Division (UNSD-DESA); Global Health Advocacy Incubator; Department of National Registration, Maldives; HEPS-Uganda; Pan American Health Organization (PAHO)","Mejora de los sistemas CRVS: Enfoques intersectoriales y movilización de recursos para un desarrollo inclusivo y sostenible","Fondo de Población de las Naciones Unidas (UNFPA); Open Data Watch (ODW); Iniciativas de Desarrollo (DI); Programa de las Naciones Unidas para el Desarrollo (PNUD); División de Estadísticas de las Naciones Unidas (UNSD-DESA); Incubadora de Defensa de la Salud Global; Departamento de Registro Nacional, Maldivas; HEPS-Uganda; Organización Panamericana de la Salud (OPS)",{"$f":"B66","v":"Day1_Time_Slot5_Parallel 04"},null,"1:00"]
[145,"Day1_Time_Slot5_Parallel 05","Day1_Time_Slot5",1,5,"Parallel 05",{"$f":"VLOOKUP($D$1&D67,UNWDF_Medellín_2024_en!A:F,5,FALSE)","v":"2024-11-13"},{"$f":"MID(VLOOKUP($D$1&D67&$E$1&E67,UNWDF_Medellín_2024_en!A:F,5,FALSE),1,SEARCH(\"(\",VLOOKUP($D$1&D67&$E$1&E67,UNWDF_Medellín_2024_en!A:F,5,FALSE))-2)","v":"15:30 - 16:30"},"1:00",{"$f":"HLOOKUP($F67,UNWDF_Medellín_2024_en!$H$14:$S$16,2,FALSE)","v":"Room 4"},{"$f":"HLOOKUP($F67,UNWDF_Medellín_2024_en!$H$14:$S$16,3,FALSE)","v":200},"N","NA",2,{"$f":"IF(OR(L67=\"NA\",L67=\"E\"),\"NA\",IF(L67=\"Y\",COUNTIF($M$1:N66,N67)+1,COUNTIF($M$1:N66,N67)+1))","v":3},"TA2.12","Geospatial analysis for public policy decisions: a path of action to accelerate gender equality","United Nations Economic Commission for Latin America and the Caribbean (UNECLAC / CEPAL); United Nations Entity for Gender Equality and the Empowerment of Women (UN Women); Departamento Administrativo Nacional de Estadística (DANE-Colombia); Oficina Nacional de Estadística (ONE-República Dominicana)","Análisis geoespacial para las decisiones de política pública: una vía de actuación para acelerar la igualdad de género","Comisión Económica para América Latina y el Caribe de las Naciones Unidas (CEPAL); Entidad de las Naciones Unidas para la Igualdad de Género y el Empoderamiento de la Mujer (ONU Mujeres); Departamento Administrativo Nacional de Estadística (DANE-Colombia); Oficina Nacional de Estadística (ONE-República Dominicana)","Day1_Time_Slot5_Parallel 05",null,{"$f":"I67","v":"1:00"}]
[146,"Day1_Time_Slot5_Parallel 06","Day1_Time_Slot5",1,5,"Parallel 06",{"$f":"VLOOKUP($D$1&D68,UNWDF_Medellín_2024_en!A:F,5,FALSE)","v":"2024-11-13"},{"$f":"MID(VLOOKUP($D$1&D68&$E$1&E68,UNWDF_Medellín_2024_en!A:F,5,FALSE),1,SEARCH(\"(\",VLOOKUP($D$1&D68&$E$1&E68,UNWDF_Medellín_2024_en!A:F,5,FALSE))-2)","v":"15:30 - 16:30"},"1:00",{"$f":"HLOOKUP($F68,UNWDF_Medellín_2024_en!$H$14:$S$16,2,FALSE)","v":"Room 5"},{"$f":"HLOOKUP($F68,UNWDF_Medellín_2024_en!$H$14:$S$16,3,FALSE)","v":200},"N","NA",4,{"$f":"IF(OR(L68=\"NA\",L68=\"E\"),\"NA\",IF(L68=\"Y\",COUNTIF($M$1:N67,N68)+1,COUNTIF($M$1:N67,N68)+1))","v":3},"TA4.10","Harnessing Data Exchange Platforms to accelerate SDGs & high-value data access","CivicDataLab","Aprovechar las plataformas de intercambio de datos para acelerar los ODS y el acceso a datos de alto valor","CivicDataLab","Day1_Time_Slot5_Parallel 06",null,"1:00"]
[147,"Day1_Time_Slot5_Parallel 07","Day1_Time_Slot5",1,5,"Parallel 07",{"$f":"VLOOKUP($D$1&D69,UNWDF_Medellín_2024_en!A:F,5,FALSE)","v":"2024-11-13"},{"$f":"MID(VLOOKUP($D$1&D69&$E$1&E69,UNWDF_Medellín_2024_en!A:F,5,FALSE),1,SEARCH(\"(\",VLOOKUP($D$1&D69&$E$1&E69,UNWDF_Medellín_2024_en!A:F,5,FALSE))-2)","v":"15:30 - 16:30"},"1:00",{"$f":"HLOOKUP($F69,UNWDF_Medellín_2024_en!$H$14:$S$16,2,FALSE)","v":"Room 6"},{"$f":"HLOOKUP($F69,UNWDF_Medellín_2024_en!$H$14:$S$16,3,FALSE)","v":150},"N","NA","_T",{"$f":"IF(OR(L69=\"NA\",L69=\"E\"),\"NA\",IF(L69=\"Y\",COUNTIF($M$1:N68,N69)+1,COUNTIF($M$1:N68,N69)+1))","v":5},"TED.203","Reaching All, Empowering Action: Decentralized Data Governance, Geographic Data and Hidden Populations.","Equilibrium Social Development Consulting (SDC); Norwegian Refugee Council (NRC); Ministry of Health, Uganda","Llegar a todos, potenciar la acción: Gobernanza descentralizada de datos, Datos geográficos y poblaciones ocultas.","Equilibrium Social Development Consulting (SDC); Consejo Noruego para Refugiados (NRC); Ministerio de Salud, Uganda","Day1_Time_Slot5_Parallel 07",null,"1:00"]
[148,"Day1_Time_Slot5_Parallel 08","Day1_Time_Slot5",1,5,"Parallel 08",{"$f":"VLOOKUP($D$1&D70,UNWDF_Medellín_2024_en!A:F,5,FALSE)","v":"2024-11-13"},{"$f":"MID(VLOOKUP($D$1&D70&$E$1&E70,UNWDF_Medellín_2024_en!A:F,5,FALSE),1,SEARCH(\"(\",VLOOKUP($D$1&D70&$E$1&E70,UNWDF_Medellín_2024_en!A:F,5,FALSE))-2)","v":"15:30 - 16:30"},"1:00",{"$f":"HLOOKUP($F70,UNWDF_Medellín_2024_en!$H$14:$S$16,2,FALSE)","v":"Room 7"},{"$f":"HLOOKUP($F70,UNWDF_Medellín_2024_en!$H$14:$S$16,3,FALSE)","v":150},"N","NA","_T",{"$f":"IF(OR(L70=\"NA\",L70=\"E\"),\"NA\",IF(L70=\"Y\",COUNTIF($M$1:N69,N70)+1,COUNTIF($M$1:N69,N70)+1))","v":6},"TED.207","No One Left Behind: Data Invisibility, Citizen-Generated Data, and Digital Rights for Gender-Diverse Communities / Safecity - crowdmap for sexual and gender based violence / The invisible link between maternal mortality and early marriage in the indigenous population / Inside the black box: the questions you forgot to ask about gender data use.","School of Data Science, University of Virginia; Center for Democracy and Technology; Federal University of Rio de Janeiro / Red Dot Foundation / United Nations Population Fund (UNFPA); Université de Montréal / Partnership in Statistics for Development in the 21st Century (PARIS21)","Que nadie se quede atrás: invisibilidad de los datos, datos generados por los ciudadanos y derechos digitales para las comunidades con diversidad de género / Safecity - crowdmap para la violencia sexual y de género / El vínculo invisible entre mortalidad materna y matrimonio temprano en la población indígena / Dentro de la caja negra: las preguntas que olvidaste hacer sobre el uso de datos de género.","Escuela de Ciencia de Datos, Universidad de Virginia; Centro para la Democracia y la Tecnología; Universidad Federal de Río de Janeiro / Fundación Red Dot / Fondo de Población de las Naciones Unidas (UNFPA); Université de Montréal / Asociación en Estadísticas para el Desarrollo en el Siglo XXI (PARIS21)","Day1_Time_Slot5_Parallel 08",null,"1:00"]
[149,"Day1_Time_Slot5_Parallel 09","Day1_Time_Slot5",1,5,"Parallel 09",{"$f":"VLOOKUP($D$1&D71,UNWDF_Medellín_2024_en!A:F,5,FALSE)","v":"2024-11-13"},{"$f":"MID(VLOOKUP($D$1&D71&$E$1&E71,UNWDF_Medellín_2024_en!A:F,5,FALSE),1,SEARCH(\"(\",VLOOKUP($D$1&D71&$E$1&E71,UNWDF_Medellín_2024_en!A:F,5,FALSE))-2)","v":"15:30 - 16:30"},"1:00",{"$f":"HLOOKUP($F71,UNWDF_Medellín_2024_en!$H$14:$S$16,2,FALSE)","v":"Room 8"},{"$f":"HLOOKUP($F71,UNWDF_Medellín_2024_en!$H$14:$S$16,3,FALSE)","v":90},"N","NA","NA",{"$f":"IF(OR(L71=\"NA\",L71=\"E\"),\"NA\",IF(L71=\"Y\",COUNTIF($M$1:N70,N71)+1,COUNTIF($M$1:N70,N71)+1))","v":110},"Local_3","From data to policy action: How national and global actors can tackle poverty in all its forms using a Multidimensional Poverty Index (MPI)","Departamento Administrativo Nacional de Estadística (DANE-Colombia)","Reservado [Evento local]","Departamento Administrativo Nacional de Estadística (DANE-Colombia)","Day1_Time_Slot5_Parallel 09","Update (es): From Data to Policy Action: How National and Global Actors Can Tackle Poverty in All Its Forms Using a Multidimensional Poverty Index (MPI)","1:00"]
[150,"Day1_Time_Slot5_Parallel 10","Day1_Time_Slot5",1,5,"Parallel 10",{"$f":"VLOOKUP($D$1&D72,UNWDF_Medellín_2024_en!A:F,5,FALSE)","v":"2024-11-13"},{"$f":"MID(VLOOKUP($D$1&D72&$E$1&E72,UNWDF_Medellín_2024_en!A:F,5,FALSE),1,SEARCH(\"(\",VLOOKUP($D$1&D72&$E$1&E72,UNWDF_Medellín_2024_en!A:F,5,FALSE))-2)","v":"15:30 - 16:30"},"1:00",{"$f":"HLOOKUP($F72,UNWDF_Medellín_2024_en!$H$14:$S$16,2,FALSE)","v":"Room 9"},{"$f":"HLOOKUP($F72,UNWDF_Medellín_2024_en!$H$14:$S$16,3,FALSE)","v":60},"N","NA","_L",{"$f":"IF(OR(L72=\"NA\",L72=\"E\"),\"NA\",IF(L72=\"Y\",COUNTIF($M$1:N71,N72)+1,COUNTIF($M$1:N71,N72)+1))","v":3},"LEARN.303","Peer to Peer exchange: Open Data frameworks for better SDG reporting","Open Data Charter (ODC); Open Data Watch (ODW)","Intercambio entre iguales: Marcos de datos abiertos para informar mejor sobre los ODS","Open Data Charter (ODC); Open Data Watch (ODW)","Day1_Time_Slot5_Parallel 10","","1:00"]
[151,"Day1_Time_Slot5_Parallel 11","Day1_Time_Slot5",1,5,"Parallel 11",{"$f":"VLOOKUP($D$1&D73,UNWDF_Medellín_2024_en!A:F,5,FALSE)","v":"2024-11-13"},{"$f":"MID(VLOOKUP($D$1&D73&$E$1&E73,UNWDF_Medellín_2024_en!A:F,5,FALSE),1,SEARCH(\"(\",VLOOKUP($D$1&D73&$E$1&E73,UNWDF_Medellín_2024_en!A:F,5,FALSE))-2)","v":"15:30 - 16:30"},"1:00",{"$f":"HLOOKUP($F73,UNWDF_Medellín_2024_en!$H$14:$S$16,2,FALSE)","v":"Room 10"},{"$f":"HLOOKUP($F73,UNWDF_Medellín_2024_en!$H$14:$S$16,3,FALSE)","v":60},"N","NA","_D",{"$f":"IF(OR(L73=\"NA\",L73=\"E\"),\"NA\",IF(L73=\"Y\",COUNTIF($M$1:N72,N73)+1,COUNTIF($M$1:N72,N73)+1))","v":3},"DEMO.503","Empowering Sustainable Choices: Visualizing Nutrition for a Healthier Future - Presented by the Healthy Diets Monitoring Initiative / Silver Threads: Weaving Data into Older People Narratives / Enhancing Epidemiological Surveillance of Vaccine-Preventable Diseases with VPD-SMART: A DHIS2-Based Information System","United Nations Children's Fund (UNICEF); World Health Organization (WHO); Food and Agriculture Organization of the United Nations (FAO) / Fundación Saldarriaga Concha; Datasketch / Pan American Health Organization (PAHO); Ministry of Health, Paraguay; HISP Colombia; University of Oslo","Decisiones Sostenibles Empoderadoras: Visualizar la nutrición para un futuro más sano - Presentado por la Iniciativa de Seguimiento de las Dietas Saludables / Hilos de plata: Cómo incorporar datos a las narrativas de las personas mayores / Mejora de la vigilancia epidemiológica de las enfermedades prevenibles mediante vacunación con VPD-SMART: un sistema de información basado en DHIS2.","Fondo de las Naciones Unidas para la Infancia (UNICEF); Organización Mundial de la Salud (OMS); Organización de las Naciones Unidas para la Alimentación y la Agricultura (FAO) / Fundación Saldarriaga Concha; Datasketch / Organización Panamericana de la Salud (OPS); Ministerio de Salud, Paraguay; HISP Colombia; Universidad de Oslo","Day1_Time_Slot5_Parallel 11","","1:00"]
[152,"Day1_Time_Slot5_Parallel 12","Day1_Time_Slot5",1,5,"Parallel 12",{"$f":"VLOOKUP($D$1&D74,UNWDF_Medellín_2024_en!A:F,5,FALSE)","v":"2024-11-13"},{"$f":"MID(VLOOKUP($D$1&D74&$E$1&E74,UNWDF_Medellín_2024_en!A:F,5,FALSE),1,SEARCH(\"(\",VLOOKUP($D$1&D74&$E$1&E74,UNWDF_Medellín_2024_en!A:F,5,FALSE))-2)","v":"15:30 - 16:30"},"1:00",{"$f":"HLOOKUP($F74,UNWDF_Medellín_2024_en!$H$14:$S$16,2,FALSE)","v":"NA"},{"$f":"HLOOKUP($F74,UNWDF_Medellín_2024_en!$H$14:$S$16,3,FALSE)","v":"NA"},"NA","NA","NA",{"$f":"IF(OR(L74=\"NA\",L74=\"E\"),\"NA\",IF(L74=\"Y\",COUNTIF($M$1:N73,N74)+1,COUNTIF($M$1:N73,N74)+1))","v":"NA"},{"$f":"IF(N74=\"NA\",\"NA\",\"TA\"&N74&\".\"&TEXT(O74,\"0#\"))","v":"NA"},"NA","NA","NA","NA","Day1_Time_Slot5_Parallel 12","","1:00"]
[5,"Day1_Time_Slot6_Parallel 01","Day1_Time_Slot6",1,6,"Parallel 01",{"$f":"VLOOKUP($D$1&D75,UNWDF_Medellín_2024_en!A:F,5,FALSE)","v":"2024-11-13"},{"$f":"MID(VLOOKUP($D$1&D75&$E$1&E75,UNWDF_Medellín_2024_en!A:F,5,FALSE),1,SEARCH(\"(\",VLOOKUP($D$1&D75&$E$1&E75,UNWDF_Medellín_2024_en!A:F,5,FALSE))-2)","v":"16:45 - 18:00"},"1:15",{"$f":"HLOOKUP($F75,UNWDF_Medellín_2024_en!$H$14:$S$16,2,FALSE)","v":"Plenary Room"},{"$f":"HLOOKUP($F75,UNWDF_Medellín_2024_en!$H$14:$S$16,3,FALSE)","v":3000},"Y","NA",2,{"$f":"IF(OR(L75=\"NA\",L75=\"E\"),\"NA\",IF(L75=\"Y\",COUNTIF($M$1:N74,N75)+1,COUNTIF($M$1:N74,N75)+1))","v":4},"TA2.1","Maximizing the use and value of data for better decision making","UN World Data Forum Programme Committee (UNWDF PC)","Maximizar el uso y el valor de los datos para tomar mejores decisiones","Comité del Programa del Foro Mundial de Datos de la ONU (UNWDF PC)","Day1_Time_Slot6_Parallel 01","","1:15"]
[50,"Day1_Time_Slot6_Parallel 02","Day1_Time_Slot6",1,6,"Parallel 02",{"$f":"VLOOKUP($D$1&D76,UNWDF_Medellín_2024_en!A:F,5,FALSE)","v":"2024-11-13"},{"$f":"MID(VLOOKUP($D$1&D76&$E$1&E76,UNWDF_Medellín_2024_en!A:F,5,FALSE),1,SEARCH(\"(\",VLOOKUP($D$1&D76&$E$1&E76,UNWDF_Medellín_2024_en!A:F,5,FALSE))-2)","v":"16:45 - 18:00"},"1:15",{"$f":"HLOOKUP($F76,UNWDF_Medellín_2024_en!$H$14:$S$16,2,FALSE)","v":"Room 1"},{"$f":"HLOOKUP($F76,UNWDF_Medellín_2024_en!$H$14:$S$16,3,FALSE)","v":300},"NA","NA","NA",{"$f":"IF(OR(L76=\"NA\",L76=\"E\"),\"NA\",IF(L76=\"Y\",COUNTIF($M$1:N75,N76)+1,COUNTIF($M$1:N75,N76)+1))","v":"NA"},{"$f":"IF(N76=\"NA\",\"NA\",\"TA\"&N76&\".\"&TEXT(O76,\"0#\"))","v":"NA"},"NA","NA","NA","NA","Day1_Time_Slot6_Parallel 02","","1:15"]
[51,"Day1_Time_Slot6_Parallel 03","Day1_Time_Slot6",1,6,"Parallel 03",{"$f":"VLOOKUP($D$1&D77,UNWDF_Medellín_2024_en!A:F,5,FALSE)","v":"2024-11-13"},{"$f":"MID(VLOOKUP($D$1&D77&$E$1&E77,UNWDF_Medellín_2024_en!A:F,5,FALSE),1,SEARCH(\"(\",VLOOKUP($D$1&D77&$E$1&E77,UNWDF_Medellín_2024_en!A:F,5,FALSE))-2)","v":"16:45 - 18:00"},"1:15",{"$f":"HLOOKUP($F77,UNWDF_Medellín_2024_en!$H$14:$S$16,2,FALSE)","v":"Room 2"},{"$f":"HLOOKUP($F77,UNWDF_Medellín_2024_en!$H$14:$S$16,3,FALSE)","v":200},"NA","NA","NA",{"$f":"IF(OR(L77=\"NA\",L77=\"E\"),\"NA\",IF(L77=\"Y\",COUNTIF($M$1:N76,N77)+1,COUNTIF($M$1:N76,N77)+1))","v":"NA"},"NA","NA","NA","NA","NA","Day1_Time_Slot6_Parallel 03","","1:15"]
[52,"Day1_Time_Slot6_Parallel 04","Day1_Time_Slot6",1,6,"Parallel 04",{"$f":"VLOOKUP($D$1&D78,UNWDF_Medellín_2024_en!A:F,5,FALSE)","v":"2024-11-13"},{"$f":"MID(VLOOKUP($D$1&D78&$E$1&E78,UNWDF_Medellín_2024_en!A:F,5,FALSE),1,SEARCH(\"(\",VLOOKUP($D$1&D78&$E$1&E78,UNWDF_Medellín_2024_en!A:F,5,FALSE))-2)","v":"16:45 - 18:00"},"1:15",{"$f":"HLOOKUP($F78,UNWDF_Medellín_2024_en!$H$14:$S$16,2,FALSE)","v":"Room 3"},{"$f":"HLOOKUP($F78,UNWDF_Medellín_2024_en!$H$14:$S$16,3,FALSE)","v":200},"NA","NA","NA",{"$f":"IF(OR(L78=\"NA\",L78=\"E\"),\"NA\",IF(L78=\"Y\",COUNTIF($M$1:N77,N78)+1,COUNTIF($M$1:N77,N78)+1))","v":"NA"},"NA","NA","NA","NA","NA","Day1_Time_Slot6_Parallel 04","","1:15"]
[53,"Day1_Time_Slot6_Parallel 05","Day1_Time_Slot6",1,6,"Parallel 05",{"$f":"VLOOKUP($D$1&D79,UNWDF_Medellín_2024_en!A:F,5,FALSE)","v":"2024-11-13"},{"$f":"MID(VLOOKUP($D$1&D79&$E$1&E79,UNWDF_Medellín_2024_en!A:F,5,FALSE),1,SEARCH(\"(\",VLOOKUP($D$1&D79&$E$1&E79,UNWDF_Medellín_2024_en!A:F,5,FALSE))-2)","v":"16:45 - 18:00"},"1:15",{"$f":"HLOOKUP($F79,UNWDF_Medellín_2024_en!$H$14:$S$16,2,FALSE)","v":"Room 4"},{"$f":"HLOOKUP($F79,UNWDF_Medellín_2024_en!$H$14:$S$16,3,FALSE)","v":200},"NA","NA","NA",{"$f":"IF(OR(L79=\"NA\",L79=\"E\"),\"NA\",IF(L79=\"Y\",COUNTIF($M$1:N78,N79)+1,COUNTIF($M$1:N78,N79)+1))","v":"NA"},"NA","NA","NA","NA","NA","Day1_Time_Slot6_Parallel 05","","1:15"]
[54,"Day1_Time_Slot6_Parallel 06","Day1_Time_Slot6",1,6,"Parallel 06",{"$f":"VLOOKUP($D$1&D80,UNWDF_Medellín_2024_en!A:F,5,FALSE)","v":"2024-11-13"},{"$f":"MID(VLOOKUP($D$1&D80&$E$1&E80,UNWDF_Medellín_2024_en!A:F,5,FALSE),1,SEARCH(\"(\",VLOOKUP($D$1&D80&$E$1&E80,UNWDF_Medellín_2024_en!A:F,5,FALSE))-2)","v":"16:45 - 18:00"},"1:15",{"$f":"HLOOKUP($F80,UNWDF_Medellín_2024_en!$H$14:$S$16,2,FALSE)","v":"Room 5"},{"$f":"HLOOKUP($F80,UNWDF_Medellín_2024_en!$H$14:$S$16,3,FALSE)","v":200},"NA","NA","NA",{"$f":"IF(OR(L80=\"NA\",L80=\"E\"),\"NA\",IF(L80=\"Y\",COUNTIF($M$1:N79,N80)+1,COUNTIF($M$1:N79,N80)+1))","v":"NA"},"NA","NA","NA","NA","NA","Day1_Time_Slot6_Parallel 06","","1:15"]
[55,"Day1_Time_Slot6_Parallel 07","Day1_Time_Slot6",1,6,"Parallel 07",{"$f":"VLOOKUP($D$1&D81,UNWDF_Medellín_2024_en!A:F,5,FALSE)","v":"2024-11-13"},{"$f":"MID(VLOOKUP($D$1&D81&$E$1&E81,UNWDF_Medellín_2024_en!A:F,5,FALSE),1,SEARCH(\"(\",VLOOKUP($D$1&D81&$E$1&E81,UNWDF_Medellín_2024_en!A:F,5,FALSE))-2)","v":"16:45 - 18:00"},"1:15",{"$f":"HLOOKUP($F81,UNWDF_Medellín_2024_en!$H$14:$S$16,2,FALSE)","v":"Room 6"},{"$f":"HLOOKUP($F81,UNWDF_Medellín_2024_en!$H$14:$S$16,3,FALSE)","v":150},"NA","NA","NA",{"$f":"IF(OR(L81=\"NA\",L81=\"E\"),\"NA\",IF(L81=\"Y\",COUNTIF($M$1:N80,N81)+1,COUNTIF($M$1:N80,N81)+1))","v":"NA"},"NA","NA","NA","NA","NA","Day1_Time_Slot6_Parallel 07","","1:15"]
[56,"Day1_Time_Slot6_Parallel 08","Day1_Time_Slot6",1,6,"Parallel 08",{"$f":"VLOOKUP($D$1&D82,UNWDF_Medellín_2024_en!A:F,5,FALSE)","v":"2024-11-13"},{"$f":"MID(VLOOKUP($D$1&D82&$E$1&E82,UNWDF_Medellín_2024_en!A:F,5,FALSE),1,SEARCH(\"(\",VLOOKUP($D$1&D82&$E$1&E82,UNWDF_Medellín_2024_en!A:F,5,FALSE))-2)","v":"16:45 - 18:00"},"1:15",{"$f":"HLOOKUP($F82,UNWDF_Medellín_2024_en!$H$14:$S$16,2,FALSE)","v":"Room 7"},{"$f":"HLOOKUP($F82,UNWDF_Medellín_2024_en!$H$14:$S$16,3,FALSE)","v":150},"NA","NA","NA",{"$f":"IF(OR(L82=\"NA\",L82=\"E\"),\"NA\",IF(L82=\"Y\",COUNTIF($M$1:N81,N82)+1,COUNTIF($M$1:N81,N82)+1))","v":"NA"},"NA","NA","NA","NA","NA","Day1_Time_Slot6_Parallel 08","","1:15"]
[57,"Day1_Time_Slot6_Parallel 09","Day1_Time_Slot6",1,6,"Parallel 09",{"$f":"VLOOKUP($D$1&D83,UNWDF_Medellín_2024_en!A:F,5,FALSE)","v":"2024-11-13"},{"$f":"MID(VLOOKUP($D$1&D83&$E$1&E83,UNWDF_Medellín_2024_en!A:F,5,FALSE),1,SEARCH(\"(\",VLOOKUP($D$1&D83&$E$1&E83,UNWDF_Medellín_2024_en!A:F,5,FALSE))-2)","v":"16:45 - 18:00"},"1:15",{"$f":"HLOOKUP($F83,UNWDF_Medellín_2024_en!$H$14:$S$16,2,FALSE)","v":"Room 8"},{"$f":"HLOOKUP($F83,UNWDF_Medellín_2024_en!$H$14:$S$16,3,FALSE)","v":90},"NA","NA","NA",{"$f":"IF(OR(L83=\"NA\",L83=\"E\"),\"NA\",IF(L83=\"Y\",COUNTIF($M$1:N82,N83)+1,COUNTIF($M$1:N82,N83)+1))","v":"NA"},"NA","NA","NA","NA","NA","Day1_Time_Slot6_Parallel 09","","1:15"]
[58,"Day1_Time_Slot6_Parallel 10","Day1_Time_Slot6",1,6,"Parallel 10",{"$f":"VLOOKUP($D$1&D84,UNWDF_Medellín_2024_en!A:F,5,FALSE)","v":"2024-11-13"},{"$f":"MID(VLOOKUP($D$1&D84&$E$1&E84,UNWDF_Medellín_2024_en!A:F,5,FALSE),1,SEARCH(\"(\",VLOOKUP($D$1&D84&$E$1&E84,UNWDF_Medellín_2024_en!A:F,5,FALSE))-2)","v":"16:45 - 18:00"},"1:15",{"$f":"HLOOKUP($F84,UNWDF_Medellín_2024_en!$H$14:$S$16,2,FALSE)","v":"Room 9"},{"$f":"HLOOKUP($F84,UNWDF_Medellín_2024_en!$H$14:$S$16,3,FALSE)","v":60},"NA","NA","NA",{"$f":"IF(OR(L84=\"NA\",L84=\"E\"),\"NA\",IF(L84=\"Y\",COUNTIF($M$1:N83,N84)+1,COUNTIF($M$1:N83,N84)+1))","v":"NA"},"NA","NA","NA","NA","NA","Day1_Time_Slot6_Parallel 10","","1:15"]
[59,"Day1_Time_Slot6_Parallel 11","Day1_Time_Slot6",1,6,"Parallel 11",{"$f":"VLOOKUP($D$1&D85,UNWDF_Medellín_2024_en!A:F,5,FALSE)","v":"2024-11-13"},{"$f":"MID(VLOOKUP($D$1&D85&$E$1&E85,UNWDF_Medellín_2024_en!A:F,5,FALSE),1,SEARCH(\"(\",VLOOKUP($D$1&D85&$E$1&E85,UNWDF_Medellín_2024_en!A:F,5,FALSE))-2)","v":"16:45 - 18:00"},"1:15",{"$f":"HLOOKUP($F85,UNWDF_Medellín_2024_en!$H$14:$S$16,2,FALSE)","v":"Room 10"},{"$f":"HLOOKUP($F85,UNWDF_Medellín_2024_en!$H$14:$S$16,3,FALSE)","v":60},"NA","NA","NA",{"$f":"IF(OR(L85=\"NA\",L85=\"E\"),\"NA\",IF(L85=\"Y\",COUNTIF($M$1:N84,N85)+1,COUNTIF($M$1:N84,N85)+1))","v":"NA"},"NA","NA","NA","NA","NA","Day1_Time_Slot6_Parallel 11","","1:15"]
[60,"Day1_Time_Slot6_Parallel 12","Day1_Time_Slot6",1,6,"Parallel 12",{"$f":"VLOOKUP($D$1&D86,UNWDF_Medellín_2024_en!A:F,5,FALSE)","v":"2024-11-13"},{"$f":"MID(VLOOKUP($D$1&D86&$E$1&E86,UNWDF_Medellín_2024_en!A:F,5,FALSE),1,SEARCH(\"(\",VLOOKUP($D$1&D86&$E$1&E86,UNWDF_Medellín_2024_en!A:F,5,FALSE))-2)","v":"16:45 - 18:00"},"1:15",{"$f":"HLOOKUP($F86,UNWDF_Medellín_2024_en!$H$14:$S$16,2,FALSE)","v":"NA"},{"$f":"HLOOKUP($F86,UNWDF_Medellín_2024_en!$H$14:$S$16,3,FALSE)","v":"NA"},"NA","NA","NA",{"$f":"IF(OR(L86=\"NA\",L86=\"E\"),\"NA\",IF(L86=\"Y\",COUNTIF($M$1:N85,N86)+1,COUNTIF($M$1:N85,N86)+1))","v":"NA"},"NA","NA","NA","NA","NA","Day1_Time_Slot6_Parallel 12","","1:15"]
[6,"Day1_Time_Slot7_Parallel 01","Day1_Time_Slot7",1,7,"Parallel 01",{"$f":"VLOOKUP($D$1&D87,UNWDF_Medellín_2024_en!A:F,5,FALSE)","v":"2024-11-13"},{"$f":"MID(VLOOKUP($D$1&D87&$E$1&E87,UNWDF_Medellín_2024_en!A:F,5,FALSE),1,SEARCH(\"(\",VLOOKUP($D$1&D87&$E$1&E87,UNWDF_Medellín_2024_en!A:F,5,FALSE))-2)","v":"18:30 - 19:15"},"0:45",{"$f":"HLOOKUP($F87,UNWDF_Medellín_2024_en!$H$14:$S$16,2,FALSE)","v":"Plenary Room"},{"$f":"HLOOKUP($F87,UNWDF_Medellín_2024_en!$H$14:$S$16,3,FALSE)","v":3000},"NA","NA","_S",{"$f":"IF(OR(L87=\"NA\",L87=\"E\"),\"NA\",IF(L87=\"Y\",COUNTIF($M$1:N86,N87)+1,COUNTIF($M$1:N86,N87)+1))","v":"NA"},"TA_S.NA","NA","NA","NA","NA","Day1_Time_Slot7_Parallel 01","","0:45"]
[7,"Day2_Time_Slot1_Parallel 01","Day2_Time_Slot1",2,1,"Parallel 01",{"$f":"VLOOKUP($D$1&D88,UNWDF_Medellín_2024_en!A:F,5,FALSE)","v":"2024-11-14"},{"$f":"MID(VLOOKUP($D$1&D88&$E$1&E88,UNWDF_Medellín_2024_en!A:F,5,FALSE),1,SEARCH(\"(\",VLOOKUP($D$1&D88&$E$1&E88,UNWDF_Medellín_2024_en!A:F,5,FALSE))-2)","v":"09:00 - 10:15"},"1:15",{"$f":"HLOOKUP($F88,UNWDF_Medellín_2024_en!$H$14:$S$16,2,FALSE)","v":"Plenary Room"},{"$f":"HLOOKUP($F88,UNWDF_Medellín_2024_en!$H$14:$S$16,3,FALSE)","v":3000},"Y","NA",3,{"$f":"IF(OR(L88=\"NA\",L88=\"E\"),\"NA\",IF(L88=\"Y\",COUNTIF($M$1:N87,N88)+1,COUNTIF($M$1:N87,N88)+1))","v":3},"TA3.1","Building trust, protection and ethics in data","UN World Data Forum Programme Committee (UNWDF PC)","Fomento de la confianza, la protección y la ética en los datos","Comité del Programa del Foro Mundial de Datos de la ONU (UNWDF PC)","Day2_Time_Slot1_Parallel 01","","1:15"]
[61,"Day2_Time_Slot1_Parallel 02","Day2_Time_Slot1",2,1,"Parallel 02",{"$f":"VLOOKUP($D$1&D89,UNWDF_Medellín_2024_en!A:F,5,FALSE)","v":"2024-11-14"},{"$f":"MID(VLOOKUP($D$1&D89&$E$1&E89,UNWDF_Medellín_2024_en!A:F,5,FALSE),1,SEARCH(\"(\",VLOOKUP($D$1&D89&$E$1&E89,UNWDF_Medellín_2024_en!A:F,5,FALSE))-2)","v":"09:00 - 10:15"},"1:15",{"$f":"HLOOKUP($F89,UNWDF_Medellín_2024_en!$H$14:$S$16,2,FALSE)","v":"Room 1"},{"$f":"HLOOKUP($F89,UNWDF_Medellín_2024_en!$H$14:$S$16,3,FALSE)","v":300},"NA","NA","NA",{"$f":"IF(OR(L89=\"NA\",L89=\"E\"),\"NA\",IF(L89=\"Y\",COUNTIF($M$1:N88,N89)+1,COUNTIF($M$1:N88,N89)+1))","v":"NA"},{"$f":"IF(N89=\"NA\",\"NA\",\"TA\"&N89&\".\"&TEXT(O89,\"0#\"))","v":"NA"},"NA","NA","NA","NA","Day2_Time_Slot1_Parallel 02","","1:15"]
[62,"Day2_Time_Slot1_Parallel 03","Day2_Time_Slot1",2,1,"Parallel 03",{"$f":"VLOOKUP($D$1&D90,UNWDF_Medellín_2024_en!A:F,5,FALSE)","v":"2024-11-14"},{"$f":"MID(VLOOKUP($D$1&D90&$E$1&E90,UNWDF_Medellín_2024_en!A:F,5,FALSE),1,SEARCH(\"(\",VLOOKUP($D$1&D90&$E$1&E90,UNWDF_Medellín_2024_en!A:F,5,FALSE))-2)","v":"09:00 - 10:15"},"1:15",{"$f":"HLOOKUP($F90,UNWDF_Medellín_2024_en!$H$14:$S$16,2,FALSE)","v":"Room 2"},{"$f":"HLOOKUP($F90,UNWDF_Medellín_2024_en!$H$14:$S$16,3,FALSE)","v":200},"NA","NA","NA",{"$f":"IF(OR(L90=\"NA\",L90=\"E\"),\"NA\",IF(L90=\"Y\",COUNTIF($M$1:N89,N90)+1,COUNTIF($M$1:N89,N90)+1))","v":"NA"},"NA","NA","NA","NA","NA","Day2_Time_Slot1_Parallel 03","","1:15"]
[63,"Day2_Time_Slot1_Parallel 04","Day2_Time_Slot1",2,1,"Parallel 04",{"$f":"VLOOKUP($D$1&D91,UNWDF_Medellín_2024_en!A:F,5,FALSE)","v":"2024-11-14"},{"$f":"MID(VLOOKUP($D$1&D91&$E$1&E91,UNWDF_Medellín_2024_en!A:F,5,FALSE),1,SEARCH(\"(\",VLOOKUP($D$1&D91&$E$1&E91,UNWDF_Medellín_2024_en!A:F,5,FALSE))-2)","v":"09:00 - 10:15"},"1:15",{"$f":"HLOOKUP($F91,UNWDF_Medellín_2024_en!$H$14:$S$16,2,FALSE)","v":"Room 3"},{"$f":"HLOOKUP($F91,UNWDF_Medellín_2024_en!$H$14:$S$16,3,FALSE)","v":200},"NA","NA","NA",{"$f":"IF(OR(L91=\"NA\",L91=\"E\"),\"NA\",IF(L91=\"Y\",COUNTIF($M$1:N90,N91)+1,COUNTIF($M$1:N90,N91)+1))","v":"NA"},"NA","NA","NA","NA","NA","Day2_Time_Slot1_Parallel 04","","1:15"]
[64,"Day2_Time_Slot1_Parallel 05","Day2_Time_Slot1",2,1,"Parallel 05",{"$f":"VLOOKUP($D$1&D92,UNWDF_Medellín_2024_en!A:F,5,FALSE)","v":"2024-11-14"},{"$f":"MID(VLOOKUP($D$1&D92&$E$1&E92,UNWDF_Medellín_2024_en!A:F,5,FALSE),1,SEARCH(\"(\",VLOOKUP($D$1&D92&$E$1&E92,UNWDF_Medellín_2024_en!A:F,5,FALSE))-2)","v":"09:00 - 10:15"},"1:15",{"$f":"HLOOKUP($F92,UNWDF_Medellín_2024_en!$H$14:$S$16,2,FALSE)","v":"Room 4"},{"$f":"HLOOKUP($F92,UNWDF_Medellín_2024_en!$H$14:$S$16,3,FALSE)","v":200},"NA","NA","NA",{"$f":"IF(OR(L92=\"NA\",L92=\"E\"),\"NA\",IF(L92=\"Y\",COUNTIF($M$1:N91,N92)+1,COUNTIF($M$1:N91,N92)+1))","v":"NA"},"NA","NA","NA","NA","NA","Day2_Time_Slot1_Parallel 05","","1:15"]
[65,"Day2_Time_Slot1_Parallel 06","Day2_Time_Slot1",2,1,"Parallel 06",{"$f":"VLOOKUP($D$1&D93,UNWDF_Medellín_2024_en!A:F,5,FALSE)","v":"2024-11-14"},{"$f":"MID(VLOOKUP($D$1&D93&$E$1&E93,UNWDF_Medellín_2024_en!A:F,5,FALSE),1,SEARCH(\"(\",VLOOKUP($D$1&D93&$E$1&E93,UNWDF_Medellín_2024_en!A:F,5,FALSE))-2)","v":"09:00 - 10:15"},"1:15",{"$f":"HLOOKUP($F93,UNWDF_Medellín_2024_en!$H$14:$S$16,2,FALSE)","v":"Room 5"},{"$f":"HLOOKUP($F93,UNWDF_Medellín_2024_en!$H$14:$S$16,3,FALSE)","v":200},"NA","NA","NA",{"$f":"IF(OR(L93=\"NA\",L93=\"E\"),\"NA\",IF(L93=\"Y\",COUNTIF($M$1:N92,N93)+1,COUNTIF($M$1:N92,N93)+1))","v":"NA"},"NA","NA","NA","NA","NA","Day2_Time_Slot1_Parallel 06","","1:15"]
[66,"Day2_Time_Slot1_Parallel 07","Day2_Time_Slot1",2,1,"Parallel 07",{"$f":"VLOOKUP($D$1&D94,UNWDF_Medellín_2024_en!A:F,5,FALSE)","v":"2024-11-14"},{"$f":"MID(VLOOKUP($D$1&D94&$E$1&E94,UNWDF_Medellín_2024_en!A:F,5,FALSE),1,SEARCH(\"(\",VLOOKUP($D$1&D94&$E$1&E94,UNWDF_Medellín_2024_en!A:F,5,FALSE))-2)","v":"09:00 - 10:15"},"1:15",{"$f":"HLOOKUP($F94,UNWDF_Medellín_2024_en!$H$14:$S$16,2,FALSE)","v":"Room 6"},{"$f":"HLOOKUP($F94,UNWDF_Medellín_2024_en!$H$14:$S$16,3,FALSE)","v":150},"NA","NA","NA",{"$f":"IF(OR(L94=\"NA\",L94=\"E\"),\"NA\",IF(L94=\"Y\",COUNTIF($M$1:N93,N94)+1,COUNTIF($M$1:N93,N94)+1))","v":"NA"},"NA","NA","NA","NA","NA","Day2_Time_Slot1_Parallel 07","","1:15"]
[67,"Day2_Time_Slot1_Parallel 08","Day2_Time_Slot1",2,1,"Parallel 08",{"$f":"VLOOKUP($D$1&D95,UNWDF_Medellín_2024_en!A:F,5,FALSE)","v":"2024-11-14"},{"$f":"MID(VLOOKUP($D$1&D95&$E$1&E95,UNWDF_Medellín_2024_en!A:F,5,FALSE),1,SEARCH(\"(\",VLOOKUP($D$1&D95&$E$1&E95,UNWDF_Medellín_2024_en!A:F,5,FALSE))-2)","v":"09:00 - 10:15"},"1:15",{"$f":"HLOOKUP($F95,UNWDF_Medellín_2024_en!$H$14:$S$16,2,FALSE)","v":"Room 7"},{"$f":"HLOOKUP($F95,UNWDF_Medellín_2024_en!$H$14:$S$16,3,FALSE)","v":150},"NA","NA","NA",{"$f":"IF(OR(L95=\"NA\",L95=\"E\"),\"NA\",IF(L95=\"Y\",COUNTIF($M$1:N94,N95)+1,COUNTIF($M$1:N94,N95)+1))","v":"NA"},"NA","NA","NA","NA","NA","Day2_Time_Slot1_Parallel 08","","1:15"]
[68,"Day2_Time_Slot1_Parallel 09","Day2_Time_Slot1",2,1,"Parallel 09",{"$f":"VLOOKUP($D$1&D96,UNWDF_Medellín_2024_en!A:F,5,FALSE)","v":"2024-11-14"},{"$f":"MID(VLOOKUP($D$1&D96&$E$1&E96,UNWDF_Medellín_2024_en!A:F,5,FALSE),1,SEARCH(\"(\",VLOOKUP($D$1&D96&$E$1&E96,UNWDF_Medellín_2024_en!A:F,5,FALSE))-2)","v":"09:00 - 10:15"},"1:15",{"$f":"HLOOKUP($F96,UNWDF_Medellín_2024_en!$H$14:$S$16,2,FALSE)","v":"Room 8"},{"$f":"HLOOKUP($F96,UNWDF_Medellín_2024_en!$H$14:$S$16,3,FALSE)","v":90},"NA","NA","NA",{"$f":"IF(OR(L96=\"NA\",L96=\"E\"),\"NA\",IF(L96=\"Y\",COUNTIF($M$1:N95,N96)+1,COUNTIF($M$1:N95,N96)+1))","v":"NA"},"NA","NA","NA","NA","NA","Day2_Time_Slot1_Parallel 09","","1:15"]
[69,"Day2_Time_Slot1_Parallel 10","Day2_Time_Slot1",2,1,"Parallel 10",{"$f":"VLOOKUP($D$1&D97,UNWDF_Medellín_2024_en!A:F,5,FALSE)","v":"2024-11-14"},{"$f":"MID(VLOOKUP($D$1&D97&$E$1&E97,UNWDF_Medellín_2024_en!A:F,5,FALSE),1,SEARCH(\"(\",VLOOKUP($D$1&D97&$E$1&E97,UNWDF_Medellín_2024_en!A:F,5,FALSE))-2)","v":"09:00 - 10:15"},"1:15",{"$f":"HLOOKUP($F97,UNWDF_Medellín_2024_en!$H$14:$S$16,2,FALSE)","v":"Room 9"},{"$f":"HLOOKUP($F97,UNWDF_Medellín_2024_en!$H$14:$S$16,3,FALSE)","v":60},"NA","NA","NA",{"$f":"IF(OR(L97=\"NA\",L97=\"E\"),\"NA\",IF(L97=\"Y\",COUNTIF($M$1:N96,N97)+1,COUNTIF($M$1:N96,N97)+1))","v":"NA"},"NA","NA","NA","NA","NA","Day2_Time_Slot1_Parallel 10","","1:15"]
[70,"Day2_Time_Slot1_Parallel 11","Day2_Time_Slot1",2,1,"Parallel 11",{"$f":"VLOOKUP($D$1&D98,UNWDF_Medellín_2024_en!A:F,5,FALSE)","v":"2024-11-14"},{"$f":"MID(VLOOKUP($D$1&D98&$E$1&E98,UNWDF_Medellín_2024_en!A:F,5,FALSE),1,SEARCH(\"(\",VLOOKUP($D$1&D98&$E$1&E98,UNWDF_Medellín_2024_en!A:F,5,FALSE))-2)","v":"09:00 - 10:15"},"1:15",{"$f":"HLOOKUP($F98,UNWDF_Medellín_2024_en!$H$14:$S$16,2,FALSE)","v":"Room 10"},{"$f":"HLOOKUP($F98,UNWDF_Medellín_2024_en!$H$14:$S$16,3,FALSE)","v":60},"NA","NA","NA",{"$f":"IF(OR(L98=\"NA\",L98=\"E\"),\"NA\",IF(L98=\"Y\",COUNTIF($M$1:N97,N98)+1,COUNTIF($M$1:N97,N98)+1))","v":"NA"},"NA","NA","NA","NA","NA","Day2_Time_Slot1_Parallel 11","","1:15"]
[71,"Day2_Time_Slot1_Parallel 12","Day2_Time_Slot1",2,1,"Parallel 12",{"$f":"VLOOKUP($D$1&D99,UNWDF_Medellín_2024_en!A:F,5,FALSE)","v":"2024-11-14"},{"$f":"MID(VLOOKUP($D$1&D99&$E$1&E99,UNWDF_Medellín_2024_en!A:F,5,FALSE),1,SEARCH(\"(\",VLOOKUP($D$1&D99&$E$1&E99,UNWDF_Medellín_2024_en!A:F,5,FALSE))-2)","v":"09:00 - 10:15"},"1:15",{"$f":"HLOOKUP($F99,UNWDF_Medellín_2024_en!$H$14:$S$16,2,FALSE)","v":"NA"},{"$f":"HLOOKUP($F99,UNWDF_Medellín_2024_en!$H$14:$S$16,3,FALSE)","v":"NA"},"NA","NA","NA",{"$f":"IF(OR(L99=\"NA\",L99=\"E\"),\"NA\",IF(L99=\"Y\",COUNTIF($M$1:N98,N99)+1,COUNTIF($M$1:N98,N99)+1))","v":"NA"},"NA","NA","NA","NA","NA","Day2_Time_Slot1_Parallel 12","","1:15"]
[72,"Day2_Time_Slot2_Parallel 01","Day2_Time_Slot2",2,2,"Parallel 01",{"$f":"VLOOKUP($D$1&D100,UNWDF_Medellín_2024_en!A:F,5,FALSE)","v":"2024-11-14"},{"$f":"MID(VLOOKUP($D$1&D100&$E$1&E100,UNWDF_Medellín_2024_en!A:F,5,FALSE),1,SEARCH(\"(\",VLOOKUP($D$1&D100&$E$1&E100,UNWDF_Medellín_2024_en!A:F,5,FALSE))-2)","v":"10:45 - 11:45"},"1:00",{"$f":"HLOOKUP($F100,UNWDF_Medellín_2024_en!$H$14:$S$16,2,FALSE)","v":"Plenary Room"},{"$f":"HLOOKUP($F100,UNWDF_Medellín_2024_en!$H$14:$S$16,3,FALSE)","v":3000},"NA","NA","NA",{"$f":"IF(OR(L100=\"NA\",L100=\"E\"),\"NA\",IF(L100=\"Y\",COUNTIF($M$1:N99,N100)+1,COUNTIF($M$1:N99,N100)+1))","v":"NA"},"NA","NA","NA","NA","NA","Day2_Time_Slot2_Parallel 01",null,"1:00"]
[153,"Day2_Time_Slot2_Parallel 02","Day2_Time_Slot2",2,2,"Parallel 02",{"$f":"VLOOKUP($D$1&D101,UNWDF_Medellín_2024_en!A:F,5,FALSE)","v":"2024-11-14"},{"$f":"MID(VLOOKUP($D$1&D101&$E$1&E101,UNWDF_Medellín_2024_en!A:F,5,FALSE),1,SEARCH(\"(\",VLOOKUP($D$1&D101&$E$1&E101,UNWDF_Medellín_2024_en!A:F,5,FALSE))-2)","v":"10:45 - 11:45"},"1:00",{"$f":"HLOOKUP($F101,UNWDF_Medellín_2024_en!$H$14:$S$16,2,FALSE)","v":"Room 1"},{"$f":"HLOOKUP($F101,UNWDF_Medellín_2024_en!$H$14:$S$16,3,FALSE)","v":300},"N","NA",4,{"$f":"IF(OR(L101=\"NA\",L101=\"E\"),\"NA\",IF(L101=\"Y\",COUNTIF($M$1:N100,N101)+1,COUNTIF($M$1:N100,N101)+1))","v":4},"TA4.9","Caribbean Data Solutions Hub","NoBrainerData; Oficina Nacional de Estadística (ONE-República Dominicana)-Statistical Conference of the Americas; Statistics Department of Montserrat; Data-Pop Alliance; Central Statistical Office (CSO-Grenada)","Centro de Soluciones de Datos del Caribe","NoBrainerData; Oficina Nacional de Estadística (ONE-República Dominicana)-Conferencia Estadística de las Américas; Departamento de Estadísticas de Montserrat; Alianza Data-Pop; Oficina Central de Estadística (CSO-Grenada)","Day2_Time_Slot2_Parallel 02",null,"1:00"]
[154,"Day2_Time_Slot2_Parallel 03","Day2_Time_Slot2",2,2,"Parallel 03",{"$f":"VLOOKUP($D$1&D102,UNWDF_Medellín_2024_en!A:F,5,FALSE)","v":"2024-11-14"},{"$f":"MID(VLOOKUP($D$1&D102&$E$1&E102,UNWDF_Medellín_2024_en!A:F,5,FALSE),1,SEARCH(\"(\",VLOOKUP($D$1&D102&$E$1&E102,UNWDF_Medellín_2024_en!A:F,5,FALSE))-2)","v":"10:45 - 11:45"},"1:00",{"$f":"HLOOKUP($F102,UNWDF_Medellín_2024_en!$H$14:$S$16,2,FALSE)","v":"Room 2"},{"$f":"HLOOKUP($F102,UNWDF_Medellín_2024_en!$H$14:$S$16,3,FALSE)","v":200},"N","NA",1,{"$f":"IF(OR(L102=\"NA\",L102=\"E\"),\"NA\",IF(L102=\"Y\",COUNTIF($M$1:N101,N102)+1,COUNTIF($M$1:N101,N102)+1))","v":8},"TA1.13","Children on the move: exploring the gaps, needs and solutions for better quality data","IMPACT Initiatives; Inclusive Data Charter; International Data Alliance for Children on the Move; Save the Children; REACH Initiative; Internal Displacement Monitoring Centre (IDMC); United Nations Major Group for Children and Youth (UN MGCY); Direction de la statistique et des études démographiques (DISED-Djibouti)","Niños en movimiento: análisis de las carencias, necesidades y soluciones para mejorar la calidad de los datos","Iniciativas de Impacto (IMPACT Initiatives); Inclusive Data Charter; Alianza Internacional de Datos para Niños en Movimiento; Save the Children; Iniciativa REACH; Internal Displacement Monitoring Centre (IDMC); United Nations Major Group for Children and Youth (UN MGCY); Direction de la statistique et des études démographiques (DISED-Djibouti)","Day2_Time_Slot2_Parallel 03","Update (es): Internal Displacement Monitoring Centre (IDMC); United Nations Major Group for Children and Youth (UN MGCY); Direction de la statistique et des études démographiques (DISED-Djibouti)","1:00"]
[155,"Day2_Time_Slot2_Parallel 04","Day2_Time_Slot2",2,2,"Parallel 04",{"$f":"VLOOKUP($D$1&D103,UNWDF_Medellín_2024_en!A:F,5,FALSE)","v":"2024-11-14"},{"$f":"MID(VLOOKUP($D$1&D103&$E$1&E103,UNWDF_Medellín_2024_en!A:F,5,FALSE),1,SEARCH(\"(\",VLOOKUP($D$1&D103&$E$1&E103,UNWDF_Medellín_2024_en!A:F,5,FALSE))-2)","v":"10:45 - 11:45"},"1:00",{"$f":"HLOOKUP($F103,UNWDF_Medellín_2024_en!$H$14:$S$16,2,FALSE)","v":"Room 3"},{"$f":"HLOOKUP($F103,UNWDF_Medellín_2024_en!$H$14:$S$16,3,FALSE)","v":200},"N","NA",1,{"$f":"IF(OR(L103=\"NA\",L103=\"E\"),\"NA\",IF(L103=\"Y\",COUNTIF($M$1:N102,N103)+1,COUNTIF($M$1:N102,N103)+1))","v":9},"TA1.17","Moving forward to the development of dissemination platforms based on an interoperable data banks ecosystem.","United Nations Economic Commission for Latin America and the Caribbean (UNECLAC / CEPAL); European Statistical Office (Eurostat); Instituto Nacional de Estadística (INE-Paraguay); Instituto Brasileiro de Geografia e Estatística (IBGE)","Avanzar hacia el desarrollo de plataformas de difusión basadas en un ecosistema interoperable de bancos de datos.","Comisión Económica para América Latina y el Caribe de las Naciones Unidas (CEPAL); Oficina Estadística Europea (Eurostat); Instituto Nacional de Estadística (INE-Paraguay); Instituto Brasileño de Geografía y Estadística (IBGE)","Day2_Time_Slot2_Parallel 04",null,"1:00"]
[156,"Day2_Time_Slot2_Parallel 05","Day2_Time_Slot2",2,2,"Parallel 05",{"$f":"VLOOKUP($D$1&D104,UNWDF_Medellín_2024_en!A:F,5,FALSE)","v":"2024-11-14"},{"$f":"MID(VLOOKUP($D$1&D104&$E$1&E104,UNWDF_Medellín_2024_en!A:F,5,FALSE),1,SEARCH(\"(\",VLOOKUP($D$1&D104&$E$1&E104,UNWDF_Medellín_2024_en!A:F,5,FALSE))-2)","v":"10:45 - 11:45"},"1:00",{"$f":"HLOOKUP($F104,UNWDF_Medellín_2024_en!$H$14:$S$16,2,FALSE)","v":"Room 4"},{"$f":"HLOOKUP($F104,UNWDF_Medellín_2024_en!$H$14:$S$16,3,FALSE)","v":200},"N","NA",4,{"$f":"IF(OR(L104=\"NA\",L104=\"E\"),\"NA\",IF(L104=\"Y\",COUNTIF($M$1:N103,N104)+1,COUNTIF($M$1:N103,N104)+1))","v":5},"TA4.18","Identifying and Building Synergies in the Migration Data Ecosystem","Aapti Institute; Robert Bosch Stiftung GmbH","Identificar y Crear Sinergias en el Ecosistema de Datos Migratorios","Instituto Aapti; Fundación Robert Bosch GmbH","Day2_Time_Slot2_Parallel 05",null,"1:00"]
[157,"Day2_Time_Slot2_Parallel 06","Day2_Time_Slot2",2,2,"Parallel 06",{"$f":"VLOOKUP($D$1&D105,UNWDF_Medellín_2024_en!A:F,5,FALSE)","v":"2024-11-14"},{"$f":"MID(VLOOKUP($D$1&D105&$E$1&E105,UNWDF_Medellín_2024_en!A:F,5,FALSE),1,SEARCH(\"(\",VLOOKUP($D$1&D105&$E$1&E105,UNWDF_Medellín_2024_en!A:F,5,FALSE))-2)","v":"10:45 - 11:45"},"1:00",{"$f":"HLOOKUP($F105,UNWDF_Medellín_2024_en!$H$14:$S$16,2,FALSE)","v":"Room 5"},{"$f":"HLOOKUP($F105,UNWDF_Medellín_2024_en!$H$14:$S$16,3,FALSE)","v":200},"N","NA",4,{"$f":"IF(OR(L105=\"NA\",L105=\"E\"),\"NA\",IF(L105=\"Y\",COUNTIF($M$1:N104,N105)+1,COUNTIF($M$1:N104,N105)+1))","v":6},"TA4.11","The importance of demand-side data on digital access and use for evidence-based policy-making in Africa","Research ICT Africa; United Nations Economic Commission for Africa (UNECA); International Telecommunication Union (ITU); Regional Center for Studies for the Development of the Information Society (Cetic.br)","La importancia de los datos sobre la demanda de acceso y uso de la tecnología digital para la elaboración de políticas basadas en datos empíricos en África","Investigación de TIC en África; Comisión Económica para África de las Naciones Unidas (UNECA); Unión Internacional de Telecomunicaciones (UIT); Centro Regional de Estudios para el Desarrollo de la Sociedad de la Información (Cetic.br)","Day2_Time_Slot2_Parallel 06",null,"1:00"]
[158,"Day2_Time_Slot2_Parallel 07","Day2_Time_Slot2",2,2,"Parallel 07",{"$f":"VLOOKUP($D$1&D106,UNWDF_Medellín_2024_en!A:F,5,FALSE)","v":"2024-11-14"},{"$f":"MID(VLOOKUP($D$1&D106&$E$1&E106,UNWDF_Medellín_2024_en!A:F,5,FALSE),1,SEARCH(\"(\",VLOOKUP($D$1&D106&$E$1&E106,UNWDF_Medellín_2024_en!A:F,5,FALSE))-2)","v":"10:45 - 11:45"},"1:00",{"$f":"HLOOKUP($F106,UNWDF_Medellín_2024_en!$H$14:$S$16,2,FALSE)","v":"Room 6"},{"$f":"HLOOKUP($F106,UNWDF_Medellín_2024_en!$H$14:$S$16,3,FALSE)","v":150},"N","NA","_T",{"$f":"IF(OR(L106=\"NA\",L106=\"E\"),\"NA\",IF(L106=\"Y\",COUNTIF($M$1:N105,N106)+1,COUNTIF($M$1:N105,N106)+1))","v":7},"TED.204","How to efficiently utilize sampling techniques to improve data quality of economic census / Inclusive business statistics / Experiences of violence and harassment at work: A global first survey","Research Institute of Statistical Sciences, National Bureau of Statistics (NBS-China) / Oficina Nacional de Estadística (ONE-República Dominicana) / Gallup, Inc.; Lloyd's Register Foundation; International Labour Organization (ILO)","Cómo utilizar eficazmente las técnicas de muestreo para mejorar la calidad de los datos de los censos económicos / Estadísticas empresariales inclusivas / Experiencias de violencia y acoso en el trabajo: Una primera encuesta mundial","Instituto de Investigación de Ciencias Estadísticas, Oficina Nacional de Estadísticas (NBS-China) / Oficina Nacional de Estadística (ONE-República Dominicana) / Gallup, Inc.; Fundación Lloyd's Register; Organización Internacional del Trabajo (OIT)","Day2_Time_Slot2_Parallel 07",null,"1:00"]
[159,"Day2_Time_Slot2_Parallel 08","Day2_Time_Slot2",2,2,"Parallel 08",{"$f":"VLOOKUP($D$1&D107,UNWDF_Medellín_2024_en!A:F,5,FALSE)","v":"2024-11-14"},{"$f":"MID(VLOOKUP($D$1&D107&$E$1&E107,UNWDF_Medellín_2024_en!A:F,5,FALSE),1,SEARCH(\"(\",VLOOKUP($D$1&D107&$E$1&E107,UNWDF_Medellín_2024_en!A:F,5,FALSE))-2)","v":"10:45 - 11:45"},"1:00",{"$f":"HLOOKUP($F107,UNWDF_Medellín_2024_en!$H$14:$S$16,2,FALSE)","v":"Room 7"},{"$f":"HLOOKUP($F107,UNWDF_Medellín_2024_en!$H$14:$S$16,3,FALSE)","v":150},"N","NA","_A",{"$f":"IF(OR(L107=\"NA\",L107=\"E\"),\"NA\",IF(L107=\"Y\",COUNTIF($M$1:N106,N107)+1,COUNTIF($M$1:N106,N107)+1))","v":1},"ANCE.402","Evidence for decision-making and the design of public policies in Latin America","Ministério dos Direitos Humanos e Cidadania; United Nations (UN); Fundación Corona","Evidencias para la toma de decisiones y el diseño de políticas públicas en América Latina","Ministerio de Derechos Humanos y Ciudadanía; Naciones Unidas (ONU); Fundación Corona","Day2_Time_Slot2_Parallel 08",null,"1:00"]
[160,"Day2_Time_Slot2_Parallel 09","Day2_Time_Slot2",2,2,"Parallel 09",{"$f":"VLOOKUP($D$1&D108,UNWDF_Medellín_2024_en!A:F,5,FALSE)","v":"2024-11-14"},{"$f":"MID(VLOOKUP($D$1&D108&$E$1&E108,UNWDF_Medellín_2024_en!A:F,5,FALSE),1,SEARCH(\"(\",VLOOKUP($D$1&D108&$E$1&E108,UNWDF_Medellín_2024_en!A:F,5,FALSE))-2)","v":"10:45 - 11:45"},"1:00",{"$f":"HLOOKUP($F108,UNWDF_Medellín_2024_en!$H$14:$S$16,2,FALSE)","v":"Room 8"},{"$f":"HLOOKUP($F108,UNWDF_Medellín_2024_en!$H$14:$S$16,3,FALSE)","v":90},"N","NA","_L",{"$f":"IF(OR(L108=\"NA\",L108=\"E\"),\"NA\",IF(L108=\"Y\",COUNTIF($M$1:N107,N108)+1,COUNTIF($M$1:N107,N108)+1))","v":4},"LEARN.310","Fostering Citizen and Inclusive Data into the National Statistical Systems through South to South Cooperation","Global Partnership for Sustainable Development Data (GPSDD); Presidential Agency for International Cooperation (APC-Colombia); Bangladesh Bureau of Statistics (BBS); UK Foreign, Commonwealth and Development Office (FCDO); MSD United Way Vietnam; International Civil Society Centre","Fomento de la inclusión de los datos de los ciudadanos en los sistemas estadísticos nacionales mediante la cooperación Sur-Sur","Alianza Global para los Datos del Desarrollo Sostenible (GPSDD); Agencia Presidencial de Cooperación Internacional (APC-Colombia); Oficina de Estadísticas de Bangladesh (BBS); Oficina de Relaciones Exteriores, Commonwealth y Desarrollo del Reino Unido (FCDO); MSD United Way Vietnam; Centro Internacional de la Sociedad Civil","Day2_Time_Slot2_Parallel 09",null,"1:00"]
[161,"Day2_Time_Slot2_Parallel 10","Day2_Time_Slot2",2,2,"Parallel 10",{"$f":"VLOOKUP($D$1&D109,UNWDF_Medellín_2024_en!A:F,5,FALSE)","v":"2024-11-14"},{"$f":"MID(VLOOKUP($D$1&D109&$E$1&E109,UNWDF_Medellín_2024_en!A:F,5,FALSE),1,SEARCH(\"(\",VLOOKUP($D$1&D109&$E$1&E109,UNWDF_Medellín_2024_en!A:F,5,FALSE))-2)","v":"10:45 - 11:45"},"1:00",{"$f":"HLOOKUP($F109,UNWDF_Medellín_2024_en!$H$14:$S$16,2,FALSE)","v":"Room 9"},{"$f":"HLOOKUP($F109,UNWDF_Medellín_2024_en!$H$14:$S$16,3,FALSE)","v":60},"N","NA","_L",{"$f":"IF(OR(L109=\"NA\",L109=\"E\"),\"NA\",IF(L109=\"Y\",COUNTIF($M$1:N108,N109)+1,COUNTIF($M$1:N108,N109)+1))","v":5},"LEARN.304","Data Ecosystems and Gridded Housing and Environmental Statistics for Evidence-Based Policy Making","Instituto Nacional de Estadística y Geografía (INEGI-México); Universidad EAFIT; European Space Agency (ESA); University of Twente","Ecosistemas de datos y estadísticas medioambientales y de vivienda cuadriculada para la elaboración de políticas basadas en datos empíricos","Instituto Nacional de Estadística y Geografía (INEGI-México); Universidad EAFIT; Agencia Espacial Europea (ESA); Universidad de Twente","Day2_Time_Slot2_Parallel 10",null,"1:00"]
[162,"Day2_Time_Slot2_Parallel 11","Day2_Time_Slot2",2,2,"Parallel 11",{"$f":"VLOOKUP($D$1&D110,UNWDF_Medellín_2024_en!A:F,5,FALSE)","v":"2024-11-14"},{"$f":"MID(VLOOKUP($D$1&D110&$E$1&E110,UNWDF_Medellín_2024_en!A:F,5,FALSE),1,SEARCH(\"(\",VLOOKUP($D$1&D110&$E$1&E110,UNWDF_Medellín_2024_en!A:F,5,FALSE))-2)","v":"10:45 - 11:45"},"1:00",{"$f":"HLOOKUP($F110,UNWDF_Medellín_2024_en!$H$14:$S$16,2,FALSE)","v":"Room 10"},{"$f":"HLOOKUP($F110,UNWDF_Medellín_2024_en!$H$14:$S$16,3,FALSE)","v":60},"N","NA","_D",{"$f":"IF(OR(L110=\"NA\",L110=\"E\"),\"NA\",IF(L110=\"Y\",COUNTIF($M$1:N109,N110)+1,COUNTIF($M$1:N109,N110)+1))","v":4},"DEMO.504","Innovation in data collection on ethnic-racial population: progress in inclusion and characterization in Colombia / Timely, comprehensive and focused provision of social services based on an interoperable system of administrative records. The Ecuadorean case to prevent stunting / Tools for the visualization of demographic indicators as a strategy for prospective planning at the local level in Mexico / From Numbers to Change: Using Data to End Gender-Based Violence","Departamento Administrativo Nacional de Estadística (DANE-Colombia) / Instituto Nacional de Estadística y Censos (INEC-Ecuador); Crece sin Desnutrición Infantil, Ecuador; Coorporación Andina de Fomento; Vital Strategies / United Nations Development Programme (UNDP) / United Nations Population Fund (UNFPA)","Innovación en la recolección de datos sobre población étnico-racial: avances en inclusión y caracterización en Colombia / Prestación oportuna, integral y focalizada de servicios sociales a partir de un sistema interoperable de registros administrativos. El caso ecuatoriano para prevenir el retraso en el crecimiento / Herramientas para la visualización de indicadores demográficos como estrategia de planeación prospectiva a nivel local en México / De los números al cambio: El uso de datos para acabar con la violencia de género","Departamento Administrativo Nacional de Estadística (DANE-Colombia) / Instituto Nacional de Estadística y Censos (INEC-Ecuador); Crece sin Desnutrición Infantil, Ecuador; Corporación Andina de Fomento; Vital Strategies / Programa de las Naciones Unidas para el Desarrollo (PNUD) / Fondo de Población de las Naciones Unidas (UNFPA)","Day2_Time_Slot2_Parallel 11","","1:00"]
[163,"Day2_Time_Slot2_Parallel 12","Day2_Time_Slot2",2,2,"Parallel 12",{"$f":"VLOOKUP($D$1&D111,UNWDF_Medellín_2024_en!A:F,5,FALSE)","v":"2024-11-14"},{"$f":"MID(VLOOKUP($D$1&D111&$E$1&E111,UNWDF_Medellín_2024_en!A:F,5,FALSE),1,SEARCH(\"(\",VLOOKUP($D$1&D111&$E$1&E111,UNWDF_Medellín_2024_en!A:F,5,FALSE))-2)","v":"10:45 - 11:45"},"1:00",{"$f":"HLOOKUP($F111,UNWDF_Medellín_2024_en!$H$14:$S$16,2,FALSE)","v":"NA"},{"$f":"HLOOKUP($F111,UNWDF_Medellín_2024_en!$H$14:$S$16,3,FALSE)","v":"NA"},"NA","NA","NA",{"$f":"IF(OR(L111=\"NA\",L111=\"E\"),\"NA\",IF(L111=\"Y\",COUNTIF($M$1:N110,N111)+1,COUNTIF($M$1:N110,N111)+1))","v":"NA"},{"$f":"IF(N111=\"NA\",\"NA\",\"TA\"&N111&\".\"&TEXT(O111,\"0#\"))","v":"NA"},"NA","NA","NA","NA","Day2_Time_Slot2_Parallel 12","","1:00"]
[73,"Day2_Time_Slot3_Parallel 01","Day2_Time_Slot3",2,3,"Parallel 01",{"$f":"VLOOKUP($D$1&D112,UNWDF_Medellín_2024_en!A:F,5,FALSE)","v":"2024-11-14"},{"$f":"MID(VLOOKUP($D$1&D112&$E$1&E112,UNWDF_Medellín_2024_en!A:F,5,FALSE),1,SEARCH(\"(\",VLOOKUP($D$1&D112&$E$1&E112,UNWDF_Medellín_2024_en!A:F,5,FALSE))-2)","v":"13:30 - 14:30"},"1:00",{"$f":"HLOOKUP($F112,UNWDF_Medellín_2024_en!$H$14:$S$16,2,FALSE)","v":"Plenary Room"},{"$f":"HLOOKUP($F112,UNWDF_Medellín_2024_en!$H$14:$S$16,3,FALSE)","v":3000},"NA","NA","NA",{"$f":"IF(OR(L112=\"NA\",L112=\"E\"),\"NA\",IF(L112=\"Y\",COUNTIF($M$1:N111,N112)+1,COUNTIF($M$1:N111,N112)+1))","v":"NA"},"NA","NA","NA","NA","NA","Day2_Time_Slot3_Parallel 01",null,"1:00"]
[164,"Day2_Time_Slot3_Parallel 02","Day2_Time_Slot3",2,3,"Parallel 02",{"$f":"VLOOKUP($D$1&D113,UNWDF_Medellín_2024_en!A:F,5,FALSE)","v":"2024-11-14"},{"$f":"MID(VLOOKUP($D$1&D113&$E$1&E113,UNWDF_Medellín_2024_en!A:F,5,FALSE),1,SEARCH(\"(\",VLOOKUP($D$1&D113&$E$1&E113,UNWDF_Medellín_2024_en!A:F,5,FALSE))-2)","v":"13:30 - 14:30"},"1:00",{"$f":"HLOOKUP($F113,UNWDF_Medellín_2024_en!$H$14:$S$16,2,FALSE)","v":"Room 1"},{"$f":"HLOOKUP($F113,UNWDF_Medellín_2024_en!$H$14:$S$16,3,FALSE)","v":300},"N","NA",1,{"$f":"IF(OR(L113=\"NA\",L113=\"E\"),\"NA\",IF(L113=\"Y\",COUNTIF($M$1:N112,N113)+1,COUNTIF($M$1:N112,N113)+1))","v":10},"TA1.3","Empowering Vulnerable Entrepreneurs: Data-Driven Business Strategy for Inclusive Digital Transformation","United Nations Development Programme (UNDP); Federación de Aseguradores Colombianos (Fasecolda); Banca de las Oportunidades; National Advisory Board for Impact Investment (NAB)","Capacitar a los Empresarios Vulnerables: Estrategia Empresarial Basada en Datos para una Transformación Digital Inclusiva","Programa de las Naciones Unidas para el Desarrollo (PNUD); Federación de Aseguradores Colombianos (Fasecolda); Banca de las Oportunidades; National Advisory Board for Impact Investment (NAB)","Day2_Time_Slot3_Parallel 02",null,"1:00"]
[165,"Day2_Time_Slot3_Parallel 03","Day2_Time_Slot3",2,3,"Parallel 03",{"$f":"VLOOKUP($D$1&D114,UNWDF_Medellín_2024_en!A:F,5,FALSE)","v":"2024-11-14"},{"$f":"MID(VLOOKUP($D$1&D114&$E$1&E114,UNWDF_Medellín_2024_en!A:F,5,FALSE),1,SEARCH(\"(\",VLOOKUP($D$1&D114&$E$1&E114,UNWDF_Medellín_2024_en!A:F,5,FALSE))-2)","v":"13:30 - 14:30"},"1:00",{"$f":"HLOOKUP($F114,UNWDF_Medellín_2024_en!$H$14:$S$16,2,FALSE)","v":"Room 2"},{"$f":"HLOOKUP($F114,UNWDF_Medellín_2024_en!$H$14:$S$16,3,FALSE)","v":200},"N","NA",1,{"$f":"IF(OR(L114=\"NA\",L114=\"E\"),\"NA\",IF(L114=\"Y\",COUNTIF($M$1:N113,N114)+1,COUNTIF($M$1:N113,N114)+1))","v":11},"TA1.8","Data Innovations on Housing and Environmental Statistics: Combining Alternative and Official Data to Map Informal Settlements","Instituto Nacional de Estadística y Geografía (INEGI-México); Universidad EAFIT; European Space Agency (ESA); University of Twente","Innovaciones de Datos sobre Estadísticas de Vivienda y Medio Ambiente: Combinación de Datos Oficiales y Alternativos para Cartografiar los Asentamientos Informales","Instituto Nacional de Estadística y Geografía (INEGI-México); Universidad EAFIT; Agencia Espacial Europea (ESA); Universidad de Twente","Day2_Time_Slot3_Parallel 03",null,"1:00"]
[166,"Day2_Time_Slot3_Parallel 04","Day2_Time_Slot3",2,3,"Parallel 04",{"$f":"VLOOKUP($D$1&D115,UNWDF_Medellín_2024_en!A:F,5,FALSE)","v":"2024-11-14"},{"$f":"MID(VLOOKUP($D$1&D115&$E$1&E115,UNWDF_Medellín_2024_en!A:F,5,FALSE),1,SEARCH(\"(\",VLOOKUP($D$1&D115&$E$1&E115,UNWDF_Medellín_2024_en!A:F,5,FALSE))-2)","v":"13:30 - 14:30"},"1:00",{"$f":"HLOOKUP($F115,UNWDF_Medellín_2024_en!$H$14:$S$16,2,FALSE)","v":"Room 3"},{"$f":"HLOOKUP($F115,UNWDF_Medellín_2024_en!$H$14:$S$16,3,FALSE)","v":200},"N","NA",4,{"$f":"IF(OR(L115=\"NA\",L115=\"E\"),\"NA\",IF(L115=\"Y\",COUNTIF($M$1:N114,N115)+1,COUNTIF($M$1:N114,N115)+1))","v":7},"TA4.17","Citizen science: Opportunities and Challenges for Enhanced Local to Global SDG Monitoring and Action","Institut Cienciès Marines; Humanitarian OpenStreetMap (HOTOSM); International Institute for Applied Systems Analysis (IIASA), Iberoamerican Participatory Science Network (RICAP); United Nations Human Settlements Programme (UN-Habitat); Citizen Science Global Partnership (CSGP)","Ciencia ciudadana: Oportunidades y retos para mejorar el seguimiento y la acción de los ODS a escala local y mundial","Instituto de Ciencias del Mar; Humanitarian OpenStreetMap (HOTOSM); Instituto Internacional para el Análisis de Sistemas Aplicados (IIASA); Red Iberoamericana de Ciencia Participativa (RICAP); Programa de las Naciones Unidas para los Asentamientos Humanos (ONU-Hábitat); Alianza Global de Ciencia Ciudadana (CSGP)","Day2_Time_Slot3_Parallel 04",null,"1:00"]
[167,"Day2_Time_Slot3_Parallel 05","Day2_Time_Slot3",2,3,"Parallel 05",{"$f":"VLOOKUP($D$1&D116,UNWDF_Medellín_2024_en!A:F,5,FALSE)","v":"2024-11-14"},{"$f":"MID(VLOOKUP($D$1&D116&$E$1&E116,UNWDF_Medellín_2024_en!A:F,5,FALSE),1,SEARCH(\"(\",VLOOKUP($D$1&D116&$E$1&E116,UNWDF_Medellín_2024_en!A:F,5,FALSE))-2)","v":"13:30 - 14:30"},"1:00",{"$f":"HLOOKUP($F116,UNWDF_Medellín_2024_en!$H$14:$S$16,2,FALSE)","v":"Room 4"},{"$f":"HLOOKUP($F116,UNWDF_Medellín_2024_en!$H$14:$S$16,3,FALSE)","v":200},"N","NA",2,{"$f":"IF(OR(L116=\"NA\",L116=\"E\"),\"NA\",IF(L116=\"Y\",COUNTIF($M$1:N115,N116)+1,COUNTIF($M$1:N115,N116)+1))","v":5},"TA2.9","Alternative mapping data for resilience and development in the face of climate change","Humanitarian OpenStreetMap (HOTOSM); Departamento Administrativo Nacional de Estadística (DANE-Colombia); Oficina Nacional de Estadistica (ONE Dominican Republic); Centro de Estudios con Poblaciones, Movilizaciones y Territorio; Crisis Ready; Global Partnership for Sustainable Development Data (GPSDD); United Nations Office for the Coordination of Humanitarian Affairs (OCHA)","Datos cartográficos alternativos para la resiliencia y el desarrollo frente al cambio climático","Humanitarian OpenStreetMap (HOTOSM); Departamento Administrativo Nacional de Estadística (DANE-Colombia); Centro de Estudios con Poblaciones, Movilizaciones y Territorio; Crisis Ready; Alianza Global para los Datos del Desarrollo Sostenible (GPSDD); Oficina de Coordinación de Asuntos Humanitarios de las Naciones Unidas (OCHA)","Day2_Time_Slot3_Parallel 05",null,"1:00"]
[168,"Day2_Time_Slot3_Parallel 06","Day2_Time_Slot3",2,3,"Parallel 06",{"$f":"VLOOKUP($D$1&D117,UNWDF_Medellín_2024_en!A:F,5,FALSE)","v":"2024-11-14"},{"$f":"MID(VLOOKUP($D$1&D117&$E$1&E117,UNWDF_Medellín_2024_en!A:F,5,FALSE),1,SEARCH(\"(\",VLOOKUP($D$1&D117&$E$1&E117,UNWDF_Medellín_2024_en!A:F,5,FALSE))-2)","v":"13:30 - 14:30"},"1:00",{"$f":"HLOOKUP($F117,UNWDF_Medellín_2024_en!$H$14:$S$16,2,FALSE)","v":"Room 5"},{"$f":"HLOOKUP($F117,UNWDF_Medellín_2024_en!$H$14:$S$16,3,FALSE)","v":200},"N","NA",4,{"$f":"IF(OR(L117=\"NA\",L117=\"E\"),\"NA\",IF(L117=\"Y\",COUNTIF($M$1:N116,N117)+1,COUNTIF($M$1:N116,N117)+1))","v":8},"TA4.12","Advancing human rights through provision of address and ending homelessness: Geo-located statistics improvement and inclusive homelessness enumeration","Ruff Institute of Global Homelessness (IGH), DePaul University; Instituto Nacional de Estadística (INE-Uruguay); Google","Promoción de los derechos humanos mediante la provisión de direcciones y la erradicación de la falta de vivienda: Mejora de las estadísticas geolocalizadas y enumeración inclusiva de las personas sin hogar","Instituto Ruff de Global Homelessness (IGH), Universidad DePaul; Instituto Nacional de Estadística (INE-Uruguay); Google","Day2_Time_Slot3_Parallel 06",null,"1:00"]
[169,"Day2_Time_Slot3_Parallel 07","Day2_Time_Slot3",2,3,"Parallel 07",{"$f":"VLOOKUP($D$1&D118,UNWDF_Medellín_2024_en!A:F,5,FALSE)","v":"2024-11-14"},{"$f":"MID(VLOOKUP($D$1&D118&$E$1&E118,UNWDF_Medellín_2024_en!A:F,5,FALSE),1,SEARCH(\"(\",VLOOKUP($D$1&D118&$E$1&E118,UNWDF_Medellín_2024_en!A:F,5,FALSE))-2)","v":"13:30 - 14:30"},"1:00",{"$f":"HLOOKUP($F118,UNWDF_Medellín_2024_en!$H$14:$S$16,2,FALSE)","v":"Room 6"},{"$f":"HLOOKUP($F118,UNWDF_Medellín_2024_en!$H$14:$S$16,3,FALSE)","v":150},"N","NA","_T",{"$f":"IF(OR(L118=\"NA\",L118=\"E\"),\"NA\",IF(L118=\"Y\",COUNTIF($M$1:N117,N118)+1,COUNTIF($M$1:N117,N118)+1))","v":8},"TED.205","Data dissemination across contexts","World Bank-United Nations High Commissioner for Refugees Joint Data Center on Forced Displacement (WB-UNHCR JDC); IMPACT Initiatives; Instituto Estatal de Transparencia, Acceso a la Información y Protección de Datos Personales (INFONL)","Difusión de datos en diferentes contextos","Centro Conjunto de Datos sobre Desplazamiento Forzado del Alto Comisionado de las Naciones Unidas para los Refugiados-Banco Mundial (ACNUR-BM); Iniciativas IMPACT; Instituto Estatal de Transparencia, Acceso a la Información y Protección de Datos Personales (INFONL)","Day2_Time_Slot3_Parallel 07","NEW ORG LIST","1:00"]
[170,"Day2_Time_Slot3_Parallel 08","Day2_Time_Slot3",2,3,"Parallel 08",{"$f":"VLOOKUP($D$1&D119,UNWDF_Medellín_2024_en!A:F,5,FALSE)","v":"2024-11-14"},{"$f":"MID(VLOOKUP($D$1&D119&$E$1&E119,UNWDF_Medellín_2024_en!A:F,5,FALSE),1,SEARCH(\"(\",VLOOKUP($D$1&D119&$E$1&E119,UNWDF_Medellín_2024_en!A:F,5,FALSE))-2)","v":"13:30 - 14:30"},"1:00",{"$f":"HLOOKUP($F119,UNWDF_Medellín_2024_en!$H$14:$S$16,2,FALSE)","v":"Room 7"},{"$f":"HLOOKUP($F119,UNWDF_Medellín_2024_en!$H$14:$S$16,3,FALSE)","v":150},"N","NA",4,{"$f":"IF(OR(L119=\"NA\",L119=\"E\"),\"NA\",IF(L119=\"Y\",COUNTIF($M$1:N118,N119)+1,COUNTIF($M$1:N118,N119)+1))","v":9},"TA4.19","Measure for Measure: Leveraging gender data capacity measures in practice","United Nations Entity for Gender Equality and the Empowerment of Women (UN Women); Partnership in Statistics for Development in the 21st Century (PARIS21); World Bank (WB); Open Data Watch (ODW)","Medida por medida: Aprovechar en la práctica las medidas de capacidad de los datos sobre género","Entidad de las Naciones Unidas para la Igualdad de Género y el Empoderamiento de la Mujer (ONU Mujeres); Alianza en Estadísticas para el Desarrollo en el Siglo XXI (PARIS21); Banco Mundial (BM); Open Data Watch (ODW)","Day2_Time_Slot3_Parallel 08",null,"1:00"]
[171,"Day2_Time_Slot3_Parallel 09","Day2_Time_Slot3",2,3,"Parallel 09",{"$f":"VLOOKUP($D$1&D120,UNWDF_Medellín_2024_en!A:F,5,FALSE)","v":"2024-11-14"},{"$f":"MID(VLOOKUP($D$1&D120&$E$1&E120,UNWDF_Medellín_2024_en!A:F,5,FALSE),1,SEARCH(\"(\",VLOOKUP($D$1&D120&$E$1&E120,UNWDF_Medellín_2024_en!A:F,5,FALSE))-2)","v":"13:30 - 14:30"},"1:00",{"$f":"HLOOKUP($F120,UNWDF_Medellín_2024_en!$H$14:$S$16,2,FALSE)","v":"Room 8"},{"$f":"HLOOKUP($F120,UNWDF_Medellín_2024_en!$H$14:$S$16,3,FALSE)","v":90},"N","NA","NA",{"$f":"IF(OR(L120=\"NA\",L120=\"E\"),\"NA\",IF(L120=\"Y\",COUNTIF($M$1:N119,N120)+1,COUNTIF($M$1:N119,N120)+1))","v":186},"Local_4","Medellín: data ecosystem in the CTI district","TBC","Medellín: Ecosistema de datos en el distrito de ciencia, tecnología e innovación","Por Confirmar","Day2_Time_Slot3_Parallel 09",null,"1:00"]
[172,"Day2_Time_Slot3_Parallel 10","Day2_Time_Slot3",2,3,"Parallel 10",{"$f":"VLOOKUP($D$1&D121,UNWDF_Medellín_2024_en!A:F,5,FALSE)","v":"2024-11-14"},{"$f":"MID(VLOOKUP($D$1&D121&$E$1&E121,UNWDF_Medellín_2024_en!A:F,5,FALSE),1,SEARCH(\"(\",VLOOKUP($D$1&D121&$E$1&E121,UNWDF_Medellín_2024_en!A:F,5,FALSE))-2)","v":"13:30 - 14:30"},"1:00",{"$f":"HLOOKUP($F121,UNWDF_Medellín_2024_en!$H$14:$S$16,2,FALSE)","v":"Room 9"},{"$f":"HLOOKUP($F121,UNWDF_Medellín_2024_en!$H$14:$S$16,3,FALSE)","v":60},"N","NA","_L",{"$f":"IF(OR(L121=\"NA\",L121=\"E\"),\"NA\",IF(L121=\"Y\",COUNTIF($M$1:N120,N121)+1,COUNTIF($M$1:N120,N121)+1))","v":6},"LEARN.305","Workshop: Delivering immunisation services to zero-dose children through geospatial microplanning support documents: why, what, and how?","Flowminder Foundation","Taller: Prestación de servicios de inmunización a niños con dosis cero mediante documentos geoespaciales de apoyo a la microplanificación: ¿por qué, qué y cómo?","Fundación Flowminder","Day2_Time_Slot3_Parallel 10","","1:00"]
[173,"Day2_Time_Slot3_Parallel 11","Day2_Time_Slot3",2,3,"Parallel 11",{"$f":"VLOOKUP($D$1&D122,UNWDF_Medellín_2024_en!A:F,5,FALSE)","v":"2024-11-14"},{"$f":"MID(VLOOKUP($D$1&D122&$E$1&E122,UNWDF_Medellín_2024_en!A:F,5,FALSE),1,SEARCH(\"(\",VLOOKUP($D$1&D122&$E$1&E122,UNWDF_Medellín_2024_en!A:F,5,FALSE))-2)","v":"13:30 - 14:30"},"1:00",{"$f":"HLOOKUP($F122,UNWDF_Medellín_2024_en!$H$14:$S$16,2,FALSE)","v":"Room 10"},{"$f":"HLOOKUP($F122,UNWDF_Medellín_2024_en!$H$14:$S$16,3,FALSE)","v":60},"E","NA","NA",{"$f":"IF(OR(L122=\"NA\",L122=\"E\"),\"NA\",IF(L122=\"Y\",COUNTIF($M$1:N121,N122)+1,COUNTIF($M$1:N121,N122)+1))","v":"NA"},{"$f":"IF(N122=\"NA\",\"NA\",\"TA\"&N122&\".\"&TEXT(O122,\"0#\"))","v":"NA"},"TBC","TBC","Por Confirmar","Por Confirmar","Day2_Time_Slot3_Parallel 11","","1:00"]
[174,"Day2_Time_Slot3_Parallel 12","Day2_Time_Slot3",2,3,"Parallel 12",{"$f":"VLOOKUP($D$1&D123,UNWDF_Medellín_2024_en!A:F,5,FALSE)","v":"2024-11-14"},{"$f":"MID(VLOOKUP($D$1&D123&$E$1&E123,UNWDF_Medellín_2024_en!A:F,5,FALSE),1,SEARCH(\"(\",VLOOKUP($D$1&D123&$E$1&E123,UNWDF_Medellín_2024_en!A:F,5,FALSE))-2)","v":"13:30 - 14:30"},"1:00",{"$f":"HLOOKUP($F123,UNWDF_Medellín_2024_en!$H$14:$S$16,2,FALSE)","v":"NA"},{"$f":"HLOOKUP($F123,UNWDF_Medellín_2024_en!$H$14:$S$16,3,FALSE)","v":"NA"},"NA","NA","NA",{"$f":"IF(OR(L123=\"NA\",L123=\"E\"),\"NA\",IF(L123=\"Y\",COUNTIF($M$1:N122,N123)+1,COUNTIF($M$1:N122,N123)+1))","v":"NA"},{"$f":"IF(N123=\"NA\",\"NA\",\"TA\"&N123&\".\"&TEXT(O123,\"0#\"))","v":"NA"},"NA","NA","NA","NA","Day2_Time_Slot3_Parallel 12","","1:00"]
[74,"Day2_Time_Slot4_Parallel 01","Day2_Time_Slot4",2,4,"Parallel 01",{"$f":"VLOOKUP($D$1&D124,UNWDF_Medellín_2024_en!A:F,5,FALSE)","v":"2024-11-14"},{"$f":"MID(VLOOKUP($D$1&D124&$E$1&E124,UNWDF_Medellín_2024_en!A:F,5,FALSE),1,SEARCH(\"(\",VLOOKUP($D$1&D124&$E$1&E124,UNWDF_Medellín_2024_en!A:F,5,FALSE))-2)","v":"14:45 - 15:45"},"1:00",{"$f":"HLOOKUP($F124,UNWDF_Medellín_2024_en!$H$14:$S$16,2,FALSE)","v":"Plenary Room"},{"$f":"HLOOKUP($F124,UNWDF_Medellín_2024_en!$H$14:$S$16,3,FALSE)","v":3000},"NA","NA","NA",{"$f":"IF(OR(L124=\"NA\",L124=\"E\"),\"NA\",IF(L124=\"Y\",COUNTIF($M$1:N123,N124)+1,COUNTIF($M$1:N123,N124)+1))","v":"NA"},"NA","NA","NA","NA","NA","Day2_Time_Slot4_Parallel 01",null,"1:00"]
[175,"Day2_Time_Slot4_Parallel 02","Day2_Time_Slot4",2,4,"Parallel 02",{"$f":"VLOOKUP($D$1&D125,UNWDF_Medellín_2024_en!A:F,5,FALSE)","v":"2024-11-14"},{"$f":"MID(VLOOKUP($D$1&D125&$E$1&E125,UNWDF_Medellín_2024_en!A:F,5,FALSE),1,SEARCH(\"(\",VLOOKUP($D$1&D125&$E$1&E125,UNWDF_Medellín_2024_en!A:F,5,FALSE))-2)","v":"14:45 - 15:45"},"1:00",{"$f":"HLOOKUP($F125,UNWDF_Medellín_2024_en!$H$14:$S$16,2,FALSE)","v":"Room 1"},{"$f":"HLOOKUP($F125,UNWDF_Medellín_2024_en!$H$14:$S$16,3,FALSE)","v":300},"N","NA",2,{"$f":"IF(OR(L125=\"NA\",L125=\"E\"),\"NA\",IF(L125=\"Y\",COUNTIF($M$1:N124,N125)+1,COUNTIF($M$1:N124,N125)+1))","v":6},"TA2.3","Global perspectives on enabling access to platform data for public-interest research","Open Data Institute (ODI); IT for Change; PIT Policy Lab; Pollicy; Open Cities Lab","Perspectivas mundiales sobre el acceso a datos de plataformas para la investigación de interés público","Open Data Institute (ODI); IT for Change; PIT Policy Lab; Pollicy; Open Cities Lab","Day2_Time_Slot4_Parallel 02",null,"1:00"]
[176,"Day2_Time_Slot4_Parallel 03","Day2_Time_Slot4",2,4,"Parallel 03",{"$f":"VLOOKUP($D$1&D126,UNWDF_Medellín_2024_en!A:F,5,FALSE)","v":"2024-11-14"},{"$f":"MID(VLOOKUP($D$1&D126&$E$1&E126,UNWDF_Medellín_2024_en!A:F,5,FALSE),1,SEARCH(\"(\",VLOOKUP($D$1&D126&$E$1&E126,UNWDF_Medellín_2024_en!A:F,5,FALSE))-2)","v":"14:45 - 15:45"},"1:00",{"$f":"HLOOKUP($F126,UNWDF_Medellín_2024_en!$H$14:$S$16,2,FALSE)","v":"Room 2"},{"$f":"HLOOKUP($F126,UNWDF_Medellín_2024_en!$H$14:$S$16,3,FALSE)","v":200},"N","NA",1,{"$f":"IF(OR(L126=\"NA\",L126=\"E\"),\"NA\",IF(L126=\"Y\",COUNTIF($M$1:N125,N126)+1,COUNTIF($M$1:N125,N126)+1))","v":12},"TA1.9","What's next for statistics on ageing and older people? Lessons from SDGs and beyond.","HelpAge International; Office for National Statistics (ONS-UK); Titchfield City Group; China National Committee on Ageing (CNCA) ","¿Cuál es el futuro de las estadísticas sobre el envejecimiento y las personas mayores? Lecciones de los ODS y más allá.","HelpAge International; Oficina de Estadísticas Nacionales (ONS-Reino Unido); Titchfield City Group; China National Committee on Ageing (CNCA)","Day2_Time_Slot4_Parallel 03",null,"1:00"]
[177,"Day2_Time_Slot4_Parallel 04","Day2_Time_Slot4",2,4,"Parallel 04",{"$f":"VLOOKUP($D$1&D127,UNWDF_Medellín_2024_en!A:F,5,FALSE)","v":"2024-11-14"},{"$f":"MID(VLOOKUP($D$1&D127&$E$1&E127,UNWDF_Medellín_2024_en!A:F,5,FALSE),1,SEARCH(\"(\",VLOOKUP($D$1&D127&$E$1&E127,UNWDF_Medellín_2024_en!A:F,5,FALSE))-2)","v":"14:45 - 15:45"},"1:00",{"$f":"HLOOKUP($F127,UNWDF_Medellín_2024_en!$H$14:$S$16,2,FALSE)","v":"Room 3"},{"$f":"HLOOKUP($F127,UNWDF_Medellín_2024_en!$H$14:$S$16,3,FALSE)","v":200},"N","NA",1,{"$f":"IF(OR(L127=\"NA\",L127=\"E\"),\"NA\",IF(L127=\"Y\",COUNTIF($M$1:N126,N127)+1,COUNTIF($M$1:N126,N127)+1))","v":13},"TA1.7","Technological Innovations in Census and Surveys: CAWI and Smart Geospatial Tools (preEA)","Instituto Nacional de Estadística (INE-Uruguay); United Nations Statistics Division (UNSD-DESA); Departamento Administrativo Nacional de Estadística (DANE-Colombia); United Nations Population Fund (UNFPA); WorldPop/University of Southampton; United Nations High Commissioner for Refugees (UNHCR); Institut national de la statistique (INS-Cameroun)","Innovaciones tecnológicas en censos y encuestas: CAWI y herramientas geoespaciales inteligentes (preEA)","Instituto Nacional de Estadística (INE-Uruguay); División de Estadísticas de las Naciones Unidas (UNSD-DESA); Departamento Administrativo Nacional de Estadística (DANE-Colombia); Fondo de Población de las Naciones Unidas (UNFPA); WorldPop/Universidad de Southampton; Alto Comisionado de las Naciones Unidas para los Refugiados (ACNUR); Instituto Nacional de Estadística (INS-Camerún)","Day2_Time_Slot4_Parallel 04",null,"1:00"]
[178,"Day2_Time_Slot4_Parallel 05","Day2_Time_Slot4",2,4,"Parallel 05",{"$f":"VLOOKUP($D$1&D128,UNWDF_Medellín_2024_en!A:F,5,FALSE)","v":"2024-11-14"},{"$f":"MID(VLOOKUP($D$1&D128&$E$1&E128,UNWDF_Medellín_2024_en!A:F,5,FALSE),1,SEARCH(\"(\",VLOOKUP($D$1&D128&$E$1&E128,UNWDF_Medellín_2024_en!A:F,5,FALSE))-2)","v":"14:45 - 15:45"},"1:00",{"$f":"HLOOKUP($F128,UNWDF_Medellín_2024_en!$H$14:$S$16,2,FALSE)","v":"Room 4"},{"$f":"HLOOKUP($F128,UNWDF_Medellín_2024_en!$H$14:$S$16,3,FALSE)","v":200},"N","NA",2,{"$f":"IF(OR(L128=\"NA\",L128=\"E\"),\"NA\",IF(L128=\"Y\",COUNTIF($M$1:N127,N128)+1,COUNTIF($M$1:N127,N128)+1))","v":7},"TA2.15","Getting to the finish line: Strengthening country capacity to translate gender data into use and impact by 2030","Open Data Watch (ODW); World Bank (WB); Data2X;United Nations Entity for Gender Equality and the Empowerment of Women (UN Women); Bureau of Statistics of Lesotho; Equal Measures 2030","Llegar a la meta: Reforzar la capacidad de los países para traducir los datos de género en uso e impacto para 2030.","Open Data Watch (ODW); Banco Mundial (BM); Data2X; Entidad de las Naciones Unidas para la Igualdad de Género y el Empoderamiento de la Mujer (ONU Mujeres); Bureau of Statistics of Lesotho; Equal Measures 2030","Day2_Time_Slot4_Parallel 05","es","1:00"]
[179,"Day2_Time_Slot4_Parallel 06","Day2_Time_Slot4",2,4,"Parallel 06",{"$f":"VLOOKUP($D$1&D129,UNWDF_Medellín_2024_en!A:F,5,FALSE)","v":"2024-11-14"},{"$f":"MID(VLOOKUP($D$1&D129&$E$1&E129,UNWDF_Medellín_2024_en!A:F,5,FALSE),1,SEARCH(\"(\",VLOOKUP($D$1&D129&$E$1&E129,UNWDF_Medellín_2024_en!A:F,5,FALSE))-2)","v":"14:45 - 15:45"},"1:00",{"$f":"HLOOKUP($F129,UNWDF_Medellín_2024_en!$H$14:$S$16,2,FALSE)","v":"Room 5"},{"$f":"HLOOKUP($F129,UNWDF_Medellín_2024_en!$H$14:$S$16,3,FALSE)","v":200},"N","NA",4,{"$f":"IF(OR(L129=\"NA\",L129=\"E\"),\"NA\",IF(L129=\"Y\",COUNTIF($M$1:N128,N129)+1,COUNTIF($M$1:N128,N129)+1))","v":10},"TA4.13","Mixed Movement Monitoring in the Americas – A joint UN regional monitoring system lead by UNHCR, UNICEF and WFP","United Nations High Commissioner for Refugees (UNHCR); United Nations Children's Fund (UNICEF); United Nations World Food Programme (UNWFP)","Monitoreo de movimientos mixtos en las Américas - Un sistema de monitoreo regional conjunto de la ONU liderado por ACNUR, UNICEF y PMA","Alto Comisionado de las Naciones Unidas para los Refugiados (ACNUR); Fondo de las Naciones Unidas para la Infancia (UNICEF); Programa Mundial de Alimentos de las Naciones Unidas (WFP)","Day2_Time_Slot4_Parallel 06",null,"1:00"]
[180,{"$f":"C130&\"_\"&F130","v":"Day2_Time_Slot4_Parallel 07"},{"$f":"$D$1&D130&\"_\"&$E$1&E130","v":"Day2_Time_Slot4"},2,4,"Parallel 07",{"$f":"VLOOKUP($D$1&D130,UNWDF_Medellín_2024_en!A:F,5,FALSE)","v":"2024-11-14"},{"$f":"MID(VLOOKUP($D$1&D130&$E$1&E130,UNWDF_Medellín_2024_en!A:F,5,FALSE),1,SEARCH(\"(\",VLOOKUP($D$1&D130&$E$1&E130,UNWDF_Medellín_2024_en!A:F,5,FALSE))-2)","v":"14:45 - 15:45"},{"$f":"TEXT(MID(H130,SEARCH(\"-\",H130)+2,LEN(H130)-SEARCH(\"-\",H130)-1)-MID(H130,1,SEARCH(\"-\",H130)-1),\"h:mm\")","v":"1:00"},{"$f":"HLOOKUP($F130,UNWDF_Medellín_2024_en!$H$14:$S$16,2,FALSE)","v":"Room 6"},{"$f":"HLOOKUP($F130,UNWDF_Medellín_2024_en!$H$14:$S$16,3,FALSE)","v":150},"N","NA","_T",{"$f":"IF(OR(L130=\"NA\",L130=\"E\"),\"NA\",IF(L130=\"Y\",COUNTIF($M$1:N129,N130)+1,COUNTIF($M$1:N129,N130)+1))","v":9},"TED.206","Optimizing Job Creation Metrics in Infrastructure Projects to Strengthen Social Safety Nets for Vulnerable Households in Africa / Rebuilding Somalia’s Data and Statistical System: The Power of Data and Partnerships for the SDG / The State of Africa’s Data Governance for Statistical Interoperability, in the age of Artificial Intelligence","African Union Development Agency, New Partnership for Africa's Development (AUDA-NEPAD) / Directorate of National Statistics (DNS-Somalia) / Data Economy Policy Hub (DepHUB); European University Institute","Optimización de las métricas de creación de empleo en los proyectos de infraestructuras para reforzar las redes de seguridad social de los hogares vulnerables en África / Reconstrucción del Sistema de Datos y Estadísticas de Somalia: El poder de los datos y las asociaciones para los ODS / El Estado de la Gobernanza de Datos de África para la Interoperabilidad Estadística, en la era de la Inteligencia Artificial","Agencia de Desarrollo de la Unión Africana, Nueva Asociación para el Desarrollo de África (AUDA-NEPAD) / Dirección de Estadísticas Nacionales (DNS-Somalia) / Centro de Política de Economía de Datos (DepHUB); Instituto Universitario Europeo",{"$f":"B130","v":"Day2_Time_Slot4_Parallel 07"},null,"1:00"]
[181,"Day2_Time_Slot4_Parallel 08","Day2_Time_Slot4",2,4,"Parallel 08",{"$f":"VLOOKUP($D$1&D131,UNWDF_Medellín_2024_en!A:F,5,FALSE)","v":"2024-11-14"},{"$f":"MID(VLOOKUP($D$1&D131&$E$1&E131,UNWDF_Medellín_2024_en!A:F,5,FALSE),1,SEARCH(\"(\",VLOOKUP($D$1&D131&$E$1&E131,UNWDF_Medellín_2024_en!A:F,5,FALSE))-2)","v":"14:45 - 15:45"},"1:00",{"$f":"HLOOKUP($F131,UNWDF_Medellín_2024_en!$H$14:$S$16,2,FALSE)","v":"Room 7"},{"$f":"HLOOKUP($F131,UNWDF_Medellín_2024_en!$H$14:$S$16,3,FALSE)","v":150},"N","NA","_A",{"$f":"IF(OR(L131=\"NA\",L131=\"E\"),\"NA\",IF(L131=\"Y\",COUNTIF($M$1:N130,N131)+1,COUNTIF($M$1:N130,N131)+1))","v":2},"ANCE.405","One Data One Humanity - The power of collaboratives and collective data action","World Bank (WB); International Telecommunication Union (ITU); Ministry of Economy and Digital Transformation, Spain; Telefonica; United Nations Environment Programme (UNEP); African Water and Sanitation Association (AFWASA); Athena Infonomics LLC; Independent; Aapti Institute; Robert Bosch Stiftung GmbH","One Data One Humanity - El poder de las colaboraciones y la acción colectiva de datos","Banco Mundial (BM); Unión Internacional de Telecomunicaciones (UIT); Ministerio de Economía y Transformación Digital, España; Telefónica; Programa de las Naciones Unidas para el Medio Ambiente (PNUMA); Asociación Africana de Agua y Saneamiento (AFWASA); Athena Infonomics LLC; Independiente; Instituto Aapti; Robert Bosch Stiftung GmbH","Day2_Time_Slot4_Parallel 08",null,{"$f":"I131","v":"1:00"}]
[182,"Day2_Time_Slot4_Parallel 09","Day2_Time_Slot4",2,4,"Parallel 09",{"$f":"VLOOKUP($D$1&D132,UNWDF_Medellín_2024_en!A:F,5,FALSE)","v":"2024-11-14"},{"$f":"MID(VLOOKUP($D$1&D132&$E$1&E132,UNWDF_Medellín_2024_en!A:F,5,FALSE),1,SEARCH(\"(\",VLOOKUP($D$1&D132&$E$1&E132,UNWDF_Medellín_2024_en!A:F,5,FALSE))-2)","v":"14:45 - 15:45"},"1:00",{"$f":"HLOOKUP($F132,UNWDF_Medellín_2024_en!$H$14:$S$16,2,FALSE)","v":"Room 8"},{"$f":"HLOOKUP($F132,UNWDF_Medellín_2024_en!$H$14:$S$16,3,FALSE)","v":90},"N","NA","NA",{"$f":"IF(OR(L132=\"NA\",L132=\"E\"),\"NA\",IF(L132=\"Y\",COUNTIF($M$1:N131,N132)+1,COUNTIF($M$1:N131,N132)+1))","v":202},"Local_5","Opportunities and challenges on data governance in Colombia and the global south ","Departamento Nacional de Planeación (DNP-Colombia); CND; Departamento Administrativo Nacional de Estadística (DANE-Colombia); Ministry of Information Technologies and Communications (MINTIC-Colombia), Administrative Department of the Presidency of the Republic (DAPRE-Colombia)","Oportunidades y desafíos en la gobernanza de datos de colombia y el sur global","Departamento Nacional de Planeación (DNP-Colombia), CND, Departamento Administrativo Nacional de Estadística (DANE-Colombia); Ministerio de Tecnologías de la Información y las Comunicaciones (MINTIC-Colombia), Departamento Administrativo de la Presidencia de la Republica (DAPRE-Colombia)","Day2_Time_Slot4_Parallel 09",null,"1:00"]
[183,"Day2_Time_Slot4_Parallel 10","Day2_Time_Slot4",2,4,"Parallel 10",{"$f":"VLOOKUP($D$1&D133,UNWDF_Medellín_2024_en!A:F,5,FALSE)","v":"2024-11-14"},{"$f":"MID(VLOOKUP($D$1&D133&$E$1&E133,UNWDF_Medellín_2024_en!A:F,5,FALSE),1,SEARCH(\"(\",VLOOKUP($D$1&D133&$E$1&E133,UNWDF_Medellín_2024_en!A:F,5,FALSE))-2)","v":"14:45 - 15:45"},"1:00",{"$f":"HLOOKUP($F133,UNWDF_Medellín_2024_en!$H$14:$S$16,2,FALSE)","v":"Room 9"},{"$f":"HLOOKUP($F133,UNWDF_Medellín_2024_en!$H$14:$S$16,3,FALSE)","v":60},"N","NA","_L",{"$f":"IF(OR(L133=\"NA\",L133=\"E\"),\"NA\",IF(L133=\"Y\",COUNTIF($M$1:N131,N133)+1,COUNTIF($M$1:N131,N133)+1))","v":7},"LEARN.306","Response Integration of data sources to measure displacement in the face of extreme events and disasters","Oficina Nacional de Estadística (ONE-República Dominicana)","Integración de Respuestas de fuentes de datos para medir los desplazamientos ante fenómenos extremos y catástrofes","Oficina Nacional de Estadística (ONE-República Dominicana)","Day2_Time_Slot4_Parallel 10","","1:00"]
[184,"Day2_Time_Slot4_Parallel 11","Day2_Time_Slot4",2,4,"Parallel 11",{"$f":"VLOOKUP($D$1&D134,UNWDF_Medellín_2024_en!A:F,5,FALSE)","v":"2024-11-14"},{"$f":"MID(VLOOKUP($D$1&D134&$E$1&E134,UNWDF_Medellín_2024_en!A:F,5,FALSE),1,SEARCH(\"(\",VLOOKUP($D$1&D134&$E$1&E134,UNWDF_Medellín_2024_en!A:F,5,FALSE))-2)","v":"14:45 - 15:45"},"1:00",{"$f":"HLOOKUP($F134,UNWDF_Medellín_2024_en!$H$14:$S$16,2,FALSE)","v":"Room 10"},{"$f":"HLOOKUP($F134,UNWDF_Medellín_2024_en!$H$14:$S$16,3,FALSE)","v":60},"N","NA","_L",{"$f":"IF(OR(L134=\"NA\",L134=\"E\"),\"NA\",IF(L134=\"Y\",COUNTIF($M$1:N133,N134)+1,COUNTIF($M$1:N133,N134)+1))","v":8},"LEARN.311","Parliamentarian for an hour: what's behind evidence-based policy making?","Partnership in Statistics for Development in the 21st Century (PARIS21)","Parlamentario por una hora: ¿qué hay detrás de la elaboración de políticas basadas en pruebas?","Alianza en Estadísticas para el Desarrollo en el Siglo XXI (PARIS21)","Day2_Time_Slot4_Parallel 11","","1:00"]
[185,"Day2_Time_Slot4_Parallel 12","Day2_Time_Slot4",2,4,"Parallel 12",{"$f":"VLOOKUP($D$1&D135,UNWDF_Medellín_2024_en!A:F,5,FALSE)","v":"2024-11-14"},{"$f":"MID(VLOOKUP($D$1&D135&$E$1&E135,UNWDF_Medellín_2024_en!A:F,5,FALSE),1,SEARCH(\"(\",VLOOKUP($D$1&D135&$E$1&E135,UNWDF_Medellín_2024_en!A:F,5,FALSE))-2)","v":"14:45 - 15:45"},"1:00",{"$f":"HLOOKUP($F135,UNWDF_Medellín_2024_en!$H$14:$S$16,2,FALSE)","v":"NA"},{"$f":"HLOOKUP($F135,UNWDF_Medellín_2024_en!$H$14:$S$16,3,FALSE)","v":"NA"},"NA","NA","NA",{"$f":"IF(OR(L135=\"NA\",L135=\"E\"),\"NA\",IF(L135=\"Y\",COUNTIF($M$1:N134,N135)+1,COUNTIF($M$1:N134,N135)+1))","v":"NA"},{"$f":"IF(N135=\"NA\",\"NA\",\"TA\"&N135&\".\"&TEXT(O135,\"0#\"))","v":"NA"},"NA","NA","NA","NA","Day2_Time_Slot4_Parallel 12","","1:00"]
[8,"Day2_Time_Slot5_Parallel 01","Day2_Time_Slot5",2,5,"Parallel 01",{"$f":"VLOOKUP($D$1&D136,UNWDF_Medellín_2024_en!A:F,5,FALSE)","v":"2024-11-14"},{"$f":"MID(VLOOKUP($D$1&D136&$E$1&E136,UNWDF_Medellín_2024_en!A:F,5,FALSE),1,SEARCH(\"(\",VLOOKUP($D$1&D136&$E$1&E136,UNWDF_Medellín_2024_en!A:F,5,FALSE))-2)","v":"16:15 - 17:15"},"1:00",{"$f":"HLOOKUP($F136,UNWDF_Medellín_2024_en!$H$14:$S$16,2,FALSE)","v":"Plenary Room"},{"$f":"HLOOKUP($F136,UNWDF_Medellín_2024_en!$H$14:$S$16,3,FALSE)","v":3000},"NA","NA","NA",{"$f":"IF(OR(L136=\"NA\",L136=\"E\"),\"NA\",IF(L136=\"Y\",COUNTIF($M$1:N135,N136)+1,COUNTIF($M$1:N135,N136)+1))","v":"NA"},"NA","NA","NA","NA","NA","Day2_Time_Slot5_Parallel 01",null,"1:00"]
[75,"Day2_Time_Slot5_Parallel 02","Day2_Time_Slot5",2,5,"Parallel 02",{"$f":"VLOOKUP($D$1&D137,UNWDF_Medellín_2024_en!A:F,5,FALSE)","v":"2024-11-14"},{"$f":"MID(VLOOKUP($D$1&D137&$E$1&E137,UNWDF_Medellín_2024_en!A:F,5,FALSE),1,SEARCH(\"(\",VLOOKUP($D$1&D137&$E$1&E137,UNWDF_Medellín_2024_en!A:F,5,FALSE))-2)","v":"16:15 - 17:15"},"1:00",{"$f":"HLOOKUP($F137,UNWDF_Medellín_2024_en!$H$14:$S$16,2,FALSE)","v":"Room 1"},{"$f":"HLOOKUP($F137,UNWDF_Medellín_2024_en!$H$14:$S$16,3,FALSE)","v":300},"N","NA",3,{"$f":"IF(OR(L137=\"NA\",L137=\"E\"),\"NA\",IF(L137=\"Y\",COUNTIF($M$1:N136,N137)+1,COUNTIF($M$1:N136,N137)+1))","v":4},"TA3.3","Co-creating data action in the digital age: learnings from global community activists on how to create fairer, more inclusive and accountable data practices","Universidad de los Andes; Restless Development; Global Partnership for Sustainable Development Data (GPSDD)","Co-crear la acción de datos en la era digital: aprendizajes de activistas de la comunidad global sobre cómo crear prácticas de datos más justas, inclusivas y responsables.","Universidad de los Andes; Restless Development; Alianza Global para los Datos del Desarrollo Sostenible (GPSDD)","Day2_Time_Slot5_Parallel 02",null,"1:00"]
[76,"Day2_Time_Slot5_Parallel 03","Day2_Time_Slot5",2,5,"Parallel 03",{"$f":"VLOOKUP($D$1&D138,UNWDF_Medellín_2024_en!A:F,5,FALSE)","v":"2024-11-14"},{"$f":"MID(VLOOKUP($D$1&D138&$E$1&E138,UNWDF_Medellín_2024_en!A:F,5,FALSE),1,SEARCH(\"(\",VLOOKUP($D$1&D138&$E$1&E138,UNWDF_Medellín_2024_en!A:F,5,FALSE))-2)","v":"16:15 - 17:15"},"1:00",{"$f":"HLOOKUP($F138,UNWDF_Medellín_2024_en!$H$14:$S$16,2,FALSE)","v":"Room 2"},{"$f":"HLOOKUP($F138,UNWDF_Medellín_2024_en!$H$14:$S$16,3,FALSE)","v":200},"N","NA",1,{"$f":"IF(OR(L138=\"NA\",L138=\"E\"),\"NA\",IF(L138=\"Y\",COUNTIF($M$1:N137,N138)+1,COUNTIF($M$1:N137,N138)+1))","v":14},"TA1.10","Equity and inclusion in humanitarian and fragile settings: the role of inclusive population data, gender and intersectional approaches","United Nations Entity for Gender Equality and the Empowerment of Women (UN Women); United Nations Office for the Coordination of Humanitarian Affairs (OCHA); African Development Bank (AfDB); CLEAR Global; Government of Uganda, Uganda; Central Statistical Agency (CSA-Ethiopia); United Nations Population Fund (UNFPA); International Organisation for Migration (IOM); United Nations High Commissioner for Refugees (UNHCR)","Garantizar la equidad y la inclusión en la acción humanitaria: Integrar la interseccionalidad y tener en cuenta los desplazamientos forzosos en las estimaciones de población subnacionales","Entidad de las Naciones Unidas para la Igualdad de Género y el Empoderamiento de la Mujer (ONU Mujeres); Oficina de Coordinación de Asuntos Humanitarios de las Naciones Unidas (OCHA); Banco Africano de Desarrollo (AfDB); CLEAR Global; Gobierno de Uganda, Uganda; Agencia Central de Estadísticas (CSA-Etiopía); Fondo de Población de las Naciones Unidas (UNFPA); Organización Internacional para las Migraciones (OIM); Alto Comisionado de las Naciones Unidas para los Refugiados (ACNUR)","Day2_Time_Slot5_Parallel 03","NNN","1:00"]
[77,"Day2_Time_Slot5_Parallel 04","Day2_Time_Slot5",2,5,"Parallel 04",{"$f":"VLOOKUP($D$1&D139,UNWDF_Medellín_2024_en!A:F,5,FALSE)","v":"2024-11-14"},{"$f":"MID(VLOOKUP($D$1&D139&$E$1&E139,UNWDF_Medellín_2024_en!A:F,5,FALSE),1,SEARCH(\"(\",VLOOKUP($D$1&D139&$E$1&E139,UNWDF_Medellín_2024_en!A:F,5,FALSE))-2)","v":"16:15 - 17:15"},"1:00",{"$f":"HLOOKUP($F139,UNWDF_Medellín_2024_en!$H$14:$S$16,2,FALSE)","v":"Room 3"},{"$f":"HLOOKUP($F139,UNWDF_Medellín_2024_en!$H$14:$S$16,3,FALSE)","v":200},"N","NA",2,{"$f":"IF(OR(L139=\"NA\",L139=\"E\"),\"NA\",IF(L139=\"Y\",COUNTIF($M$1:N138,N139)+1,COUNTIF($M$1:N138,N139)+1))","v":8},"TA2.6","Data Modernisation in Small Island Developing States: Insights and Innovations from the Pacific","Pacific Community (SPC); Vanuatu Bureau of Statistics; Samoa Bureau of Statistics; Bureau of Statistics and Plans (BSP-Guam); Institut de la statistique de la Polynésie Française","Modernización de los datos en los pequeños Estados Insulares en Desarrollo: Perspectivas e innovaciones desde el Pacífico","Comunidad del Pacífico (SPC); Oficina Nacional de Estadísticas (NSO-Vanuatu); Oficina de Estadísticas de Samoa; Oficina de Estadísticas y Planes (BSP-Guam); Instituto Nacional de Estadística y Estudios Económicos (INSEE-Francia)","Day2_Time_Slot5_Parallel 04",null,"1:00"]
[78,"Day2_Time_Slot5_Parallel 05","Day2_Time_Slot5",2,5,"Parallel 05",{"$f":"VLOOKUP($D$1&D140,UNWDF_Medellín_2024_en!A:F,5,FALSE)","v":"2024-11-14"},{"$f":"MID(VLOOKUP($D$1&D140&$E$1&E140,UNWDF_Medellín_2024_en!A:F,5,FALSE),1,SEARCH(\"(\",VLOOKUP($D$1&D140&$E$1&E140,UNWDF_Medellín_2024_en!A:F,5,FALSE))-2)","v":"16:15 - 17:15"},"1:00",{"$f":"HLOOKUP($F140,UNWDF_Medellín_2024_en!$H$14:$S$16,2,FALSE)","v":"Room 4"},{"$f":"HLOOKUP($F140,UNWDF_Medellín_2024_en!$H$14:$S$16,3,FALSE)","v":200},"N","NA",2,{"$f":"IF(OR(L140=\"NA\",L140=\"E\"),\"NA\",IF(L140=\"Y\",COUNTIF($M$1:N139,N140)+1,COUNTIF($M$1:N139,N140)+1))","v":9},"TA2.16","Lessons from Ecuador and Peru: Leveraging new forms of spatial data for achieving global and national goals for biodiversity and sustainable development","United Nations Development Programme (UNDP); UN Environment Programme World Conservation Monitoring Centre (UNEP-WCMC)","Aprovechamiento de nuevas formas de datos espaciales para alcanzar objetivos mundiales y nacionales de biodiversidad y desarrollo sostenible","Programa de las Naciones Unidas para el Desarrollo (PNUD); Centro Mundial de Monitoreo de la Conservación del Medio Ambiente (UNEP-WCMC)","Day2_Time_Slot5_Parallel 05","es","1:00"]
[79,"Day2_Time_Slot5_Parallel 06","Day2_Time_Slot5",2,5,"Parallel 06",{"$f":"VLOOKUP($D$1&D141,UNWDF_Medellín_2024_en!A:F,5,FALSE)","v":"2024-11-14"},{"$f":"MID(VLOOKUP($D$1&D141&$E$1&E141,UNWDF_Medellín_2024_en!A:F,5,FALSE),1,SEARCH(\"(\",VLOOKUP($D$1&D141&$E$1&E141,UNWDF_Medellín_2024_en!A:F,5,FALSE))-2)","v":"16:15 - 17:15"},"1:00",{"$f":"HLOOKUP($F141,UNWDF_Medellín_2024_en!$H$14:$S$16,2,FALSE)","v":"Room 5"},{"$f":"HLOOKUP($F141,UNWDF_Medellín_2024_en!$H$14:$S$16,3,FALSE)","v":200},"N","NA",4,{"$f":"IF(OR(L141=\"NA\",L141=\"E\"),\"NA\",IF(L141=\"Y\",COUNTIF($M$1:N140,N141)+1,COUNTIF($M$1:N140,N141)+1))","v":11},"TA4.14","Fostering inclusive statistics on migration, displacement, and statelessness: drawing lessons from national and regional experiences","Members of the Expert Group on Refugee, IDP & Stateless Statistics (EGRISS) and the Collaborative on Administrative Data including: African Union Commission (AUC); Instituto Nacional de Estadistica (INE-Honduras); Joint IDP Profiling Service (JIPS); United Nations Statistics Division (UNSD-DESA); United Nations Economic Commission for Latin America and the Caribbean (UNECLAC / CEPAL); United Nations Refugee Agency (UNHCR)","Fomento de estadísticas inclusivas sobre migración, desplazamiento y apatridia: lecciones extraídas de las experiencias nacionales y regionales","Miembros del Grupo de Expertos en Estadísticas de Refugiados, Desplazados Internos y Apátridas (EGRISS) y del Colaborativo sobre Datos Administrativos, incluyendo: Comisión de la Unión Africana (AUC); Instituto Nacional de Estadística (INE-Honduras); Servicio Conjunto de Perfiles de Desplazados Internos (JIPS); División de Estadísticas de las Naciones Unidas (UNSD-DESA); Comisión Económica para América Latina y el Caribe de las Naciones Unidas (UNECLAC / CEPAL); Agencia de Refugiados de las Naciones Unidas (ACNUR)","Day2_Time_Slot5_Parallel 06",null,"1:00"]
[80,"Day2_Time_Slot5_Parallel 07","Day2_Time_Slot5",2,5,"Parallel 07",{"$f":"VLOOKUP($D$1&D142,UNWDF_Medellín_2024_en!A:F,5,FALSE)","v":"2024-11-14"},{"$f":"MID(VLOOKUP($D$1&D142&$E$1&E142,UNWDF_Medellín_2024_en!A:F,5,FALSE),1,SEARCH(\"(\",VLOOKUP($D$1&D142&$E$1&E142,UNWDF_Medellín_2024_en!A:F,5,FALSE))-2)","v":"16:15 - 17:15"},"1:00",{"$f":"HLOOKUP($F142,UNWDF_Medellín_2024_en!$H$14:$S$16,2,FALSE)","v":"Room 6"},{"$f":"HLOOKUP($F142,UNWDF_Medellín_2024_en!$H$14:$S$16,3,FALSE)","v":150},"N","NA","_T",{"$f":"IF(OR(L142=\"NA\",L142=\"E\"),\"NA\",IF(L142=\"Y\",COUNTIF($M$1:N141,N142)+1,COUNTIF($M$1:N141,N142)+1))","v":10},"TED.213","Child Deprivation Mapping Through Satellite Imagery and Other Geospatial Data / Earth Observation (EO) data and Open-Source Intelligence (OSINT) to track and monitor trafficking and organized crime / State of the OpenStreetMap in Niger / Partnering for success: UK’s mapping and statistical agencies working together for the public good","Statistics Indonesia (BPS); United Nations Children's Fund (UNICEF) / United Nations Office on Drugs and Crime (UNODC) / CAGIDEV-COM / Office for National Statistics (ONS-UK); Ordnance Survey, United Kingdom of Great Britain and Northern Ireland","Cartografía de la privación infantil mediante imágenes de satélite y otros datos geoespaciales / Datos de Observación de la Tierra e Inteligencia de Fuentes Abiertas (OSINT) para rastrear y vigilar el tráfico y el crimen organizado / Estado del OpenStreetMap en Níger / Asociarse para el éxito: Las agencias de cartografía y estadística del Reino Unido colaboran por el bien público","Estadísticas de Indonesia (BPS); Fondo de las Naciones Unidas para la Infancia (UNICEF) / Oficina de las Naciones Unidas contra la Droga y el Delito (UNODC) / CAGIDEV-COM / Oficina de Estadísticas Nacionales (ONS-Reino Unido); Ordnance Survey, Reino Unido de Gran Bretaña e Irlanda del Norte","Day2_Time_Slot5_Parallel 07",null,"1:00"]
[81,"Day2_Time_Slot5_Parallel 08","Day2_Time_Slot5",2,5,"Parallel 08",{"$f":"VLOOKUP($D$1&D143,UNWDF_Medellín_2024_en!A:F,5,FALSE)","v":"2024-11-14"},{"$f":"MID(VLOOKUP($D$1&D143&$E$1&E143,UNWDF_Medellín_2024_en!A:F,5,FALSE),1,SEARCH(\"(\",VLOOKUP($D$1&D143&$E$1&E143,UNWDF_Medellín_2024_en!A:F,5,FALSE))-2)","v":"16:15 - 17:15"},"1:00",{"$f":"HLOOKUP($F143,UNWDF_Medellín_2024_en!$H$14:$S$16,2,FALSE)","v":"Room 7"},{"$f":"HLOOKUP($F143,UNWDF_Medellín_2024_en!$H$14:$S$16,3,FALSE)","v":150},"N","NA","_A",{"$f":"IF(OR(L143=\"NA\",L143=\"E\"),\"NA\",IF(L143=\"Y\",COUNTIF($M$1:N142,N143)+1,COUNTIF($M$1:N142,N143)+1))","v":3},"ANCE.404","Data-Driven Empowerment: Launching Gender and Diversity Equality Initiatives","Departamento Administrativo Nacional de Estadística (DANE-Colombia); International Institute for Sustainable Development (IISD); International Civil Society Centre; Management And Sustainable Development Institute (Msd); The NGO Forum on Cambodia; General Statistics Office (GSO-Viet Nam); Inter-American Development Bank (IDB); United Nations Economic Commission for Latin America and the Caribbean (UNECLAC / CEPAL); Instituto Nacional de Estadísticas (INE-Chile); Women's Funding Network; Candid","Empoderamiento basado en datos: Lanzamiento de iniciativas de igualdad de género y diversidad","Departamento Administrativo Nacional de Estadística (DANE-Colombia); Instituto Internacional para el Desarrollo Sostenible (IISD); Centro Internacional de la Sociedad Civil; Instituto de Gestión y Desarrollo Sostenible (Msd); Foro de ONG en Camboya; Oficina General de Estadísticas (GSO-Vietnam); Banco Interamericano de Desarrollo (BID); Comisión Económica para América Latina y el Caribe de las Naciones Unidas (UNECLAC / CEPAL); Instituto Nacional de Estadísticas (INE-Chile); Women's Funding Network; Candid","Day2_Time_Slot5_Parallel 08",null,"1:00"]
[82,"Day2_Time_Slot5_Parallel 09","Day2_Time_Slot5",2,5,"Parallel 09",{"$f":"VLOOKUP($D$1&D144,UNWDF_Medellín_2024_en!A:F,5,FALSE)","v":"2024-11-14"},{"$f":"MID(VLOOKUP($D$1&D144&$E$1&E144,UNWDF_Medellín_2024_en!A:F,5,FALSE),1,SEARCH(\"(\",VLOOKUP($D$1&D144&$E$1&E144,UNWDF_Medellín_2024_en!A:F,5,FALSE))-2)","v":"16:15 - 17:15"},"1:00",{"$f":"HLOOKUP($F144,UNWDF_Medellín_2024_en!$H$14:$S$16,2,FALSE)","v":"Room 8"},{"$f":"HLOOKUP($F144,UNWDF_Medellín_2024_en!$H$14:$S$16,3,FALSE)","v":90},"N","NA","NA",{"$f":"IF(OR(L144=\"NA\",L144=\"E\"),\"NA\",IF(L144=\"Y\",COUNTIF($M$1:N143,N144)+1,COUNTIF($M$1:N143,N144)+1))","v":217},"Local_6","Government data and research data : encounters and misunderstandings","Minsitry of Science, Technology and Innovation, Colombia","Datos gubernamentales y datos de investigación : encuentros y desencuentros","Minsterio de Ciencia, tecnología e Innovacion, Colombia","Day2_Time_Slot5_Parallel 09",null,"1:00"]
[83,"Day2_Time_Slot5_Parallel 10","Day2_Time_Slot5",2,5,"Parallel 10",{"$f":"VLOOKUP($D$1&D145,UNWDF_Medellín_2024_en!A:F,5,FALSE)","v":"2024-11-14"},{"$f":"MID(VLOOKUP($D$1&D145&$E$1&E145,UNWDF_Medellín_2024_en!A:F,5,FALSE),1,SEARCH(\"(\",VLOOKUP($D$1&D145&$E$1&E145,UNWDF_Medellín_2024_en!A:F,5,FALSE))-2)","v":"16:15 - 17:15"},"1:00",{"$f":"HLOOKUP($F145,UNWDF_Medellín_2024_en!$H$14:$S$16,2,FALSE)","v":"Room 9"},{"$f":"HLOOKUP($F145,UNWDF_Medellín_2024_en!$H$14:$S$16,3,FALSE)","v":60},"N","NA","_L",{"$f":"IF(OR(L145=\"NA\",L145=\"E\"),\"NA\",IF(L145=\"Y\",COUNTIF($M$1:N144,N145)+1,COUNTIF($M$1:N144,N145)+1))","v":9},"LEARN.307","Framing data equity: the importance of embedding data equity to enhance trust","World Economic Forum (WEF); DataKind; Usahidi Inc; Mastercard","Enmarcar la equidad de los datos: la importancia de integrarla para aumentar la confianza","Foro Económico Mundial (WEF); DataKind; Usahidi Inc; Mastercard","Day2_Time_Slot5_Parallel 10",null,"1:00"]
[84,"Day2_Time_Slot5_Parallel 11","Day2_Time_Slot5",2,5,"Parallel 11",{"$f":"VLOOKUP($D$1&D146,UNWDF_Medellín_2024_en!A:F,5,FALSE)","v":"2024-11-14"},{"$f":"MID(VLOOKUP($D$1&D146&$E$1&E146,UNWDF_Medellín_2024_en!A:F,5,FALSE),1,SEARCH(\"(\",VLOOKUP($D$1&D146&$E$1&E146,UNWDF_Medellín_2024_en!A:F,5,FALSE))-2)","v":"16:15 - 17:15"},"1:00",{"$f":"HLOOKUP($F146,UNWDF_Medellín_2024_en!$H$14:$S$16,2,FALSE)","v":"Room 10"},{"$f":"HLOOKUP($F146,UNWDF_Medellín_2024_en!$H$14:$S$16,3,FALSE)","v":60},"N","NA","_L",{"$f":"IF(OR(L146=\"NA\",L146=\"E\"),\"NA\",IF(L146=\"Y\",COUNTIF($M$1:N145,N146)+1,COUNTIF($M$1:N145,N146)+1))","v":10},"LEARN.312","Data Solidarity and PLUTO: Introducing a Tool for Bringing Public Value to Data Governance","University of Vienna; Digital Transformations for Health (DTH) Lab","Solidaridad de Datos y PLUTO: Presentación de una herramienta para aportar valor público a la gobernanza de datos","Universidad de Viena; Laboratorio de Transformaciones Digitales para la Salud (DTH)","Day2_Time_Slot5_Parallel 11",null,"1:00"]
[85,"Day2_Time_Slot5_Parallel 12","Day2_Time_Slot5",2,5,"Parallel 12",{"$f":"VLOOKUP($D$1&D147,UNWDF_Medellín_2024_en!A:F,5,FALSE)","v":"2024-11-14"},{"$f":"MID(VLOOKUP($D$1&D147&$E$1&E147,UNWDF_Medellín_2024_en!A:F,5,FALSE),1,SEARCH(\"(\",VLOOKUP($D$1&D147&$E$1&E147,UNWDF_Medellín_2024_en!A:F,5,FALSE))-2)","v":"16:15 - 17:15"},"1:00",{"$f":"HLOOKUP($F147,UNWDF_Medellín_2024_en!$H$14:$S$16,2,FALSE)","v":"NA"},{"$f":"HLOOKUP($F147,UNWDF_Medellín_2024_en!$H$14:$S$16,3,FALSE)","v":"NA"},"NA","NA","NA",{"$f":"IF(OR(L147=\"NA\",L147=\"E\"),\"NA\",IF(L147=\"Y\",COUNTIF($M$1:N146,N147)+1,COUNTIF($M$1:N146,N147)+1))","v":"NA"},{"$f":"IF(N147=\"NA\",\"NA\",\"TA\"&N147&\".\"&TEXT(O147,\"0#\"))","v":"NA"},"NA","NA","NA","NA","Day2_Time_Slot5_Parallel 12",null,"1:00"]
[9,"Day2_Time_Slot6_Parallel 01","Day2_Time_Slot6",2,6,"Parallel 01",{"$f":"VLOOKUP($D$1&D148,UNWDF_Medellín_2024_en!A:F,5,FALSE)","v":"2024-11-14"},{"$f":"MID(VLOOKUP($D$1&D148&$E$1&E148,UNWDF_Medellín_2024_en!A:F,5,FALSE),1,SEARCH(\"(\",VLOOKUP($D$1&D148&$E$1&E148,UNWDF_Medellín_2024_en!A:F,5,FALSE))-2)","v":"18:00 - 20:00"},"2:00",{"$f":"HLOOKUP($F148,UNWDF_Medellín_2024_en!$H$14:$S$16,2,FALSE)","v":"Plenary Room"},{"$f":"HLOOKUP($F148,UNWDF_Medellín_2024_en!$H$14:$S$16,3,FALSE)","v":3000},"NA","NA","_S",{"$f":"IF(OR(L148=\"NA\",L148=\"E\"),\"NA\",IF(L148=\"Y\",COUNTIF($M$1:N147,N148)+1,COUNTIF($M$1:N147,N148)+1))","v":"NA"},"TA_S.NA","Reception: A recognition of partners on Data for Sustainable Development ","Departamento Administrativo Nacional de Estadística (DANE-Colombia)","Recepción: Reconocimiento a los aliados de los datos para el desarrollo sostenible. ","Departamento Administrativo Nacional de Estadística (DANE-Colombia)","Day2_Time_Slot6_Parallel 01","","2:00"]
[10,"Day3_Time_Slot1_Parallel 01","Day3_Time_Slot1",3,1,"Parallel 01",{"$f":"VLOOKUP($D$1&D149,UNWDF_Medellín_2024_en!A:F,5,FALSE)","v":"2024-11-15"},{"$f":"MID(VLOOKUP($D$1&D149&$E$1&E149,UNWDF_Medellín_2024_en!A:F,5,FALSE),1,SEARCH(\"(\",VLOOKUP($D$1&D149&$E$1&E149,UNWDF_Medellín_2024_en!A:F,5,FALSE))-2)","v":"09:00 - 10:15"},"1:15",{"$f":"HLOOKUP($F149,UNWDF_Medellín_2024_en!$H$14:$S$16,2,FALSE)","v":"Plenary Room"},{"$f":"HLOOKUP($F149,UNWDF_Medellín_2024_en!$H$14:$S$16,3,FALSE)","v":3000},"Y","NA",4,{"$f":"IF(OR(L149=\"NA\",L149=\"E\"),\"NA\",IF(L149=\"Y\",COUNTIF($M$1:N148,N149)+1,COUNTIF($M$1:N148,N149)+1))","v":12},"TA4.1","Effective partnerships for better data and a more equitable data ecosystem","UN World Data Forum Programme Committee (UNWDF PC)","Asociaciones eficaces para obtener mejores datos y un ecosistema de datos más equitativo","Comité del Programa del Foro Mundial de Datos de la ONU (UNWDF PC)","Day3_Time_Slot1_Parallel 01","","1:15"]
[86,"Day3_Time_Slot1_Parallel 02","Day3_Time_Slot1",3,1,"Parallel 02",{"$f":"VLOOKUP($D$1&D150,UNWDF_Medellín_2024_en!A:F,5,FALSE)","v":"2024-11-15"},{"$f":"MID(VLOOKUP($D$1&D150&$E$1&E150,UNWDF_Medellín_2024_en!A:F,5,FALSE),1,SEARCH(\"(\",VLOOKUP($D$1&D150&$E$1&E150,UNWDF_Medellín_2024_en!A:F,5,FALSE))-2)","v":"09:00 - 10:15"},"1:15",{"$f":"HLOOKUP($F150,UNWDF_Medellín_2024_en!$H$14:$S$16,2,FALSE)","v":"Room 1"},{"$f":"HLOOKUP($F150,UNWDF_Medellín_2024_en!$H$14:$S$16,3,FALSE)","v":300},"NA","NA","NA",{"$f":"IF(OR(L150=\"NA\",L150=\"E\"),\"NA\",IF(L150=\"Y\",COUNTIF($M$1:N149,N150)+1,COUNTIF($M$1:N149,N150)+1))","v":"NA"},{"$f":"IF(N150=\"NA\",\"NA\",\"TA\"&N150&\".\"&TEXT(O150,\"0#\"))","v":"NA"},"NA","NA","NA","NA","Day3_Time_Slot1_Parallel 02","","1:15"]
[87,"Day3_Time_Slot1_Parallel 03","Day3_Time_Slot1",3,1,"Parallel 03",{"$f":"VLOOKUP($D$1&D151,UNWDF_Medellín_2024_en!A:F,5,FALSE)","v":"2024-11-15"},{"$f":"MID(VLOOKUP($D$1&D151&$E$1&E151,UNWDF_Medellín_2024_en!A:F,5,FALSE),1,SEARCH(\"(\",VLOOKUP($D$1&D151&$E$1&E151,UNWDF_Medellín_2024_en!A:F,5,FALSE))-2)","v":"09:00 - 10:15"},"1:15",{"$f":"HLOOKUP($F151,UNWDF_Medellín_2024_en!$H$14:$S$16,2,FALSE)","v":"Room 2"},{"$f":"HLOOKUP($F151,UNWDF_Medellín_2024_en!$H$14:$S$16,3,FALSE)","v":200},"NA","NA","NA",{"$f":"IF(OR(L151=\"NA\",L151=\"E\"),\"NA\",IF(L151=\"Y\",COUNTIF($M$1:N150,N151)+1,COUNTIF($M$1:N150,N151)+1))","v":"NA"},"NA","NA","NA","NA","NA","Day3_Time_Slot1_Parallel 03","","1:15"]
[88,"Day3_Time_Slot1_Parallel 04","Day3_Time_Slot1",3,1,"Parallel 04",{"$f":"VLOOKUP($D$1&D152,UNWDF_Medellín_2024_en!A:F,5,FALSE)","v":"2024-11-15"},{"$f":"MID(VLOOKUP($D$1&D152&$E$1&E152,UNWDF_Medellín_2024_en!A:F,5,FALSE),1,SEARCH(\"(\",VLOOKUP($D$1&D152&$E$1&E152,UNWDF_Medellín_2024_en!A:F,5,FALSE))-2)","v":"09:00 - 10:15"},"1:15",{"$f":"HLOOKUP($F152,UNWDF_Medellín_2024_en!$H$14:$S$16,2,FALSE)","v":"Room 3"},{"$f":"HLOOKUP($F152,UNWDF_Medellín_2024_en!$H$14:$S$16,3,FALSE)","v":200},"NA","NA","NA",{"$f":"IF(OR(L152=\"NA\",L152=\"E\"),\"NA\",IF(L152=\"Y\",COUNTIF($M$1:N151,N152)+1,COUNTIF($M$1:N151,N152)+1))","v":"NA"},"NA","NA","NA","NA","NA","Day3_Time_Slot1_Parallel 04","","1:15"]
[89,"Day3_Time_Slot1_Parallel 05","Day3_Time_Slot1",3,1,"Parallel 05",{"$f":"VLOOKUP($D$1&D153,UNWDF_Medellín_2024_en!A:F,5,FALSE)","v":"2024-11-15"},{"$f":"MID(VLOOKUP($D$1&D153&$E$1&E153,UNWDF_Medellín_2024_en!A:F,5,FALSE),1,SEARCH(\"(\",VLOOKUP($D$1&D153&$E$1&E153,UNWDF_Medellín_2024_en!A:F,5,FALSE))-2)","v":"09:00 - 10:15"},"1:15",{"$f":"HLOOKUP($F153,UNWDF_Medellín_2024_en!$H$14:$S$16,2,FALSE)","v":"Room 4"},{"$f":"HLOOKUP($F153,UNWDF_Medellín_2024_en!$H$14:$S$16,3,FALSE)","v":200},"NA","NA","NA",{"$f":"IF(OR(L153=\"NA\",L153=\"E\"),\"NA\",IF(L153=\"Y\",COUNTIF($M$1:N152,N153)+1,COUNTIF($M$1:N152,N153)+1))","v":"NA"},"NA","NA","NA","NA","NA","Day3_Time_Slot1_Parallel 05","","1:15"]
[90,"Day3_Time_Slot1_Parallel 06","Day3_Time_Slot1",3,1,"Parallel 06",{"$f":"VLOOKUP($D$1&D154,UNWDF_Medellín_2024_en!A:F,5,FALSE)","v":"2024-11-15"},{"$f":"MID(VLOOKUP($D$1&D154&$E$1&E154,UNWDF_Medellín_2024_en!A:F,5,FALSE),1,SEARCH(\"(\",VLOOKUP($D$1&D154&$E$1&E154,UNWDF_Medellín_2024_en!A:F,5,FALSE))-2)","v":"09:00 - 10:15"},"1:15",{"$f":"HLOOKUP($F154,UNWDF_Medellín_2024_en!$H$14:$S$16,2,FALSE)","v":"Room 5"},{"$f":"HLOOKUP($F154,UNWDF_Medellín_2024_en!$H$14:$S$16,3,FALSE)","v":200},"NA","NA","NA",{"$f":"IF(OR(L154=\"NA\",L154=\"E\"),\"NA\",IF(L154=\"Y\",COUNTIF($M$1:N153,N154)+1,COUNTIF($M$1:N153,N154)+1))","v":"NA"},"NA","NA","NA","NA","NA","Day3_Time_Slot1_Parallel 06","","1:15"]
[91,"Day3_Time_Slot1_Parallel 07","Day3_Time_Slot1",3,1,"Parallel 07",{"$f":"VLOOKUP($D$1&D155,UNWDF_Medellín_2024_en!A:F,5,FALSE)","v":"2024-11-15"},{"$f":"MID(VLOOKUP($D$1&D155&$E$1&E155,UNWDF_Medellín_2024_en!A:F,5,FALSE),1,SEARCH(\"(\",VLOOKUP($D$1&D155&$E$1&E155,UNWDF_Medellín_2024_en!A:F,5,FALSE))-2)","v":"09:00 - 10:15"},"1:15",{"$f":"HLOOKUP($F155,UNWDF_Medellín_2024_en!$H$14:$S$16,2,FALSE)","v":"Room 6"},{"$f":"HLOOKUP($F155,UNWDF_Medellín_2024_en!$H$14:$S$16,3,FALSE)","v":150},"NA","NA","NA",{"$f":"IF(OR(L155=\"NA\",L155=\"E\"),\"NA\",IF(L155=\"Y\",COUNTIF($M$1:N154,N155)+1,COUNTIF($M$1:N154,N155)+1))","v":"NA"},"NA","NA","NA","NA","NA","Day3_Time_Slot1_Parallel 07","","1:15"]
[92,"Day3_Time_Slot1_Parallel 08","Day3_Time_Slot1",3,1,"Parallel 08",{"$f":"VLOOKUP($D$1&D156,UNWDF_Medellín_2024_en!A:F,5,FALSE)","v":"2024-11-15"},{"$f":"MID(VLOOKUP($D$1&D156&$E$1&E156,UNWDF_Medellín_2024_en!A:F,5,FALSE),1,SEARCH(\"(\",VLOOKUP($D$1&D156&$E$1&E156,UNWDF_Medellín_2024_en!A:F,5,FALSE))-2)","v":"09:00 - 10:15"},"1:15",{"$f":"HLOOKUP($F156,UNWDF_Medellín_2024_en!$H$14:$S$16,2,FALSE)","v":"Room 7"},{"$f":"HLOOKUP($F156,UNWDF_Medellín_2024_en!$H$14:$S$16,3,FALSE)","v":150},"NA","NA","NA",{"$f":"IF(OR(L156=\"NA\",L156=\"E\"),\"NA\",IF(L156=\"Y\",COUNTIF($M$1:N155,N156)+1,COUNTIF($M$1:N155,N156)+1))","v":"NA"},"NA","NA","NA","NA","NA","Day3_Time_Slot1_Parallel 08","","1:15"]
[93,"Day3_Time_Slot1_Parallel 09","Day3_Time_Slot1",3,1,"Parallel 09",{"$f":"VLOOKUP($D$1&D157,UNWDF_Medellín_2024_en!A:F,5,FALSE)","v":"2024-11-15"},{"$f":"MID(VLOOKUP($D$1&D157&$E$1&E157,UNWDF_Medellín_2024_en!A:F,5,FALSE),1,SEARCH(\"(\",VLOOKUP($D$1&D157&$E$1&E157,UNWDF_Medellín_2024_en!A:F,5,FALSE))-2)","v":"09:00 - 10:15"},"1:15",{"$f":"HLOOKUP($F157,UNWDF_Medellín_2024_en!$H$14:$S$16,2,FALSE)","v":"Room 8"},{"$f":"HLOOKUP($F157,UNWDF_Medellín_2024_en!$H$14:$S$16,3,FALSE)","v":90},"NA","NA","NA",{"$f":"IF(OR(L157=\"NA\",L157=\"E\"),\"NA\",IF(L157=\"Y\",COUNTIF($M$1:N156,N157)+1,COUNTIF($M$1:N156,N157)+1))","v":"NA"},"NA","NA","NA","NA","NA","Day3_Time_Slot1_Parallel 09","","1:15"]
[94,"Day3_Time_Slot1_Parallel 10","Day3_Time_Slot1",3,1,"Parallel 10",{"$f":"VLOOKUP($D$1&D158,UNWDF_Medellín_2024_en!A:F,5,FALSE)","v":"2024-11-15"},{"$f":"MID(VLOOKUP($D$1&D158&$E$1&E158,UNWDF_Medellín_2024_en!A:F,5,FALSE),1,SEARCH(\"(\",VLOOKUP($D$1&D158&$E$1&E158,UNWDF_Medellín_2024_en!A:F,5,FALSE))-2)","v":"09:00 - 10:15"},"1:15",{"$f":"HLOOKUP($F158,UNWDF_Medellín_2024_en!$H$14:$S$16,2,FALSE)","v":"Room 9"},{"$f":"HLOOKUP($F158,UNWDF_Medellín_2024_en!$H$14:$S$16,3,FALSE)","v":60},"NA","NA","NA",{"$f":"IF(OR(L158=\"NA\",L158=\"E\"),\"NA\",IF(L158=\"Y\",COUNTIF($M$1:N157,N158)+1,COUNTIF($M$1:N157,N158)+1))","v":"NA"},"NA","NA","NA","NA","NA","Day3_Time_Slot1_Parallel 10","","1:15"]
[95,"Day3_Time_Slot1_Parallel 11","Day3_Time_Slot1",3,1,"Parallel 11",{"$f":"VLOOKUP($D$1&D159,UNWDF_Medellín_2024_en!A:F,5,FALSE)","v":"2024-11-15"},{"$f":"MID(VLOOKUP($D$1&D159&$E$1&E159,UNWDF_Medellín_2024_en!A:F,5,FALSE),1,SEARCH(\"(\",VLOOKUP($D$1&D159&$E$1&E159,UNWDF_Medellín_2024_en!A:F,5,FALSE))-2)","v":"09:00 - 10:15"},"1:15",{"$f":"HLOOKUP($F159,UNWDF_Medellín_2024_en!$H$14:$S$16,2,FALSE)","v":"Room 10"},{"$f":"HLOOKUP($F159,UNWDF_Medellín_2024_en!$H$14:$S$16,3,FALSE)","v":60},"NA","NA","NA",{"$f":"IF(OR(L159=\"NA\",L159=\"E\"),\"NA\",IF(L159=\"Y\",COUNTIF($M$1:N158,N159)+1,COUNTIF($M$1:N158,N159)+1))","v":"NA"},"NA","NA","NA","NA","NA","Day3_Time_Slot1_Parallel 11","","1:15"]
[96,"Day3_Time_Slot1_Parallel 12","Day3_Time_Slot1",3,1,"Parallel 12",{"$f":"VLOOKUP($D$1&D160,UNWDF_Medellín_2024_en!A:F,5,FALSE)","v":"2024-11-15"},{"$f":"MID(VLOOKUP($D$1&D160&$E$1&E160,UNWDF_Medellín_2024_en!A:F,5,FALSE),1,SEARCH(\"(\",VLOOKUP($D$1&D160&$E$1&E160,UNWDF_Medellín_2024_en!A:F,5,FALSE))-2)","v":"09:00 - 10:15"},"1:15",{"$f":"HLOOKUP($F160,UNWDF_Medellín_2024_en!$H$14:$S$16,2,FALSE)","v":"NA"},{"$f":"HLOOKUP($F160,UNWDF_Medellín_2024_en!$H$14:$S$16,3,FALSE)","v":"NA"},"NA","NA","NA",{"$f":"IF(OR(L160=\"NA\",L160=\"E\"),\"NA\",IF(L160=\"Y\",COUNTIF($M$1:N159,N160)+1,COUNTIF($M$1:N159,N160)+1))","v":"NA"},"NA","NA","NA","NA","NA","Day3_Time_Slot1_Parallel 12","","1:15"]
[97,"Day3_Time_Slot2_Parallel 01","Day3_Time_Slot2",3,2,"Parallel 01",{"$f":"VLOOKUP($D$1&D161,UNWDF_Medellín_2024_en!A:F,5,FALSE)","v":"2024-11-15"},{"$f":"MID(VLOOKUP($D$1&D161&$E$1&E161,UNWDF_Medellín_2024_en!A:F,5,FALSE),1,SEARCH(\"(\",VLOOKUP($D$1&D161&$E$1&E161,UNWDF_Medellín_2024_en!A:F,5,FALSE))-2)","v":"10:45 - 11:45"},"1:00",{"$f":"HLOOKUP($F161,UNWDF_Medellín_2024_en!$H$14:$S$16,2,FALSE)","v":"Plenary Room"},{"$f":"HLOOKUP($F161,UNWDF_Medellín_2024_en!$H$14:$S$16,3,FALSE)","v":3000},"NA","NA","NA",{"$f":"IF(OR(L161=\"NA\",L161=\"E\"),\"NA\",IF(L161=\"Y\",COUNTIF($M$1:N160,N161)+1,COUNTIF($M$1:N160,N161)+1))","v":"NA"},"NA","NA","NA","NA","NA","Day3_Time_Slot2_Parallel 01",null,"1:00"]
[186,"Day3_Time_Slot2_Parallel 02","Day3_Time_Slot2",3,2,"Parallel 02",{"$f":"VLOOKUP($D$1&D162,UNWDF_Medellín_2024_en!A:F,5,FALSE)","v":"2024-11-15"},{"$f":"MID(VLOOKUP($D$1&D162&$E$1&E162,UNWDF_Medellín_2024_en!A:F,5,FALSE),1,SEARCH(\"(\",VLOOKUP($D$1&D162&$E$1&E162,UNWDF_Medellín_2024_en!A:F,5,FALSE))-2)","v":"10:45 - 11:45"},"1:00",{"$f":"HLOOKUP($F162,UNWDF_Medellín_2024_en!$H$14:$S$16,2,FALSE)","v":"Room 1"},{"$f":"HLOOKUP($F162,UNWDF_Medellín_2024_en!$H$14:$S$16,3,FALSE)","v":300},"N","NA",4,{"$f":"IF(OR(L162=\"NA\",L162=\"E\"),\"NA\",IF(L162=\"Y\",COUNTIF($M$1:N161,N162)+1,COUNTIF($M$1:N161,N162)+1))","v":13},"TA4.3","Data Guilds, Data Tribes: Fostering Change and Innovation through Organic Community-driven Approaches","United Nations Children's Fund (UNICEF); World Bank (WB); Organisation for Economic Co-operation and Development (OECD); University of Oslo; National Statistical Office (NSO-Thailand)","Gremios de datos, tribus de datos: Fomentar el cambio y la innovación mediante enfoques orgánicos impulsados por la comunidad","Fondo de las Naciones Unidas para la Infancia (UNICEF); Banco Mundial (BM); Organización para la Cooperación y el Desarrollo Económico (OCDE); Universidad de Oslo; Oficina Nacional de Estadísticas (NSO-Tailandia)","Day3_Time_Slot2_Parallel 02",null,"1:00"]
[187,"Day3_Time_Slot2_Parallel 03","Day3_Time_Slot2",3,2,"Parallel 03",{"$f":"VLOOKUP($D$1&D163,UNWDF_Medellín_2024_en!A:F,5,FALSE)","v":"2024-11-15"},{"$f":"MID(VLOOKUP($D$1&D163&$E$1&E163,UNWDF_Medellín_2024_en!A:F,5,FALSE),1,SEARCH(\"(\",VLOOKUP($D$1&D163&$E$1&E163,UNWDF_Medellín_2024_en!A:F,5,FALSE))-2)","v":"10:45 - 11:45"},"1:00",{"$f":"HLOOKUP($F163,UNWDF_Medellín_2024_en!$H$14:$S$16,2,FALSE)","v":"Room 2"},{"$f":"HLOOKUP($F163,UNWDF_Medellín_2024_en!$H$14:$S$16,3,FALSE)","v":200},"N","NA",1,{"$f":"IF(OR(L163=\"NA\",L163=\"E\"),\"NA\",IF(L163=\"Y\",COUNTIF($M$1:N162,N163)+1,COUNTIF($M$1:N162,N163)+1))","v":15},"TA1.11","Strengthening administrative data-based children’s statistics in Latin America and the Caribbean","United Nations Children's Fund (UNICEF); United Nations Economic Commission for Latin America and the Caribbean (UNECLAC / CEPAL); Instituto Nacional de Estadísticas (INE-Chile); Instituto Nacional de Estadística (INE-Uruguay)","Fortalecimiento de las estadísticas infantiles basadas en datos administrativos en América Latina y el Caribe","Fondo de las Naciones Unidas para la Infancia (UNICEF); Comisión Económica para América Latina y el Caribe de las Naciones Unidas (UNECLAC / CEPAL); Instituto Nacional de Estadísticas (INE-Chile); Instituto Nacional de Estadística (INE-Uruguay)","Day3_Time_Slot2_Parallel 03",null,"1:00"]
[188,"Day3_Time_Slot2_Parallel 04","Day3_Time_Slot2",3,2,"Parallel 04",{"$f":"VLOOKUP($D$1&D164,UNWDF_Medellín_2024_en!A:F,5,FALSE)","v":"2024-11-15"},{"$f":"MID(VLOOKUP($D$1&D164&$E$1&E164,UNWDF_Medellín_2024_en!A:F,5,FALSE),1,SEARCH(\"(\",VLOOKUP($D$1&D164&$E$1&E164,UNWDF_Medellín_2024_en!A:F,5,FALSE))-2)","v":"10:45 - 11:45"},"1:00",{"$f":"HLOOKUP($F164,UNWDF_Medellín_2024_en!$H$14:$S$16,2,FALSE)","v":"Room 3"},{"$f":"HLOOKUP($F164,UNWDF_Medellín_2024_en!$H$14:$S$16,3,FALSE)","v":200},"N","NA",2,{"$f":"IF(OR(L164=\"NA\",L164=\"E\"),\"NA\",IF(L164=\"Y\",COUNTIF($M$1:N163,N164)+1,COUNTIF($M$1:N163,N164)+1))","v":10},"TA2.7","Ultra-High-Frequency Poverty Monitoring: Timely Quarterly and Monthly Assessments for Poverty Dynamics and Household Welfare","World Bank (WB); Government of Paraguay, Paraguay; Zimbabwe National Statistics Agency (ZIMSTAT); Catholic Relief Services (CRS); Cornell University","Supervisión de la pobreza con frecuencia ultraalta: Evaluaciones trimestrales y mensuales oportunas de la dinámica de la pobreza y el bienestar de los hogares","Banco Mundial (BM); Gobierno de Paraguay, Paraguay; Agencia Nacional de Estadísticas de Zimbabwe (ZIMSTAT); Catholic Relief Services (CRS); Universidad de Cornell","Day3_Time_Slot2_Parallel 04",null,"1:00"]
[189,"Day3_Time_Slot2_Parallel 05","Day3_Time_Slot2",3,2,"Parallel 05",{"$f":"VLOOKUP($D$1&D165,UNWDF_Medellín_2024_en!A:F,5,FALSE)","v":"2024-11-15"},{"$f":"MID(VLOOKUP($D$1&D165&$E$1&E165,UNWDF_Medellín_2024_en!A:F,5,FALSE),1,SEARCH(\"(\",VLOOKUP($D$1&D165&$E$1&E165,UNWDF_Medellín_2024_en!A:F,5,FALSE))-2)","v":"10:45 - 11:45"},"1:00",{"$f":"HLOOKUP($F165,UNWDF_Medellín_2024_en!$H$14:$S$16,2,FALSE)","v":"Room 4"},{"$f":"HLOOKUP($F165,UNWDF_Medellín_2024_en!$H$14:$S$16,3,FALSE)","v":200},"N","NA",4,{"$f":"IF(OR(L165=\"NA\",L165=\"E\"),\"NA\",IF(L165=\"Y\",COUNTIF($M$1:N164,N165)+1,COUNTIF($M$1:N164,N165)+1))","v":14},"TA4.5","Learning Across Borders: How countries share knowledge to harness administrative data for official statistics","United Nations Statistics Division (UNSD-DESA); United Nations Entity for Gender Equality and the Empowerment of Women (UN Women); Global Partnership for Sustainable Development Data (GPSDD)","Aprendizaje transfronterizo: Cómo comparten conocimientos los países para aprovechar los datos administrativos en las estadísticas oficiales","División de Estadísticas de las Naciones Unidas (UNSD-DESA); Entidad de las Naciones Unidas para la Igualdad de Género y el Empoderamiento de la Mujer (ONU Mujeres); Alianza Global para los Datos del Desarrollo Sostenible (GPSDD)","Day3_Time_Slot2_Parallel 05",null,"1:00"]
[190,"Day3_Time_Slot2_Parallel 06","Day3_Time_Slot2",3,2,"Parallel 06",{"$f":"VLOOKUP($D$1&D166,UNWDF_Medellín_2024_en!A:F,5,FALSE)","v":"2024-11-15"},{"$f":"MID(VLOOKUP($D$1&D166&$E$1&E166,UNWDF_Medellín_2024_en!A:F,5,FALSE),1,SEARCH(\"(\",VLOOKUP($D$1&D166&$E$1&E166,UNWDF_Medellín_2024_en!A:F,5,FALSE))-2)","v":"10:45 - 11:45"},"1:00",{"$f":"HLOOKUP($F166,UNWDF_Medellín_2024_en!$H$14:$S$16,2,FALSE)","v":"Room 5"},{"$f":"HLOOKUP($F166,UNWDF_Medellín_2024_en!$H$14:$S$16,3,FALSE)","v":200},"N","NA",4,{"$f":"IF(OR(L166=\"NA\",L166=\"E\"),\"NA\",IF(L166=\"Y\",COUNTIF($M$1:N165,N166)+1,COUNTIF($M$1:N165,N166)+1))","v":15},"TA4.15","Maximizing the value of data: public-private partnerships in local contexts","Departamento Administrativo Nacional de Estadística (DANE-Colombia); Statistics Poland; Environmental Systems Research Institute (Esri); Centro de Pensamiento Estratégico Internacional (Cepei)","Maximizar el valor de los datos: asociaciones público-privadas en contextos locales","Departamento Administrativo Nacional de Estadística (DANE-Colombia); Estadísticas de Polonia; Environmental Systems Research Institute (Esri); Centro de Pensamiento Estratégico Internacional (Cepei)","Day3_Time_Slot2_Parallel 06",null,"1:00"]
[191,"Day3_Time_Slot2_Parallel 07","Day3_Time_Slot2",3,2,"Parallel 07",{"$f":"VLOOKUP($D$1&D167,UNWDF_Medellín_2024_en!A:F,5,FALSE)","v":"2024-11-15"},{"$f":"MID(VLOOKUP($D$1&D167&$E$1&E167,UNWDF_Medellín_2024_en!A:F,5,FALSE),1,SEARCH(\"(\",VLOOKUP($D$1&D167&$E$1&E167,UNWDF_Medellín_2024_en!A:F,5,FALSE))-2)","v":"10:45 - 11:45"},"1:00",{"$f":"HLOOKUP($F167,UNWDF_Medellín_2024_en!$H$14:$S$16,2,FALSE)","v":"Room 6"},{"$f":"HLOOKUP($F167,UNWDF_Medellín_2024_en!$H$14:$S$16,3,FALSE)","v":150},"N","NA","_T",{"$f":"IF(OR(L167=\"NA\",L167=\"E\"),\"NA\",IF(L167=\"Y\",COUNTIF($M$1:N166,N167)+1,COUNTIF($M$1:N166,N167)+1))","v":11},"TED.208","Inclusion of All Citizens in Assessment and Improvement of Local Governments’ Performance in Governance and Public Service Delivery / Exploring Agenda 2030 through the 5Ps lens: New Parameters for a Value-Based Interpretation of the SDGs / Empowering Progress: Harnessing Collective Intelligence for Inclusive Data Innovation towards Sustainable Development Goals / How consumer trust through better data governance in cross-border data flows can improve access to private sector data for the public good","United Nations Development Programme (UNDP) / Universidade Federal do Rio Grande do Sul / United Nations Development Programme (UNDP) / Consumers International; Visa","Inclusión de todos los ciudadanos en la evaluación y mejora del desempeño de los gobiernos locales en materia de gobernanza y prestación de servicios públicos / Explorando la Agenda 2030 a través de la lente de las 5Ps: Nuevos parámetros para una interpretación de los ODS basada en valores / Progreso Empoderante: Aprovechamiento de la inteligencia colectiva para la innovación inclusiva de datos hacia los Objetivos de Desarrollo Sostenible / Cómo la confianza del consumidor a través de una mejor gobernanza de datos en los flujos de datos transfronterizos puede mejorar el acceso a los datos del sector privado para el bien público","Programa de las Naciones Unidas para el Desarrollo (PNUD) / Universidade Federal do Rio Grande do Sul / Programa de las Naciones Unidas para el Desarrollo (PNUD) / Consumers International; Visa","Day3_Time_Slot2_Parallel 07",null,"1:00"]
[192,"Day3_Time_Slot2_Parallel 08","Day3_Time_Slot2",3,2,"Parallel 08",{"$f":"VLOOKUP($D$1&D168,UNWDF_Medellín_2024_en!A:F,5,FALSE)","v":"2024-11-15"},{"$f":"MID(VLOOKUP($D$1&D168&$E$1&E168,UNWDF_Medellín_2024_en!A:F,5,FALSE),1,SEARCH(\"(\",VLOOKUP($D$1&D168&$E$1&E168,UNWDF_Medellín_2024_en!A:F,5,FALSE))-2)","v":"10:45 - 11:45"},"1:00",{"$f":"HLOOKUP($F168,UNWDF_Medellín_2024_en!$H$14:$S$16,2,FALSE)","v":"Room 7"},{"$f":"HLOOKUP($F168,UNWDF_Medellín_2024_en!$H$14:$S$16,3,FALSE)","v":150},"N","NA","_A",{"$f":"IF(OR(L168=\"NA\",L168=\"E\"),\"NA\",IF(L168=\"Y\",COUNTIF($M$1:N167,N168)+1,COUNTIF($M$1:N167,N168)+1))","v":4},"ANCE.401","Collaborative open data platform to promote university quantitative research – Open Data Punku Yachay (gate of knowledge) / Mixing messy data to tell a story: A livability index for urban planning for Colombian cities","Universidad Nacional Mayor de San Marcos; Universidad de los Andes; Universidad Nacional de Colombia","Plataforma colaborativa de datos abiertos para promover la investigación cuantitativa universitaria - Open Data Punku Yachay (puerta del conocimiento) / Mezclando datos desordenados para contar una historia: Un índice de habitabilidad para la planificación urbana de ciudades colombianas","Universidad Nacional Mayor de San Marcos; Universidad de los Andes; Universidad Nacional de Colombia","Day3_Time_Slot2_Parallel 08",null,"1:00"]
[193,"Day3_Time_Slot2_Parallel 09","Day3_Time_Slot2",3,2,"Parallel 09",{"$f":"VLOOKUP($D$1&D169,UNWDF_Medellín_2024_en!A:F,5,FALSE)","v":"2024-11-15"},{"$f":"MID(VLOOKUP($D$1&D169&$E$1&E169,UNWDF_Medellín_2024_en!A:F,5,FALSE),1,SEARCH(\"(\",VLOOKUP($D$1&D169&$E$1&E169,UNWDF_Medellín_2024_en!A:F,5,FALSE))-2)","v":"10:45 - 11:45"},"1:00",{"$f":"HLOOKUP($F169,UNWDF_Medellín_2024_en!$H$14:$S$16,2,FALSE)","v":"Room 8"},{"$f":"HLOOKUP($F169,UNWDF_Medellín_2024_en!$H$14:$S$16,3,FALSE)","v":90},"N","NA","NA",{"$f":"IF(OR(L169=\"NA\",L169=\"E\"),\"NA\",IF(L169=\"Y\",COUNTIF($M$1:N168,N169)+1,COUNTIF($M$1:N168,N169)+1))","v":256},"Local_7","Informed citizens for transformative cities: cities that predict, anticipate and project based on citizen experience.","Ruta N","Ciudadanos informados para ciudades transformadoras: ciudades que predicen, se anticipan y se proyectan en función de la experiencia de los ciudadanos.","Ruta N","Day3_Time_Slot2_Parallel 09",null,"1:00"]
[194,"Day3_Time_Slot2_Parallel 10","Day3_Time_Slot2",3,2,"Parallel 10",{"$f":"VLOOKUP($D$1&D170,UNWDF_Medellín_2024_en!A:F,5,FALSE)","v":"2024-11-15"},{"$f":"MID(VLOOKUP($D$1&D170&$E$1&E170,UNWDF_Medellín_2024_en!A:F,5,FALSE),1,SEARCH(\"(\",VLOOKUP($D$1&D170&$E$1&E170,UNWDF_Medellín_2024_en!A:F,5,FALSE))-2)","v":"10:45 - 11:45"},"1:00",{"$f":"HLOOKUP($F170,UNWDF_Medellín_2024_en!$H$14:$S$16,2,FALSE)","v":"Room 9"},{"$f":"HLOOKUP($F170,UNWDF_Medellín_2024_en!$H$14:$S$16,3,FALSE)","v":60},"N","NA","_L",{"$f":"IF(OR(L170=\"NA\",L170=\"E\"),\"NA\",IF(L170=\"Y\",COUNTIF($M$1:N169,N170)+1,COUNTIF($M$1:N169,N170)+1))","v":11},"LEARN.308","From Numbers to Narratives: Unlocking the power of SDG Data through Data storytelling and Visualization","United Nations Statistics Division (UNSD-DESA); Partnership in Statistics for Development in the 21st Century (PARIS21); United Nations Entity for Gender Equality and the Empowerment of Women (UN Women)","De las cifras a los relatos: Liberar el poder de los datos de los ODS mediante la narración y visualización de datos","División de Estadísticas de las Naciones Unidas (UNSD-DESA); Alianza en Estadísticas para el Desarrollo en el Siglo XXI (PARIS21); Entidad de las Naciones Unidas para la Igualdad de Género y el Empoderamiento de la Mujer (ONU Mujeres)","Day3_Time_Slot2_Parallel 10",null,"1:00"]
[195,"Day3_Time_Slot2_Parallel 11","Day3_Time_Slot2",3,2,"Parallel 11",{"$f":"VLOOKUP($D$1&D171,UNWDF_Medellín_2024_en!A:F,5,FALSE)","v":"2024-11-15"},{"$f":"MID(VLOOKUP($D$1&D171&$E$1&E171,UNWDF_Medellín_2024_en!A:F,5,FALSE),1,SEARCH(\"(\",VLOOKUP($D$1&D171&$E$1&E171,UNWDF_Medellín_2024_en!A:F,5,FALSE))-2)","v":"10:45 - 11:45"},"1:00",{"$f":"HLOOKUP($F171,UNWDF_Medellín_2024_en!$H$14:$S$16,2,FALSE)","v":"Room 10"},{"$f":"HLOOKUP($F171,UNWDF_Medellín_2024_en!$H$14:$S$16,3,FALSE)","v":60},"N","NA",1,{"$f":"IF(OR(L171=\"NA\",L171=\"E\"),\"NA\",IF(L171=\"Y\",COUNTIF($M$1:N170,N171)+1,COUNTIF($M$1:N170,N171)+1))","v":16},"TA1.18","Step forwards the measurement of violence against children for better policy decision","Italian National Institute of Statistics (Istat); United Nations Children's Fund (UNICEF); Instituto Nacional de Estadística y Geografía (INEGI-México); Middlesex University","Avanzar en la medición de la violencia contra los niños para tomar mejores decisiones políticas","Instituto Nacional de Estadística de Italia (Istat); Fondo de las Naciones Unidas para la Infancia (UNICEF); Instituto Nacional de Estadística y Geografía (INEGI-México); Universidad de Middlesex","Day3_Time_Slot2_Parallel 11","","1:00"]
[196,"Day3_Time_Slot2_Parallel 12","Day3_Time_Slot2",3,2,"Parallel 12",{"$f":"VLOOKUP($D$1&D172,UNWDF_Medellín_2024_en!A:F,5,FALSE)","v":"2024-11-15"},{"$f":"MID(VLOOKUP($D$1&D172&$E$1&E172,UNWDF_Medellín_2024_en!A:F,5,FALSE),1,SEARCH(\"(\",VLOOKUP($D$1&D172&$E$1&E172,UNWDF_Medellín_2024_en!A:F,5,FALSE))-2)","v":"10:45 - 11:45"},"1:00",{"$f":"HLOOKUP($F172,UNWDF_Medellín_2024_en!$H$14:$S$16,2,FALSE)","v":"NA"},{"$f":"HLOOKUP($F172,UNWDF_Medellín_2024_en!$H$14:$S$16,3,FALSE)","v":"NA"},"NA","NA","NA",{"$f":"IF(OR(L172=\"NA\",L172=\"E\"),\"NA\",IF(L172=\"Y\",COUNTIF($M$1:N171,N172)+1,COUNTIF($M$1:N171,N172)+1))","v":"NA"},{"$f":"IF(N172=\"NA\",\"NA\",\"TA\"&N172&\".\"&TEXT(O172,\"0#\"))","v":"NA"},"NA","NA","NA","NA","Day3_Time_Slot2_Parallel 12","","1:00"]
[98,"Day3_Time_Slot3_Parallel 01","Day3_Time_Slot3",3,3,"Parallel 01",{"$f":"VLOOKUP($D$1&D173,UNWDF_Medellín_2024_en!A:F,5,FALSE)","v":"2024-11-15"},{"$f":"MID(VLOOKUP($D$1&D173&$E$1&E173,UNWDF_Medellín_2024_en!A:F,5,FALSE),1,SEARCH(\"(\",VLOOKUP($D$1&D173&$E$1&E173,UNWDF_Medellín_2024_en!A:F,5,FALSE))-2)","v":"13:15 - 14:15"},"1:00",{"$f":"HLOOKUP($F173,UNWDF_Medellín_2024_en!$H$14:$S$16,2,FALSE)","v":"Plenary Room"},{"$f":"HLOOKUP($F173,UNWDF_Medellín_2024_en!$H$14:$S$16,3,FALSE)","v":3000},"NA","NA","NA",{"$f":"IF(OR(L173=\"NA\",L173=\"E\"),\"NA\",IF(L173=\"Y\",COUNTIF($M$1:N172,N173)+1,COUNTIF($M$1:N172,N173)+1))","v":"NA"},"NA","NA","NA","NA","NA","Day3_Time_Slot3_Parallel 01",null,"1:00"]
[197,"Day3_Time_Slot3_Parallel 02","Day3_Time_Slot3",3,3,"Parallel 02",{"$f":"VLOOKUP($D$1&D174,UNWDF_Medellín_2024_en!A:F,5,FALSE)","v":"2024-11-15"},{"$f":"MID(VLOOKUP($D$1&D174&$E$1&E174,UNWDF_Medellín_2024_en!A:F,5,FALSE),1,SEARCH(\"(\",VLOOKUP($D$1&D174&$E$1&E174,UNWDF_Medellín_2024_en!A:F,5,FALSE))-2)","v":"13:15 - 14:15"},"1:00",{"$f":"HLOOKUP($F174,UNWDF_Medellín_2024_en!$H$14:$S$16,2,FALSE)","v":"Room 1"},{"$f":"HLOOKUP($F174,UNWDF_Medellín_2024_en!$H$14:$S$16,3,FALSE)","v":300},"N","NA",3,{"$f":"IF(OR(L174=\"NA\",L174=\"E\"),\"NA\",IF(L174=\"Y\",COUNTIF($M$1:N173,N174)+1,COUNTIF($M$1:N173,N174)+1))","v":5},"TA3.4","Global South Perspectives on Building Trust, Protection and Ethics in data collected With and About Young People","Internet Society (ISOC) - Youth Standing Group; Youth Coalition of Internet Governance (IGF); Consortium d'Appui aux Actions pour la Promotion et le Développement de l'Afrique; United Nations Children's Fund (UNICEF)","Perspectivas del Sur Global sobre el fomento de la confianza, la protección y la ética en los datos recogidos con y sobre los jóvenes","Internet Society (ISOC) - Grupo de Jóvenes; Coalición Juvenil para la Gobernanza de Internet (IGF); Consorcio de Apoyo a las Acciones para la Promoción y el Desarrollo de África; Fondo de las Naciones Unidas para la Infancia (UNICEF)","Day3_Time_Slot3_Parallel 02",null,"1:00"]
[198,"Day3_Time_Slot3_Parallel 03","Day3_Time_Slot3",3,3,"Parallel 03",{"$f":"VLOOKUP($D$1&D175,UNWDF_Medellín_2024_en!A:F,5,FALSE)","v":"2024-11-15"},{"$f":"MID(VLOOKUP($D$1&D175&$E$1&E175,UNWDF_Medellín_2024_en!A:F,5,FALSE),1,SEARCH(\"(\",VLOOKUP($D$1&D175&$E$1&E175,UNWDF_Medellín_2024_en!A:F,5,FALSE))-2)","v":"13:15 - 14:15"},"1:00",{"$f":"HLOOKUP($F175,UNWDF_Medellín_2024_en!$H$14:$S$16,2,FALSE)","v":"Room 2"},{"$f":"HLOOKUP($F175,UNWDF_Medellín_2024_en!$H$14:$S$16,3,FALSE)","v":200},"N","NA",1,{"$f":"IF(OR(L175=\"NA\",L175=\"E\"),\"NA\",IF(L175=\"Y\",COUNTIF($M$1:N174,N175)+1,COUNTIF($M$1:N174,N175)+1))","v":17},"TA1.12","Data and Persons with Disabilities: Innovative and Recent Efforts from Different Stakeholders","CBM Global Disability Inclusion; International Disability Alliance; World Federation of the Deaf; Fordham University; Universidad de los Andes; Stakeholder Group of Persons with Disabilities; Fundación Saldarriaga Concha; Inclusión SAS","Datos y personas con discapacidad: Esfuerzos innovadores y recientes de distintas partes interesadas","CBM Global Disability Inclusion; Alianza Internacional de Discapacidad; Federación Mundial de Sordos; Universidad Fordham; Universidad de los Andes; Grupo de Interesados en Discapacidad; Fundación Saldarriaga Concha; Inclusión SAS","Day3_Time_Slot3_Parallel 03",null,"1:00"]
[199,"Day3_Time_Slot3_Parallel 04","Day3_Time_Slot3",3,3,"Parallel 04",{"$f":"VLOOKUP($D$1&D176,UNWDF_Medellín_2024_en!A:F,5,FALSE)","v":"2024-11-15"},{"$f":"MID(VLOOKUP($D$1&D176&$E$1&E176,UNWDF_Medellín_2024_en!A:F,5,FALSE),1,SEARCH(\"(\",VLOOKUP($D$1&D176&$E$1&E176,UNWDF_Medellín_2024_en!A:F,5,FALSE))-2)","v":"13:15 - 14:15"},"1:00",{"$f":"HLOOKUP($F176,UNWDF_Medellín_2024_en!$H$14:$S$16,2,FALSE)","v":"Room 3"},{"$f":"HLOOKUP($F176,UNWDF_Medellín_2024_en!$H$14:$S$16,3,FALSE)","v":200},"N","NA",2,{"$f":"IF(OR(L176=\"NA\",L176=\"E\"),\"NA\",IF(L176=\"Y\",COUNTIF($M$1:N175,N176)+1,COUNTIF($M$1:N175,N176)+1))","v":11},"TA2.8","New Advances and Approach to Measuring Gender-based Violence","Instituto Nacional de Estadística y Geografía (INEGI-México); Italian National Institute of Statistics (Istat); United Nations Office on Drugs and Crime (UNODC); United Nations Statistics Division (UNSD-DESA); United Nations Entity for Gender Equality and the Empowerment of Women (UN Women); Oficina Nacional de Estadística (ONE-República Dominicana); Point of View; Marialab Hackerspace; TechHER; Luchadoras Support Line","Nuevos avances y enfoque para medir la violencia de género","Instituto Nacional de Estadística y Geografía (INEGI-México); Instituto Nacional de Estadística de Italia (Istat); Oficina de las Naciones Unidas contra la Droga y el Delito (UNODC); División de Estadísticas de las Naciones Unidas (UNSD-DESA); Entidad de las Naciones Unidas para la Igualdad de Género y el Empoderamiento de la Mujer (ONU Mujeres); Oficina Nacional de Estadística (ONE-República Dominicana); Point of View; Marialab Hackerspace; TechHER; Línea de Apoyo a Luchadoras","Day3_Time_Slot3_Parallel 04",null,"1:00"]
[200,"Day3_Time_Slot3_Parallel 05","Day3_Time_Slot3",3,3,"Parallel 05",{"$f":"VLOOKUP($D$1&D177,UNWDF_Medellín_2024_en!A:F,5,FALSE)","v":"2024-11-15"},{"$f":"MID(VLOOKUP($D$1&D177&$E$1&E177,UNWDF_Medellín_2024_en!A:F,5,FALSE),1,SEARCH(\"(\",VLOOKUP($D$1&D177&$E$1&E177,UNWDF_Medellín_2024_en!A:F,5,FALSE))-2)","v":"13:15 - 14:15"},"1:00",{"$f":"HLOOKUP($F177,UNWDF_Medellín_2024_en!$H$14:$S$16,2,FALSE)","v":"Room 4"},{"$f":"HLOOKUP($F177,UNWDF_Medellín_2024_en!$H$14:$S$16,3,FALSE)","v":200},"N","NA",4,{"$f":"IF(OR(L177=\"NA\",L177=\"E\"),\"NA\",IF(L177=\"Y\",COUNTIF($M$1:N176,N177)+1,COUNTIF($M$1:N176,N177)+1))","v":16},"TA4.7","Unlocking Impact: Data, Analytics and AI for Better Crisis Action","Office of the United Nations Secretary-General (EOSG); United Nations Global Pulse (UNGP); U.S. Department of State, United States of America; Armed Conflict Location and Event Data Project (ACLED); Data-Pop Alliance; YouthMappers","Desbloquear el impacto: Datos, análisis e inteligencia artificial para mejorar la acción en situaciones de crisis","Oficina del Secretario General de las Naciones Unidas (EOSG); Global Pulse de las Naciones Unidas (UNGP); Departamento de Estado de los Estados Unidos de América; Proyecto de Ubicación y Acontecimientos de Conflictos Armados (ACLED); Alianza Data-Pop; YouthMappers","Day3_Time_Slot3_Parallel 05",null,"1:00"]
[201,"Day3_Time_Slot3_Parallel 06","Day3_Time_Slot3",3,3,"Parallel 06",{"$f":"VLOOKUP($D$1&D178,UNWDF_Medellín_2024_en!A:F,5,FALSE)","v":"2024-11-15"},{"$f":"MID(VLOOKUP($D$1&D178&$E$1&E178,UNWDF_Medellín_2024_en!A:F,5,FALSE),1,SEARCH(\"(\",VLOOKUP($D$1&D178&$E$1&E178,UNWDF_Medellín_2024_en!A:F,5,FALSE))-2)","v":"13:15 - 14:15"},"1:00",{"$f":"HLOOKUP($F178,UNWDF_Medellín_2024_en!$H$14:$S$16,2,FALSE)","v":"Room 5"},{"$f":"HLOOKUP($F178,UNWDF_Medellín_2024_en!$H$14:$S$16,3,FALSE)","v":200},"N","NA",4,{"$f":"IF(OR(L178=\"NA\",L178=\"E\"),\"NA\",IF(L178=\"Y\",COUNTIF($M$1:N177,N178)+1,COUNTIF($M$1:N177,N178)+1))","v":17},"TA4.16","Data on LGBTIQ+ persons: a human rights and multi-stakeholder approach for the production of official statistics","Red Sin Violencia LGBTI; Global Partnership for Sustainable Development Data (GPSDD); Colombia Diversa; Equilibrium Social Development Consulting (SDC)","Datos sobre personas LGBTIQ+: un enfoque de derechos humanos y de múltiples partes interesadas para la elaboración de estadísticas oficiales","Red sin Violencia LGBTI; Alianza Global para los Datos del Desarrollo Sostenible (GPSDD); Colombia Diversa; Consultoría para el Desarrollo Social Equilibrium (SDC)","Day3_Time_Slot3_Parallel 06",null,"1:00"]
[202,"Day3_Time_Slot3_Parallel 07","Day3_Time_Slot3",3,3,"Parallel 07",{"$f":"VLOOKUP($D$1&D179,UNWDF_Medellín_2024_en!A:F,5,FALSE)","v":"2024-11-15"},{"$f":"MID(VLOOKUP($D$1&D179&$E$1&E179,UNWDF_Medellín_2024_en!A:F,5,FALSE),1,SEARCH(\"(\",VLOOKUP($D$1&D179&$E$1&E179,UNWDF_Medellín_2024_en!A:F,5,FALSE))-2)","v":"13:15 - 14:15"},"1:00",{"$f":"HLOOKUP($F179,UNWDF_Medellín_2024_en!$H$14:$S$16,2,FALSE)","v":"Room 6"},{"$f":"HLOOKUP($F179,UNWDF_Medellín_2024_en!$H$14:$S$16,3,FALSE)","v":150},"N","NA","_T",{"$f":"IF(OR(L179=\"NA\",L179=\"E\"),\"NA\",IF(L179=\"Y\",COUNTIF($M$1:N178,N179)+1,COUNTIF($M$1:N178,N179)+1))","v":12},"TED.209","The use of qualitative information for decision making / Finger on the pulse - latest methodologies for using data to strengthen education systems / Amplifying the impact of the social sector through data analytics and AI","3isolution / United Nations Educational, Scientific and Cultural Organization (UNESCO) / Ernst & Young; Compartamos con Colombia; Aldeas Infantiles","El uso de la información cualitativa para la toma de decisiones / Dedo en el pulso - últimas metodologías para el uso de datos para fortalecer los sistemas educativos / Amplificación del impacto del sector social a través de la analítica de datos y la IA","3isolution / Organización de las Naciones Unidas para la Educación, la Ciencia y la Cultura (UNESCO) / Ernst & Young; Compartamos con Colombia; Aldeas Infantiles","Day3_Time_Slot3_Parallel 07",null,"1:00"]
[203,"Day3_Time_Slot3_Parallel 08","Day3_Time_Slot3",3,3,"Parallel 08",{"$f":"VLOOKUP($D$1&D180,UNWDF_Medellín_2024_en!A:F,5,FALSE)","v":"2024-11-15"},{"$f":"MID(VLOOKUP($D$1&D180&$E$1&E180,UNWDF_Medellín_2024_en!A:F,5,FALSE),1,SEARCH(\"(\",VLOOKUP($D$1&D180&$E$1&E180,UNWDF_Medellín_2024_en!A:F,5,FALSE))-2)","v":"13:15 - 14:15"},"1:00",{"$f":"HLOOKUP($F180,UNWDF_Medellín_2024_en!$H$14:$S$16,2,FALSE)","v":"Room 7"},{"$f":"HLOOKUP($F180,UNWDF_Medellín_2024_en!$H$14:$S$16,3,FALSE)","v":150},"N","NA","NA",{"$f":"IF(OR(L180=\"NA\",L180=\"E\"),\"NA\",IF(L180=\"Y\",COUNTIF($M$1:N179,N180)+1,COUNTIF($M$1:N179,N180)+1))","v":270},"Local_8","The importance of data for the transformation of Medellín into a district for science, technology and innovation","Economic Development Secretariat Medellín","La importancia de los datos para la transformación de\nMedellín a distrito de ciencia, tecnología e innovación","Secretaria de Desarrollo Económico Medellín","Day3_Time_Slot3_Parallel 08",null,"1:00"]
[204,"Day3_Time_Slot3_Parallel 09","Day3_Time_Slot3",3,3,"Parallel 09",{"$f":"VLOOKUP($D$1&D181,UNWDF_Medellín_2024_en!A:F,5,FALSE)","v":"2024-11-15"},{"$f":"MID(VLOOKUP($D$1&D181&$E$1&E181,UNWDF_Medellín_2024_en!A:F,5,FALSE),1,SEARCH(\"(\",VLOOKUP($D$1&D181&$E$1&E181,UNWDF_Medellín_2024_en!A:F,5,FALSE))-2)","v":"13:15 - 14:15"},"1:00",{"$f":"HLOOKUP($F181,UNWDF_Medellín_2024_en!$H$14:$S$16,2,FALSE)","v":"Room 8"},{"$f":"HLOOKUP($F181,UNWDF_Medellín_2024_en!$H$14:$S$16,3,FALSE)","v":90},"E","NA","NA",{"$f":"IF(OR(L181=\"NA\",L181=\"E\"),\"NA\",IF(L181=\"Y\",COUNTIF($M$1:N180,N181)+1,COUNTIF($M$1:N180,N181)+1))","v":"NA"},{"$f":"IF(N181=\"NA\",\"NA\",\"TA\"&N181&\".\"&TEXT(O181,\"0#\"))","v":"NA"},"TBC","TBC","Por Confirmar","Por Confirmar","Day3_Time_Slot3_Parallel 09",null,"1:00"]
[205,"Day3_Time_Slot3_Parallel 10","Day3_Time_Slot3",3,3,"Parallel 10",{"$f":"VLOOKUP($D$1&D182,UNWDF_Medellín_2024_en!A:F,5,FALSE)","v":"2024-11-15"},{"$f":"MID(VLOOKUP($D$1&D182&$E$1&E182,UNWDF_Medellín_2024_en!A:F,5,FALSE),1,SEARCH(\"(\",VLOOKUP($D$1&D182&$E$1&E182,UNWDF_Medellín_2024_en!A:F,5,FALSE))-2)","v":"13:15 - 14:15"},"1:00",{"$f":"HLOOKUP($F182,UNWDF_Medellín_2024_en!$H$14:$S$16,2,FALSE)","v":"Room 9"},{"$f":"HLOOKUP($F182,UNWDF_Medellín_2024_en!$H$14:$S$16,3,FALSE)","v":60},"N","NA","NA",{"$f":"IF(OR(L182=\"NA\",L182=\"E\"),\"NA\",IF(L182=\"Y\",COUNTIF($M$1:N181,N182)+1,COUNTIF($M$1:N181,N182)+1))","v":274},"Local_9","Reserve [Local event]","TBC","Reservado [Evento local]","Por Confirmar","Day3_Time_Slot3_Parallel 10","","1:00"]
[206,"Day3_Time_Slot3_Parallel 11","Day3_Time_Slot3",3,3,"Parallel 11",{"$f":"VLOOKUP($D$1&D183,UNWDF_Medellín_2024_en!A:F,5,FALSE)","v":"2024-11-15"},{"$f":"MID(VLOOKUP($D$1&D183&$E$1&E183,UNWDF_Medellín_2024_en!A:F,5,FALSE),1,SEARCH(\"(\",VLOOKUP($D$1&D183&$E$1&E183,UNWDF_Medellín_2024_en!A:F,5,FALSE))-2)","v":"13:15 - 14:15"},"1:00",{"$f":"HLOOKUP($F183,UNWDF_Medellín_2024_en!$H$14:$S$16,2,FALSE)","v":"Room 10"},{"$f":"HLOOKUP($F183,UNWDF_Medellín_2024_en!$H$14:$S$16,3,FALSE)","v":60},"N","NA",2,{"$f":"IF(OR(L183=\"NA\",L183=\"E\"),\"NA\",IF(L183=\"Y\",COUNTIF($M$1:N182,N183)+1,COUNTIF($M$1:N182,N183)+1))","v":12},"TA2.17","Co-creating Climate Data Ecosystem for Long-term Resilience","CivicDataLab; Lloyd's Register Foundation; Wellcome Trust","Creación conjunta de un ecosistema de datos climáticos para la resiliencia a largo plazo","CivicDataLab; Fundación Lloyd's Register; Wellcome Trust","Day3_Time_Slot3_Parallel 11","","1:00"]
[219,"Day3_Time_Slot3_Parallel 12","Day3_Time_Slot3",3,3,"Parallel 12",{"$f":"VLOOKUP($D$1&D184,UNWDF_Medellín_2024_en!A:F,5,FALSE)","v":"2024-11-15"},{"$f":"MID(VLOOKUP($D$1&D184&$E$1&E184,UNWDF_Medellín_2024_en!A:F,5,FALSE),1,SEARCH(\"(\",VLOOKUP($D$1&D184&$E$1&E184,UNWDF_Medellín_2024_en!A:F,5,FALSE))-2)","v":"13:15 - 14:15"},"1:00",{"$f":"HLOOKUP($F184,UNWDF_Medellín_2024_en!$H$14:$S$16,2,FALSE)","v":"NA"},{"$f":"HLOOKUP($F184,UNWDF_Medellín_2024_en!$H$14:$S$16,3,FALSE)","v":"NA"},"NA","NA","NA",{"$f":"IF(OR(L184=\"NA\",L184=\"E\"),\"NA\",IF(L184=\"Y\",COUNTIF($M$1:N183,N184)+1,COUNTIF($M$1:N183,N184)+1))","v":"NA"},{"$f":"IF(N184=\"NA\",\"NA\",\"TA\"&N184&\".\"&TEXT(O184,\"0#\"))","v":"NA"},"NA","NA","NA","NA","Day3_Time_Slot3_Parallel 12","","1:00"]
[99,"Day3_Time_Slot4_Parallel 01","Day3_Time_Slot4",3,4,"Parallel 01",{"$f":"VLOOKUP($D$1&D185,UNWDF_Medellín_2024_en!A:F,5,FALSE)","v":"2024-11-15"},{"$f":"MID(VLOOKUP($D$1&D185&$E$1&E185,UNWDF_Medellín_2024_en!A:F,5,FALSE),1,SEARCH(\"(\",VLOOKUP($D$1&D185&$E$1&E185,UNWDF_Medellín_2024_en!A:F,5,FALSE))-2)","v":"14:30 - 15:30"},"1:00",{"$f":"HLOOKUP($F185,UNWDF_Medellín_2024_en!$H$14:$S$16,2,FALSE)","v":"Plenary Room"},{"$f":"HLOOKUP($F185,UNWDF_Medellín_2024_en!$H$14:$S$16,3,FALSE)","v":3000},"NA","NA","NA",{"$f":"IF(OR(L185=\"NA\",L185=\"E\"),\"NA\",IF(L185=\"Y\",COUNTIF($M$1:N184,N185)+1,COUNTIF($M$1:N184,N185)+1))","v":"NA"},"NA","NA","NA","NA","NA","Day3_Time_Slot4_Parallel 01",null,"1:00"]
[207,"Day3_Time_Slot4_Parallel 02","Day3_Time_Slot4",3,4,"Parallel 02",{"$f":"VLOOKUP($D$1&D186,UNWDF_Medellín_2024_en!A:F,5,FALSE)","v":"2024-11-15"},{"$f":"MID(VLOOKUP($D$1&D186&$E$1&E186,UNWDF_Medellín_2024_en!A:F,5,FALSE),1,SEARCH(\"(\",VLOOKUP($D$1&D186&$E$1&E186,UNWDF_Medellín_2024_en!A:F,5,FALSE))-2)","v":"14:30 - 15:30"},"1:00",{"$f":"HLOOKUP($F186,UNWDF_Medellín_2024_en!$H$14:$S$16,2,FALSE)","v":"Room 1"},{"$f":"HLOOKUP($F186,UNWDF_Medellín_2024_en!$H$14:$S$16,3,FALSE)","v":300},"N","NA",4,{"$f":"IF(OR(L186=\"NA\",L186=\"E\"),\"NA\",IF(L186=\"Y\",COUNTIF($M$1:N185,N186)+1,COUNTIF($M$1:N185,N186)+1))","v":18},"TA4.4","Towards enhanced pandemic and epidemic intelligence: The value of collaboration between National Statistical Offices and National Public Health Agencies","World Health Organization (WHO)","Hacia una mejor inteligencia de pandemias y epidemias: El valor de la colaboración entre los institutos nacionales de estadística y las agencias nacionales de salud pública","Organización Mundial de la Salud (OMS)","Day3_Time_Slot4_Parallel 02",null,"1:00"]
[208,"Day3_Time_Slot4_Parallel 03","Day3_Time_Slot4",3,4,"Parallel 03",{"$f":"VLOOKUP($D$1&D187,UNWDF_Medellín_2024_en!A:F,5,FALSE)","v":"2024-11-15"},{"$f":"MID(VLOOKUP($D$1&D187&$E$1&E187,UNWDF_Medellín_2024_en!A:F,5,FALSE),1,SEARCH(\"(\",VLOOKUP($D$1&D187&$E$1&E187,UNWDF_Medellín_2024_en!A:F,5,FALSE))-2)","v":"14:30 - 15:30"},"1:00",{"$f":"HLOOKUP($F187,UNWDF_Medellín_2024_en!$H$14:$S$16,2,FALSE)","v":"Room 2"},{"$f":"HLOOKUP($F187,UNWDF_Medellín_2024_en!$H$14:$S$16,3,FALSE)","v":200},"N","NA",1,{"$f":"IF(OR(L187=\"NA\",L187=\"E\"),\"NA\",IF(L187=\"Y\",COUNTIF($M$1:N186,N187)+1,COUNTIF($M$1:N186,N187)+1))","v":18},"TA1.19","Data for Now: A holistic approach to ensuring value and impact of data","United Nations Statistics Division (UNSD-DESA); Global Partnership for Sustainable Development Data (GPSDD); World Bank (WB); United Nations Development Programme (UNDP); Open Data Watch (ODW); Sustainable Development Solutions Network (SDSN)","Datos para ahora: un enfoque holístico para garantizar el valor y el impacto de los datos","División de Estadística de las Naciones Unidas (UNSD-DESA); Asociación Mundial para los Datos sobre el Desarrollo Sostenible (GPSDD); Banco Mundial (BM); Programa de las Naciones Unidas para el Desarrollo (PNUD); Vigilancia de datos abiertos (ODW); Sustainable Development Solutions Network (SDSN)","Day3_Time_Slot4_Parallel 03",null,"1:00"]
[209,"Day3_Time_Slot4_Parallel 04","Day3_Time_Slot4",3,4,"Parallel 04",{"$f":"VLOOKUP($D$1&D188,UNWDF_Medellín_2024_en!A:F,5,FALSE)","v":"2024-11-15"},{"$f":"MID(VLOOKUP($D$1&D188&$E$1&E188,UNWDF_Medellín_2024_en!A:F,5,FALSE),1,SEARCH(\"(\",VLOOKUP($D$1&D188&$E$1&E188,UNWDF_Medellín_2024_en!A:F,5,FALSE))-2)","v":"14:30 - 15:30"},"1:00",{"$f":"HLOOKUP($F188,UNWDF_Medellín_2024_en!$H$14:$S$16,2,FALSE)","v":"Room 3"},{"$f":"HLOOKUP($F188,UNWDF_Medellín_2024_en!$H$14:$S$16,3,FALSE)","v":200},"N","NA",2,{"$f":"IF(OR(L188=\"NA\",L188=\"E\"),\"NA\",IF(L188=\"Y\",COUNTIF($M$1:N187,N188)+1,COUNTIF($M$1:N187,N188)+1))","v":13},"TA2.14","Survey meets Spatial: Gaining insights for SDG Locals","World Bank (WB); Stanford University; United Nations Statistics Division (UNSD-DESA); General Statistics Office (GSO-Viet Nam); Instituto Nacional de Estadística y Geografía (INEGI-México); IGN, Belgium; CIG-BNETD, Côte d’Ivoire; Kadaster, Netherlands (Kingdom of the); PVBLIC Foundation","Encuesta y espacio: Obtención de información para los ODS locales","Banco Mundial (BM); Universidad de Stanford; División de Estadísticas de las Naciones Unidas (UNSD-DESA); Oficina General de Estadísticas (GSO-Vietnam); Instituto Nacional de Estadística y Geografía (INEGI-México); IGN, Bélgica; CIG-BNETD, Costa de Marfil; Kadaster, Países Bajos; Fundación PVBLIC","Day3_Time_Slot4_Parallel 04",null,"1:00"]
[210,"Day3_Time_Slot4_Parallel 05","Day3_Time_Slot4",3,4,"Parallel 05",{"$f":"VLOOKUP($D$1&D189,UNWDF_Medellín_2024_en!A:F,5,FALSE)","v":"2024-11-15"},{"$f":"MID(VLOOKUP($D$1&D189&$E$1&E189,UNWDF_Medellín_2024_en!A:F,5,FALSE),1,SEARCH(\"(\",VLOOKUP($D$1&D189&$E$1&E189,UNWDF_Medellín_2024_en!A:F,5,FALSE))-2)","v":"14:30 - 15:30"},"1:00",{"$f":"HLOOKUP($F189,UNWDF_Medellín_2024_en!$H$14:$S$16,2,FALSE)","v":"Room 4"},{"$f":"HLOOKUP($F189,UNWDF_Medellín_2024_en!$H$14:$S$16,3,FALSE)","v":200},"N","NA",4,{"$f":"IF(OR(L189=\"NA\",L189=\"E\"),\"NA\",IF(L189=\"Y\",COUNTIF($M$1:N188,N189)+1,COUNTIF($M$1:N188,N189)+1))","v":19},"TA4.2","UNWDF 2024: Catalyzing Commitments for Sustainable Development Data","Open Data Watch (ODW); Partnership in Statistics for Development in the 21st Century (PARIS21)","UNWDF 2024: Catalizar compromisos en favor de los datos para el desarrollo sostenible","Open Data Watch (ODW); Alianza en Estadísticas para el Desarrollo en el Siglo XXI (PARIS21)","Day3_Time_Slot4_Parallel 05",null,"1:00"]
[211,"Day3_Time_Slot4_Parallel 06","Day3_Time_Slot4",3,4,"Parallel 06",{"$f":"VLOOKUP($D$1&D190,UNWDF_Medellín_2024_en!A:F,5,FALSE)","v":"2024-11-15"},{"$f":"MID(VLOOKUP($D$1&D190&$E$1&E190,UNWDF_Medellín_2024_en!A:F,5,FALSE),1,SEARCH(\"(\",VLOOKUP($D$1&D190&$E$1&E190,UNWDF_Medellín_2024_en!A:F,5,FALSE))-2)","v":"14:30 - 15:30"},"1:00",{"$f":"HLOOKUP($F190,UNWDF_Medellín_2024_en!$H$14:$S$16,2,FALSE)","v":"Room 5"},{"$f":"HLOOKUP($F190,UNWDF_Medellín_2024_en!$H$14:$S$16,3,FALSE)","v":200},"N","NA",2,{"$f":"IF(OR(L190=\"NA\",L190=\"E\"),\"NA\",IF(L190=\"Y\",COUNTIF($M$1:N189,N190)+1,COUNTIF($M$1:N189,N190)+1))","v":14},"TA2.4","Earth Observation (EO) and Remote Sensing (RS) Technologies Serve Global Food Security","United Nations Statistics Division (UNSD-DESA); Zhejiang University; Rural Department, National Bureau of Statistics (NBS-China); United Nation Global Hub on Big Data and Data Science for Official Statistics; Food and Agriculture Organization of the United Nations (FAO)","Las tecnologías de observación de la Tierra y teledetección al servicio de la seguridad alimentaria mundial","División de Estadísticas de las Naciones Unidas (UNSD-DESA); Universidad de Zhejiang; Departamento Rural, Oficina Nacional de Estadísticas (NBS-China); Centro Global de las Naciones Unidas sobre Grandes Datos y Ciencia de Datos para Estadísticas Oficiales; Organización de las Naciones Unidas para la Alimentación y la Agricultura (FAO)","Day3_Time_Slot4_Parallel 06",null,"1:00"]
[212,"Day3_Time_Slot4_Parallel 07","Day3_Time_Slot4",3,4,"Parallel 07",{"$f":"VLOOKUP($D$1&D191,UNWDF_Medellín_2024_en!A:F,5,FALSE)","v":"2024-11-15"},{"$f":"MID(VLOOKUP($D$1&D191&$E$1&E191,UNWDF_Medellín_2024_en!A:F,5,FALSE),1,SEARCH(\"(\",VLOOKUP($D$1&D191&$E$1&E191,UNWDF_Medellín_2024_en!A:F,5,FALSE))-2)","v":"14:30 - 15:30"},"1:00",{"$f":"HLOOKUP($F191,UNWDF_Medellín_2024_en!$H$14:$S$16,2,FALSE)","v":"Room 6"},{"$f":"HLOOKUP($F191,UNWDF_Medellín_2024_en!$H$14:$S$16,3,FALSE)","v":150},"N","NA","_T",{"$f":"IF(OR(L191=\"NA\",L191=\"E\"),\"NA\",IF(L191=\"Y\",COUNTIF($M$1:N190,N191)+1,COUNTIF($M$1:N190,N191)+1))","v":13},"TED.210","Going beyond traditional data to shed light on vulnerable and marginalized populations","IMPACT Initiatives; Armed Conflict Location and Event Data Project (ACLED); Data-Pop Alliance","Ir más allá de los datos tradicionales para arrojar luz sobre las poblaciones vulnerables y marginadas","Iniciativas IMPACT; Proyecto de Datos sobre Conflictos Armados y Eventos (ACLED); Alianza Data-Pop","Day3_Time_Slot4_Parallel 07",null,"1:00"]
[213,"Day3_Time_Slot4_Parallel 08","Day3_Time_Slot4",3,4,"Parallel 08",{"$f":"VLOOKUP($D$1&D192,UNWDF_Medellín_2024_en!A:F,5,FALSE)","v":"2024-11-15"},{"$f":"MID(VLOOKUP($D$1&D192&$E$1&E192,UNWDF_Medellín_2024_en!A:F,5,FALSE),1,SEARCH(\"(\",VLOOKUP($D$1&D192&$E$1&E192,UNWDF_Medellín_2024_en!A:F,5,FALSE))-2)","v":"14:30 - 15:30"},"1:00",{"$f":"HLOOKUP($F192,UNWDF_Medellín_2024_en!$H$14:$S$16,2,FALSE)","v":"Room 7"},{"$f":"HLOOKUP($F192,UNWDF_Medellín_2024_en!$H$14:$S$16,3,FALSE)","v":150},"N","NA","_A",{"$f":"IF(OR(L192=\"NA\",L192=\"E\"),\"NA\",IF(L192=\"Y\",COUNTIF($M$1:N191,N192)+1,COUNTIF($M$1:N191,N192)+1))","v":5},"ANCE.403","Launch of the UNICEF Guidelines for the Production of Data on Violence against Children","United Nations Children's Fund (UNICEF)","Lanzamiento de las Directrices de UNICEF para la producción de datos sobre la violencia contra los niños","Fondo de las Naciones Unidas para la Infancia (UNICEF)","Day3_Time_Slot4_Parallel 08",null,"1:00"]
[214,"Day3_Time_Slot4_Parallel 09","Day3_Time_Slot4",3,4,"Parallel 09",{"$f":"VLOOKUP($D$1&D193,UNWDF_Medellín_2024_en!A:F,5,FALSE)","v":"2024-11-15"},{"$f":"MID(VLOOKUP($D$1&D193&$E$1&E193,UNWDF_Medellín_2024_en!A:F,5,FALSE),1,SEARCH(\"(\",VLOOKUP($D$1&D193&$E$1&E193,UNWDF_Medellín_2024_en!A:F,5,FALSE))-2)","v":"14:30 - 15:30"},"1:00",{"$f":"HLOOKUP($F193,UNWDF_Medellín_2024_en!$H$14:$S$16,2,FALSE)","v":"Room 8"},{"$f":"HLOOKUP($F193,UNWDF_Medellín_2024_en!$H$14:$S$16,3,FALSE)","v":90},"N","NA","NA",{"$f":"IF(OR(L193=\"NA\",L193=\"E\"),\"NA\",IF(L193=\"Y\",COUNTIF($M$1:N192,N193)+1,COUNTIF($M$1:N192,N193)+1))","v":288},"Local_10","Exploring the environment through public and geographical data","Empresas Públicas de Medellín (EPM)","Explorando el entorno a través de datos públicos y heográficos","Empresas Públicas de Medellín (EPM)","Day3_Time_Slot4_Parallel 09",null,"1:00"]
[215,{"$f":"C194&\"_\"&F194","v":"Day3_Time_Slot4_Parallel 10"},{"$f":"$D$1&D194&\"_\"&$E$1&E194","v":"Day3_Time_Slot4"},3,4,"Parallel 10",{"$f":"VLOOKUP($D$1&D194,UNWDF_Medellín_2024_en!A:F,5,FALSE)","v":"2024-11-15"},{"$f":"MID(VLOOKUP($D$1&D194&$E$1&E194,UNWDF_Medellín_2024_en!A:F,5,FALSE),1,SEARCH(\"(\",VLOOKUP($D$1&D194&$E$1&E194,UNWDF_Medellín_2024_en!A:F,5,FALSE))-2)","v":"14:30 - 15:30"},{"$f":"TEXT(MID(H194,SEARCH(\"-\",H194)+2,LEN(H194)-SEARCH(\"-\",H194)-1)-MID(H194,1,SEARCH(\"-\",H194)-1),\"h:mm\")","v":"1:00"},{"$f":"HLOOKUP($F194,UNWDF_Medellín_2024_en!$H$14:$S$16,2,FALSE)","v":"Room 9"},{"$f":"HLOOKUP($F194,UNWDF_Medellín_2024_en!$H$14:$S$16,3,FALSE)","v":60},"N","NA","_L",{"$f":"IF(OR(L194=\"NA\",L194=\"E\"),\"NA\",IF(L194=\"Y\",COUNTIF($M$1:N193,N194)+1,COUNTIF($M$1:N193,N194)+1))","v":12},"LEARN.309","Leveraging Global South Youth’s Vision for an Equitable and Sustainable Data Future","The Datasphere Initiative; Global Shapers Medellín Hub; African Institute for Mathematical Sciences (AIMS-Next Einstein Forum); Chaski Global; Global Partnership for Sustainable Development Data (GPSDD)","Aprovechar la visión de los jóvenes del Sur Global para un futuro de datos equitativo y sostenible","The Datasphere Initiative; Global Shapers Medellín Hub; African Institute for Mathematical Sciences (AIMS-Next Einstein Forum); Chaski Global; Alianza Global para los Datos del Desarrollo Sostenible (GPSDD)",{"$f":"B194","v":"Day3_Time_Slot4_Parallel 10"},null,"1:00"]
[216,"Day3_Time_Slot4_Parallel 11","Day3_Time_Slot4",3,4,"Parallel 11",{"$f":"VLOOKUP($D$1&D195,UNWDF_Medellín_2024_en!A:F,5,FALSE)","v":"2024-11-15"},{"$f":"MID(VLOOKUP($D$1&D195&$E$1&E195,UNWDF_Medellín_2024_en!A:F,5,FALSE),1,SEARCH(\"(\",VLOOKUP($D$1&D195&$E$1&E195,UNWDF_Medellín_2024_en!A:F,5,FALSE))-2)","v":"14:30 - 15:30"},"1:00",{"$f":"HLOOKUP($F195,UNWDF_Medellín_2024_en!$H$14:$S$16,2,FALSE)","v":"Room 10"},{"$f":"HLOOKUP($F195,UNWDF_Medellín_2024_en!$H$14:$S$16,3,FALSE)","v":60},"E","NA","NA",{"$f":"IF(OR(L195=\"NA\",L195=\"E\"),\"NA\",IF(L195=\"Y\",COUNTIF($M$1:N194,N195)+1,COUNTIF($M$1:N194,N195)+1))","v":"NA"},{"$f":"IF(N195=\"NA\",\"NA\",\"TA\"&N195&\".\"&TEXT(O195,\"0#\"))","v":"NA"},"TBC","TBC","Por Confirmar","Por Confirmar","Day3_Time_Slot4_Parallel 11","",{"$f":"I195","v":"1:00"}]
[220,"Day3_Time_Slot4_Parallel 12","Day3_Time_Slot4",3,4,"Parallel 12",{"$f":"VLOOKUP($D$1&D196,UNWDF_Medellín_2024_en!A:F,5,FALSE)","v":"2024-11-15"},{"$f":"MID(VLOOKUP($D$1&D196&$E$1&E196,UNWDF_Medellín_2024_en!A:F,5,FALSE),1,SEARCH(\"(\",VLOOKUP($D$1&D196&$E$1&E196,UNWDF_Medellín_2024_en!A:F,5,FALSE))-2)","v":"14:30 - 15:30"},"1:00",{"$f":"HLOOKUP($F196,UNWDF_Medellín_2024_en!$H$14:$S$16,2,FALSE)","v":"NA"},{"$f":"HLOOKUP($F196,UNWDF_Medellín_2024_en!$H$14:$S$16,3,FALSE)","v":"NA"},"NA","NA","NA",{"$f":"IF(OR(L196=\"NA\",L196=\"E\"),\"NA\",IF(L196=\"Y\",COUNTIF($M$1:N195,N196)+1,COUNTIF($M$1:N195,N196)+1))","v":"NA"},{"$f":"IF(N196=\"NA\",\"NA\",\"TA\"&N196&\".\"&TEXT(O196,\"0#\"))","v":"NA"},"NA","NA","NA","NA","Day3_Time_Slot4_Parallel 12","","1:00"]
[11,"Day3_Time_Slot5_Parallel 01","Day3_Time_Slot5",3,5,"Parallel 01",{"$f":"VLOOKUP($D$1&D197,UNWDF_Medellín_2024_en!A:F,5,FALSE)","v":"2024-11-15"},{"$f":"MID(VLOOKUP($D$1&D197&$E$1&E197,UNWDF_Medellín_2024_en!A:F,5,FALSE),1,SEARCH(\"(\",VLOOKUP($D$1&D197&$E$1&E197,UNWDF_Medellín_2024_en!A:F,5,FALSE))-2)","v":"15:45 - 16:45"},"1:00",{"$f":"HLOOKUP($F197,UNWDF_Medellín_2024_en!$H$14:$S$16,2,FALSE)","v":"Plenary Room"},{"$f":"HLOOKUP($F197,UNWDF_Medellín_2024_en!$H$14:$S$16,3,FALSE)","v":3000},"Y","NA","_C",{"$f":"IF(OR(L197=\"NA\",L197=\"E\"),\"NA\",IF(L197=\"Y\",COUNTIF($M$1:N196,N197)+1,COUNTIF($M$1:N196,N197)+1))","v":1},"TA_C.01","Closing ceremony","Departamento Administrativo Nacional de Estadística (DANE-Colombia); United Nations Statistics Division (UNSD-DESA)","Ceremonia de clausura","Departamento Administrativo Nacional de Estadística (DANE-Colombia); División de Estadísticas de las Naciones Unidas (UNSD-DESA)","Day3_Time_Slot5_Parallel 01","","1:00"]
[100,"Day3_Time_Slot5_Parallel 02","Day3_Time_Slot5",3,5,"Parallel 02",{"$f":"VLOOKUP($D$1&D198,UNWDF_Medellín_2024_en!A:F,5,FALSE)","v":"2024-11-15"},{"$f":"MID(VLOOKUP($D$1&D198&$E$1&E198,UNWDF_Medellín_2024_en!A:F,5,FALSE),1,SEARCH(\"(\",VLOOKUP($D$1&D198&$E$1&E198,UNWDF_Medellín_2024_en!A:F,5,FALSE))-2)","v":"15:45 - 16:45"},"1:00",{"$f":"HLOOKUP($F198,UNWDF_Medellín_2024_en!$H$14:$S$16,2,FALSE)","v":"Room 1"},{"$f":"HLOOKUP($F198,UNWDF_Medellín_2024_en!$H$14:$S$16,3,FALSE)","v":300},"NA","NA","NA",{"$f":"IF(OR(L198=\"NA\",L198=\"E\"),\"NA\",IF(L198=\"Y\",COUNTIF($M$1:N197,N198)+1,COUNTIF($M$1:N197,N198)+1))","v":"NA"},{"$f":"IF(N198=\"NA\",\"NA\",\"TA\"&N198&\".\"&TEXT(O198,\"0#\"))","v":"NA"},"NA","NA","NA","NA","Day3_Time_Slot5_Parallel 02","","1:00"]
[101,"Day3_Time_Slot5_Parallel 03","Day3_Time_Slot5",3,5,"Parallel 03",{"$f":"VLOOKUP($D$1&D199,UNWDF_Medellín_2024_en!A:F,5,FALSE)","v":"2024-11-15"},{"$f":"MID(VLOOKUP($D$1&D199&$E$1&E199,UNWDF_Medellín_2024_en!A:F,5,FALSE),1,SEARCH(\"(\",VLOOKUP($D$1&D199&$E$1&E199,UNWDF_Medellín_2024_en!A:F,5,FALSE))-2)","v":"15:45 - 16:45"},"1:00",{"$f":"HLOOKUP($F199,UNWDF_Medellín_2024_en!$H$14:$S$16,2,FALSE)","v":"Room 2"},{"$f":"HLOOKUP($F199,UNWDF_Medellín_2024_en!$H$14:$S$16,3,FALSE)","v":200},"NA","NA","NA",{"$f":"IF(OR(L199=\"NA\",L199=\"E\"),\"NA\",IF(L199=\"Y\",COUNTIF($M$1:N198,N199)+1,COUNTIF($M$1:N198,N199)+1))","v":"NA"},"NA","NA","NA","NA","NA","Day3_Time_Slot5_Parallel 03","","1:00"]
[102,"Day3_Time_Slot5_Parallel 04","Day3_Time_Slot5",3,5,"Parallel 04",{"$f":"VLOOKUP($D$1&D200,UNWDF_Medellín_2024_en!A:F,5,FALSE)","v":"2024-11-15"},{"$f":"MID(VLOOKUP($D$1&D200&$E$1&E200,UNWDF_Medellín_2024_en!A:F,5,FALSE),1,SEARCH(\"(\",VLOOKUP($D$1&D200&$E$1&E200,UNWDF_Medellín_2024_en!A:F,5,FALSE))-2)","v":"15:45 - 16:45"},"1:00",{"$f":"HLOOKUP($F200,UNWDF_Medellín_2024_en!$H$14:$S$16,2,FALSE)","v":"Room 3"},{"$f":"HLOOKUP($F200,UNWDF_Medellín_2024_en!$H$14:$S$16,3,FALSE)","v":200},"NA","NA","NA",{"$f":"IF(OR(L200=\"NA\",L200=\"E\"),\"NA\",IF(L200=\"Y\",COUNTIF($M$1:N199,N200)+1,COUNTIF($M$1:N199,N200)+1))","v":"NA"},"NA","NA","NA","NA","NA","Day3_Time_Slot5_Parallel 04","","1:00"]
[103,"Day3_Time_Slot5_Parallel 05","Day3_Time_Slot5",3,5,"Parallel 05",{"$f":"VLOOKUP($D$1&D201,UNWDF_Medellín_2024_en!A:F,5,FALSE)","v":"2024-11-15"},{"$f":"MID(VLOOKUP($D$1&D201&$E$1&E201,UNWDF_Medellín_2024_en!A:F,5,FALSE),1,SEARCH(\"(\",VLOOKUP($D$1&D201&$E$1&E201,UNWDF_Medellín_2024_en!A:F,5,FALSE))-2)","v":"15:45 - 16:45"},"1:00",{"$f":"HLOOKUP($F201,UNWDF_Medellín_2024_en!$H$14:$S$16,2,FALSE)","v":"Room 4"},{"$f":"HLOOKUP($F201,UNWDF_Medellín_2024_en!$H$14:$S$16,3,FALSE)","v":200},"NA","NA","NA",{"$f":"IF(OR(L201=\"NA\",L201=\"E\"),\"NA\",IF(L201=\"Y\",COUNTIF($M$1:N200,N201)+1,COUNTIF($M$1:N200,N201)+1))","v":"NA"},"NA","NA","NA","NA","NA","Day3_Time_Slot5_Parallel 05","","1:00"]
[104,"Day3_Time_Slot5_Parallel 06","Day3_Time_Slot5",3,5,"Parallel 06",{"$f":"VLOOKUP($D$1&D202,UNWDF_Medellín_2024_en!A:F,5,FALSE)","v":"2024-11-15"},{"$f":"MID(VLOOKUP($D$1&D202&$E$1&E202,UNWDF_Medellín_2024_en!A:F,5,FALSE),1,SEARCH(\"(\",VLOOKUP($D$1&D202&$E$1&E202,UNWDF_Medellín_2024_en!A:F,5,FALSE))-2)","v":"15:45 - 16:45"},"1:00",{"$f":"HLOOKUP($F202,UNWDF_Medellín_2024_en!$H$14:$S$16,2,FALSE)","v":"Room 5"},{"$f":"HLOOKUP($F202,UNWDF_Medellín_2024_en!$H$14:$S$16,3,FALSE)","v":200},"NA","NA","NA",{"$f":"IF(OR(L202=\"NA\",L202=\"E\"),\"NA\",IF(L202=\"Y\",COUNTIF($M$1:N201,N202)+1,COUNTIF($M$1:N201,N202)+1))","v":"NA"},"NA","NA","NA","NA","NA","Day3_Time_Slot5_Parallel 06","","1:00"]
[105,"Day3_Time_Slot5_Parallel 07","Day3_Time_Slot5",3,5,"Parallel 07",{"$f":"VLOOKUP($D$1&D203,UNWDF_Medellín_2024_en!A:F,5,FALSE)","v":"2024-11-15"},{"$f":"MID(VLOOKUP($D$1&D203&$E$1&E203,UNWDF_Medellín_2024_en!A:F,5,FALSE),1,SEARCH(\"(\",VLOOKUP($D$1&D203&$E$1&E203,UNWDF_Medellín_2024_en!A:F,5,FALSE))-2)","v":"15:45 - 16:45"},"1:00",{"$f":"HLOOKUP($F203,UNWDF_Medellín_2024_en!$H$14:$S$16,2,FALSE)","v":"Room 6"},{"$f":"HLOOKUP($F203,UNWDF_Medellín_2024_en!$H$14:$S$16,3,FALSE)","v":150},"NA","NA","NA",{"$f":"IF(OR(L203=\"NA\",L203=\"E\"),\"NA\",IF(L203=\"Y\",COUNTIF($M$1:N202,N203)+1,COUNTIF($M$1:N202,N203)+1))","v":"NA"},"NA","NA","NA","NA","NA","Day3_Time_Slot5_Parallel 07","","1:00"]
[106,"Day3_Time_Slot5_Parallel 08","Day3_Time_Slot5",3,5,"Parallel 08",{"$f":"VLOOKUP($D$1&D204,UNWDF_Medellín_2024_en!A:F,5,FALSE)","v":"2024-11-15"},{"$f":"MID(VLOOKUP($D$1&D204&$E$1&E204,UNWDF_Medellín_2024_en!A:F,5,FALSE),1,SEARCH(\"(\",VLOOKUP($D$1&D204&$E$1&E204,UNWDF_Medellín_2024_en!A:F,5,FALSE))-2)","v":"15:45 - 16:45"},"1:00",{"$f":"HLOOKUP($F204,UNWDF_Medellín_2024_en!$H$14:$S$16,2,FALSE)","v":"Room 7"},{"$f":"HLOOKUP($F204,UNWDF_Medellín_2024_en!$H$14:$S$16,3,FALSE)","v":150},"NA","NA","NA",{"$f":"IF(OR(L204=\"NA\",L204=\"E\"),\"NA\",IF(L204=\"Y\",COUNTIF($M$1:N203,N204)+1,COUNTIF($M$1:N203,N204)+1))","v":"NA"},"NA","NA","NA","NA","NA","Day3_Time_Slot5_Parallel 08","","1:00"]
[107,"Day3_Time_Slot5_Parallel 09","Day3_Time_Slot5",3,5,"Parallel 09",{"$f":"VLOOKUP($D$1&D205,UNWDF_Medellín_2024_en!A:F,5,FALSE)","v":"2024-11-15"},{"$f":"MID(VLOOKUP($D$1&D205&$E$1&E205,UNWDF_Medellín_2024_en!A:F,5,FALSE),1,SEARCH(\"(\",VLOOKUP($D$1&D205&$E$1&E205,UNWDF_Medellín_2024_en!A:F,5,FALSE))-2)","v":"15:45 - 16:45"},"1:00",{"$f":"HLOOKUP($F205,UNWDF_Medellín_2024_en!$H$14:$S$16,2,FALSE)","v":"Room 8"},{"$f":"HLOOKUP($F205,UNWDF_Medellín_2024_en!$H$14:$S$16,3,FALSE)","v":90},"NA","NA","NA",{"$f":"IF(OR(L205=\"NA\",L205=\"E\"),\"NA\",IF(L205=\"Y\",COUNTIF($M$1:N204,N205)+1,COUNTIF($M$1:N204,N205)+1))","v":"NA"},"NA","NA","NA","NA","NA","Day3_Time_Slot5_Parallel 09","","1:00"]
[108,"Day3_Time_Slot5_Parallel 10","Day3_Time_Slot5",3,5,"Parallel 10",{"$f":"VLOOKUP($D$1&D206,UNWDF_Medellín_2024_en!A:F,5,FALSE)","v":"2024-11-15"},{"$f":"MID(VLOOKUP($D$1&D206&$E$1&E206,UNWDF_Medellín_2024_en!A:F,5,FALSE),1,SEARCH(\"(\",VLOOKUP($D$1&D206&$E$1&E206,UNWDF_Medellín_2024_en!A:F,5,FALSE))-2)","v":"15:45 - 16:45"},"1:00",{"$f":"HLOOKUP($F206,UNWDF_Medellín_2024_en!$H$14:$S$16,2,FALSE)","v":"Room 9"},{"$f":"HLOOKUP($F206,UNWDF_Medellín_2024_en!$H$14:$S$16,3,FALSE)","v":60},"NA","NA","NA",{"$f":"IF(OR(L206=\"NA\",L206=\"E\"),\"NA\",IF(L206=\"Y\",COUNTIF($M$1:N205,N206)+1,COUNTIF($M$1:N205,N206)+1))","v":"NA"},"NA","NA","NA","NA","NA","Day3_Time_Slot5_Parallel 10","","1:00"]
[109,"Day3_Time_Slot5_Parallel 11","Day3_Time_Slot5",3,5,"Parallel 11",{"$f":"VLOOKUP($D$1&D207,UNWDF_Medellín_2024_en!A:F,5,FALSE)","v":"2024-11-15"},{"$f":"MID(VLOOKUP($D$1&D207&$E$1&E207,UNWDF_Medellín_2024_en!A:F,5,FALSE),1,SEARCH(\"(\",VLOOKUP($D$1&D207&$E$1&E207,UNWDF_Medellín_2024_en!A:F,5,FALSE))-2)","v":"15:45 - 16:45"},"1:00",{"$f":"HLOOKUP($F207,UNWDF_Medellín_2024_en!$H$14:$S$16,2,FALSE)","v":"Room 10"},{"$f":"HLOOKUP($F207,UNWDF_Medellín_2024_en!$H$14:$S$16,3,FALSE)","v":60},"NA","NA","NA",{"$f":"IF(OR(L207=\"NA\",L207=\"E\"),\"NA\",IF(L207=\"Y\",COUNTIF($M$1:N206,N207)+1,COUNTIF($M$1:N206,N207)+1))","v":"NA"},"NA","NA","NA","NA","NA","Day3_Time_Slot5_Parallel 11","","1:00"]
[110,"Day3_Time_Slot5_Parallel 12","Day3_Time_Slot5",3,5,"Parallel 12",{"$f":"VLOOKUP($D$1&D208,UNWDF_Medellín_2024_en!A:F,5,FALSE)","v":"2024-11-15"},{"$f":"MID(VLOOKUP($D$1&D208&$E$1&E208,UNWDF_Medellín_2024_en!A:F,5,FALSE),1,SEARCH(\"(\",VLOOKUP($D$1&D208&$E$1&E208,UNWDF_Medellín_2024_en!A:F,5,FALSE))-2)","v":"15:45 - 16:45"},"1:00",{"$f":"HLOOKUP($F208,UNWDF_Medellín_2024_en!$H$14:$S$16,2,FALSE)","v":"NA"},{"$f":"HLOOKUP($F208,UNWDF_Medellín_2024_en!$H$14:$S$16,3,FALSE)","v":"NA"},"NA","NA","NA",{"$f":"IF(OR(L208=\"NA\",L208=\"E\"),\"NA\",IF(L208=\"Y\",COUNTIF($M$1:N207,N208)+1,COUNTIF($M$1:N207,N208)+1))","v":"NA"},"NA","NA","NA","NA","NA","Day3_Time_Slot5_Parallel 12","","1:00"]
[12,"Day3_Time_Slot6_Parallel 01","Day3_Time_Slot6",3,6,"Parallel 01",{"$f":"VLOOKUP($D$1&D209,UNWDF_Medellín_2024_en!A:F,5,FALSE)","v":"2024-11-15"},{"$f":"MID(VLOOKUP($D$1&D209&$E$1&E209,UNWDF_Medellín_2024_en!A:F,5,FALSE),1,SEARCH(\"(\",VLOOKUP($D$1&D209&$E$1&E209,UNWDF_Medellín_2024_en!A:F,5,FALSE))-2)","v":"17:00 - 18:00"},"1:00",{"$f":"HLOOKUP($F209,UNWDF_Medellín_2024_en!$H$14:$S$16,2,FALSE)","v":"Plenary Room"},{"$f":"HLOOKUP($F209,UNWDF_Medellín_2024_en!$H$14:$S$16,3,FALSE)","v":3000},"NA","NA","NA",{"$f":"IF(OR(L209=\"NA\",L209=\"E\"),\"NA\",IF(L209=\"Y\",COUNTIF($M$1:N208,N209)+1,COUNTIF($M$1:N208,N209)+1))","v":"NA"},"NA","NA","NA","NA","NA","Day3_Time_Slot6_Parallel 01","","1:00"]
[111,"Day3_Time_Slot6_Parallel 02","Day3_Time_Slot6",3,6,"Parallel 02",{"$f":"VLOOKUP($D$1&D210,UNWDF_Medellín_2024_en!A:F,5,FALSE)","v":"2024-11-15"},{"$f":"MID(VLOOKUP($D$1&D210&$E$1&E210,UNWDF_Medellín_2024_en!A:F,5,FALSE),1,SEARCH(\"(\",VLOOKUP($D$1&D210&$E$1&E210,UNWDF_Medellín_2024_en!A:F,5,FALSE))-2)","v":"17:00 - 18:00"},"1:00",{"$f":"HLOOKUP($F210,UNWDF_Medellín_2024_en!$H$14:$S$16,2,FALSE)","v":"Room 1"},{"$f":"HLOOKUP($F210,UNWDF_Medellín_2024_en!$H$14:$S$16,3,FALSE)","v":300},"NA","NA","NA",{"$f":"IF(OR(L210=\"NA\",L210=\"E\"),\"NA\",IF(L210=\"Y\",COUNTIF($M$1:N209,N210)+1,COUNTIF($M$1:N209,N210)+1))","v":"NA"},"NA","NA","NA","NA","NA","Day3_Time_Slot6_Parallel 02","","1:00"]
[112,"Day3_Time_Slot6_Parallel 03","Day3_Time_Slot6",3,6,"Parallel 03",{"$f":"VLOOKUP($D$1&D211,UNWDF_Medellín_2024_en!A:F,5,FALSE)","v":"2024-11-15"},{"$f":"MID(VLOOKUP($D$1&D211&$E$1&E211,UNWDF_Medellín_2024_en!A:F,5,FALSE),1,SEARCH(\"(\",VLOOKUP($D$1&D211&$E$1&E211,UNWDF_Medellín_2024_en!A:F,5,FALSE))-2)","v":"17:00 - 18:00"},"1:00",{"$f":"HLOOKUP($F211,UNWDF_Medellín_2024_en!$H$14:$S$16,2,FALSE)","v":"Room 2"},{"$f":"HLOOKUP($F211,UNWDF_Medellín_2024_en!$H$14:$S$16,3,FALSE)","v":200},"NA","NA","NA",{"$f":"IF(OR(L211=\"NA\",L211=\"E\"),\"NA\",IF(L211=\"Y\",COUNTIF($M$1:N210,N211)+1,COUNTIF($M$1:N210,N211)+1))","v":"NA"},"NA","NA","NA","NA","NA","Day3_Time_Slot6_Parallel 03","","1:00"]
[113,"Day3_Time_Slot6_Parallel 04","Day3_Time_Slot6",3,6,"Parallel 04",{"$f":"VLOOKUP($D$1&D212,UNWDF_Medellín_2024_en!A:F,5,FALSE)","v":"2024-11-15"},{"$f":"MID(VLOOKUP($D$1&D212&$E$1&E212,UNWDF_Medellín_2024_en!A:F,5,FALSE),1,SEARCH(\"(\",VLOOKUP($D$1&D212&$E$1&E212,UNWDF_Medellín_2024_en!A:F,5,FALSE))-2)","v":"17:00 - 18:00"},"1:00",{"$f":"HLOOKUP($F212,UNWDF_Medellín_2024_en!$H$14:$S$16,2,FALSE)","v":"Room 3"},{"$f":"HLOOKUP($F212,UNWDF_Medellín_2024_en!$H$14:$S$16,3,FALSE)","v":200},"NA","NA","NA",{"$f":"IF(OR(L212=\"NA\",L212=\"E\"),\"NA\",IF(L212=\"Y\",COUNTIF($M$1:N211,N212)+1,COUNTIF($M$1:N211,N212)+1))","v":"NA"},"NA","NA","NA","NA","NA","Day3_Time_Slot6_Parallel 04","","1:00"]
[114,"Day3_Time_Slot6_Parallel 05","Day3_Time_Slot6",3,6,"Parallel 05",{"$f":"VLOOKUP($D$1&D213,UNWDF_Medellín_2024_en!A:F,5,FALSE)","v":"2024-11-15"},{"$f":"MID(VLOOKUP($D$1&D213&$E$1&E213,UNWDF_Medellín_2024_en!A:F,5,FALSE),1,SEARCH(\"(\",VLOOKUP($D$1&D213&$E$1&E213,UNWDF_Medellín_2024_en!A:F,5,FALSE))-2)","v":"17:00 - 18:00"},"1:00",{"$f":"HLOOKUP($F213,UNWDF_Medellín_2024_en!$H$14:$S$16,2,FALSE)","v":"Room 4"},{"$f":"HLOOKUP($F213,UNWDF_Medellín_2024_en!$H$14:$S$16,3,FALSE)","v":200},"NA","NA","NA",{"$f":"IF(OR(L213=\"NA\",L213=\"E\"),\"NA\",IF(L213=\"Y\",COUNTIF($M$1:N212,N213)+1,COUNTIF($M$1:N212,N213)+1))","v":"NA"},"NA","NA","NA","NA","NA","Day3_Time_Slot6_Parallel 05","","1:00"]
[115,"Day3_Time_Slot6_Parallel 06","Day3_Time_Slot6",3,6,"Parallel 06",{"$f":"VLOOKUP($D$1&D214,UNWDF_Medellín_2024_en!A:F,5,FALSE)","v":"2024-11-15"},{"$f":"MID(VLOOKUP($D$1&D214&$E$1&E214,UNWDF_Medellín_2024_en!A:F,5,FALSE),1,SEARCH(\"(\",VLOOKUP($D$1&D214&$E$1&E214,UNWDF_Medellín_2024_en!A:F,5,FALSE))-2)","v":"17:00 - 18:00"},"1:00",{"$f":"HLOOKUP($F214,UNWDF_Medellín_2024_en!$H$14:$S$16,2,FALSE)","v":"Room 5"},{"$f":"HLOOKUP($F214,UNWDF_Medellín_2024_en!$H$14:$S$16,3,FALSE)","v":200},"NA","NA","NA",{"$f":"IF(OR(L214=\"NA\",L214=\"E\"),\"NA\",IF(L214=\"Y\",COUNTIF($M$1:N213,N214)+1,COUNTIF($M$1:N213,N214)+1))","v":"NA"},"NA","NA","NA","NA","NA","Day3_Time_Slot6_Parallel 06","","1:00"]
[116,"Day3_Time_Slot6_Parallel 07","Day3_Time_Slot6",3,6,"Parallel 07",{"$f":"VLOOKUP($D$1&D215,UNWDF_Medellín_2024_en!A:F,5,FALSE)","v":"2024-11-15"},{"$f":"MID(VLOOKUP($D$1&D215&$E$1&E215,UNWDF_Medellín_2024_en!A:F,5,FALSE),1,SEARCH(\"(\",VLOOKUP($D$1&D215&$E$1&E215,UNWDF_Medellín_2024_en!A:F,5,FALSE))-2)","v":"17:00 - 18:00"},"1:00",{"$f":"HLOOKUP($F215,UNWDF_Medellín_2024_en!$H$14:$S$16,2,FALSE)","v":"Room 6"},{"$f":"HLOOKUP($F215,UNWDF_Medellín_2024_en!$H$14:$S$16,3,FALSE)","v":150},"NA","NA","NA",{"$f":"IF(OR(L215=\"NA\",L215=\"E\"),\"NA\",IF(L215=\"Y\",COUNTIF($M$1:N214,N215)+1,COUNTIF($M$1:N214,N215)+1))","v":"NA"},"NA","NA","NA","NA","NA","Day3_Time_Slot6_Parallel 07","","1:00"]
[117,"Day3_Time_Slot6_Parallel 08","Day3_Time_Slot6",3,6,"Parallel 08",{"$f":"VLOOKUP($D$1&D216,UNWDF_Medellín_2024_en!A:F,5,FALSE)","v":"2024-11-15"},{"$f":"MID(VLOOKUP($D$1&D216&$E$1&E216,UNWDF_Medellín_2024_en!A:F,5,FALSE),1,SEARCH(\"(\",VLOOKUP($D$1&D216&$E$1&E216,UNWDF_Medellín_2024_en!A:F,5,FALSE))-2)","v":"17:00 - 18:00"},"1:00",{"$f":"HLOOKUP($F216,UNWDF_Medellín_2024_en!$H$14:$S$16,2,FALSE)","v":"Room 7"},{"$f":"HLOOKUP($F216,UNWDF_Medellín_2024_en!$H$14:$S$16,3,FALSE)","v":150},"NA","NA","NA",{"$f":"IF(OR(L216=\"NA\",L216=\"E\"),\"NA\",IF(L216=\"Y\",COUNTIF($M$1:N215,N216)+1,COUNTIF($M$1:N215,N216)+1))","v":"NA"},"NA","NA","NA","NA","NA","Day3_Time_Slot6_Parallel 08","","1:00"]
[118,"Day3_Time_Slot6_Parallel 09","Day3_Time_Slot6",3,6,"Parallel 09",{"$f":"VLOOKUP($D$1&D217,UNWDF_Medellín_2024_en!A:F,5,FALSE)","v":"2024-11-15"},{"$f":"MID(VLOOKUP($D$1&D217&$E$1&E217,UNWDF_Medellín_2024_en!A:F,5,FALSE),1,SEARCH(\"(\",VLOOKUP($D$1&D217&$E$1&E217,UNWDF_Medellín_2024_en!A:F,5,FALSE))-2)","v":"17:00 - 18:00"},"1:00",{"$f":"HLOOKUP($F217,UNWDF_Medellín_2024_en!$H$14:$S$16,2,FALSE)","v":"Room 8"},{"$f":"HLOOKUP($F217,UNWDF_Medellín_2024_en!$H$14:$S$16,3,FALSE)","v":90},"NA","NA","NA",{"$f":"IF(OR(L217=\"NA\",L217=\"E\"),\"NA\",IF(L217=\"Y\",COUNTIF($M$1:N216,N217)+1,COUNTIF($M$1:N216,N217)+1))","v":"NA"},"NA","NA","NA","NA","NA","Day3_Time_Slot6_Parallel 09","","1:00"]
[119,"Day3_Time_Slot6_Parallel 10","Day3_Time_Slot6",3,6,"Parallel 10",{"$f":"VLOOKUP($D$1&D218,UNWDF_Medellín_2024_en!A:F,5,FALSE)","v":"2024-11-15"},{"$f":"MID(VLOOKUP($D$1&D218&$E$1&E218,UNWDF_Medellín_2024_en!A:F,5,FALSE),1,SEARCH(\"(\",VLOOKUP($D$1&D218&$E$1&E218,UNWDF_Medellín_2024_en!A:F,5,FALSE))-2)","v":"17:00 - 18:00"},"1:00",{"$f":"HLOOKUP($F218,UNWDF_Medellín_2024_en!$H$14:$S$16,2,FALSE)","v":"Room 9"},{"$f":"HLOOKUP($F218,UNWDF_Medellín_2024_en!$H$14:$S$16,3,FALSE)","v":60},"NA","NA","NA",{"$f":"IF(OR(L218=\"NA\",L218=\"E\"),\"NA\",IF(L218=\"Y\",COUNTIF($M$1:N217,N218)+1,COUNTIF($M$1:N217,N218)+1))","v":"NA"},"NA","NA","NA","NA","NA","Day3_Time_Slot6_Parallel 10","","1:00"]
[120,"Day3_Time_Slot6_Parallel 11","Day3_Time_Slot6",3,6,"Parallel 11",{"$f":"VLOOKUP($D$1&D219,UNWDF_Medellín_2024_en!A:F,5,FALSE)","v":"2024-11-15"},{"$f":"MID(VLOOKUP($D$1&D219&$E$1&E219,UNWDF_Medellín_2024_en!A:F,5,FALSE),1,SEARCH(\"(\",VLOOKUP($D$1&D219&$E$1&E219,UNWDF_Medellín_2024_en!A:F,5,FALSE))-2)","v":"17:00 - 18:00"},"1:00",{"$f":"HLOOKUP($F219,UNWDF_Medellín_2024_en!$H$14:$S$16,2,FALSE)","v":"Room 10"},{"$f":"HLOOKUP($F219,UNWDF_Medellín_2024_en!$H$14:$S$16,3,FALSE)","v":60},"NA","NA","NA",{"$f":"IF(OR(L219=\"NA\",L219=\"E\"),\"NA\",IF(L219=\"Y\",COUNTIF($M$1:N218,N219)+1,COUNTIF($M$1:N218,N219)+1))","v":"NA"},"NA","NA","NA","NA","NA","Day3_Time_Slot6_Parallel 11","","1:00"]
[121,"Day3_Time_Slot6_Parallel 12","Day3_Time_Slot6",3,6,"Parallel 12",{"$f":"VLOOKUP($D$1&D220,UNWDF_Medellín_2024_en!A:F,5,FALSE)","v":"2024-11-15"},{"$f":"MID(VLOOKUP($D$1&D220&$E$1&E220,UNWDF_Medellín_2024_en!A:F,5,FALSE),1,SEARCH(\"(\",VLOOKUP($D$1&D220&$E$1&E220,UNWDF_Medellín_2024_en!A:F,5,FALSE))-2)","v":"17:00 - 18:00"},"1:00",{"$f":"HLOOKUP($F220,UNWDF_Medellín_2024_en!$H$14:$S$16,2,FALSE)","v":"NA"},{"$f":"HLOOKUP($F220,UNWDF_Medellín_2024_en!$H$14:$S$16,3,FALSE)","v":"NA"},"NA","NA","NA",{"$f":"IF(OR(L220=\"NA\",L220=\"E\"),\"NA\",IF(L220=\"Y\",COUNTIF($M$1:N219,N220)+1,COUNTIF($M$1:N219,N220)+1))","v":"NA"},"NA","NA","NA","NA","NA","Day3_Time_Slot6_Parallel 12","","1:00"]
[13,"Day3_Time_Slot7_Parallel 01","Day3_Time_Slot7",3,7,"Parallel 01",{"$f":"VLOOKUP($D$1&D221,UNWDF_Medellín_2024_en!A:F,5,FALSE)","v":"2024-11-15"},{"$f":"MID(VLOOKUP($D$1&D221&$E$1&E221,UNWDF_Medellín_2024_en!A:F,5,FALSE),1,SEARCH(\"(\",VLOOKUP($D$1&D221&$E$1&E221,UNWDF_Medellín_2024_en!A:F,5,FALSE))-2)","v":"18:45 - 19:15"},"0:30",{"$f":"HLOOKUP($F221,UNWDF_Medellín_2024_en!$H$14:$S$16,2,FALSE)","v":"Plenary Room"},{"$f":"HLOOKUP($F221,UNWDF_Medellín_2024_en!$H$14:$S$16,3,FALSE)","v":3000},"NA","NA","NA",{"$f":"IF(OR(L221=\"NA\",L221=\"E\"),\"NA\",IF(L221=\"Y\",COUNTIF($M$1:N220,N221)+1,COUNTIF($M$1:N220,N221)+1))","v":"NA"},"NA","NA","NA","NA","NA","Day3_Time_Slot7_Parallel 01","","0:30"]
[]
[]
[]
[]
[null,null,null,null,null,null,null,null,null,null,null,null,null,null,"UNWDF2024",null,null,null,null,null,"UNWDF2023",null,null,null,"UNWDF2021",null,null,null,"UNWDF2020",null,null,null,"UNWDF2018",null,null,null,"UNWDF2017"]
[null,null,null,null,null,null,null,null,null,null,null,null,null,null,"Thematic Area (TA)",null,null,null,null,null,"TA",null,null,null,"TA",null,null,null,"TA",null,null,null,"TA",null,null,null,"TA"]
[null,null,null,null,null,null,null,null,null,null,null,null,null,null,"_O",{"$f":"COUNTIF(N:N,$O228)","v":2},null,null,null,null,"_O",2,null,null,"_O",3,null,null,"_O",1,null,null,"_O",2,null,null,"_O",1]
[null,null,null,null,null,null,null,null,null,null,null,null,null,null,1,16,0.30188679245283018,null,null,null,1,24,{"$f":"V229/SUM($Z$229:$Z$232)","v":0.45283018867924529},null,1,7,{"$f":"Z229/SUM($Z$229:$Z$234)","v":0.1},null,1,4,{"$f":"AD229/SUM($Z$229:$Z$234)","v":5.7142857142857141E-2},null,1,10,{"$f":"AH229/SUM($Z$229:$Z$234)","v":0.14285714285714285},null,1,9,{"$f":"AL229/SUM($Z$229:$Z$234)","v":0.12857142857142856}]
[null,null,null,null,null,null,null,null,null,null,null,null,null,null,2,15,0.28301886792452829,null,null,null,2,25,{"$f":"V230/SUM($Z$229:$Z$232)","v":0.47169811320754718},null,2,18,{"$f":"Z230/SUM($Z$229:$Z$234)","v":0.25714285714285712},null,2,20,{"$f":"AD230/SUM($Z$229:$Z$234)","v":0.2857142857142857},null,2,23,{"$f":"AH230/SUM($Z$229:$Z$234)","v":0.32857142857142857},null,2,20,{"$f":"AL230/SUM($Z$229:$Z$234)","v":0.2857142857142857}]
[null,null,null,null,null,null,null,null,null,null,null,null,null,null,3,3,5.6603773584905662E-2,null,null,null,3,10,{"$f":"V231/SUM($Z$229:$Z$232)","v":0.18867924528301888},null,3,15,0.21428571428571427,null,3,18,0.25714285714285712,null,3,18,0.25714285714285712,null,3,13,0.18571428571428572]
[null,null,null,null,null,null,null,null,null,null,null,null,null,null,4,12,0.22641509433962265,null,null,null,4,10,{"$f":"V232/SUM($Z$229:$Z$232)","v":0.18867924528301888},null,4,13,0.18571428571428572,null,4,9,0.12857142857142856,null,4,12,0.17142857142857143,null,4,18,0.25714285714285712]
[null,null,null,null,null,null,null,null,null,null,null,null,null,null,5,0,null,null,null,null,5,1,null,null,5,14,0.2,null,5,12,0.17142857142857143,null,5,11,0.15714285714285714,null,5,12,0.17142857142857143]
[null,null,null,null,null,null,null,null,null,null,null,null,null,null,6,0,null,null,null,null,6,1,null,null,6,3,4.2857142857142858E-2,null,6,3,4.2857142857142858E-2,null,6,10,0.14285714285714285,null,6,6,8.5714285714285715E-2]
[null,null,null,null,null,null,null,null,null,null,null,null,null,null,null,null,null,null,null,null,null,null,null,null,7,1]
[null,null,null,null,null,null,null,null,null,null,null,null,null,null,"_A",{"$f":"COUNTIF(N:N,$O236)","v":5},null,null,null,null,"_A",3]
[null,null,null,null,null,null,null,null,null,null,null,null,null,null,"_D",{"$f":"COUNTIF(N:N,$O237)","v":4},null,null,null,null,"_D",3]
[null,null,null,null,null,null,null,null,null,null,null,null,null,null,"_T",13,null,null,null,null,"_T",6,null,null,"_T",2,null,null,"_T",1]
[null,null,null,null,null,null,null,null,null,null,null,null,null,null,"_L",12,null,null,null,null,"_L",11]
[]
[null,null,null,null,null,null,null,null,null,null,null,null,null,null,"_C",{"$f":"COUNTIF(N:N,$O241)","v":1},null,null,null,null,"_C",1,null,null,"_C",1,null,null,"_C",1,null,null,"_C",1,null,null,"_C",1]
[null,null,null,null,null,null,null,null,null,null,null,null,null,null,"_P",{"$f":"COUNTIF(N:N,$O242)","v":1},null,null,null,null,"_P",1]
[null,null,null,null,null,null,null,null,null,null,null,null,null,null,"_S",{"$f":"COUNTIF(N:N,$O243)","v":2},null,null,null,null,"_S",3,null,null,"_S",3]
[null,null,null,null,null,null,null,null,null,null,null,null,null,null,"_Z",{"$f":"COUNTIF(N:N,$O244)","v":0},null,null,null,null,"_Z",0,null,null,"_Z",0,null,null,"_Z",0,null,null,"_Z",0,null,null,"_Z",0]
[]
[null,null,null,null,null,null,null,null,null,null,null,null,null,null,"Plenary",{"$f":"COUNTIF(L:L,\"Y\")","v":8},null,null,null,null,"Plenary",13,null,null,"Plenary",14,null,null,"Plenary",5,null,null,"Plenary",8,null,null,"Plenary",10]
[null,null,null,null,null,null,null,null,null,null,null,null,null,null,"Sessions",{"$f":"COUNTIF(L:L,\"N\")","v":96},null,null,null,null,"Sessions",88,null,null,"Sessions",66,null,null,"Sessions",64,null,null,"Sessions",79,null,null,"Sessions",70]
[null,null,null,null,null,null,null,null,null,null,null,null,null,null,"Total",{"$f":"SUM(P246:P247)","v":104},null,null,null,null,"Total",101,null,null,"Total",80,null,null,"Total",69,null,null,"Total",87,null,null,"Total",80]
[]
[null,null,null,null,null,null,null,null,null,null,null,null,null,null,null,null,null,null,null,null,null,null,null,null,"_T","represent 4 Ted-style talks",null,null,"_T","represent 3 Ted-style talks"]
[null,null,null,null,null,null,null,null,null,null,null,null,null,"KEY:","_O","Opening"]
[null,null,null,null,null,null,null,null,null,null,null,null,null,null,"_C","Closing"]
[null,null,null,null,null,null,null,null,null,null,null,null,null,null,"_P","Press"]
[null,null,null,null,null,null,null,null,null,null,null,null,null,null,"_Z","Unknown (placeholder)"]
[null,null,null,null,null,null,null,null,null,null,null,null,null,null,"_A","Announcements"]
[null,null,null,null,null,null,null,null,null,null,null,null,null,null,"_D","Demos"]
[null,null,null,null,null,null,null,null,null,null,null,null,null,null,"_T","Short-talk/Lightening"]
[null,null,null,null,null,null,null,null,null,null,null,null,null,null,"_L","Workshop (learning event)"]